Workbook

Sheet Data input
A1: Plot data for: | B1: SHORT INFO | C1: Sample Name | D1: =IF(OR($A$5=1,$A$5=3),"Ol","Q / –F") -> Ol | E1: =IF(OR($A$5=1,$A$5=3),"Opx","A") -> Opx | F1: =IF(OR($A$5=1,$A$5=3),"Cpx","P") -> Cpx | G1: =IF(OR($A$5=1,$A$5=3),"Amp","") -> Amp | H1: =IF($A$5=3,"Pl","") ->  | J1: =IF(A$5=1,"Ol-n","") -> Ol-n | K1: =IF(A$5=1,"Opx-n","") -> Opx-n | L1: =IF(A$5=1,"Cpx-n","") -> Cpx-n | N1: Sign | P1: =IF(OR($A$5=1,$A$5=3),"","Q, F-n") ->  | Q1: =IF(OR($A$5=1,$A$5=3),"","A-n") ->  | R1: =IF(OR($A$5=1,$A$5=3),"","P-n") ->  | T1: X-QAPF P | U1: Y-QAPF P | V1: X-QAPF V | W1: Y-QAPF V | X1: X-QAP | Y1: Y-QAP | Z1: X-Per | AA1: Y-Per | AC1: Ol-n | AD1: Px-n | AE1: Amp-n | AF1: X-Px | AG1: Y-Px | AI1: Pl-n | AJ1: Px-n | AK1: Ol-n | AL1: X-GN1 | AM1: Y-GN1 | AO1: Pl-n | AP1: Opx-n | AQ1: Cpx-n | AR1: X-GN2 | AS1: Y-GN2 | AU1: Pl-n | AV1: Px-n | AW1: Hbl-n | AX1: X-GN3 | AY1: Y-GN3 | BA1: Ol-n | BB1: 60 Opx-n | BC1: 60 Cpx-n | BD1: X-Ultra2 | BE1: Y-Ultra2
B2: QAPF rock test | C2: Granite | D2: 30 | E2: 35 | J2: =IF(OR($A$5=2,$A$5=3,D2<0,E2<0,F2<0,G2<0),NA(),IF(SUM(D2:G2)>0,D2/SUM(D2:G2),NA())) -> 0.4615384615 | K2: =IF(OR($A$5=2,$A$5=3,D2<0,E2<0,F2<0,G2<0),NA(),IF(SUM(D2:G2)>0,E2/SUM(D2:G2),NA())) -> 0.5384615385 | L2: =IF(OR($A$5=2,$A$5=3,D2<0,E2<0,F2<0,G2<0),NA(),IF(SUM(D2:G2)>0,(F2+G2)/SUM(D2:G2),NA())) -> 0 | N2: =IF(AND($A$5=2,D2<0),-1,1) -> 1 | P2: =IF(OR($A$5=1,$A$5=3,E2<0,F2<0,G2<0,H2<0),NA(),IF(ABS(D2)+E2+F2>0,D2/($N2*$D2+$E2+$F2),NA())) ->  | Q2: =IF(OR($A$5=1,$A$5=3,E2<0,F2<0,G2<0,H2<0),NA(),IF(AND(ABS(D2)+E2+F2>0,D2<0),(E2-D2)/($N2*$D2+$E2+$F2),IF(ABS(D2)+E2+F2=0,NA(),E2/($D2+$E2+$F2)))) ->  | R2: =IF(OR($A$5=1,$A$5=3,E2<0,F2<0,G2<0,H2<0),NA(),IF(AND(ABS(D2)+E2+F2>0,D2<0),(F2-D2)/($N2*$D2+$E2+$F2),IF(ABS(D2)+E2+F2=0,NA(),F2/($D2+$E2+$F2)))) ->  | T2: =IF(OR($A$5=3,$A$5=1),NA(),IF('plutonic template'!Z$85=FALSE,NA(),IF((ABS(D2)+E2+F2)>0,BH$3*P2+R2,NA()))) ->  | U2: =IF(OR($A$5=3,$A$5=1),NA(),IF('plutonic template'!Z$85=FALSE,NA(),IF((ABS(D2)+E2+F2)>0,P2*BH$2+BH$2,NA()))) ->  | V2: =IF(OR($A$5=3,$A$5=1),NA(),IF('volcanic template'!Z$11=FALSE,NA(),IF((ABS(D2)+E2+F2)>0,BH$3*P2+R2,NA()))) ->  | W2: =IF(OR(A$5=3,A$5=1),NA(),IF('volcanic template'!Z$11=FALSE,NA(),IF((ABS(D2)+E2+F2)>0,P2*BH$2+BH$2,NA()))) ->  | X2: =IF(OR($A$5=3,$A$5=1,$D2<0),NA(),IF('plutonic template'!Z$18=FALSE,NA(),BH$3*P2+R2)) ->  | Y2: =IF(OR($A$5=3,$A$5=1,$D2<0),NA(),IF('plutonic template'!Z$18=FALSE,NA(),P2*BH$2)) ->  | Z2: =IF(OR($A$5=3,$A$5=2,D2<0),NA(),IF('plutonic template'!Z$328=FALSE,NA(),BH$3*J2+L2)) ->  | AA2: =IF(OR($A$5=3,$A$5=2,D2<0),NA(),IF('plutonic template'!Z$328=FALSE,NA(),J2*BH$2)) ->  | AC2: =IF(OR(A$5=3,$A$5=2,D2<0,E2<0,F2<0,G2<0,H2<0),NA(),IF(SUM($D2:$G2)>0,D2/SUM($D2:$G2),NA())) -> 0.4615384615 | AD2: =IF(OR(A$5=3,$A$5=2,D2<0,E2<0,F2<0,G2<0,H2<0),NA(),IF(SUM($D2:$G2)>0,(E2+F2)/SUM($D2:$G2),NA())) -> 0.5384615385 | AE2: =IF(OR(A$5=3,$A$5=2,D2<0,E2<0,F2<0,G2<0,H2<0),NA(),IF(SUM($D2:$G2)>0,G2/SUM($D2:$G2),NA())) -> 0 | AF2: =IF(OR($A$5=3,$A$5=2,D2<0),NA(),IF('plutonic template'!Z$412=FALSE,NA(),BH$3*AC2+AE2)) ->  | AG2: =IF(OR($A$5=3,$A$5=2,D2<0),NA(),IF('plutonic template'!Z$412=FALSE,NA(),AC2*BH$2)) ->  | AI2: =IF(OR(A$5=2,A$5=1,D2<0,E2<0,F2<0,G2<0,H2<0),NA(),IF(D2+E2+F2+H2>0,H2/(D2+E2+F2+H2),NA())) ->  | AJ2: =IF(OR(A$5=2,A$5=1,D2<0,E2<0,F2<0,G2<0,H2<0),NA(),IF(D2+E2+F2+H2>0,(E2+F2)/(D2+E2+F2+H2),NA())) ->  | AK2: =IF(OR(A$5=2,A$5=1,D2<0,E2<0,F2<0,G2<0,H2<0),NA(),IF(D2+E2+F2+H2>0,D2/(D2+E2+F2+H2),NA())) ->  | AL2: =IF('plutonic template'!Z$195=FALSE,NA(),BH$3*AI2+AK2) ->  | AM2: =IF('plutonic template'!Z$195=FALSE,NA(),AI2*BH$2) ->  | AO2: =IF(OR(A$5=2,A$5=1,D2<0,E2<0,F2<0,G2<0,H2<0),NA(),IF(E2+F2+H2>0,H2/(E2+F2+H2),NA())) ->  | AP2: =IF(OR(A$5=2,A$5=1,D2<0,E2<0,F2<0,G2<0,H2<0),NA(),IF(E2+F2+H2>0,E2/(E2+F2+H2),NA())) ->  | AQ2: =IF(OR(A$5=2,A$5=1,D2<0,E2<0,F2<0,G2<0,H2<0),NA(),IF(E2+F2+H2>0,F2/(E2+F2+H2),NA())) ->  | AR2: =IF('plutonic template'!$Z$233=FALSE,NA(),BH$3*AO2+AQ2) ->  | AS2: =IF('plutonic template'!$Z$233=FALSE,NA(),AO2*BH$2) ->  | AU2: =IF(OR(A$5=2,A$5=1,D2<0,E2<0,F2<0,G2<0,H2<0),NA(),IF(SUM(E2:H2)>0,H2/SUM(E2:H2),NA())) ->  | AV2: =IF(OR(A$5=2,A$5=1,D2<0,E2<0,F2<0,G2<0,H2<0),NA(),IF(SUM(E2:H2)>0,(E2+F2)/SUM(E2:H2),NA())) ->  | AW2: =IF(OR(A$5=2,A$5=1,D2<0,E2<0,F2<0,G2<0,H2<0),NA(),IF(SUM(E2:H2)>0,G2/SUM(E2:H2),NA())) ->  | AX2: =IF('plutonic template'!$Z$274=FALSE,NA(),BH$3*AU2+AW2) ->  | AY2: =IF('plutonic template'!$Z$274=FALSE,NA(),AU2*BH$2) ->  | BA2: =IF($A$5=1,IF((J2-0.4)>=0,($J2-0.4)/($J2-0.4+$K2+$L2),NA()),NA()) -> 0.1025641026 | BB2: =IF($A$5=1,IF(($J2-0.4)>=0,K2/($J2-0.4+$K2+$L2),NA()),NA()) -> 0.8974358974 | BC2: =IF($A$5=1,IF(($J2-0.4)>=0,L2/($J2-0.4+$K2+$L2),NA()),NA()) -> 0 | BD2: =IF('plutonic template'!$Z$387=FALSE,NA(),BH$3*BA2+BC2) ->  | BE2: =IF('plutonic template'!$Z$387=FALSE,NA(),BA2*BH$2) ->  | BG2: sin(60°): | BH2: =(SIN(60*PI()/180)) -> 0.8660254038
B3: (Q–A–P–F) | C3: Phonolithe | D3: -30 | E3: 30 | F3: 3 | J3: =IF(OR($A$5=2,$A$5=3,D3<0,E3<0,F3<0,G3<0),NA(),IF(SUM(D3:G3)>0,D3/SUM(D3:G3),NA())) ->  | K3: =IF(OR($A$5=2,$A$5=3,D3<0,E3<0,F3<0,G3<0),NA(),IF(SUM(D3:G3)>0,E3/SUM(D3:G3),NA())) ->  | L3: =IF(OR($A$5=2,$A$5=3,D3<0,E3<0,F3<0,G3<0),NA(),IF(SUM(D3:G3)>0,(F3+G3)/SUM(D3:G3),NA())) ->  | N3: =IF(AND($A$5=2,D3<0),-1,1) -> 1 | P3: =IF(OR($A$5=1,$A$5=3,E3<0,F3<0,G3<0,H3<0),NA(),IF(ABS(D3)+E3+F3>0,D3/($N3*$D3+$E3+$F3),NA())) ->  | Q3: =IF(OR($A$5=1,$A$5=3,E3<0,F3<0,G3<0,H3<0),NA(),IF(AND(ABS(D3)+E3+F3>0,D3<0),(E3-D3)/($N3*$D3+$E3+$F3),IF(ABS(D3)+E3+F3=0,NA(),E3/($D3+$E3+$F3)))) ->  | R3: =IF(OR($A$5=1,$A$5=3,E3<0,F3<0,G3<0,H3<0),NA(),IF(AND(ABS(D3)+E3+F3>0,D3<0),(F3-D3)/($N3*$D3+$E3+$F3),IF(ABS(D3)+E3+F3=0,NA(),F3/($D3+$E3+$F3)))) ->  | T3: =IF(OR($A$5=3,$A$5=1),NA(),IF('plutonic template'!Z$85=FALSE,NA(),IF((ABS(D3)+E3+F3)>0,BH$3*P3+R3,NA()))) ->  | U3: =IF(OR($A$5=3,$A$5=1),NA(),IF('plutonic template'!Z$85=FALSE,NA(),IF((ABS(D3)+E3+F3)>0,P3*BH$2+BH$2,NA()))) ->  | V3: =IF(OR($A$5=3,$A$5=1),NA(),IF('volcanic template'!Z$11=FALSE,NA(),IF((ABS(D3)+E3+F3)>0,BH$3*P3+R3,NA()))) ->  | W3: =IF(OR(A$5=3,A$5=1),NA(),IF('volcanic template'!Z$11=FALSE,NA(),IF((ABS(D3)+E3+F3)>0,P3*BH$2+BH$2,NA()))) ->  | X3: =IF(OR($A$5=3,$A$5=1,$D3<0),NA(),IF('plutonic template'!Z$18=FALSE,NA(),BH$3*P3+R3)) ->  | Y3: =IF(OR($A$5=3,$A$5=1,$D3<0),NA(),IF('plutonic template'!Z$18=FALSE,NA(),P3*BH$2)) ->  | Z3: =IF(OR($A$5=3,$A$5=2,D3<0),NA(),IF('plutonic template'!Z$328=FALSE,NA(),BH$3*J3+L3)) ->  | AA3: =IF(OR($A$5=3,$A$5=2,D3<0),NA(),IF('plutonic template'!Z$328=FALSE,NA(),J3*BH$2)) ->  | AC3: =IF(OR(A$5=3,$A$5=2,D3<0,E3<0,F3<0,G3<0,H3<0),NA(),IF(SUM($D3:$G3)>0,D3/SUM($D3:$G3),NA())) ->  | AD3: =IF(OR(A$5=3,$A$5=2,D3<0,E3<0,F3<0,G3<0,H3<0),NA(),IF(SUM($D3:$G3)>0,(E3+F3)/SUM($D3:$G3),NA())) ->  | AE3: =IF(OR(A$5=3,$A$5=2,D3<0,E3<0,F3<0,G3<0,H3<0),NA(),IF(SUM($D3:$G3)>0,G3/SUM($D3:$G3),NA())) ->  | AF3: =IF(OR($A$5=3,$A$5=2,D3<0),NA(),IF('plutonic template'!Z$412=FALSE,NA(),BH$3*AC3+AE3)) ->  | AG3: =IF(OR($A$5=3,$A$5=2,D3<0),NA(),IF('plutonic template'!Z$412=FALSE,NA(),AC3*BH$2)) ->  | AI3: =IF(OR(A$5=2,A$5=1,D3<0,E3<0,F3<0,G3<0,H3<0),NA(),IF(D3+E3+F3+H3>0,H3/(D3+E3+F3+H3),NA())) ->  | AJ3: =IF(OR(A$5=2,A$5=1,D3<0,E3<0,F3<0,G3<0,H3<0),NA(),IF(D3+E3+F3+H3>0,(E3+F3)/(D3+E3+F3+H3),NA())) ->  | AK3: =IF(OR(A$5=2,A$5=1,D3<0,E3<0,F3<0,G3<0,H3<0),NA(),IF(D3+E3+F3+H3>0,D3/(D3+E3+F3+H3),NA())) ->  | AL3: =IF('plutonic template'!Z$195=FALSE,NA(),BH$3*AI3+AK3) ->  | AM3: =IF('plutonic template'!Z$195=FALSE,NA(),AI3*BH$2) ->  | AO3: =IF(OR(A$5=2,A$5=1,D3<0,E3<0,F3<0,G3<0,H3<0),NA(),IF(E3+F3+H3>0,H3/(E3+F3+H3),NA())) ->  | AP3: =IF(OR(A$5=2,A$5=1,D3<0,E3<0,F3<0,G3<0,H3<0),NA(),IF(E3+F3+H3>0,E3/(E3+F3+H3),NA())) ->  | AQ3: =IF(OR(A$5=2,A$5=1,D3<0,E3<0,F3<0,G3<0,H3<0),NA(),IF(E3+F3+H3>0,F3/(E3+F3+H3),NA())) ->  | AR3: =IF('plutonic template'!$Z$233=FALSE,NA(),BH$3*AO3+AQ3) ->  | AS3: =IF('plutonic template'!$Z$233=FALSE,NA(),AO3*BH$2) ->  | AU3: =IF(OR(A$5=2,A$5=1,D3<0,E3<0,F3<0,G3<0,H3<0),NA(),IF(SUM(E3:H3)>0,H3/SUM(E3:H3),NA())) ->  | AV3: =IF(OR(A$5=2,A$5=1,D3<0,E3<0,F3<0,G3<0,H3<0),NA(),IF(SUM(E3:H3)>0,(E3+F3)/SUM(E3:H3),NA())) ->  | AW3: =IF(OR(A$5=2,A$5=1,D3<0,E3<0,F3<0,G3<0,H3<0),NA(),IF(SUM(E3:H3)>0,G3/SUM(E3:H3),NA())) ->  | AX3: =IF('plutonic template'!$Z$274=FALSE,NA(),BH$3*AU3+AW3) ->  | AY3: =IF('plutonic template'!$Z$274=FALSE,NA(),AU3*BH$2) ->  | BA3: =IF($A$5=1,IF((J3-0.4)>=0,($J3-0.4)/($J3-0.4+$K3+$L3),NA()),NA()) ->  | BB3: =IF($A$5=1,IF(($J3-0.4)>=0,K3/($J3-0.4+$K3+$L3),NA()),NA()) ->  | BC3: =IF($A$5=1,IF(($J3-0.4)>=0,L3/($J3-0.4+$K3+$L3),NA()),NA()) ->  | BD3: =IF('plutonic template'!$Z$387=FALSE,NA(),BH$3*BA3+BC3) ->  | BE3: =IF('plutonic template'!$Z$387=FALSE,NA(),BA3*BH$2) ->  | BG3: cos(60°): | BH3: =(COS(RADIANS(60))) -> 0.5
N4: 1 | T4: =IF(OR($A$5=3,$A$5=1),NA(),IF('plutonic template'!Z$85=FALSE,NA(),IF((ABS(D4)+E4+F4)>0,BH$3*P4+R4,NA()))) ->  | U4: =IF(OR($A$5=3,$A$5=1),NA(),IF('plutonic template'!Z$85=FALSE,NA(),IF((ABS(D4)+E4+F4)>0,P4*BH$2+BH$2,NA()))) ->  | V4: =IF(OR($A$5=3,$A$5=1),NA(),IF('volcanic template'!Z$11=FALSE,NA(),IF((ABS(D4)+E4+F4)>0,BH$3*P4+R4,NA()))) ->  | W4: =IF(OR(A$5=3,A$5=1),NA(),IF('volcanic template'!Z$11=FALSE,NA(),IF((ABS(D4)+E4+F4)>0,P4*BH$2+BH$2,NA()))) ->  | X4: =IF(OR($A$5=3,$A$5=1,$D4<0),NA(),IF('plutonic template'!Z$18=FALSE,NA(),BH$3*P4+R4)) ->  | Y4: =IF(OR($A$5=3,$A$5=1,$D4<0),NA(),IF('plutonic template'!Z$18=FALSE,NA(),P4*BH$2)) ->  | Z4: =IF(OR($A$5=3,$A$5=2,D4<0),NA(),IF('plutonic template'!Z$328=FALSE,NA(),BH$3*J4+L4)) ->  | AA4: =IF(OR($A$5=3,$A$5=2,D4<0),NA(),IF('plutonic template'!Z$328=FALSE,NA(),J4*BH$2)) ->  | AF4: =IF(OR($A$5=3,$A$5=2,D4<0),NA(),IF('plutonic template'!Z$412=FALSE,NA(),BH$3*AC4+AE4)) ->  | AG4: =IF(OR($A$5=3,$A$5=2,D4<0),NA(),IF('plutonic template'!Z$412=FALSE,NA(),AC4*BH$2)) ->  | AL4: =IF('plutonic template'!Z$195=FALSE,NA(),BH$3*AI4+AK4) ->  | AM4: =IF('plutonic template'!Z$195=FALSE,NA(),AI4*BH$2) ->  | AR4: =IF('plutonic template'!$Z$233=FALSE,NA(),BH$3*AO4+AQ4) ->  | AS4: =IF('plutonic template'!$Z$233=FALSE,NA(),AO4*BH$2) ->  | AX4: =IF('plutonic template'!$Z$274=FALSE,NA(),BH$3*AU4+AW4) ->  | AY4: =IF('plutonic template'!$Z$274=FALSE,NA(),AU4*BH$2) ->  | BD4: =IF('plutonic template'!$Z$387=FALSE,NA(),BH$3*BA4+BC4) ->  | BE4: =IF('plutonic template'!$Z$387=FALSE,NA(),BA4*BH$2) -> 
A5: 1 | N5: 1 | T5: =IF(OR($A$5=3,$A$5=1),NA(),IF('plutonic template'!Z$85=FALSE,NA(),IF((ABS(D5)+E5+F5)>0,BH$3*P5+R5,NA()))) ->  | U5: =IF(OR($A$5=3,$A$5=1),NA(),IF('plutonic template'!Z$85=FALSE,NA(),IF((ABS(D5)+E5+F5)>0,P5*BH$2+BH$2,NA()))) ->  | V5: =IF(OR($A$5=3,$A$5=1),NA(),IF('volcanic template'!Z$11=FALSE,NA(),IF((ABS(D5)+E5+F5)>0,BH$3*P5+R5,NA()))) ->  | W5: =IF(OR(A$5=3,A$5=1),NA(),IF('volcanic template'!Z$11=FALSE,NA(),IF((ABS(D5)+E5+F5)>0,P5*BH$2+BH$2,NA()))) ->  | X5: =IF(OR($A$5=3,$A$5=1,$D5<0),NA(),IF('plutonic template'!Z$18=FALSE,NA(),BH$3*P5+R5)) ->  | Y5: =IF(OR($A$5=3,$A$5=1,$D5<0),NA(),IF('plutonic template'!Z$18=FALSE,NA(),P5*BH$2)) ->  | Z5: =IF(OR($A$5=3,$A$5=2,D5<0),NA(),IF('plutonic template'!Z$328=FALSE,NA(),BH$3*J5+L5)) ->  | AA5: =IF(OR($A$5=3,$A$5=2,D5<0),NA(),IF('plutonic template'!Z$328=FALSE,NA(),J5*BH$2)) ->  | AF5: =IF(OR($A$5=3,$A$5=2,D5<0),NA(),IF('plutonic template'!Z$412=FALSE,NA(),BH$3*AC5+AE5)) ->  | AG5: =IF(OR($A$5=3,$A$5=2,D5<0),NA(),IF('plutonic template'!Z$412=FALSE,NA(),AC5*BH$2)) ->  | AL5: =IF('plutonic template'!Z$195=FALSE,NA(),BH$3*AI5+AK5) ->  | AM5: =IF('plutonic template'!Z$195=FALSE,NA(),AI5*BH$2) ->  | AR5: =IF('plutonic template'!$Z$233=FALSE,NA(),BH$3*AO5+AQ5) ->  | AS5: =IF('plutonic template'!$Z$233=FALSE,NA(),AO5*BH$2) ->  | AX5: =IF('plutonic template'!$Z$274=FALSE,NA(),BH$3*AU5+AW5) ->  | AY5: =IF('plutonic template'!$Z$274=FALSE,NA(),AU5*BH$2) ->  | BD5: =IF('plutonic template'!$Z$387=FALSE,NA(),BH$3*BA5+BC5) ->  | BE5: =IF('plutonic template'!$Z$387=FALSE,NA(),BA5*BH$2) -> 
N6: 1 | T6: =IF(OR($A$5=3,$A$5=1),NA(),IF('plutonic template'!Z$85=FALSE,NA(),IF((ABS(D6)+E6+F6)>0,BH$3*P6+R6,NA()))) ->  | U6: =IF(OR($A$5=3,$A$5=1),NA(),IF('plutonic template'!Z$85=FALSE,NA(),IF((ABS(D6)+E6+F6)>0,P6*BH$2+BH$2,NA()))) ->  | V6: =IF(OR($A$5=3,$A$5=1),NA(),IF('volcanic template'!Z$11=FALSE,NA(),IF((ABS(D6)+E6+F6)>0,BH$3*P6+R6,NA()))) ->  | W6: =IF(OR(A$5=3,A$5=1),NA(),IF('volcanic template'!Z$11=FALSE,NA(),IF((ABS(D6)+E6+F6)>0,P6*BH$2+BH$2,NA()))) ->  | X6: =IF(OR($A$5=3,$A$5=1,$D6<0),NA(),IF('plutonic template'!Z$18=FALSE,NA(),BH$3*P6+R6)) ->  | Y6: =IF(OR($A$5=3,$A$5=1,$D6<0),NA(),IF('plutonic template'!Z$18=FALSE,NA(),P6*BH$2)) ->  | Z6: =IF(OR($A$5=3,$A$5=2,D6<0),NA(),IF('plutonic template'!Z$328=FALSE,NA(),BH$3*J6+L6)) ->  | AA6: =IF(OR($A$5=3,$A$5=2,D6<0),NA(),IF('plutonic template'!Z$328=FALSE,NA(),J6*BH$2)) ->  | AF6: =IF(OR($A$5=3,$A$5=2,D6<0),NA(),IF('plutonic template'!Z$412=FALSE,NA(),BH$3*AC6+AE6)) ->  | AG6: =IF(OR($A$5=3,$A$5=2,D6<0),NA(),IF('plutonic template'!Z$412=FALSE,NA(),AC6*BH$2)) ->  | AL6: =IF('plutonic template'!Z$195=FALSE,NA(),BH$3*AI6+AK6) ->  | AM6: =IF('plutonic template'!Z$195=FALSE,NA(),AI6*BH$2) ->  | AR6: =IF('plutonic template'!$Z$233=FALSE,NA(),BH$3*AO6+AQ6) ->  | AS6: =IF('plutonic template'!$Z$233=FALSE,NA(),AO6*BH$2) ->  | AX6: =IF('plutonic template'!$Z$274=FALSE,NA(),BH$3*AU6+AW6) ->  | AY6: =IF('plutonic template'!$Z$274=FALSE,NA(),AU6*BH$2) ->  | BD6: =IF('plutonic template'!$Z$387=FALSE,NA(),BH$3*BA6+BC6) ->  | BE6: =IF('plutonic template'!$Z$387=FALSE,NA(),BA6*BH$2) -> 
N7: 1 | T7: =IF(OR($A$5=3,$A$5=1),NA(),IF('plutonic template'!Z$85=FALSE,NA(),IF((ABS(D7)+E7+F7)>0,BH$3*P7+R7,NA()))) ->  | U7: =IF(OR($A$5=3,$A$5=1),NA(),IF('plutonic template'!Z$85=FALSE,NA(),IF((ABS(D7)+E7+F7)>0,P7*BH$2+BH$2,NA()))) ->  | V7: =IF(OR($A$5=3,$A$5=1),NA(),IF('volcanic template'!Z$11=FALSE,NA(),IF((ABS(D7)+E7+F7)>0,BH$3*P7+R7,NA()))) ->  | W7: =IF(OR(A$5=3,A$5=1),NA(),IF('volcanic template'!Z$11=FALSE,NA(),IF((ABS(D7)+E7+F7)>0,P7*BH$2+BH$2,NA()))) ->  | X7: =IF(OR($A$5=3,$A$5=1,$D7<0),NA(),IF('plutonic template'!Z$18=FALSE,NA(),BH$3*P7+R7)) ->  | Y7: =IF(OR($A$5=3,$A$5=1,$D7<0),NA(),IF('plutonic template'!Z$18=FALSE,NA(),P7*BH$2)) ->  | Z7: =IF(OR($A$5=3,$A$5=2,D7<0),NA(),IF('plutonic template'!Z$328=FALSE,NA(),BH$3*J7+L7)) ->  | AA7: =IF(OR($A$5=3,$A$5=2,D7<0),NA(),IF('plutonic template'!Z$328=FALSE,NA(),J7*BH$2)) ->  | AF7: =IF(OR($A$5=3,$A$5=2,D7<0),NA(),IF('plutonic template'!Z$412=FALSE,NA(),BH$3*AC7+AE7)) ->  | AG7: =IF(OR($A$5=3,$A$5=2,D7<0),NA(),IF('plutonic template'!Z$412=FALSE,NA(),AC7*BH$2)) ->  | AL7: =IF('plutonic template'!Z$195=FALSE,NA(),BH$3*AI7+AK7) ->  | AM7: =IF('plutonic template'!Z$195=FALSE,NA(),AI7*BH$2) ->  | AR7: =IF('plutonic template'!$Z$233=FALSE,NA(),BH$3*AO7+AQ7) ->  | AS7: =IF('plutonic template'!$Z$233=FALSE,NA(),AO7*BH$2) ->  | AX7: =IF('plutonic template'!$Z$274=FALSE,NA(),BH$3*AU7+AW7) ->  | AY7: =IF('plutonic template'!$Z$274=FALSE,NA(),AU7*BH$2) ->  | BD7: =IF('plutonic template'!$Z$387=FALSE,NA(),BH$3*BA7+BC7) ->  | BE7: =IF('plutonic template'!$Z$387=FALSE,NA(),BA7*BH$2) -> 
N8: 1 | T8: =IF(OR($A$5=3,$A$5=1),NA(),IF('plutonic template'!Z$85=FALSE,NA(),IF((ABS(D8)+E8+F8)>0,BH$3*P8+R8,NA()))) ->  | U8: =IF(OR($A$5=3,$A$5=1),NA(),IF('plutonic template'!Z$85=FALSE,NA(),IF((ABS(D8)+E8+F8)>0,P8*BH$2+BH$2,NA()))) ->  | V8: =IF(OR($A$5=3,$A$5=1),NA(),IF('volcanic template'!Z$11=FALSE,NA(),IF((ABS(D8)+E8+F8)>0,BH$3*P8+R8,NA()))) ->  | W8: =IF(OR(A$5=3,A$5=1),NA(),IF('volcanic template'!Z$11=FALSE,NA(),IF((ABS(D8)+E8+F8)>0,P8*BH$2+BH$2,NA()))) ->  | X8: =IF(OR($A$5=3,$A$5=1,$D8<0),NA(),IF('plutonic template'!Z$18=FALSE,NA(),BH$3*P8+R8)) ->  | Y8: =IF(OR($A$5=3,$A$5=1,$D8<0),NA(),IF('plutonic template'!Z$18=FALSE,NA(),P8*BH$2)) ->  | Z8: =IF(OR($A$5=3,$A$5=2,D8<0),NA(),IF('plutonic template'!Z$328=FALSE,NA(),BH$3*J8+L8)) ->  | AA8: =IF(OR($A$5=3,$A$5=2,D8<0),NA(),IF('plutonic template'!Z$328=FALSE,NA(),J8*BH$2)) ->  | AF8: =IF(OR($A$5=3,$A$5=2,D8<0),NA(),IF('plutonic template'!Z$412=FALSE,NA(),BH$3*AC8+AE8)) ->  | AG8: =IF(OR($A$5=3,$A$5=2,D8<0),NA(),IF('plutonic template'!Z$412=FALSE,NA(),AC8*BH$2)) ->  | AL8: =IF('plutonic template'!Z$195=FALSE,NA(),BH$3*AI8+AK8) ->  | AM8: =IF('plutonic template'!Z$195=FALSE,NA(),AI8*BH$2) ->  | AR8: =IF('plutonic template'!$Z$233=FALSE,NA(),BH$3*AO8+AQ8) ->  | AS8: =IF('plutonic template'!$Z$233=FALSE,NA(),AO8*BH$2) ->  | AX8: =IF('plutonic template'!$Z$274=FALSE,NA(),BH$3*AU8+AW8) ->  | AY8: =IF('plutonic template'!$Z$274=FALSE,NA(),AU8*BH$2) ->  | BD8: =IF('plutonic template'!$Z$387=FALSE,NA(),BH$3*BA8+BC8) ->  | BE8: =IF('plutonic template'!$Z$387=FALSE,NA(),BA8*BH$2) -> 
A9: Go To Series: | N9: 1 | T9: =IF(OR($A$5=3,$A$5=1),NA(),IF('plutonic template'!Z$85=FALSE,NA(),IF((ABS(D9)+E9+F9)>0,BH$3*P9+R9,NA()))) ->  | U9: =IF(OR($A$5=3,$A$5=1),NA(),IF('plutonic template'!Z$85=FALSE,NA(),IF((ABS(D9)+E9+F9)>0,P9*BH$2+BH$2,NA()))) ->  | V9: =IF(OR($A$5=3,$A$5=1),NA(),IF('volcanic template'!Z$11=FALSE,NA(),IF((ABS(D9)+E9+F9)>0,BH$3*P9+R9,NA()))) ->  | W9: =IF(OR(A$5=3,A$5=1),NA(),IF('volcanic template'!Z$11=FALSE,NA(),IF((ABS(D9)+E9+F9)>0,P9*BH$2+BH$2,NA()))) ->  | X9: =IF(OR($A$5=3,$A$5=1,$D9<0),NA(),IF('plutonic template'!Z$18=FALSE,NA(),BH$3*P9+R9)) ->  | Y9: =IF(OR($A$5=3,$A$5=1,$D9<0),NA(),IF('plutonic template'!Z$18=FALSE,NA(),P9*BH$2)) ->  | Z9: =IF(OR($A$5=3,$A$5=2,D9<0),NA(),IF('plutonic template'!Z$328=FALSE,NA(),BH$3*J9+L9)) ->  | AA9: =IF(OR($A$5=3,$A$5=2,D9<0),NA(),IF('plutonic template'!Z$328=FALSE,NA(),J9*BH$2)) ->  | AF9: =IF(OR($A$5=3,$A$5=2,D9<0),NA(),IF('plutonic template'!Z$412=FALSE,NA(),BH$3*AC9+AE9)) ->  | AG9: =IF(OR($A$5=3,$A$5=2,D9<0),NA(),IF('plutonic template'!Z$412=FALSE,NA(),AC9*BH$2)) ->  | AL9: =IF('plutonic template'!Z$195=FALSE,NA(),BH$3*AI9+AK9) ->  | AM9: =IF('plutonic template'!Z$195=FALSE,NA(),AI9*BH$2) ->  | AR9: =IF('plutonic template'!$Z$233=FALSE,NA(),BH$3*AO9+AQ9) ->  | AS9: =IF('plutonic template'!$Z$233=FALSE,NA(),AO9*BH$2) ->  | AX9: =IF('plutonic template'!$Z$274=FALSE,NA(),BH$3*AU9+AW9) ->  | AY9: =IF('plutonic template'!$Z$274=FALSE,NA(),AU9*BH$2) ->  | BD9: =IF('plutonic template'!$Z$387=FALSE,NA(),BH$3*BA9+BC9) ->  | BE9: =IF('plutonic template'!$Z$387=FALSE,NA(),BA9*BH$2) -> 
N10: 1 | T10: =IF(OR($A$5=3,$A$5=1),NA(),IF('plutonic template'!Z$85=FALSE,NA(),IF((ABS(D10)+E10+F10)>0,BH$3*P10+R10,NA()))) ->  | U10: =IF(OR($A$5=3,$A$5=1),NA(),IF('plutonic template'!Z$85=FALSE,NA(),IF((ABS(D10)+E10+F10)>0,P10*BH$2+BH$2,NA()))) ->  | V10: =IF(OR($A$5=3,$A$5=1),NA(),IF('volcanic template'!Z$11=FALSE,NA(),IF((ABS(D10)+E10+F10)>0,BH$3*P10+R10,NA()))) ->  | W10: =IF(OR(A$5=3,A$5=1),NA(),IF('volcanic template'!Z$11=FALSE,NA(),IF((ABS(D10)+E10+F10)>0,P10*BH$2+BH$2,NA()))) ->  | X10: =IF(OR($A$5=3,$A$5=1,$D10<0),NA(),IF('plutonic template'!Z$18=FALSE,NA(),BH$3*P10+R10)) ->  | Y10: =IF(OR($A$5=3,$A$5=1,$D10<0),NA(),IF('plutonic template'!Z$18=FALSE,NA(),P10*BH$2)) ->  | Z10: =IF(OR($A$5=3,$A$5=2,D10<0),NA(),IF('plutonic template'!Z$328=FALSE,NA(),BH$3*J10+L10)) ->  | AA10: =IF(OR($A$5=3,$A$5=2,D10<0),NA(),IF('plutonic template'!Z$328=FALSE,NA(),J10*BH$2)) ->  | AF10: =IF(OR($A$5=3,$A$5=2,D10<0),NA(),IF('plutonic template'!Z$412=FALSE,NA(),BH$3*AC10+AE10)) ->  | AG10: =IF(OR($A$5=3,$A$5=2,D10<0),NA(),IF('plutonic template'!Z$412=FALSE,NA(),AC10*BH$2)) ->  | AL10: =IF('plutonic template'!Z$195=FALSE,NA(),BH$3*AI10+AK10) ->  | AM10: =IF('plutonic template'!Z$195=FALSE,NA(),AI10*BH$2) ->  | AR10: =IF('plutonic template'!$Z$233=FALSE,NA(),BH$3*AO10+AQ10) ->  | AS10: =IF('plutonic template'!$Z$233=FALSE,NA(),AO10*BH$2) ->  | AX10: =IF('plutonic template'!$Z$274=FALSE,NA(),BH$3*AU10+AW10) ->  | AY10: =IF('plutonic template'!$Z$274=FALSE,NA(),AU10*BH$2) ->  | BD10: =IF('plutonic template'!$Z$387=FALSE,NA(),BH$3*BA10+BC10) ->  | BE10: =IF('plutonic template'!$Z$387=FALSE,NA(),BA10*BH$2) -> 
N11: 1 | T11: =IF(OR($A$5=3,$A$5=1),NA(),IF('plutonic template'!Z$85=FALSE,NA(),IF((ABS(D11)+E11+F11)>0,BH$3*P11+R11,NA()))) ->  | U11: =IF(OR($A$5=3,$A$5=1),NA(),IF('plutonic template'!Z$85=FALSE,NA(),IF((ABS(D11)+E11+F11)>0,P11*BH$2+BH$2,NA()))) ->  | V11: =IF(OR($A$5=3,$A$5=1),NA(),IF('volcanic template'!Z$11=FALSE,NA(),IF((ABS(D11)+E11+F11)>0,BH$3*P11+R11,NA()))) ->  | W11: =IF(OR(A$5=3,A$5=1),NA(),IF('volcanic template'!Z$11=FALSE,NA(),IF((ABS(D11)+E11+F11)>0,P11*BH$2+BH$2,NA()))) ->  | X11: =IF(OR($A$5=3,$A$5=1,$D11<0),NA(),IF('plutonic template'!Z$18=FALSE,NA(),BH$3*P11+R11)) ->  | Y11: =IF(OR($A$5=3,$A$5=1,$D11<0),NA(),IF('plutonic template'!Z$18=FALSE,NA(),P11*BH$2)) ->  | Z11: =IF(OR($A$5=3,$A$5=2,D11<0),NA(),IF('plutonic template'!Z$328=FALSE,NA(),BH$3*J11+L11)) ->  | AA11: =IF(OR($A$5=3,$A$5=2,D11<0),NA(),IF('plutonic template'!Z$328=FALSE,NA(),J11*BH$2)) ->  | AF11: =IF(OR($A$5=3,$A$5=2,D11<0),NA(),IF('plutonic template'!Z$412=FALSE,NA(),BH$3*AC11+AE11)) ->  | AG11: =IF(OR($A$5=3,$A$5=2,D11<0),NA(),IF('plutonic template'!Z$412=FALSE,NA(),AC11*BH$2)) ->  | AL11: =IF('plutonic template'!Z$195=FALSE,NA(),BH$3*AI11+AK11) ->  | AM11: =IF('plutonic template'!Z$195=FALSE,NA(),AI11*BH$2) ->  | AR11: =IF('plutonic template'!$Z$233=FALSE,NA(),BH$3*AO11+AQ11) ->  | AS11: =IF('plutonic template'!$Z$233=FALSE,NA(),AO11*BH$2) ->  | AX11: =IF('plutonic template'!$Z$274=FALSE,NA(),BH$3*AU11+AW11) ->  | AY11: =IF('plutonic template'!$Z$274=FALSE,NA(),AU11*BH$2) ->  | BD11: =IF('plutonic template'!$Z$387=FALSE,NA(),BH$3*BA11+BC11) ->  | BE11: =IF('plutonic template'!$Z$387=FALSE,NA(),BA11*BH$2) -> 
N12: 1 | T12: =IF(OR($A$5=3,$A$5=1),NA(),IF('plutonic template'!Z$85=FALSE,NA(),IF((ABS(D12)+E12+F12)>0,BH$3*P12+R12,NA()))) ->  | U12: =IF(OR($A$5=3,$A$5=1),NA(),IF('plutonic template'!Z$85=FALSE,NA(),IF((ABS(D12)+E12+F12)>0,P12*BH$2+BH$2,NA()))) ->  | V12: =IF(OR($A$5=3,$A$5=1),NA(),IF('volcanic template'!Z$11=FALSE,NA(),IF((ABS(D12)+E12+F12)>0,BH$3*P12+R12,NA()))) ->  | W12: =IF(OR(A$5=3,A$5=1),NA(),IF('volcanic template'!Z$11=FALSE,NA(),IF((ABS(D12)+E12+F12)>0,P12*BH$2+BH$2,NA()))) ->  | X12: =IF(OR($A$5=3,$A$5=1,$D12<0),NA(),IF('plutonic template'!Z$18=FALSE,NA(),BH$3*P12+R12)) ->  | Y12: =IF(OR($A$5=3,$A$5=1,$D12<0),NA(),IF('plutonic template'!Z$18=FALSE,NA(),P12*BH$2)) ->  | Z12: =IF(OR($A$5=3,$A$5=2,D12<0),NA(),IF('plutonic template'!Z$328=FALSE,NA(),BH$3*J12+L12)) ->  | AA12: =IF(OR($A$5=3,$A$5=2,D12<0),NA(),IF('plutonic template'!Z$328=FALSE,NA(),J12*BH$2)) ->  | AF12: =IF(OR($A$5=3,$A$5=2,D12<0),NA(),IF('plutonic template'!Z$412=FALSE,NA(),BH$3*AC12+AE12)) ->  | AG12: =IF(OR($A$5=3,$A$5=2,D12<0),NA(),IF('plutonic template'!Z$412=FALSE,NA(),AC12*BH$2)) ->  | AL12: =IF('plutonic template'!Z$195=FALSE,NA(),BH$3*AI12+AK12) ->  | AM12: =IF('plutonic template'!Z$195=FALSE,NA(),AI12*BH$2) ->  | AR12: =IF('plutonic template'!$Z$233=FALSE,NA(),BH$3*AO12+AQ12) ->  | AS12: =IF('plutonic template'!$Z$233=FALSE,NA(),AO12*BH$2) ->  | AX12: =IF('plutonic template'!$Z$274=FALSE,NA(),BH$3*AU12+AW12) ->  | AY12: =IF('plutonic template'!$Z$274=FALSE,NA(),AU12*BH$2) ->  | BD12: =IF('plutonic template'!$Z$387=FALSE,NA(),BH$3*BA12+BC12) ->  | BE12: =IF('plutonic template'!$Z$387=FALSE,NA(),BA12*BH$2) -> 
N13: 1 | T13: =IF(OR($A$5=3,$A$5=1),NA(),IF('plutonic template'!Z$85=FALSE,NA(),IF((ABS(D13)+E13+F13)>0,BH$3*P13+R13,NA()))) ->  | U13: =IF(OR($A$5=3,$A$5=1),NA(),IF('plutonic template'!Z$85=FALSE,NA(),IF((ABS(D13)+E13+F13)>0,P13*BH$2+BH$2,NA()))) ->  | V13: =IF(OR($A$5=3,$A$5=1),NA(),IF('volcanic template'!Z$11=FALSE,NA(),IF((ABS(D13)+E13+F13)>0,BH$3*P13+R13,NA()))) ->  | W13: =IF(OR(A$5=3,A$5=1),NA(),IF('volcanic template'!Z$11=FALSE,NA(),IF((ABS(D13)+E13+F13)>0,P13*BH$2+BH$2,NA()))) ->  | X13: =IF(OR($A$5=3,$A$5=1,$D13<0),NA(),IF('plutonic template'!Z$18=FALSE,NA(),BH$3*P13+R13)) ->  | Y13: =IF(OR($A$5=3,$A$5=1,$D13<0),NA(),IF('plutonic template'!Z$18=FALSE,NA(),P13*BH$2)) ->  | Z13: =IF(OR($A$5=3,$A$5=2,D13<0),NA(),IF('plutonic template'!Z$328=FALSE,NA(),BH$3*J13+L13)) ->  | AA13: =IF(OR($A$5=3,$A$5=2,D13<0),NA(),IF('plutonic template'!Z$328=FALSE,NA(),J13*BH$2)) ->  | AF13: =IF(OR($A$5=3,$A$5=2,D13<0),NA(),IF('plutonic template'!Z$412=FALSE,NA(),BH$3*AC13+AE13)) ->  | AG13: =IF(OR($A$5=3,$A$5=2,D13<0),NA(),IF('plutonic template'!Z$412=FALSE,NA(),AC13*BH$2)) ->  | AL13: =IF('plutonic template'!Z$195=FALSE,NA(),BH$3*AI13+AK13) ->  | AM13: =IF('plutonic template'!Z$195=FALSE,NA(),AI13*BH$2) ->  | AR13: =IF('plutonic template'!$Z$233=FALSE,NA(),BH$3*AO13+AQ13) ->  | AS13: =IF('plutonic template'!$Z$233=FALSE,NA(),AO13*BH$2) ->  | AX13: =IF('plutonic template'!$Z$274=FALSE,NA(),BH$3*AU13+AW13) ->  | AY13: =IF('plutonic template'!$Z$274=FALSE,NA(),AU13*BH$2) ->  | BD13: =IF('plutonic template'!$Z$387=FALSE,NA(),BH$3*BA13+BC13) ->  | BE13: =IF('plutonic template'!$Z$387=FALSE,NA(),BA13*BH$2) -> 
N14: 1 | T14: =IF(OR($A$5=3,$A$5=1),NA(),IF('plutonic template'!Z$85=FALSE,NA(),IF((ABS(D14)+E14+F14)>0,BH$3*P14+R14,NA()))) ->  | U14: =IF(OR($A$5=3,$A$5=1),NA(),IF('plutonic template'!Z$85=FALSE,NA(),IF((ABS(D14)+E14+F14)>0,P14*BH$2+BH$2,NA()))) ->  | V14: =IF(OR($A$5=3,$A$5=1),NA(),IF('volcanic template'!Z$11=FALSE,NA(),IF((ABS(D14)+E14+F14)>0,BH$3*P14+R14,NA()))) ->  | W14: =IF(OR(A$5=3,A$5=1),NA(),IF('volcanic template'!Z$11=FALSE,NA(),IF((ABS(D14)+E14+F14)>0,P14*BH$2+BH$2,NA()))) ->  | X14: =IF(OR($A$5=3,$A$5=1,$D14<0),NA(),IF('plutonic template'!Z$18=FALSE,NA(),BH$3*P14+R14)) ->  | Y14: =IF(OR($A$5=3,$A$5=1,$D14<0),NA(),IF('plutonic template'!Z$18=FALSE,NA(),P14*BH$2)) ->  | Z14: =IF(OR($A$5=3,$A$5=2,D14<0),NA(),IF('plutonic template'!Z$328=FALSE,NA(),BH$3*J14+L14)) ->  | AA14: =IF(OR($A$5=3,$A$5=2,D14<0),NA(),IF('plutonic template'!Z$328=FALSE,NA(),J14*BH$2)) ->  | AF14: =IF(OR($A$5=3,$A$5=2,D14<0),NA(),IF('plutonic template'!Z$412=FALSE,NA(),BH$3*AC14+AE14)) ->  | AG14: =IF(OR($A$5=3,$A$5=2,D14<0),NA(),IF('plutonic template'!Z$412=FALSE,NA(),AC14*BH$2)) ->  | AL14: =IF('plutonic template'!Z$195=FALSE,NA(),BH$3*AI14+AK14) ->  | AM14: =IF('plutonic template'!Z$195=FALSE,NA(),AI14*BH$2) ->  | AR14: =IF('plutonic template'!$Z$233=FALSE,NA(),BH$3*AO14+AQ14) ->  | AS14: =IF('plutonic template'!$Z$233=FALSE,NA(),AO14*BH$2) ->  | AX14: =IF('plutonic template'!$Z$274=FALSE,NA(),BH$3*AU14+AW14) ->  | AY14: =IF('plutonic template'!$Z$274=FALSE,NA(),AU14*BH$2) ->  | BD14: =IF('plutonic template'!$Z$387=FALSE,NA(),BH$3*BA14+BC14) ->  | BE14: =IF('plutonic template'!$Z$387=FALSE,NA(),BA14*BH$2) -> 
N15: 1 | T15: =IF(OR($A$5=3,$A$5=1),NA(),IF('plutonic template'!Z$85=FALSE,NA(),IF((ABS(D15)+E15+F15)>0,BH$3*P15+R15,NA()))) ->  | U15: =IF(OR($A$5=3,$A$5=1),NA(),IF('plutonic template'!Z$85=FALSE,NA(),IF((ABS(D15)+E15+F15)>0,P15*BH$2+BH$2,NA()))) ->  | V15: =IF(OR($A$5=3,$A$5=1),NA(),IF('volcanic template'!Z$11=FALSE,NA(),IF((ABS(D15)+E15+F15)>0,BH$3*P15+R15,NA()))) ->  | W15: =IF(OR(A$5=3,A$5=1),NA(),IF('volcanic template'!Z$11=FALSE,NA(),IF((ABS(D15)+E15+F15)>0,P15*BH$2+BH$2,NA()))) ->  | X15: =IF(OR($A$5=3,$A$5=1,$D15<0),NA(),IF('plutonic template'!Z$18=FALSE,NA(),BH$3*P15+R15)) ->  | Y15: =IF(OR($A$5=3,$A$5=1,$D15<0),NA(),IF('plutonic template'!Z$18=FALSE,NA(),P15*BH$2)) ->  | Z15: =IF(OR($A$5=3,$A$5=2,D15<0),NA(),IF('plutonic template'!Z$328=FALSE,NA(),BH$3*J15+L15)) ->  | AA15: =IF(OR($A$5=3,$A$5=2,D15<0),NA(),IF('plutonic template'!Z$328=FALSE,NA(),J15*BH$2)) ->  | AF15: =IF(OR($A$5=3,$A$5=2,D15<0),NA(),IF('plutonic template'!Z$412=FALSE,NA(),BH$3*AC15+AE15)) ->  | AG15: =IF(OR($A$5=3,$A$5=2,D15<0),NA(),IF('plutonic template'!Z$412=FALSE,NA(),AC15*BH$2)) ->  | AL15: =IF('plutonic template'!Z$195=FALSE,NA(),BH$3*AI15+AK15) ->  | AM15: =IF('plutonic template'!Z$195=FALSE,NA(),AI15*BH$2) ->  | AR15: =IF('plutonic template'!$Z$233=FALSE,NA(),BH$3*AO15+AQ15) ->  | AS15: =IF('plutonic template'!$Z$233=FALSE,NA(),AO15*BH$2) ->  | AX15: =IF('plutonic template'!$Z$274=FALSE,NA(),BH$3*AU15+AW15) ->  | AY15: =IF('plutonic template'!$Z$274=FALSE,NA(),AU15*BH$2) ->  | BD15: =IF('plutonic template'!$Z$387=FALSE,NA(),BH$3*BA15+BC15) ->  | BE15: =IF('plutonic template'!$Z$387=FALSE,NA(),BA15*BH$2) -> 
N16: 1 | T16: =IF(OR($A$5=3,$A$5=1),NA(),IF('plutonic template'!Z$85=FALSE,NA(),IF((ABS(D16)+E16+F16)>0,BH$3*P16+R16,NA()))) ->  | U16: =IF(OR($A$5=3,$A$5=1),NA(),IF('plutonic template'!Z$85=FALSE,NA(),IF((ABS(D16)+E16+F16)>0,P16*BH$2+BH$2,NA()))) ->  | V16: =IF(OR($A$5=3,$A$5=1),NA(),IF('volcanic template'!Z$11=FALSE,NA(),IF((ABS(D16)+E16+F16)>0,BH$3*P16+R16,NA()))) ->  | W16: =IF(OR(A$5=3,A$5=1),NA(),IF('volcanic template'!Z$11=FALSE,NA(),IF((ABS(D16)+E16+F16)>0,P16*BH$2+BH$2,NA()))) ->  | X16: =IF(OR($A$5=3,$A$5=1,$D16<0),NA(),IF('plutonic template'!Z$18=FALSE,NA(),BH$3*P16+R16)) ->  | Y16: =IF(OR($A$5=3,$A$5=1,$D16<0),NA(),IF('plutonic template'!Z$18=FALSE,NA(),P16*BH$2)) ->  | Z16: =IF(OR($A$5=3,$A$5=2,D16<0),NA(),IF('plutonic template'!Z$328=FALSE,NA(),BH$3*J16+L16)) ->  | AA16: =IF(OR($A$5=3,$A$5=2,D16<0),NA(),IF('plutonic template'!Z$328=FALSE,NA(),J16*BH$2)) ->  | AF16: =IF(OR($A$5=3,$A$5=2,D16<0),NA(),IF('plutonic template'!Z$412=FALSE,NA(),BH$3*AC16+AE16)) ->  | AG16: =IF(OR($A$5=3,$A$5=2,D16<0),NA(),IF('plutonic template'!Z$412=FALSE,NA(),AC16*BH$2)) ->  | AL16: =IF('plutonic template'!Z$195=FALSE,NA(),BH$3*AI16+AK16) ->  | AM16: =IF('plutonic template'!Z$195=FALSE,NA(),AI16*BH$2) ->  | AR16: =IF('plutonic template'!$Z$233=FALSE,NA(),BH$3*AO16+AQ16) ->  | AS16: =IF('plutonic template'!$Z$233=FALSE,NA(),AO16*BH$2) ->  | AX16: =IF('plutonic template'!$Z$274=FALSE,NA(),BH$3*AU16+AW16) ->  | AY16: =IF('plutonic template'!$Z$274=FALSE,NA(),AU16*BH$2) ->  | BD16: =IF('plutonic template'!$Z$387=FALSE,NA(),BH$3*BA16+BC16) ->  | BE16: =IF('plutonic template'!$Z$387=FALSE,NA(),BA16*BH$2) -> 
N17: 1 | T17: =IF(OR($A$5=3,$A$5=1),NA(),IF('plutonic template'!Z$85=FALSE,NA(),IF((ABS(D17)+E17+F17)>0,BH$3*P17+R17,NA()))) ->  | U17: =IF(OR($A$5=3,$A$5=1),NA(),IF('plutonic template'!Z$85=FALSE,NA(),IF((ABS(D17)+E17+F17)>0,P17*BH$2+BH$2,NA()))) ->  | V17: =IF(OR($A$5=3,$A$5=1),NA(),IF('volcanic template'!Z$11=FALSE,NA(),IF((ABS(D17)+E17+F17)>0,BH$3*P17+R17,NA()))) ->  | W17: =IF(OR(A$5=3,A$5=1),NA(),IF('volcanic template'!Z$11=FALSE,NA(),IF((ABS(D17)+E17+F17)>0,P17*BH$2+BH$2,NA()))) ->  | X17: =IF(OR($A$5=3,$A$5=1,$D17<0),NA(),IF('plutonic template'!Z$18=FALSE,NA(),BH$3*P17+R17)) ->  | Y17: =IF(OR($A$5=3,$A$5=1,$D17<0),NA(),IF('plutonic template'!Z$18=FALSE,NA(),P17*BH$2)) ->  | Z17: =IF(OR($A$5=3,$A$5=2,D17<0),NA(),IF('plutonic template'!Z$328=FALSE,NA(),BH$3*J17+L17)) ->  | AA17: =IF(OR($A$5=3,$A$5=2,D17<0),NA(),IF('plutonic template'!Z$328=FALSE,NA(),J17*BH$2)) ->  | AF17: =IF(OR($A$5=3,$A$5=2,D17<0),NA(),IF('plutonic template'!Z$412=FALSE,NA(),BH$3*AC17+AE17)) ->  | AG17: =IF(OR($A$5=3,$A$5=2,D17<0),NA(),IF('plutonic template'!Z$412=FALSE,NA(),AC17*BH$2)) ->  | AL17: =IF('plutonic template'!Z$195=FALSE,NA(),BH$3*AI17+AK17) ->  | AM17: =IF('plutonic template'!Z$195=FALSE,NA(),AI17*BH$2) ->  | AR17: =IF('plutonic template'!$Z$233=FALSE,NA(),BH$3*AO17+AQ17) ->  | AS17: =IF('plutonic template'!$Z$233=FALSE,NA(),AO17*BH$2) ->  | AX17: =IF('plutonic template'!$Z$274=FALSE,NA(),BH$3*AU17+AW17) ->  | AY17: =IF('plutonic template'!$Z$274=FALSE,NA(),AU17*BH$2) ->  | BD17: =IF('plutonic template'!$Z$387=FALSE,NA(),BH$3*BA17+BC17) ->  | BE17: =IF('plutonic template'!$Z$387=FALSE,NA(),BA17*BH$2) -> 
N18: 1 | T18: =IF(OR($A$5=3,$A$5=1),NA(),IF('plutonic template'!Z$85=FALSE,NA(),IF((ABS(D18)+E18+F18)>0,BH$3*P18+R18,NA()))) ->  | U18: =IF(OR($A$5=3,$A$5=1),NA(),IF('plutonic template'!Z$85=FALSE,NA(),IF((ABS(D18)+E18+F18)>0,P18*BH$2+BH$2,NA()))) ->  | V18: =IF(OR($A$5=3,$A$5=1),NA(),IF('volcanic template'!Z$11=FALSE,NA(),IF((ABS(D18)+E18+F18)>0,BH$3*P18+R18,NA()))) ->  | W18: =IF(OR(A$5=3,A$5=1),NA(),IF('volcanic template'!Z$11=FALSE,NA(),IF((ABS(D18)+E18+F18)>0,P18*BH$2+BH$2,NA()))) ->  | X18: =IF(OR($A$5=3,$A$5=1,$D18<0),NA(),IF('plutonic template'!Z$18=FALSE,NA(),BH$3*P18+R18)) ->  | Y18: =IF(OR($A$5=3,$A$5=1,$D18<0),NA(),IF('plutonic template'!Z$18=FALSE,NA(),P18*BH$2)) ->  | Z18: =IF(OR($A$5=3,$A$5=2,D18<0),NA(),IF('plutonic template'!Z$328=FALSE,NA(),BH$3*J18+L18)) ->  | AA18: =IF(OR($A$5=3,$A$5=2,D18<0),NA(),IF('plutonic template'!Z$328=FALSE,NA(),J18*BH$2)) ->  | AF18: =IF(OR($A$5=3,$A$5=2,D18<0),NA(),IF('plutonic template'!Z$412=FALSE,NA(),BH$3*AC18+AE18)) ->  | AG18: =IF(OR($A$5=3,$A$5=2,D18<0),NA(),IF('plutonic template'!Z$412=FALSE,NA(),AC18*BH$2)) ->  | AL18: =IF('plutonic template'!Z$195=FALSE,NA(),BH$3*AI18+AK18) ->  | AM18: =IF('plutonic template'!Z$195=FALSE,NA(),AI18*BH$2) ->  | AR18: =IF('plutonic template'!$Z$233=FALSE,NA(),BH$3*AO18+AQ18) ->  | AS18: =IF('plutonic template'!$Z$233=FALSE,NA(),AO18*BH$2) ->  | AX18: =IF('plutonic template'!$Z$274=FALSE,NA(),BH$3*AU18+AW18) ->  | AY18: =IF('plutonic template'!$Z$274=FALSE,NA(),AU18*BH$2) ->  | BD18: =IF('plutonic template'!$Z$387=FALSE,NA(),BH$3*BA18+BC18) ->  | BE18: =IF('plutonic template'!$Z$387=FALSE,NA(),BA18*BH$2) -> 
N19: 1 | T19: =IF(OR($A$5=3,$A$5=1),NA(),IF('plutonic template'!Z$85=FALSE,NA(),IF((ABS(D19)+E19+F19)>0,BH$3*P19+R19,NA()))) ->  | U19: =IF(OR($A$5=3,$A$5=1),NA(),IF('plutonic template'!Z$85=FALSE,NA(),IF((ABS(D19)+E19+F19)>0,P19*BH$2+BH$2,NA()))) ->  | V19: =IF(OR($A$5=3,$A$5=1),NA(),IF('volcanic template'!Z$11=FALSE,NA(),IF((ABS(D19)+E19+F19)>0,BH$3*P19+R19,NA()))) ->  | W19: =IF(OR(A$5=3,A$5=1),NA(),IF('volcanic template'!Z$11=FALSE,NA(),IF((ABS(D19)+E19+F19)>0,P19*BH$2+BH$2,NA()))) ->  | X19: =IF(OR($A$5=3,$A$5=1,$D19<0),NA(),IF('plutonic template'!Z$18=FALSE,NA(),BH$3*P19+R19)) ->  | Y19: =IF(OR($A$5=3,$A$5=1,$D19<0),NA(),IF('plutonic template'!Z$18=FALSE,NA(),P19*BH$2)) ->  | Z19: =IF(OR($A$5=3,$A$5=2,D19<0),NA(),IF('plutonic template'!Z$328=FALSE,NA(),BH$3*J19+L19)) ->  | AA19: =IF(OR($A$5=3,$A$5=2,D19<0),NA(),IF('plutonic template'!Z$328=FALSE,NA(),J19*BH$2)) ->  | AF19: =IF(OR($A$5=3,$A$5=2,D19<0),NA(),IF('plutonic template'!Z$412=FALSE,NA(),BH$3*AC19+AE19)) ->  | AG19: =IF(OR($A$5=3,$A$5=2,D19<0),NA(),IF('plutonic template'!Z$412=FALSE,NA(),AC19*BH$2)) ->  | AL19: =IF('plutonic template'!Z$195=FALSE,NA(),BH$3*AI19+AK19) ->  | AM19: =IF('plutonic template'!Z$195=FALSE,NA(),AI19*BH$2) ->  | AR19: =IF('plutonic template'!$Z$233=FALSE,NA(),BH$3*AO19+AQ19) ->  | AS19: =IF('plutonic template'!$Z$233=FALSE,NA(),AO19*BH$2) ->  | AX19: =IF('plutonic template'!$Z$274=FALSE,NA(),BH$3*AU19+AW19) ->  | AY19: =IF('plutonic template'!$Z$274=FALSE,NA(),AU19*BH$2) ->  | BD19: =IF('plutonic template'!$Z$387=FALSE,NA(),BH$3*BA19+BC19) ->  | BE19: =IF('plutonic template'!$Z$387=FALSE,NA(),BA19*BH$2) -> 
N20: 1 | T20: =IF(OR($A$5=3,$A$5=1),NA(),IF('plutonic template'!Z$85=FALSE,NA(),IF((ABS(D20)+E20+F20)>0,BH$3*P20+R20,NA()))) ->  | U20: =IF(OR($A$5=3,$A$5=1),NA(),IF('plutonic template'!Z$85=FALSE,NA(),IF((ABS(D20)+E20+F20)>0,P20*BH$2+BH$2,NA()))) ->  | V20: =IF(OR($A$5=3,$A$5=1),NA(),IF('volcanic template'!Z$11=FALSE,NA(),IF((ABS(D20)+E20+F20)>0,BH$3*P20+R20,NA()))) ->  | W20: =IF(OR(A$5=3,A$5=1),NA(),IF('volcanic template'!Z$11=FALSE,NA(),IF((ABS(D20)+E20+F20)>0,P20*BH$2+BH$2,NA()))) ->  | X20: =IF(OR($A$5=3,$A$5=1,$D20<0),NA(),IF('plutonic template'!Z$18=FALSE,NA(),BH$3*P20+R20)) ->  | Y20: =IF(OR($A$5=3,$A$5=1,$D20<0),NA(),IF('plutonic template'!Z$18=FALSE,NA(),P20*BH$2)) ->  | Z20: =IF(OR($A$5=3,$A$5=2,D20<0),NA(),IF('plutonic template'!Z$328=FALSE,NA(),BH$3*J20+L20)) ->  | AA20: =IF(OR($A$5=3,$A$5=2,D20<0),NA(),IF('plutonic template'!Z$328=FALSE,NA(),J20*BH$2)) ->  | AF20: =IF(OR($A$5=3,$A$5=2,D20<0),NA(),IF('plutonic template'!Z$412=FALSE,NA(),BH$3*AC20+AE20)) ->  | AG20: =IF(OR($A$5=3,$A$5=2,D20<0),NA(),IF('plutonic template'!Z$412=FALSE,NA(),AC20*BH$2)) ->  | AL20: =IF('plutonic template'!Z$195=FALSE,NA(),BH$3*AI20+AK20) ->  | AM20: =IF('plutonic template'!Z$195=FALSE,NA(),AI20*BH$2) ->  | AR20: =IF('plutonic template'!$Z$233=FALSE,NA(),BH$3*AO20+AQ20) ->  | AS20: =IF('plutonic template'!$Z$233=FALSE,NA(),AO20*BH$2) ->  | AX20: =IF('plutonic template'!$Z$274=FALSE,NA(),BH$3*AU20+AW20) ->  | AY20: =IF('plutonic template'!$Z$274=FALSE,NA(),AU20*BH$2) ->  | BD20: =IF('plutonic template'!$Z$387=FALSE,NA(),BH$3*BA20+BC20) ->  | BE20: =IF('plutonic template'!$Z$387=FALSE,NA(),BA20*BH$2) -> 
N21: 1 | T21: =IF(OR($A$5=3,$A$5=1),NA(),IF('plutonic template'!Z$85=FALSE,NA(),IF((ABS(D21)+E21+F21)>0,BH$3*P21+R21,NA()))) ->  | U21: =IF(OR($A$5=3,$A$5=1),NA(),IF('plutonic template'!Z$85=FALSE,NA(),IF((ABS(D21)+E21+F21)>0,P21*BH$2+BH$2,NA()))) ->  | V21: =IF(OR($A$5=3,$A$5=1),NA(),IF('volcanic template'!Z$11=FALSE,NA(),IF((ABS(D21)+E21+F21)>0,BH$3*P21+R21,NA()))) ->  | W21: =IF(OR(A$5=3,A$5=1),NA(),IF('volcanic template'!Z$11=FALSE,NA(),IF((ABS(D21)+E21+F21)>0,P21*BH$2+BH$2,NA()))) ->  | X21: =IF(OR($A$5=3,$A$5=1,$D21<0),NA(),IF('plutonic template'!Z$18=FALSE,NA(),BH$3*P21+R21)) ->  | Y21: =IF(OR($A$5=3,$A$5=1,$D21<0),NA(),IF('plutonic template'!Z$18=FALSE,NA(),P21*BH$2)) ->  | Z21: =IF(OR($A$5=3,$A$5=2,D21<0),NA(),IF('plutonic template'!Z$328=FALSE,NA(),BH$3*J21+L21)) ->  | AA21: =IF(OR($A$5=3,$A$5=2,D21<0),NA(),IF('plutonic template'!Z$328=FALSE,NA(),J21*BH$2)) ->  | AF21: =IF(OR($A$5=3,$A$5=2,D21<0),NA(),IF('plutonic template'!Z$412=FALSE,NA(),BH$3*AC21+AE21)) ->  | AG21: =IF(OR($A$5=3,$A$5=2,D21<0),NA(),IF('plutonic template'!Z$412=FALSE,NA(),AC21*BH$2)) ->  | AL21: =IF('plutonic template'!Z$195=FALSE,NA(),BH$3*AI21+AK21) ->  | AM21: =IF('plutonic template'!Z$195=FALSE,NA(),AI21*BH$2) ->  | AR21: =IF('plutonic template'!$Z$233=FALSE,NA(),BH$3*AO21+AQ21) ->  | AS21: =IF('plutonic template'!$Z$233=FALSE,NA(),AO21*BH$2) ->  | AX21: =IF('plutonic template'!$Z$274=FALSE,NA(),BH$3*AU21+AW21) ->  | AY21: =IF('plutonic template'!$Z$274=FALSE,NA(),AU21*BH$2) ->  | BD21: =IF('plutonic template'!$Z$387=FALSE,NA(),BH$3*BA21+BC21) ->  | BE21: =IF('plutonic template'!$Z$387=FALSE,NA(),BA21*BH$2) -> 
N22: 1 | T22: =IF(OR($A$5=3,$A$5=1),NA(),IF('plutonic template'!Z$85=FALSE,NA(),IF((ABS(D22)+E22+F22)>0,BH$3*P22+R22,NA()))) ->  | U22: =IF(OR($A$5=3,$A$5=1),NA(),IF('plutonic template'!Z$85=FALSE,NA(),IF((ABS(D22)+E22+F22)>0,P22*BH$2+BH$2,NA()))) ->  | V22: =IF(OR($A$5=3,$A$5=1),NA(),IF('volcanic template'!Z$11=FALSE,NA(),IF((ABS(D22)+E22+F22)>0,BH$3*P22+R22,NA()))) ->  | W22: =IF(OR(A$5=3,A$5=1),NA(),IF('volcanic template'!Z$11=FALSE,NA(),IF((ABS(D22)+E22+F22)>0,P22*BH$2+BH$2,NA()))) ->  | X22: =IF(OR($A$5=3,$A$5=1,$D22<0),NA(),IF('plutonic template'!Z$18=FALSE,NA(),BH$3*P22+R22)) ->  | Y22: =IF(OR($A$5=3,$A$5=1,$D22<0),NA(),IF('plutonic template'!Z$18=FALSE,NA(),P22*BH$2)) ->  | Z22: =IF(OR($A$5=3,$A$5=2,D22<0),NA(),IF('plutonic template'!Z$328=FALSE,NA(),BH$3*J22+L22)) ->  | AA22: =IF(OR($A$5=3,$A$5=2,D22<0),NA(),IF('plutonic template'!Z$328=FALSE,NA(),J22*BH$2)) ->  | AF22: =IF(OR($A$5=3,$A$5=2,D22<0),NA(),IF('plutonic template'!Z$412=FALSE,NA(),BH$3*AC22+AE22)) ->  | AG22: =IF(OR($A$5=3,$A$5=2,D22<0),NA(),IF('plutonic template'!Z$412=FALSE,NA(),AC22*BH$2)) ->  | AL22: =IF('plutonic template'!Z$195=FALSE,NA(),BH$3*AI22+AK22) ->  | AM22: =IF('plutonic template'!Z$195=FALSE,NA(),AI22*BH$2) ->  | AR22: =IF('plutonic template'!$Z$233=FALSE,NA(),BH$3*AO22+AQ22) ->  | AS22: =IF('plutonic template'!$Z$233=FALSE,NA(),AO22*BH$2) ->  | AX22: =IF('plutonic template'!$Z$274=FALSE,NA(),BH$3*AU22+AW22) ->  | AY22: =IF('plutonic template'!$Z$274=FALSE,NA(),AU22*BH$2) ->  | BD22: =IF('plutonic template'!$Z$387=FALSE,NA(),BH$3*BA22+BC22) ->  | BE22: =IF('plutonic template'!$Z$387=FALSE,NA(),BA22*BH$2) -> 
N23: 1 | T23: =IF(OR($A$5=3,$A$5=1),NA(),IF('plutonic template'!Z$85=FALSE,NA(),IF((ABS(D23)+E23+F23)>0,BH$3*P23+R23,NA()))) ->  | U23: =IF(OR($A$5=3,$A$5=1),NA(),IF('plutonic template'!Z$85=FALSE,NA(),IF((ABS(D23)+E23+F23)>0,P23*BH$2+BH$2,NA()))) ->  | V23: =IF(OR($A$5=3,$A$5=1),NA(),IF('volcanic template'!Z$11=FALSE,NA(),IF((ABS(D23)+E23+F23)>0,BH$3*P23+R23,NA()))) ->  | W23: =IF(OR(A$5=3,A$5=1),NA(),IF('volcanic template'!Z$11=FALSE,NA(),IF((ABS(D23)+E23+F23)>0,P23*BH$2+BH$2,NA()))) ->  | X23: =IF(OR($A$5=3,$A$5=1,$D23<0),NA(),IF('plutonic template'!Z$18=FALSE,NA(),BH$3*P23+R23)) ->  | Y23: =IF(OR($A$5=3,$A$5=1,$D23<0),NA(),IF('plutonic template'!Z$18=FALSE,NA(),P23*BH$2)) ->  | Z23: =IF(OR($A$5=3,$A$5=2,D23<0),NA(),IF('plutonic template'!Z$328=FALSE,NA(),BH$3*J23+L23)) ->  | AA23: =IF(OR($A$5=3,$A$5=2,D23<0),NA(),IF('plutonic template'!Z$328=FALSE,NA(),J23*BH$2)) ->  | AF23: =IF(OR($A$5=3,$A$5=2,D23<0),NA(),IF('plutonic template'!Z$412=FALSE,NA(),BH$3*AC23+AE23)) ->  | AG23: =IF(OR($A$5=3,$A$5=2,D23<0),NA(),IF('plutonic template'!Z$412=FALSE,NA(),AC23*BH$2)) ->  | AL23: =IF('plutonic template'!Z$195=FALSE,NA(),BH$3*AI23+AK23) ->  | AM23: =IF('plutonic template'!Z$195=FALSE,NA(),AI23*BH$2) ->  | AR23: =IF('plutonic template'!$Z$233=FALSE,NA(),BH$3*AO23+AQ23) ->  | AS23: =IF('plutonic template'!$Z$233=FALSE,NA(),AO23*BH$2) ->  | AX23: =IF('plutonic template'!$Z$274=FALSE,NA(),BH$3*AU23+AW23) ->  | AY23: =IF('plutonic template'!$Z$274=FALSE,NA(),AU23*BH$2) ->  | BD23: =IF('plutonic template'!$Z$387=FALSE,NA(),BH$3*BA23+BC23) ->  | BE23: =IF('plutonic template'!$Z$387=FALSE,NA(),BA23*BH$2) -> 
A24: Go To Graph: | N24: 1 | T24: =IF(OR($A$5=3,$A$5=1),NA(),IF('plutonic template'!Z$85=FALSE,NA(),IF((ABS(D24)+E24+F24)>0,BH$3*P24+R24,NA()))) ->  | U24: =IF(OR($A$5=3,$A$5=1),NA(),IF('plutonic template'!Z$85=FALSE,NA(),IF((ABS(D24)+E24+F24)>0,P24*BH$2+BH$2,NA()))) ->  | V24: =IF(OR($A$5=3,$A$5=1),NA(),IF('volcanic template'!Z$11=FALSE,NA(),IF((ABS(D24)+E24+F24)>0,BH$3*P24+R24,NA()))) ->  | W24: =IF(OR(A$5=3,A$5=1),NA(),IF('volcanic template'!Z$11=FALSE,NA(),IF((ABS(D24)+E24+F24)>0,P24*BH$2+BH$2,NA()))) ->  | X24: =IF(OR($A$5=3,$A$5=1,$D24<0),NA(),IF('plutonic template'!Z$18=FALSE,NA(),BH$3*P24+R24)) ->  | Y24: =IF(OR($A$5=3,$A$5=1,$D24<0),NA(),IF('plutonic template'!Z$18=FALSE,NA(),P24*BH$2)) ->  | Z24: =IF(OR($A$5=3,$A$5=2,D24<0),NA(),IF('plutonic template'!Z$328=FALSE,NA(),BH$3*J24+L24)) ->  | AA24: =IF(OR($A$5=3,$A$5=2,D24<0),NA(),IF('plutonic template'!Z$328=FALSE,NA(),J24*BH$2)) ->  | AF24: =IF(OR($A$5=3,$A$5=2,D24<0),NA(),IF('plutonic template'!Z$412=FALSE,NA(),BH$3*AC24+AE24)) ->  | AG24: =IF(OR($A$5=3,$A$5=2,D24<0),NA(),IF('plutonic template'!Z$412=FALSE,NA(),AC24*BH$2)) ->  | AL24: =IF('plutonic template'!Z$195=FALSE,NA(),BH$3*AI24+AK24) ->  | AM24: =IF('plutonic template'!Z$195=FALSE,NA(),AI24*BH$2) ->  | AR24: =IF('plutonic template'!$Z$233=FALSE,NA(),BH$3*AO24+AQ24) ->  | AS24: =IF('plutonic template'!$Z$233=FALSE,NA(),AO24*BH$2) ->  | AX24: =IF('plutonic template'!$Z$274=FALSE,NA(),BH$3*AU24+AW24) ->  | AY24: =IF('plutonic template'!$Z$274=FALSE,NA(),AU24*BH$2) ->  | BD24: =IF('plutonic template'!$Z$387=FALSE,NA(),BH$3*BA24+BC24) ->  | BE24: =IF('plutonic template'!$Z$387=FALSE,NA(),BA24*BH$2) -> 
N25: 1 | T25: =IF(OR($A$5=3,$A$5=1),NA(),IF('plutonic template'!Z$85=FALSE,NA(),IF((ABS(D25)+E25+F25)>0,BH$3*P25+R25,NA()))) ->  | U25: =IF(OR($A$5=3,$A$5=1),NA(),IF('plutonic template'!Z$85=FALSE,NA(),IF((ABS(D25)+E25+F25)>0,P25*BH$2+BH$2,NA()))) ->  | V25: =IF(OR($A$5=3,$A$5=1),NA(),IF('volcanic template'!Z$11=FALSE,NA(),IF((ABS(D25)+E25+F25)>0,BH$3*P25+R25,NA()))) ->  | W25: =IF(OR(A$5=3,A$5=1),NA(),IF('volcanic template'!Z$11=FALSE,NA(),IF((ABS(D25)+E25+F25)>0,P25*BH$2+BH$2,NA()))) ->  | X25: =IF(OR($A$5=3,$A$5=1,$D25<0),NA(),IF('plutonic template'!Z$18=FALSE,NA(),BH$3*P25+R25)) ->  | Y25: =IF(OR($A$5=3,$A$5=1,$D25<0),NA(),IF('plutonic template'!Z$18=FALSE,NA(),P25*BH$2)) ->  | Z25: =IF(OR($A$5=3,$A$5=2,D25<0),NA(),IF('plutonic template'!Z$328=FALSE,NA(),BH$3*J25+L25)) ->  | AA25: =IF(OR($A$5=3,$A$5=2,D25<0),NA(),IF('plutonic template'!Z$328=FALSE,NA(),J25*BH$2)) ->  | AF25: =IF(OR($A$5=3,$A$5=2,D25<0),NA(),IF('plutonic template'!Z$412=FALSE,NA(),BH$3*AC25+AE25)) ->  | AG25: =IF(OR($A$5=3,$A$5=2,D25<0),NA(),IF('plutonic template'!Z$412=FALSE,NA(),AC25*BH$2)) ->  | AL25: =IF('plutonic template'!Z$195=FALSE,NA(),BH$3*AI25+AK25) ->  | AM25: =IF('plutonic template'!Z$195=FALSE,NA(),AI25*BH$2) ->  | AR25: =IF('plutonic template'!$Z$233=FALSE,NA(),BH$3*AO25+AQ25) ->  | AS25: =IF('plutonic template'!$Z$233=FALSE,NA(),AO25*BH$2) ->  | AX25: =IF('plutonic template'!$Z$274=FALSE,NA(),BH$3*AU25+AW25) ->  | AY25: =IF('plutonic template'!$Z$274=FALSE,NA(),AU25*BH$2) ->  | BD25: =IF('plutonic template'!$Z$387=FALSE,NA(),BH$3*BA25+BC25) ->  | BE25: =IF('plutonic template'!$Z$387=FALSE,NA(),BA25*BH$2) -> 
N26: 1 | T26: =IF(OR($A$5=3,$A$5=1),NA(),IF('plutonic template'!Z$85=FALSE,NA(),IF((ABS(D26)+E26+F26)>0,BH$3*P26+R26,NA()))) ->  | U26: =IF(OR($A$5=3,$A$5=1),NA(),IF('plutonic template'!Z$85=FALSE,NA(),IF((ABS(D26)+E26+F26)>0,P26*BH$2+BH$2,NA()))) ->  | V26: =IF(OR($A$5=3,$A$5=1),NA(),IF('volcanic template'!Z$11=FALSE,NA(),IF((ABS(D26)+E26+F26)>0,BH$3*P26+R26,NA()))) ->  | W26: =IF(OR(A$5=3,A$5=1),NA(),IF('volcanic template'!Z$11=FALSE,NA(),IF((ABS(D26)+E26+F26)>0,P26*BH$2+BH$2,NA()))) ->  | X26: =IF(OR($A$5=3,$A$5=1,$D26<0),NA(),IF('plutonic template'!Z$18=FALSE,NA(),BH$3*P26+R26)) ->  | Y26: =IF(OR($A$5=3,$A$5=1,$D26<0),NA(),IF('plutonic template'!Z$18=FALSE,NA(),P26*BH$2)) ->  | Z26: =IF(OR($A$5=3,$A$5=2,D26<0),NA(),IF('plutonic template'!Z$328=FALSE,NA(),BH$3*J26+L26)) ->  | AA26: =IF(OR($A$5=3,$A$5=2,D26<0),NA(),IF('plutonic template'!Z$328=FALSE,NA(),J26*BH$2)) ->  | AF26: =IF(OR($A$5=3,$A$5=2,D26<0),NA(),IF('plutonic template'!Z$412=FALSE,NA(),BH$3*AC26+AE26)) ->  | AG26: =IF(OR($A$5=3,$A$5=2,D26<0),NA(),IF('plutonic template'!Z$412=FALSE,NA(),AC26*BH$2)) ->  | AL26: =IF('plutonic template'!Z$195=FALSE,NA(),BH$3*AI26+AK26) ->  | AM26: =IF('plutonic template'!Z$195=FALSE,NA(),AI26*BH$2) ->  | AR26: =IF('plutonic template'!$Z$233=FALSE,NA(),BH$3*AO26+AQ26) ->  | AS26: =IF('plutonic template'!$Z$233=FALSE,NA(),AO26*BH$2) ->  | AX26: =IF('plutonic template'!$Z$274=FALSE,NA(),BH$3*AU26+AW26) ->  | AY26: =IF('plutonic template'!$Z$274=FALSE,NA(),AU26*BH$2) ->  | BD26: =IF('plutonic template'!$Z$387=FALSE,NA(),BH$3*BA26+BC26) ->  | BE26: =IF('plutonic template'!$Z$387=FALSE,NA(),BA26*BH$2) -> 
N27: 1 | T27: =IF(OR($A$5=3,$A$5=1),NA(),IF('plutonic template'!Z$85=FALSE,NA(),IF((ABS(D27)+E27+F27)>0,BH$3*P27+R27,NA()))) ->  | U27: =IF(OR($A$5=3,$A$5=1),NA(),IF('plutonic template'!Z$85=FALSE,NA(),IF((ABS(D27)+E27+F27)>0,P27*BH$2+BH$2,NA()))) ->  | V27: =IF(OR($A$5=3,$A$5=1),NA(),IF('volcanic template'!Z$11=FALSE,NA(),IF((ABS(D27)+E27+F27)>0,BH$3*P27+R27,NA()))) ->  | W27: =IF(OR(A$5=3,A$5=1),NA(),IF('volcanic template'!Z$11=FALSE,NA(),IF((ABS(D27)+E27+F27)>0,P27*BH$2+BH$2,NA()))) ->  | X27: =IF(OR($A$5=3,$A$5=1,$D27<0),NA(),IF('plutonic template'!Z$18=FALSE,NA(),BH$3*P27+R27)) ->  | Y27: =IF(OR($A$5=3,$A$5=1,$D27<0),NA(),IF('plutonic template'!Z$18=FALSE,NA(),P27*BH$2)) ->  | Z27: =IF(OR($A$5=3,$A$5=2,D27<0),NA(),IF('plutonic template'!Z$328=FALSE,NA(),BH$3*J27+L27)) ->  | AA27: =IF(OR($A$5=3,$A$5=2,D27<0),NA(),IF('plutonic template'!Z$328=FALSE,NA(),J27*BH$2)) ->  | AF27: =IF(OR($A$5=3,$A$5=2,D27<0),NA(),IF('plutonic template'!Z$412=FALSE,NA(),BH$3*AC27+AE27)) ->  | AG27: =IF(OR($A$5=3,$A$5=2,D27<0),NA(),IF('plutonic template'!Z$412=FALSE,NA(),AC27*BH$2)) ->  | AL27: =IF('plutonic template'!Z$195=FALSE,NA(),BH$3*AI27+AK27) ->  | AM27: =IF('plutonic template'!Z$195=FALSE,NA(),AI27*BH$2) ->  | AR27: =IF('plutonic template'!$Z$233=FALSE,NA(),BH$3*AO27+AQ27) ->  | AS27: =IF('plutonic template'!$Z$233=FALSE,NA(),AO27*BH$2) ->  | AX27: =IF('plutonic template'!$Z$274=FALSE,NA(),BH$3*AU27+AW27) ->  | AY27: =IF('plutonic template'!$Z$274=FALSE,NA(),AU27*BH$2) ->  | BD27: =IF('plutonic template'!$Z$387=FALSE,NA(),BH$3*BA27+BC27) ->  | BE27: =IF('plutonic template'!$Z$387=FALSE,NA(),BA27*BH$2) -> 
N28: 1 | T28: =IF(OR($A$5=3,$A$5=1),NA(),IF('plutonic template'!Z$85=FALSE,NA(),IF((ABS(D28)+E28+F28)>0,BH$3*P28+R28,NA()))) ->  | U28: =IF(OR($A$5=3,$A$5=1),NA(),IF('plutonic template'!Z$85=FALSE,NA(),IF((ABS(D28)+E28+F28)>0,P28*BH$2+BH$2,NA()))) ->  | V28: =IF(OR($A$5=3,$A$5=1),NA(),IF('volcanic template'!Z$11=FALSE,NA(),IF((ABS(D28)+E28+F28)>0,BH$3*P28+R28,NA()))) ->  | W28: =IF(OR(A$5=3,A$5=1),NA(),IF('volcanic template'!Z$11=FALSE,NA(),IF((ABS(D28)+E28+F28)>0,P28*BH$2+BH$2,NA()))) ->  | X28: =IF(OR($A$5=3,$A$5=1,$D28<0),NA(),IF('plutonic template'!Z$18=FALSE,NA(),BH$3*P28+R28)) ->  | Y28: =IF(OR($A$5=3,$A$5=1,$D28<0),NA(),IF('plutonic template'!Z$18=FALSE,NA(),P28*BH$2)) ->  | Z28: =IF(OR($A$5=3,$A$5=2,D28<0),NA(),IF('plutonic template'!Z$328=FALSE,NA(),BH$3*J28+L28)) ->  | AA28: =IF(OR($A$5=3,$A$5=2,D28<0),NA(),IF('plutonic template'!Z$328=FALSE,NA(),J28*BH$2)) ->  | AF28: =IF(OR($A$5=3,$A$5=2,D28<0),NA(),IF('plutonic template'!Z$412=FALSE,NA(),BH$3*AC28+AE28)) ->  | AG28: =IF(OR($A$5=3,$A$5=2,D28<0),NA(),IF('plutonic template'!Z$412=FALSE,NA(),AC28*BH$2)) ->  | AL28: =IF('plutonic template'!Z$195=FALSE,NA(),BH$3*AI28+AK28) ->  | AM28: =IF('plutonic template'!Z$195=FALSE,NA(),AI28*BH$2) ->  | AR28: =IF('plutonic template'!$Z$233=FALSE,NA(),BH$3*AO28+AQ28) ->  | AS28: =IF('plutonic template'!$Z$233=FALSE,NA(),AO28*BH$2) ->  | AX28: =IF('plutonic template'!$Z$274=FALSE,NA(),BH$3*AU28+AW28) ->  | AY28: =IF('plutonic template'!$Z$274=FALSE,NA(),AU28*BH$2) ->  | BD28: =IF('plutonic template'!$Z$387=FALSE,NA(),BH$3*BA28+BC28) ->  | BE28: =IF('plutonic template'!$Z$387=FALSE,NA(),BA28*BH$2) -> 
N29: 1 | T29: =IF(OR($A$5=3,$A$5=1),NA(),IF('plutonic template'!Z$85=FALSE,NA(),IF((ABS(D29)+E29+F29)>0,BH$3*P29+R29,NA()))) ->  | U29: =IF(OR($A$5=3,$A$5=1),NA(),IF('plutonic template'!Z$85=FALSE,NA(),IF((ABS(D29)+E29+F29)>0,P29*BH$2+BH$2,NA()))) ->  | V29: =IF(OR($A$5=3,$A$5=1),NA(),IF('volcanic template'!Z$11=FALSE,NA(),IF((ABS(D29)+E29+F29)>0,BH$3*P29+R29,NA()))) ->  | W29: =IF(OR(A$5=3,A$5=1),NA(),IF('volcanic template'!Z$11=FALSE,NA(),IF((ABS(D29)+E29+F29)>0,P29*BH$2+BH$2,NA()))) ->  | X29: =IF(OR($A$5=3,$A$5=1,$D29<0),NA(),IF('plutonic template'!Z$18=FALSE,NA(),BH$3*P29+R29)) ->  | Y29: =IF(OR($A$5=3,$A$5=1,$D29<0),NA(),IF('plutonic template'!Z$18=FALSE,NA(),P29*BH$2)) ->  | Z29: =IF(OR($A$5=3,$A$5=2,D29<0),NA(),IF('plutonic template'!Z$328=FALSE,NA(),BH$3*J29+L29)) ->  | AA29: =IF(OR($A$5=3,$A$5=2,D29<0),NA(),IF('plutonic template'!Z$328=FALSE,NA(),J29*BH$2)) ->  | AF29: =IF(OR($A$5=3,$A$5=2,D29<0),NA(),IF('plutonic template'!Z$412=FALSE,NA(),BH$3*AC29+AE29)) ->  | AG29: =IF(OR($A$5=3,$A$5=2,D29<0),NA(),IF('plutonic template'!Z$412=FALSE,NA(),AC29*BH$2)) ->  | AL29: =IF('plutonic template'!Z$195=FALSE,NA(),BH$3*AI29+AK29) ->  | AM29: =IF('plutonic template'!Z$195=FALSE,NA(),AI29*BH$2) ->  | AR29: =IF('plutonic template'!$Z$233=FALSE,NA(),BH$3*AO29+AQ29) ->  | AS29: =IF('plutonic template'!$Z$233=FALSE,NA(),AO29*BH$2) ->  | AX29: =IF('plutonic template'!$Z$274=FALSE,NA(),BH$3*AU29+AW29) ->  | AY29: =IF('plutonic template'!$Z$274=FALSE,NA(),AU29*BH$2) ->  | BD29: =IF('plutonic template'!$Z$387=FALSE,NA(),BH$3*BA29+BC29) ->  | BE29: =IF('plutonic template'!$Z$387=FALSE,NA(),BA29*BH$2) -> 
N30: 1 | T30: =IF(OR($A$5=3,$A$5=1),NA(),IF('plutonic template'!Z$85=FALSE,NA(),IF((ABS(D30)+E30+F30)>0,BH$3*P30+R30,NA()))) ->  | U30: =IF(OR($A$5=3,$A$5=1),NA(),IF('plutonic template'!Z$85=FALSE,NA(),IF((ABS(D30)+E30+F30)>0,P30*BH$2+BH$2,NA()))) ->  | V30: =IF(OR($A$5=3,$A$5=1),NA(),IF('volcanic template'!Z$11=FALSE,NA(),IF((ABS(D30)+E30+F30)>0,BH$3*P30+R30,NA()))) ->  | W30: =IF(OR(A$5=3,A$5=1),NA(),IF('volcanic template'!Z$11=FALSE,NA(),IF((ABS(D30)+E30+F30)>0,P30*BH$2+BH$2,NA()))) ->  | X30: =IF(OR($A$5=3,$A$5=1,$D30<0),NA(),IF('plutonic template'!Z$18=FALSE,NA(),BH$3*P30+R30)) ->  | Y30: =IF(OR($A$5=3,$A$5=1,$D30<0),NA(),IF('plutonic template'!Z$18=FALSE,NA(),P30*BH$2)) ->  | Z30: =IF(OR($A$5=3,$A$5=2,D30<0),NA(),IF('plutonic template'!Z$328=FALSE,NA(),BH$3*J30+L30)) ->  | AA30: =IF(OR($A$5=3,$A$5=2,D30<0),NA(),IF('plutonic template'!Z$328=FALSE,NA(),J30*BH$2)) ->  | AF30: =IF(OR($A$5=3,$A$5=2,D30<0),NA(),IF('plutonic template'!Z$412=FALSE,NA(),BH$3*AC30+AE30)) ->  | AG30: =IF(OR($A$5=3,$A$5=2,D30<0),NA(),IF('plutonic template'!Z$412=FALSE,NA(),AC30*BH$2)) ->  | AL30: =IF('plutonic template'!Z$195=FALSE,NA(),BH$3*AI30+AK30) ->  | AM30: =IF('plutonic template'!Z$195=FALSE,NA(),AI30*BH$2) ->  | AR30: =IF('plutonic template'!$Z$233=FALSE,NA(),BH$3*AO30+AQ30) ->  | AS30: =IF('plutonic template'!$Z$233=FALSE,NA(),AO30*BH$2) ->  | AX30: =IF('plutonic template'!$Z$274=FALSE,NA(),BH$3*AU30+AW30) ->  | AY30: =IF('plutonic template'!$Z$274=FALSE,NA(),AU30*BH$2) ->  | BD30: =IF('plutonic template'!$Z$387=FALSE,NA(),BH$3*BA30+BC30) ->  | BE30: =IF('plutonic template'!$Z$387=FALSE,NA(),BA30*BH$2) -> 
N31: 1 | T31: =IF(OR($A$5=3,$A$5=1),NA(),IF('plutonic template'!Z$85=FALSE,NA(),IF((ABS(D31)+E31+F31)>0,BH$3*P31+R31,NA()))) ->  | U31: =IF(OR($A$5=3,$A$5=1),NA(),IF('plutonic template'!Z$85=FALSE,NA(),IF((ABS(D31)+E31+F31)>0,P31*BH$2+BH$2,NA()))) ->  | V31: =IF(OR($A$5=3,$A$5=1),NA(),IF('volcanic template'!Z$11=FALSE,NA(),IF((ABS(D31)+E31+F31)>0,BH$3*P31+R31,NA()))) ->  | W31: =IF(OR(A$5=3,A$5=1),NA(),IF('volcanic template'!Z$11=FALSE,NA(),IF((ABS(D31)+E31+F31)>0,P31*BH$2+BH$2,NA()))) ->  | X31: =IF(OR($A$5=3,$A$5=1,$D31<0),NA(),IF('plutonic template'!Z$18=FALSE,NA(),BH$3*P31+R31)) ->  | Y31: =IF(OR($A$5=3,$A$5=1,$D31<0),NA(),IF('plutonic template'!Z$18=FALSE,NA(),P31*BH$2)) ->  | Z31: =IF(OR($A$5=3,$A$5=2,D31<0),NA(),IF('plutonic template'!Z$328=FALSE,NA(),BH$3*J31+L31)) ->  | AA31: =IF(OR($A$5=3,$A$5=2,D31<0),NA(),IF('plutonic template'!Z$328=FALSE,NA(),J31*BH$2)) ->  | AF31: =IF(OR($A$5=3,$A$5=2,D31<0),NA(),IF('plutonic template'!Z$412=FALSE,NA(),BH$3*AC31+AE31)) ->  | AG31: =IF(OR($A$5=3,$A$5=2,D31<0),NA(),IF('plutonic template'!Z$412=FALSE,NA(),AC31*BH$2)) ->  | AL31: =IF('plutonic template'!Z$195=FALSE,NA(),BH$3*AI31+AK31) ->  | AM31: =IF('plutonic template'!Z$195=FALSE,NA(),AI31*BH$2) ->  | AR31: =IF('plutonic template'!$Z$233=FALSE,NA(),BH$3*AO31+AQ31) ->  | AS31: =IF('plutonic template'!$Z$233=FALSE,NA(),AO31*BH$2) ->  | AX31: =IF('plutonic template'!$Z$274=FALSE,NA(),BH$3*AU31+AW31) ->  | AY31: =IF('plutonic template'!$Z$274=FALSE,NA(),AU31*BH$2) ->  | BD31: =IF('plutonic template'!$Z$387=FALSE,NA(),BH$3*BA31+BC31) ->  | BE31: =IF('plutonic template'!$Z$387=FALSE,NA(),BA31*BH$2) -> 
N32: 1 | T32: =IF(OR($A$5=3,$A$5=1),NA(),IF('plutonic template'!Z$85=FALSE,NA(),IF((ABS(D32)+E32+F32)>0,BH$3*P32+R32,NA()))) ->  | U32: =IF(OR($A$5=3,$A$5=1),NA(),IF('plutonic template'!Z$85=FALSE,NA(),IF((ABS(D32)+E32+F32)>0,P32*BH$2+BH$2,NA()))) ->  | V32: =IF(OR($A$5=3,$A$5=1),NA(),IF('volcanic template'!Z$11=FALSE,NA(),IF((ABS(D32)+E32+F32)>0,BH$3*P32+R32,NA()))) ->  | W32: =IF(OR(A$5=3,A$5=1),NA(),IF('volcanic template'!Z$11=FALSE,NA(),IF((ABS(D32)+E32+F32)>0,P32*BH$2+BH$2,NA()))) ->  | X32: =IF(OR($A$5=3,$A$5=1,$D32<0),NA(),IF('plutonic template'!Z$18=FALSE,NA(),BH$3*P32+R32)) ->  | Y32: =IF(OR($A$5=3,$A$5=1,$D32<0),NA(),IF('plutonic template'!Z$18=FALSE,NA(),P32*BH$2)) ->  | Z32: =IF(OR($A$5=3,$A$5=2,D32<0),NA(),IF('plutonic template'!Z$328=FALSE,NA(),BH$3*J32+L32)) ->  | AA32: =IF(OR($A$5=3,$A$5=2,D32<0),NA(),IF('plutonic template'!Z$328=FALSE,NA(),J32*BH$2)) ->  | AF32: =IF(OR($A$5=3,$A$5=2,D32<0),NA(),IF('plutonic template'!Z$412=FALSE,NA(),BH$3*AC32+AE32)) ->  | AG32: =IF(OR($A$5=3,$A$5=2,D32<0),NA(),IF('plutonic template'!Z$412=FALSE,NA(),AC32*BH$2)) ->  | AL32: =IF('plutonic template'!Z$195=FALSE,NA(),BH$3*AI32+AK32) ->  | AM32: =IF('plutonic template'!Z$195=FALSE,NA(),AI32*BH$2) ->  | AR32: =IF('plutonic template'!$Z$233=FALSE,NA(),BH$3*AO32+AQ32) ->  | AS32: =IF('plutonic template'!$Z$233=FALSE,NA(),AO32*BH$2) ->  | AX32: =IF('plutonic template'!$Z$274=FALSE,NA(),BH$3*AU32+AW32) ->  | AY32: =IF('plutonic template'!$Z$274=FALSE,NA(),AU32*BH$2) ->  | BD32: =IF('plutonic template'!$Z$387=FALSE,NA(),BH$3*BA32+BC32) ->  | BE32: =IF('plutonic template'!$Z$387=FALSE,NA(),BA32*BH$2) -> 
N33: 1 | T33: =IF(OR($A$5=3,$A$5=1),NA(),IF('plutonic template'!Z$85=FALSE,NA(),IF((ABS(D33)+E33+F33)>0,BH$3*P33+R33,NA()))) ->  | U33: =IF(OR($A$5=3,$A$5=1),NA(),IF('plutonic template'!Z$85=FALSE,NA(),IF((ABS(D33)+E33+F33)>0,P33*BH$2+BH$2,NA()))) ->  | V33: =IF(OR($A$5=3,$A$5=1),NA(),IF('volcanic template'!Z$11=FALSE,NA(),IF((ABS(D33)+E33+F33)>0,BH$3*P33+R33,NA()))) ->  | W33: =IF(OR(A$5=3,A$5=1),NA(),IF('volcanic template'!Z$11=FALSE,NA(),IF((ABS(D33)+E33+F33)>0,P33*BH$2+BH$2,NA()))) ->  | X33: =IF(OR($A$5=3,$A$5=1,$D33<0),NA(),IF('plutonic template'!Z$18=FALSE,NA(),BH$3*P33+R33)) ->  | Y33: =IF(OR($A$5=3,$A$5=1,$D33<0),NA(),IF('plutonic template'!Z$18=FALSE,NA(),P33*BH$2)) ->  | Z33: =IF(OR($A$5=3,$A$5=2,D33<0),NA(),IF('plutonic template'!Z$328=FALSE,NA(),BH$3*J33+L33)) ->  | AA33: =IF(OR($A$5=3,$A$5=2,D33<0),NA(),IF('plutonic template'!Z$328=FALSE,NA(),J33*BH$2)) ->  | AF33: =IF(OR($A$5=3,$A$5=2,D33<0),NA(),IF('plutonic template'!Z$412=FALSE,NA(),BH$3*AC33+AE33)) ->  | AG33: =IF(OR($A$5=3,$A$5=2,D33<0),NA(),IF('plutonic template'!Z$412=FALSE,NA(),AC33*BH$2)) ->  | AL33: =IF('plutonic template'!Z$195=FALSE,NA(),BH$3*AI33+AK33) ->  | AM33: =IF('plutonic template'!Z$195=FALSE,NA(),AI33*BH$2) ->  | AR33: =IF('plutonic template'!$Z$233=FALSE,NA(),BH$3*AO33+AQ33) ->  | AS33: =IF('plutonic template'!$Z$233=FALSE,NA(),AO33*BH$2) ->  | AX33: =IF('plutonic template'!$Z$274=FALSE,NA(),BH$3*AU33+AW33) ->  | AY33: =IF('plutonic template'!$Z$274=FALSE,NA(),AU33*BH$2) ->  | BD33: =IF('plutonic template'!$Z$387=FALSE,NA(),BH$3*BA33+BC33) ->  | BE33: =IF('plutonic template'!$Z$387=FALSE,NA(),BA33*BH$2) -> 
N34: 1 | T34: =IF(OR($A$5=3,$A$5=1),NA(),IF('plutonic template'!Z$85=FALSE,NA(),IF((ABS(D34)+E34+F34)>0,BH$3*P34+R34,NA()))) ->  | U34: =IF(OR($A$5=3,$A$5=1),NA(),IF('plutonic template'!Z$85=FALSE,NA(),IF((ABS(D34)+E34+F34)>0,P34*BH$2+BH$2,NA()))) ->  | V34: =IF(OR($A$5=3,$A$5=1),NA(),IF('volcanic template'!Z$11=FALSE,NA(),IF((ABS(D34)+E34+F34)>0,BH$3*P34+R34,NA()))) ->  | W34: =IF(OR(A$5=3,A$5=1),NA(),IF('volcanic template'!Z$11=FALSE,NA(),IF((ABS(D34)+E34+F34)>0,P34*BH$2+BH$2,NA()))) ->  | X34: =IF(OR($A$5=3,$A$5=1,$D34<0),NA(),IF('plutonic template'!Z$18=FALSE,NA(),BH$3*P34+R34)) ->  | Y34: =IF(OR($A$5=3,$A$5=1,$D34<0),NA(),IF('plutonic template'!Z$18=FALSE,NA(),P34*BH$2)) ->  | Z34: =IF(OR($A$5=3,$A$5=2,D34<0),NA(),IF('plutonic template'!Z$328=FALSE,NA(),BH$3*J34+L34)) ->  | AA34: =IF(OR($A$5=3,$A$5=2,D34<0),NA(),IF('plutonic template'!Z$328=FALSE,NA(),J34*BH$2)) ->  | AF34: =IF(OR($A$5=3,$A$5=2,D34<0),NA(),IF('plutonic template'!Z$412=FALSE,NA(),BH$3*AC34+AE34)) ->  | AG34: =IF(OR($A$5=3,$A$5=2,D34<0),NA(),IF('plutonic template'!Z$412=FALSE,NA(),AC34*BH$2)) ->  | AL34: =IF('plutonic template'!Z$195=FALSE,NA(),BH$3*AI34+AK34) ->  | AM34: =IF('plutonic template'!Z$195=FALSE,NA(),AI34*BH$2) ->  | AR34: =IF('plutonic template'!$Z$233=FALSE,NA(),BH$3*AO34+AQ34) ->  | AS34: =IF('plutonic template'!$Z$233=FALSE,NA(),AO34*BH$2) ->  | AX34: =IF('plutonic template'!$Z$274=FALSE,NA(),BH$3*AU34+AW34) ->  | AY34: =IF('plutonic template'!$Z$274=FALSE,NA(),AU34*BH$2) ->  | BD34: =IF('plutonic template'!$Z$387=FALSE,NA(),BH$3*BA34+BC34) ->  | BE34: =IF('plutonic template'!$Z$387=FALSE,NA(),BA34*BH$2) -> 
N35: 1 | T35: =IF(OR($A$5=3,$A$5=1),NA(),IF('plutonic template'!Z$85=FALSE,NA(),IF((ABS(D35)+E35+F35)>0,BH$3*P35+R35,NA()))) ->  | U35: =IF(OR($A$5=3,$A$5=1),NA(),IF('plutonic template'!Z$85=FALSE,NA(),IF((ABS(D35)+E35+F35)>0,P35*BH$2+BH$2,NA()))) ->  | V35: =IF(OR($A$5=3,$A$5=1),NA(),IF('volcanic template'!Z$11=FALSE,NA(),IF((ABS(D35)+E35+F35)>0,BH$3*P35+R35,NA()))) ->  | W35: =IF(OR(A$5=3,A$5=1),NA(),IF('volcanic template'!Z$11=FALSE,NA(),IF((ABS(D35)+E35+F35)>0,P35*BH$2+BH$2,NA()))) ->  | X35: =IF(OR($A$5=3,$A$5=1,$D35<0),NA(),IF('plutonic template'!Z$18=FALSE,NA(),BH$3*P35+R35)) ->  | Y35: =IF(OR($A$5=3,$A$5=1,$D35<0),NA(),IF('plutonic template'!Z$18=FALSE,NA(),P35*BH$2)) ->  | Z35: =IF(OR($A$5=3,$A$5=2,D35<0),NA(),IF('plutonic template'!Z$328=FALSE,NA(),BH$3*J35+L35)) ->  | AA35: =IF(OR($A$5=3,$A$5=2,D35<0),NA(),IF('plutonic template'!Z$328=FALSE,NA(),J35*BH$2)) ->  | AF35: =IF(OR($A$5=3,$A$5=2,D35<0),NA(),IF('plutonic template'!Z$412=FALSE,NA(),BH$3*AC35+AE35)) ->  | AG35: =IF(OR($A$5=3,$A$5=2,D35<0),NA(),IF('plutonic template'!Z$412=FALSE,NA(),AC35*BH$2)) ->  | AL35: =IF('plutonic template'!Z$195=FALSE,NA(),BH$3*AI35+AK35) ->  | AM35: =IF('plutonic template'!Z$195=FALSE,NA(),AI35*BH$2) ->  | AR35: =IF('plutonic template'!$Z$233=FALSE,NA(),BH$3*AO35+AQ35) ->  | AS35: =IF('plutonic template'!$Z$233=FALSE,NA(),AO35*BH$2) ->  | AX35: =IF('plutonic template'!$Z$274=FALSE,NA(),BH$3*AU35+AW35) ->  | AY35: =IF('plutonic template'!$Z$274=FALSE,NA(),AU35*BH$2) ->  | BD35: =IF('plutonic template'!$Z$387=FALSE,NA(),BH$3*BA35+BC35) ->  | BE35: =IF('plutonic template'!$Z$387=FALSE,NA(),BA35*BH$2) -> 
N36: 1 | T36: =IF(OR($A$5=3,$A$5=1),NA(),IF('plutonic template'!Z$85=FALSE,NA(),IF((ABS(D36)+E36+F36)>0,BH$3*P36+R36,NA()))) ->  | U36: =IF(OR($A$5=3,$A$5=1),NA(),IF('plutonic template'!Z$85=FALSE,NA(),IF((ABS(D36)+E36+F36)>0,P36*BH$2+BH$2,NA()))) ->  | V36: =IF(OR($A$5=3,$A$5=1),NA(),IF('volcanic template'!Z$11=FALSE,NA(),IF((ABS(D36)+E36+F36)>0,BH$3*P36+R36,NA()))) ->  | W36: =IF(OR(A$5=3,A$5=1),NA(),IF('volcanic template'!Z$11=FALSE,NA(),IF((ABS(D36)+E36+F36)>0,P36*BH$2+BH$2,NA()))) ->  | X36: =IF(OR($A$5=3,$A$5=1,$D36<0),NA(),IF('plutonic template'!Z$18=FALSE,NA(),BH$3*P36+R36)) ->  | Y36: =IF(OR($A$5=3,$A$5=1,$D36<0),NA(),IF('plutonic template'!Z$18=FALSE,NA(),P36*BH$2)) ->  | Z36: =IF(OR($A$5=3,$A$5=2,D36<0),NA(),IF('plutonic template'!Z$328=FALSE,NA(),BH$3*J36+L36)) ->  | AA36: =IF(OR($A$5=3,$A$5=2,D36<0),NA(),IF('plutonic template'!Z$328=FALSE,NA(),J36*BH$2)) ->  | AF36: =IF(OR($A$5=3,$A$5=2,D36<0),NA(),IF('plutonic template'!Z$412=FALSE,NA(),BH$3*AC36+AE36)) ->  | AG36: =IF(OR($A$5=3,$A$5=2,D36<0),NA(),IF('plutonic template'!Z$412=FALSE,NA(),AC36*BH$2)) ->  | AL36: =IF('plutonic template'!Z$195=FALSE,NA(),BH$3*AI36+AK36) ->  | AM36: =IF('plutonic template'!Z$195=FALSE,NA(),AI36*BH$2) ->  | AR36: =IF('plutonic template'!$Z$233=FALSE,NA(),BH$3*AO36+AQ36) ->  | AS36: =IF('plutonic template'!$Z$233=FALSE,NA(),AO36*BH$2) ->  | AX36: =IF('plutonic template'!$Z$274=FALSE,NA(),BH$3*AU36+AW36) ->  | AY36: =IF('plutonic template'!$Z$274=FALSE,NA(),AU36*BH$2) ->  | BD36: =IF('plutonic template'!$Z$387=FALSE,NA(),BH$3*BA36+BC36) ->  | BE36: =IF('plutonic template'!$Z$387=FALSE,NA(),BA36*BH$2) -> 
N37: 1 | T37: =IF(OR($A$5=3,$A$5=1),NA(),IF('plutonic template'!Z$85=FALSE,NA(),IF((ABS(D37)+E37+F37)>0,BH$3*P37+R37,NA()))) ->  | U37: =IF(OR($A$5=3,$A$5=1),NA(),IF('plutonic template'!Z$85=FALSE,NA(),IF((ABS(D37)+E37+F37)>0,P37*BH$2+BH$2,NA()))) ->  | V37: =IF(OR($A$5=3,$A$5=1),NA(),IF('volcanic template'!Z$11=FALSE,NA(),IF((ABS(D37)+E37+F37)>0,BH$3*P37+R37,NA()))) ->  | W37: =IF(OR(A$5=3,A$5=1),NA(),IF('volcanic template'!Z$11=FALSE,NA(),IF((ABS(D37)+E37+F37)>0,P37*BH$2+BH$2,NA()))) ->  | X37: =IF(OR($A$5=3,$A$5=1,$D37<0),NA(),IF('plutonic template'!Z$18=FALSE,NA(),BH$3*P37+R37)) ->  | Y37: =IF(OR($A$5=3,$A$5=1,$D37<0),NA(),IF('plutonic template'!Z$18=FALSE,NA(),P37*BH$2)) ->  | Z37: =IF(OR($A$5=3,$A$5=2,D37<0),NA(),IF('plutonic template'!Z$328=FALSE,NA(),BH$3*J37+L37)) ->  | AA37: =IF(OR($A$5=3,$A$5=2,D37<0),NA(),IF('plutonic template'!Z$328=FALSE,NA(),J37*BH$2)) ->  | AF37: =IF(OR($A$5=3,$A$5=2,D37<0),NA(),IF('plutonic template'!Z$412=FALSE,NA(),BH$3*AC37+AE37)) ->  | AG37: =IF(OR($A$5=3,$A$5=2,D37<0),NA(),IF('plutonic template'!Z$412=FALSE,NA(),AC37*BH$2)) ->  | AL37: =IF('plutonic template'!Z$195=FALSE,NA(),BH$3*AI37+AK37) ->  | AM37: =IF('plutonic template'!Z$195=FALSE,NA(),AI37*BH$2) ->  | AR37: =IF('plutonic template'!$Z$233=FALSE,NA(),BH$3*AO37+AQ37) ->  | AS37: =IF('plutonic template'!$Z$233=FALSE,NA(),AO37*BH$2) ->  | AX37: =IF('plutonic template'!$Z$274=FALSE,NA(),BH$3*AU37+AW37) ->  | AY37: =IF('plutonic template'!$Z$274=FALSE,NA(),AU37*BH$2) ->  | BD37: =IF('plutonic template'!$Z$387=FALSE,NA(),BH$3*BA37+BC37) ->  | BE37: =IF('plutonic template'!$Z$387=FALSE,NA(),BA37*BH$2) -> 
N38: 1 | T38: =IF(OR($A$5=3,$A$5=1),NA(),IF('plutonic template'!Z$85=FALSE,NA(),IF((ABS(D38)+E38+F38)>0,BH$3*P38+R38,NA()))) ->  | U38: =IF(OR($A$5=3,$A$5=1),NA(),IF('plutonic template'!Z$85=FALSE,NA(),IF((ABS(D38)+E38+F38)>0,P38*BH$2+BH$2,NA()))) ->  | V38: =IF(OR($A$5=3,$A$5=1),NA(),IF('volcanic template'!Z$11=FALSE,NA(),IF((ABS(D38)+E38+F38)>0,BH$3*P38+R38,NA()))) ->  | W38: =IF(OR(A$5=3,A$5=1),NA(),IF('volcanic template'!Z$11=FALSE,NA(),IF((ABS(D38)+E38+F38)>0,P38*BH$2+BH$2,NA()))) ->  | X38: =IF(OR($A$5=3,$A$5=1,$D38<0),NA(),IF('plutonic template'!Z$18=FALSE,NA(),BH$3*P38+R38)) ->  | Y38: =IF(OR($A$5=3,$A$5=1,$D38<0),NA(),IF('plutonic template'!Z$18=FALSE,NA(),P38*BH$2)) ->  | Z38: =IF(OR($A$5=3,$A$5=2,D38<0),NA(),IF('plutonic template'!Z$328=FALSE,NA(),BH$3*J38+L38)) ->  | AA38: =IF(OR($A$5=3,$A$5=2,D38<0),NA(),IF('plutonic template'!Z$328=FALSE,NA(),J38*BH$2)) ->  | AF38: =IF(OR($A$5=3,$A$5=2,D38<0),NA(),IF('plutonic template'!Z$412=FALSE,NA(),BH$3*AC38+AE38)) ->  | AG38: =IF(OR($A$5=3,$A$5=2,D38<0),NA(),IF('plutonic template'!Z$412=FALSE,NA(),AC38*BH$2)) ->  | AL38: =IF('plutonic template'!Z$195=FALSE,NA(),BH$3*AI38+AK38) ->  | AM38: =IF('plutonic template'!Z$195=FALSE,NA(),AI38*BH$2) ->  | AR38: =IF('plutonic template'!$Z$233=FALSE,NA(),BH$3*AO38+AQ38) ->  | AS38: =IF('plutonic template'!$Z$233=FALSE,NA(),AO38*BH$2) ->  | AX38: =IF('plutonic template'!$Z$274=FALSE,NA(),BH$3*AU38+AW38) ->  | AY38: =IF('plutonic template'!$Z$274=FALSE,NA(),AU38*BH$2) ->  | BD38: =IF('plutonic template'!$Z$387=FALSE,NA(),BH$3*BA38+BC38) ->  | BE38: =IF('plutonic template'!$Z$387=FALSE,NA(),BA38*BH$2) -> 
N39: 1 | T39: =IF(OR($A$5=3,$A$5=1),NA(),IF('plutonic template'!Z$85=FALSE,NA(),IF((ABS(D39)+E39+F39)>0,BH$3*P39+R39,NA()))) ->  | U39: =IF(OR($A$5=3,$A$5=1),NA(),IF('plutonic template'!Z$85=FALSE,NA(),IF((ABS(D39)+E39+F39)>0,P39*BH$2+BH$2,NA()))) ->  | V39: =IF(OR($A$5=3,$A$5=1),NA(),IF('volcanic template'!Z$11=FALSE,NA(),IF((ABS(D39)+E39+F39)>0,BH$3*P39+R39,NA()))) ->  | W39: =IF(OR(A$5=3,A$5=1),NA(),IF('volcanic template'!Z$11=FALSE,NA(),IF((ABS(D39)+E39+F39)>0,P39*BH$2+BH$2,NA()))) ->  | X39: =IF(OR($A$5=3,$A$5=1,$D39<0),NA(),IF('plutonic template'!Z$18=FALSE,NA(),BH$3*P39+R39)) ->  | Y39: =IF(OR($A$5=3,$A$5=1,$D39<0),NA(),IF('plutonic template'!Z$18=FALSE,NA(),P39*BH$2)) ->  | Z39: =IF(OR($A$5=3,$A$5=2,D39<0),NA(),IF('plutonic template'!Z$328=FALSE,NA(),BH$3*J39+L39)) ->  | AA39: =IF(OR($A$5=3,$A$5=2,D39<0),NA(),IF('plutonic template'!Z$328=FALSE,NA(),J39*BH$2)) ->  | AF39: =IF(OR($A$5=3,$A$5=2,D39<0),NA(),IF('plutonic template'!Z$412=FALSE,NA(),BH$3*AC39+AE39)) ->  | AG39: =IF(OR($A$5=3,$A$5=2,D39<0),NA(),IF('plutonic template'!Z$412=FALSE,NA(),AC39*BH$2)) ->  | AL39: =IF('plutonic template'!Z$195=FALSE,NA(),BH$3*AI39+AK39) ->  | AM39: =IF('plutonic template'!Z$195=FALSE,NA(),AI39*BH$2) ->  | AR39: =IF('plutonic template'!$Z$233=FALSE,NA(),BH$3*AO39+AQ39) ->  | AS39: =IF('plutonic template'!$Z$233=FALSE,NA(),AO39*BH$2) ->  | AX39: =IF('plutonic template'!$Z$274=FALSE,NA(),BH$3*AU39+AW39) ->  | AY39: =IF('plutonic template'!$Z$274=FALSE,NA(),AU39*BH$2) ->  | BD39: =IF('plutonic template'!$Z$387=FALSE,NA(),BH$3*BA39+BC39) ->  | BE39: =IF('plutonic template'!$Z$387=FALSE,NA(),BA39*BH$2) -> 
N40: 1 | T40: =IF(OR($A$5=3,$A$5=1),NA(),IF('plutonic template'!Z$85=FALSE,NA(),IF((ABS(D40)+E40+F40)>0,BH$3*P40+R40,NA()))) ->  | U40: =IF(OR($A$5=3,$A$5=1),NA(),IF('plutonic template'!Z$85=FALSE,NA(),IF((ABS(D40)+E40+F40)>0,P40*BH$2+BH$2,NA()))) ->  | V40: =IF(OR($A$5=3,$A$5=1),NA(),IF('volcanic template'!Z$11=FALSE,NA(),IF((ABS(D40)+E40+F40)>0,BH$3*P40+R40,NA()))) ->  | W40: =IF(OR(A$5=3,A$5=1),NA(),IF('volcanic template'!Z$11=FALSE,NA(),IF((ABS(D40)+E40+F40)>0,P40*BH$2+BH$2,NA()))) ->  | X40: =IF(OR($A$5=3,$A$5=1,$D40<0),NA(),IF('plutonic template'!Z$18=FALSE,NA(),BH$3*P40+R40)) ->  | Y40: =IF(OR($A$5=3,$A$5=1,$D40<0),NA(),IF('plutonic template'!Z$18=FALSE,NA(),P40*BH$2)) ->  | Z40: =IF(OR($A$5=3,$A$5=2,D40<0),NA(),IF('plutonic template'!Z$328=FALSE,NA(),BH$3*J40+L40)) ->  | AA40: =IF(OR($A$5=3,$A$5=2,D40<0),NA(),IF('plutonic template'!Z$328=FALSE,NA(),J40*BH$2)) ->  | AF40: =IF(OR($A$5=3,$A$5=2,D40<0),NA(),IF('plutonic template'!Z$412=FALSE,NA(),BH$3*AC40+AE40)) ->  | AG40: =IF(OR($A$5=3,$A$5=2,D40<0),NA(),IF('plutonic template'!Z$412=FALSE,NA(),AC40*BH$2)) ->  | AL40: =IF('plutonic template'!Z$195=FALSE,NA(),BH$3*AI40+AK40) ->  | AM40: =IF('plutonic template'!Z$195=FALSE,NA(),AI40*BH$2) ->  | AR40: =IF('plutonic template'!$Z$233=FALSE,NA(),BH$3*AO40+AQ40) ->  | AS40: =IF('plutonic template'!$Z$233=FALSE,NA(),AO40*BH$2) ->  | AX40: =IF('plutonic template'!$Z$274=FALSE,NA(),BH$3*AU40+AW40) ->  | AY40: =IF('plutonic template'!$Z$274=FALSE,NA(),AU40*BH$2) ->  | BD40: =IF('plutonic template'!$Z$387=FALSE,NA(),BH$3*BA40+BC40) ->  | BE40: =IF('plutonic template'!$Z$387=FALSE,NA(),BA40*BH$2) -> 
N41: 1 | T41: =IF(OR($A$5=3,$A$5=1),NA(),IF('plutonic template'!Z$85=FALSE,NA(),IF((ABS(D41)+E41+F41)>0,BH$3*P41+R41,NA()))) ->  | U41: =IF(OR($A$5=3,$A$5=1),NA(),IF('plutonic template'!Z$85=FALSE,NA(),IF((ABS(D41)+E41+F41)>0,P41*BH$2+BH$2,NA()))) ->  | V41: =IF(OR($A$5=3,$A$5=1),NA(),IF('volcanic template'!Z$11=FALSE,NA(),IF((ABS(D41)+E41+F41)>0,BH$3*P41+R41,NA()))) ->  | W41: =IF(OR(A$5=3,A$5=1),NA(),IF('volcanic template'!Z$11=FALSE,NA(),IF((ABS(D41)+E41+F41)>0,P41*BH$2+BH$2,NA()))) ->  | X41: =IF(OR($A$5=3,$A$5=1,$D41<0),NA(),IF('plutonic template'!Z$18=FALSE,NA(),BH$3*P41+R41)) ->  | Y41: =IF(OR($A$5=3,$A$5=1,$D41<0),NA(),IF('plutonic template'!Z$18=FALSE,NA(),P41*BH$2)) ->  | Z41: =IF(OR($A$5=3,$A$5=2,D41<0),NA(),IF('plutonic template'!Z$328=FALSE,NA(),BH$3*J41+L41)) ->  | AA41: =IF(OR($A$5=3,$A$5=2,D41<0),NA(),IF('plutonic template'!Z$328=FALSE,NA(),J41*BH$2)) ->  | AF41: =IF(OR($A$5=3,$A$5=2,D41<0),NA(),IF('plutonic template'!Z$412=FALSE,NA(),BH$3*AC41+AE41)) ->  | AG41: =IF(OR($A$5=3,$A$5=2,D41<0),NA(),IF('plutonic template'!Z$412=FALSE,NA(),AC41*BH$2)) ->  | AL41: =IF('plutonic template'!Z$195=FALSE,NA(),BH$3*AI41+AK41) ->  | AM41: =IF('plutonic template'!Z$195=FALSE,NA(),AI41*BH$2) ->  | AR41: =IF('plutonic template'!$Z$233=FALSE,NA(),BH$3*AO41+AQ41) ->  | AS41: =IF('plutonic template'!$Z$233=FALSE,NA(),AO41*BH$2) ->  | AX41: =IF('plutonic template'!$Z$274=FALSE,NA(),BH$3*AU41+AW41) ->  | AY41: =IF('plutonic template'!$Z$274=FALSE,NA(),AU41*BH$2) ->  | BD41: =IF('plutonic template'!$Z$387=FALSE,NA(),BH$3*BA41+BC41) ->  | BE41: =IF('plutonic template'!$Z$387=FALSE,NA(),BA41*BH$2) -> 
N42: 1 | T42: =IF(OR($A$5=3,$A$5=1),NA(),IF('plutonic template'!Z$85=FALSE,NA(),IF((ABS(D42)+E42+F42)>0,BH$3*P42+R42,NA()))) ->  | U42: =IF(OR($A$5=3,$A$5=1),NA(),IF('plutonic template'!Z$85=FALSE,NA(),IF((ABS(D42)+E42+F42)>0,P42*BH$2+BH$2,NA()))) ->  | V42: =IF(OR($A$5=3,$A$5=1),NA(),IF('volcanic template'!Z$11=FALSE,NA(),IF((ABS(D42)+E42+F42)>0,BH$3*P42+R42,NA()))) ->  | W42: =IF(OR(A$5=3,A$5=1),NA(),IF('volcanic template'!Z$11=FALSE,NA(),IF((ABS(D42)+E42+F42)>0,P42*BH$2+BH$2,NA()))) ->  | X42: =IF(OR($A$5=3,$A$5=1,$D42<0),NA(),IF('plutonic template'!Z$18=FALSE,NA(),BH$3*P42+R42)) ->  | Y42: =IF(OR($A$5=3,$A$5=1,$D42<0),NA(),IF('plutonic template'!Z$18=FALSE,NA(),P42*BH$2)) ->  | Z42: =IF(OR($A$5=3,$A$5=2,D42<0),NA(),IF('plutonic template'!Z$328=FALSE,NA(),BH$3*J42+L42)) ->  | AA42: =IF(OR($A$5=3,$A$5=2,D42<0),NA(),IF('plutonic template'!Z$328=FALSE,NA(),J42*BH$2)) ->  | AF42: =IF(OR($A$5=3,$A$5=2,D42<0),NA(),IF('plutonic template'!Z$412=FALSE,NA(),BH$3*AC42+AE42)) ->  | AG42: =IF(OR($A$5=3,$A$5=2,D42<0),NA(),IF('plutonic template'!Z$412=FALSE,NA(),AC42*BH$2)) ->  | AL42: =IF('plutonic template'!Z$195=FALSE,NA(),BH$3*AI42+AK42) ->  | AM42: =IF('plutonic template'!Z$195=FALSE,NA(),AI42*BH$2) ->  | AR42: =IF('plutonic template'!$Z$233=FALSE,NA(),BH$3*AO42+AQ42) ->  | AS42: =IF('plutonic template'!$Z$233=FALSE,NA(),AO42*BH$2) ->  | AX42: =IF('plutonic template'!$Z$274=FALSE,NA(),BH$3*AU42+AW42) ->  | AY42: =IF('plutonic template'!$Z$274=FALSE,NA(),AU42*BH$2) ->  | BD42: =IF('plutonic template'!$Z$387=FALSE,NA(),BH$3*BA42+BC42) ->  | BE42: =IF('plutonic template'!$Z$387=FALSE,NA(),BA42*BH$2) -> 
N43: 1 | T43: =IF(OR($A$5=3,$A$5=1),NA(),IF('plutonic template'!Z$85=FALSE,NA(),IF((ABS(D43)+E43+F43)>0,BH$3*P43+R43,NA()))) ->  | U43: =IF(OR($A$5=3,$A$5=1),NA(),IF('plutonic template'!Z$85=FALSE,NA(),IF((ABS(D43)+E43+F43)>0,P43*BH$2+BH$2,NA()))) ->  | V43: =IF(OR($A$5=3,$A$5=1),NA(),IF('volcanic template'!Z$11=FALSE,NA(),IF((ABS(D43)+E43+F43)>0,BH$3*P43+R43,NA()))) ->  | W43: =IF(OR(A$5=3,A$5=1),NA(),IF('volcanic template'!Z$11=FALSE,NA(),IF((ABS(D43)+E43+F43)>0,P43*BH$2+BH$2,NA()))) ->  | X43: =IF(OR($A$5=3,$A$5=1,$D43<0),NA(),IF('plutonic template'!Z$18=FALSE,NA(),BH$3*P43+R43)) ->  | Y43: =IF(OR($A$5=3,$A$5=1,$D43<0),NA(),IF('plutonic template'!Z$18=FALSE,NA(),P43*BH$2)) ->  | Z43: =IF(OR($A$5=3,$A$5=2,D43<0),NA(),IF('plutonic template'!Z$328=FALSE,NA(),BH$3*J43+L43)) ->  | AA43: =IF(OR($A$5=3,$A$5=2,D43<0),NA(),IF('plutonic template'!Z$328=FALSE,NA(),J43*BH$2)) ->  | AF43: =IF(OR($A$5=3,$A$5=2,D43<0),NA(),IF('plutonic template'!Z$412=FALSE,NA(),BH$3*AC43+AE43)) ->  | AG43: =IF(OR($A$5=3,$A$5=2,D43<0),NA(),IF('plutonic template'!Z$412=FALSE,NA(),AC43*BH$2)) ->  | AL43: =IF('plutonic template'!Z$195=FALSE,NA(),BH$3*AI43+AK43) ->  | AM43: =IF('plutonic template'!Z$195=FALSE,NA(),AI43*BH$2) ->  | AR43: =IF('plutonic template'!$Z$233=FALSE,NA(),BH$3*AO43+AQ43) ->  | AS43: =IF('plutonic template'!$Z$233=FALSE,NA(),AO43*BH$2) ->  | AX43: =IF('plutonic template'!$Z$274=FALSE,NA(),BH$3*AU43+AW43) ->  | AY43: =IF('plutonic template'!$Z$274=FALSE,NA(),AU43*BH$2) ->  | BD43: =IF('plutonic template'!$Z$387=FALSE,NA(),BH$3*BA43+BC43) ->  | BE43: =IF('plutonic template'!$Z$387=FALSE,NA(),BA43*BH$2) -> 
N44: 1 | T44: =IF(OR($A$5=3,$A$5=1),NA(),IF('plutonic template'!Z$85=FALSE,NA(),IF((ABS(D44)+E44+F44)>0,BH$3*P44+R44,NA()))) ->  | U44: =IF(OR($A$5=3,$A$5=1),NA(),IF('plutonic template'!Z$85=FALSE,NA(),IF((ABS(D44)+E44+F44)>0,P44*BH$2+BH$2,NA()))) ->  | V44: =IF(OR($A$5=3,$A$5=1),NA(),IF('volcanic template'!Z$11=FALSE,NA(),IF((ABS(D44)+E44+F44)>0,BH$3*P44+R44,NA()))) ->  | W44: =IF(OR(A$5=3,A$5=1),NA(),IF('volcanic template'!Z$11=FALSE,NA(),IF((ABS(D44)+E44+F44)>0,P44*BH$2+BH$2,NA()))) ->  | X44: =IF(OR($A$5=3,$A$5=1,$D44<0),NA(),IF('plutonic template'!Z$18=FALSE,NA(),BH$3*P44+R44)) ->  | Y44: =IF(OR($A$5=3,$A$5=1,$D44<0),NA(),IF('plutonic template'!Z$18=FALSE,NA(),P44*BH$2)) ->  | Z44: =IF(OR($A$5=3,$A$5=2,D44<0),NA(),IF('plutonic template'!Z$328=FALSE,NA(),BH$3*J44+L44)) ->  | AA44: =IF(OR($A$5=3,$A$5=2,D44<0),NA(),IF('plutonic template'!Z$328=FALSE,NA(),J44*BH$2)) ->  | AF44: =IF(OR($A$5=3,$A$5=2,D44<0),NA(),IF('plutonic template'!Z$412=FALSE,NA(),BH$3*AC44+AE44)) ->  | AG44: =IF(OR($A$5=3,$A$5=2,D44<0),NA(),IF('plutonic template'!Z$412=FALSE,NA(),AC44*BH$2)) ->  | AL44: =IF('plutonic template'!Z$195=FALSE,NA(),BH$3*AI44+AK44) ->  | AM44: =IF('plutonic template'!Z$195=FALSE,NA(),AI44*BH$2) ->  | AR44: =IF('plutonic template'!$Z$233=FALSE,NA(),BH$3*AO44+AQ44) ->  | AS44: =IF('plutonic template'!$Z$233=FALSE,NA(),AO44*BH$2) ->  | AX44: =IF('plutonic template'!$Z$274=FALSE,NA(),BH$3*AU44+AW44) ->  | AY44: =IF('plutonic template'!$Z$274=FALSE,NA(),AU44*BH$2) ->  | BD44: =IF('plutonic template'!$Z$387=FALSE,NA(),BH$3*BA44+BC44) ->  | BE44: =IF('plutonic template'!$Z$387=FALSE,NA(),BA44*BH$2) -> 
N45: 1 | T45: =IF(OR($A$5=3,$A$5=1),NA(),IF('plutonic template'!Z$85=FALSE,NA(),IF((ABS(D45)+E45+F45)>0,BH$3*P45+R45,NA()))) ->  | U45: =IF(OR($A$5=3,$A$5=1),NA(),IF('plutonic template'!Z$85=FALSE,NA(),IF((ABS(D45)+E45+F45)>0,P45*BH$2+BH$2,NA()))) ->  | V45: =IF(OR($A$5=3,$A$5=1),NA(),IF('volcanic template'!Z$11=FALSE,NA(),IF((ABS(D45)+E45+F45)>0,BH$3*P45+R45,NA()))) ->  | W45: =IF(OR(A$5=3,A$5=1),NA(),IF('volcanic template'!Z$11=FALSE,NA(),IF((ABS(D45)+E45+F45)>0,P45*BH$2+BH$2,NA()))) ->  | X45: =IF(OR($A$5=3,$A$5=1,$D45<0),NA(),IF('plutonic template'!Z$18=FALSE,NA(),BH$3*P45+R45)) ->  | Y45: =IF(OR($A$5=3,$A$5=1,$D45<0),NA(),IF('plutonic template'!Z$18=FALSE,NA(),P45*BH$2)) ->  | Z45: =IF(OR($A$5=3,$A$5=2,D45<0),NA(),IF('plutonic template'!Z$328=FALSE,NA(),BH$3*J45+L45)) ->  | AA45: =IF(OR($A$5=3,$A$5=2,D45<0),NA(),IF('plutonic template'!Z$328=FALSE,NA(),J45*BH$2)) ->  | AF45: =IF(OR($A$5=3,$A$5=2,D45<0),NA(),IF('plutonic template'!Z$412=FALSE,NA(),BH$3*AC45+AE45)) ->  | AG45: =IF(OR($A$5=3,$A$5=2,D45<0),NA(),IF('plutonic template'!Z$412=FALSE,NA(),AC45*BH$2)) ->  | AL45: =IF('plutonic template'!Z$195=FALSE,NA(),BH$3*AI45+AK45) ->  | AM45: =IF('plutonic template'!Z$195=FALSE,NA(),AI45*BH$2) ->  | AR45: =IF('plutonic template'!$Z$233=FALSE,NA(),BH$3*AO45+AQ45) ->  | AS45: =IF('plutonic template'!$Z$233=FALSE,NA(),AO45*BH$2) ->  | AX45: =IF('plutonic template'!$Z$274=FALSE,NA(),BH$3*AU45+AW45) ->  | AY45: =IF('plutonic template'!$Z$274=FALSE,NA(),AU45*BH$2) ->  | BD45: =IF('plutonic template'!$Z$387=FALSE,NA(),BH$3*BA45+BC45) ->  | BE45: =IF('plutonic template'!$Z$387=FALSE,NA(),BA45*BH$2) -> 
N46: 1 | T46: =IF(OR($A$5=3,$A$5=1),NA(),IF('plutonic template'!Z$85=FALSE,NA(),IF((ABS(D46)+E46+F46)>0,BH$3*P46+R46,NA()))) ->  | U46: =IF(OR($A$5=3,$A$5=1),NA(),IF('plutonic template'!Z$85=FALSE,NA(),IF((ABS(D46)+E46+F46)>0,P46*BH$2+BH$2,NA()))) ->  | V46: =IF(OR($A$5=3,$A$5=1),NA(),IF('volcanic template'!Z$11=FALSE,NA(),IF((ABS(D46)+E46+F46)>0,BH$3*P46+R46,NA()))) ->  | W46: =IF(OR(A$5=3,A$5=1),NA(),IF('volcanic template'!Z$11=FALSE,NA(),IF((ABS(D46)+E46+F46)>0,P46*BH$2+BH$2,NA()))) ->  | X46: =IF(OR($A$5=3,$A$5=1,$D46<0),NA(),IF('plutonic template'!Z$18=FALSE,NA(),BH$3*P46+R46)) ->  | Y46: =IF(OR($A$5=3,$A$5=1,$D46<0),NA(),IF('plutonic template'!Z$18=FALSE,NA(),P46*BH$2)) ->  | Z46: =IF(OR($A$5=3,$A$5=2,D46<0),NA(),IF('plutonic template'!Z$328=FALSE,NA(),BH$3*J46+L46)) ->  | AA46: =IF(OR($A$5=3,$A$5=2,D46<0),NA(),IF('plutonic template'!Z$328=FALSE,NA(),J46*BH$2)) ->  | AF46: =IF(OR($A$5=3,$A$5=2,D46<0),NA(),IF('plutonic template'!Z$412=FALSE,NA(),BH$3*AC46+AE46)) ->  | AG46: =IF(OR($A$5=3,$A$5=2,D46<0),NA(),IF('plutonic template'!Z$412=FALSE,NA(),AC46*BH$2)) ->  | AL46: =IF('plutonic template'!Z$195=FALSE,NA(),BH$3*AI46+AK46) ->  | AM46: =IF('plutonic template'!Z$195=FALSE,NA(),AI46*BH$2) ->  | AR46: =IF('plutonic template'!$Z$233=FALSE,NA(),BH$3*AO46+AQ46) ->  | AS46: =IF('plutonic template'!$Z$233=FALSE,NA(),AO46*BH$2) ->  | AX46: =IF('plutonic template'!$Z$274=FALSE,NA(),BH$3*AU46+AW46) ->  | AY46: =IF('plutonic template'!$Z$274=FALSE,NA(),AU46*BH$2) ->  | BD46: =IF('plutonic template'!$Z$387=FALSE,NA(),BH$3*BA46+BC46) ->  | BE46: =IF('plutonic template'!$Z$387=FALSE,NA(),BA46*BH$2) -> 
N47: 1 | T47: =IF(OR($A$5=3,$A$5=1),NA(),IF('plutonic template'!Z$85=FALSE,NA(),IF((ABS(D47)+E47+F47)>0,BH$3*P47+R47,NA()))) ->  | U47: =IF(OR($A$5=3,$A$5=1),NA(),IF('plutonic template'!Z$85=FALSE,NA(),IF((ABS(D47)+E47+F47)>0,P47*BH$2+BH$2,NA()))) ->  | V47: =IF(OR($A$5=3,$A$5=1),NA(),IF('volcanic template'!Z$11=FALSE,NA(),IF((ABS(D47)+E47+F47)>0,BH$3*P47+R47,NA()))) ->  | W47: =IF(OR(A$5=3,A$5=1),NA(),IF('volcanic template'!Z$11=FALSE,NA(),IF((ABS(D47)+E47+F47)>0,P47*BH$2+BH$2,NA()))) ->  | X47: =IF(OR($A$5=3,$A$5=1,$D47<0),NA(),IF('plutonic template'!Z$18=FALSE,NA(),BH$3*P47+R47)) ->  | Y47: =IF(OR($A$5=3,$A$5=1,$D47<0),NA(),IF('plutonic template'!Z$18=FALSE,NA(),P47*BH$2)) ->  | Z47: =IF(OR($A$5=3,$A$5=2,D47<0),NA(),IF('plutonic template'!Z$328=FALSE,NA(),BH$3*J47+L47)) ->  | AA47: =IF(OR($A$5=3,$A$5=2,D47<0),NA(),IF('plutonic template'!Z$328=FALSE,NA(),J47*BH$2)) ->  | AF47: =IF(OR($A$5=3,$A$5=2,D47<0),NA(),IF('plutonic template'!Z$412=FALSE,NA(),BH$3*AC47+AE47)) ->  | AG47: =IF(OR($A$5=3,$A$5=2,D47<0),NA(),IF('plutonic template'!Z$412=FALSE,NA(),AC47*BH$2)) ->  | AL47: =IF('plutonic template'!Z$195=FALSE,NA(),BH$3*AI47+AK47) ->  | AM47: =IF('plutonic template'!Z$195=FALSE,NA(),AI47*BH$2) ->  | AR47: =IF('plutonic template'!$Z$233=FALSE,NA(),BH$3*AO47+AQ47) ->  | AS47: =IF('plutonic template'!$Z$233=FALSE,NA(),AO47*BH$2) ->  | AX47: =IF('plutonic template'!$Z$274=FALSE,NA(),BH$3*AU47+AW47) ->  | AY47: =IF('plutonic template'!$Z$274=FALSE,NA(),AU47*BH$2) ->  | BD47: =IF('plutonic template'!$Z$387=FALSE,NA(),BH$3*BA47+BC47) ->  | BE47: =IF('plutonic template'!$Z$387=FALSE,NA(),BA47*BH$2) -> 
N48: 1 | T48: =IF(OR($A$5=3,$A$5=1),NA(),IF('plutonic template'!Z$85=FALSE,NA(),IF((ABS(D48)+E48+F48)>0,BH$3*P48+R48,NA()))) ->  | U48: =IF(OR($A$5=3,$A$5=1),NA(),IF('plutonic template'!Z$85=FALSE,NA(),IF((ABS(D48)+E48+F48)>0,P48*BH$2+BH$2,NA()))) ->  | V48: =IF(OR($A$5=3,$A$5=1),NA(),IF('volcanic template'!Z$11=FALSE,NA(),IF((ABS(D48)+E48+F48)>0,BH$3*P48+R48,NA()))) ->  | W48: =IF(OR(A$5=3,A$5=1),NA(),IF('volcanic template'!Z$11=FALSE,NA(),IF((ABS(D48)+E48+F48)>0,P48*BH$2+BH$2,NA()))) ->  | X48: =IF(OR($A$5=3,$A$5=1,$D48<0),NA(),IF('plutonic template'!Z$18=FALSE,NA(),BH$3*P48+R48)) ->  | Y48: =IF(OR($A$5=3,$A$5=1,$D48<0),NA(),IF('plutonic template'!Z$18=FALSE,NA(),P48*BH$2)) ->  | Z48: =IF(OR($A$5=3,$A$5=2,D48<0),NA(),IF('plutonic template'!Z$328=FALSE,NA(),BH$3*J48+L48)) ->  | AA48: =IF(OR($A$5=3,$A$5=2,D48<0),NA(),IF('plutonic template'!Z$328=FALSE,NA(),J48*BH$2)) ->  | AF48: =IF(OR($A$5=3,$A$5=2,D48<0),NA(),IF('plutonic template'!Z$412=FALSE,NA(),BH$3*AC48+AE48)) ->  | AG48: =IF(OR($A$5=3,$A$5=2,D48<0),NA(),IF('plutonic template'!Z$412=FALSE,NA(),AC48*BH$2)) ->  | AL48: =IF('plutonic template'!Z$195=FALSE,NA(),BH$3*AI48+AK48) ->  | AM48: =IF('plutonic template'!Z$195=FALSE,NA(),AI48*BH$2) ->  | AR48: =IF('plutonic template'!$Z$233=FALSE,NA(),BH$3*AO48+AQ48) ->  | AS48: =IF('plutonic template'!$Z$233=FALSE,NA(),AO48*BH$2) ->  | AX48: =IF('plutonic template'!$Z$274=FALSE,NA(),BH$3*AU48+AW48) ->  | AY48: =IF('plutonic template'!$Z$274=FALSE,NA(),AU48*BH$2) ->  | BD48: =IF('plutonic template'!$Z$387=FALSE,NA(),BH$3*BA48+BC48) ->  | BE48: =IF('plutonic template'!$Z$387=FALSE,NA(),BA48*BH$2) -> 
N49: 1 | T49: =IF(OR($A$5=3,$A$5=1),NA(),IF('plutonic template'!Z$85=FALSE,NA(),IF((ABS(D49)+E49+F49)>0,BH$3*P49+R49,NA()))) ->  | U49: =IF(OR($A$5=3,$A$5=1),NA(),IF('plutonic template'!Z$85=FALSE,NA(),IF((ABS(D49)+E49+F49)>0,P49*BH$2+BH$2,NA()))) ->  | V49: =IF(OR($A$5=3,$A$5=1),NA(),IF('volcanic template'!Z$11=FALSE,NA(),IF((ABS(D49)+E49+F49)>0,BH$3*P49+R49,NA()))) ->  | W49: =IF(OR(A$5=3,A$5=1),NA(),IF('volcanic template'!Z$11=FALSE,NA(),IF((ABS(D49)+E49+F49)>0,P49*BH$2+BH$2,NA()))) ->  | X49: =IF(OR($A$5=3,$A$5=1,$D49<0),NA(),IF('plutonic template'!Z$18=FALSE,NA(),BH$3*P49+R49)) ->  | Y49: =IF(OR($A$5=3,$A$5=1,$D49<0),NA(),IF('plutonic template'!Z$18=FALSE,NA(),P49*BH$2)) ->  | Z49: =IF(OR($A$5=3,$A$5=2,D49<0),NA(),IF('plutonic template'!Z$328=FALSE,NA(),BH$3*J49+L49)) ->  | AA49: =IF(OR($A$5=3,$A$5=2,D49<0),NA(),IF('plutonic template'!Z$328=FALSE,NA(),J49*BH$2)) ->  | AF49: =IF(OR($A$5=3,$A$5=2,D49<0),NA(),IF('plutonic template'!Z$412=FALSE,NA(),BH$3*AC49+AE49)) ->  | AG49: =IF(OR($A$5=3,$A$5=2,D49<0),NA(),IF('plutonic template'!Z$412=FALSE,NA(),AC49*BH$2)) ->  | AL49: =IF('plutonic template'!Z$195=FALSE,NA(),BH$3*AI49+AK49) ->  | AM49: =IF('plutonic template'!Z$195=FALSE,NA(),AI49*BH$2) ->  | AR49: =IF('plutonic template'!$Z$233=FALSE,NA(),BH$3*AO49+AQ49) ->  | AS49: =IF('plutonic template'!$Z$233=FALSE,NA(),AO49*BH$2) ->  | AX49: =IF('plutonic template'!$Z$274=FALSE,NA(),BH$3*AU49+AW49) ->  | AY49: =IF('plutonic template'!$Z$274=FALSE,NA(),AU49*BH$2) ->  | BD49: =IF('plutonic template'!$Z$387=FALSE,NA(),BH$3*BA49+BC49) ->  | BE49: =IF('plutonic template'!$Z$387=FALSE,NA(),BA49*BH$2) -> 
N50: 1 | T50: =IF(OR($A$5=3,$A$5=1),NA(),IF('plutonic template'!Z$85=FALSE,NA(),IF((ABS(D50)+E50+F50)>0,BH$3*P50+R50,NA()))) ->  | U50: =IF(OR($A$5=3,$A$5=1),NA(),IF('plutonic template'!Z$85=FALSE,NA(),IF((ABS(D50)+E50+F50)>0,P50*BH$2+BH$2,NA()))) ->  | V50: =IF(OR($A$5=3,$A$5=1),NA(),IF('volcanic template'!Z$11=FALSE,NA(),IF((ABS(D50)+E50+F50)>0,BH$3*P50+R50,NA()))) ->  | W50: =IF(OR(A$5=3,A$5=1),NA(),IF('volcanic template'!Z$11=FALSE,NA(),IF((ABS(D50)+E50+F50)>0,P50*BH$2+BH$2,NA()))) ->  | X50: =IF(OR($A$5=3,$A$5=1,$D50<0),NA(),IF('plutonic template'!Z$18=FALSE,NA(),BH$3*P50+R50)) ->  | Y50: =IF(OR($A$5=3,$A$5=1,$D50<0),NA(),IF('plutonic template'!Z$18=FALSE,NA(),P50*BH$2)) ->  | Z50: =IF(OR($A$5=3,$A$5=2,D50<0),NA(),IF('plutonic template'!Z$328=FALSE,NA(),BH$3*J50+L50)) ->  | AA50: =IF(OR($A$5=3,$A$5=2,D50<0),NA(),IF('plutonic template'!Z$328=FALSE,NA(),J50*BH$2)) ->  | AF50: =IF(OR($A$5=3,$A$5=2,D50<0),NA(),IF('plutonic template'!Z$412=FALSE,NA(),BH$3*AC50+AE50)) ->  | AG50: =IF(OR($A$5=3,$A$5=2,D50<0),NA(),IF('plutonic template'!Z$412=FALSE,NA(),AC50*BH$2)) ->  | AL50: =IF('plutonic template'!Z$195=FALSE,NA(),BH$3*AI50+AK50) ->  | AM50: =IF('plutonic template'!Z$195=FALSE,NA(),AI50*BH$2) ->  | AR50: =IF('plutonic template'!$Z$233=FALSE,NA(),BH$3*AO50+AQ50) ->  | AS50: =IF('plutonic template'!$Z$233=FALSE,NA(),AO50*BH$2) ->  | AX50: =IF('plutonic template'!$Z$274=FALSE,NA(),BH$3*AU50+AW50) ->  | AY50: =IF('plutonic template'!$Z$274=FALSE,NA(),AU50*BH$2) ->  | BD50: =IF('plutonic template'!$Z$387=FALSE,NA(),BH$3*BA50+BC50) ->  | BE50: =IF('plutonic template'!$Z$387=FALSE,NA(),BA50*BH$2) -> 
N51: 1 | T51: =IF(OR($A$5=3,$A$5=1),NA(),IF('plutonic template'!Z$85=FALSE,NA(),IF((ABS(D51)+E51+F51)>0,BH$3*P51+R51,NA()))) ->  | U51: =IF(OR($A$5=3,$A$5=1),NA(),IF('plutonic template'!Z$85=FALSE,NA(),IF((ABS(D51)+E51+F51)>0,P51*BH$2+BH$2,NA()))) ->  | V51: =IF(OR($A$5=3,$A$5=1),NA(),IF('volcanic template'!Z$11=FALSE,NA(),IF((ABS(D51)+E51+F51)>0,BH$3*P51+R51,NA()))) ->  | W51: =IF(OR(A$5=3,A$5=1),NA(),IF('volcanic template'!Z$11=FALSE,NA(),IF((ABS(D51)+E51+F51)>0,P51*BH$2+BH$2,NA()))) ->  | X51: =IF(OR($A$5=3,$A$5=1,$D51<0),NA(),IF('plutonic template'!Z$18=FALSE,NA(),BH$3*P51+R51)) ->  | Y51: =IF(OR($A$5=3,$A$5=1,$D51<0),NA(),IF('plutonic template'!Z$18=FALSE,NA(),P51*BH$2)) ->  | Z51: =IF(OR($A$5=3,$A$5=2,D51<0),NA(),IF('plutonic template'!Z$328=FALSE,NA(),BH$3*J51+L51)) ->  | AA51: =IF(OR($A$5=3,$A$5=2,D51<0),NA(),IF('plutonic template'!Z$328=FALSE,NA(),J51*BH$2)) ->  | AF51: =IF(OR($A$5=3,$A$5=2,D51<0),NA(),IF('plutonic template'!Z$412=FALSE,NA(),BH$3*AC51+AE51)) ->  | AG51: =IF(OR($A$5=3,$A$5=2,D51<0),NA(),IF('plutonic template'!Z$412=FALSE,NA(),AC51*BH$2)) ->  | AL51: =IF('plutonic template'!Z$195=FALSE,NA(),BH$3*AI51+AK51) ->  | AM51: =IF('plutonic template'!Z$195=FALSE,NA(),AI51*BH$2) ->  | AR51: =IF('plutonic template'!$Z$233=FALSE,NA(),BH$3*AO51+AQ51) ->  | AS51: =IF('plutonic template'!$Z$233=FALSE,NA(),AO51*BH$2) ->  | AX51: =IF('plutonic template'!$Z$274=FALSE,NA(),BH$3*AU51+AW51) ->  | AY51: =IF('plutonic template'!$Z$274=FALSE,NA(),AU51*BH$2) ->  | BD51: =IF('plutonic template'!$Z$387=FALSE,NA(),BH$3*BA51+BC51) ->  | BE51: =IF('plutonic template'!$Z$387=FALSE,NA(),BA51*BH$2) -> 
B52: Gabbro etc. test | C52: Gabbro | E52: 3 | F52: 35 | G52: 15 | H52: 40 | J52: =IF(OR($A$5=2,$A$5=3,D52<0,E52<0,F52<0,G52<0),NA(),IF(SUM(D52:G52)>0,D52/SUM(D52:G52),NA())) -> 0 | K52: =IF(OR($A$5=2,$A$5=3,D52<0,E52<0,F52<0,G52<0),NA(),IF(SUM(D52:G52)>0,E52/SUM(D52:G52),NA())) -> 0.05660377358 | L52: =IF(OR($A$5=2,$A$5=3,D52<0,E52<0,F52<0,G52<0),NA(),IF(SUM(D52:G52)>0,(F52+G52)/SUM(D52:G52),NA())) -> 0.9433962264 | N52: 1 | T52: =IF(OR($A$5=3,$A$5=1),NA(),IF('plutonic template'!Z$86=FALSE,NA(),IF((ABS(D52)+E52+F52)>0,BH$3*P52+R52,NA()))) ->  | U52: =IF(OR($A$5=3,$A$5=1),NA(),IF('plutonic template'!Z$86=FALSE,NA(),IF((ABS(D52)+E52+F52)>0,P52*BH$2+BH$2,NA()))) ->  | V52: =IF(OR($A$5=3,$A$5=1),NA(),IF('volcanic template'!Z$12=FALSE,NA(),IF((ABS(D52)+E52+F52)>0,BH$3*P52+R52,NA()))) ->  | W52: =IF(OR(A$5=3,A$5=1),NA(),IF('volcanic template'!Z$12=FALSE,NA(),IF((ABS(D52)+E52+F52)>0,P52*BH$2+BH$2,NA()))) ->  | X52: =IF(OR($A$5=3,$A$5=1,$D52<0),NA(),IF('plutonic template'!Z$19=FALSE,NA(),BH$3*P52+R52)) ->  | Y52: =IF(OR($A$5=3,$A$5=1,$D52<0),NA(),IF('plutonic template'!Z$19=FALSE,NA(),P52*BH$2)) ->  | Z52: =IF(OR($A$5=3,$A$5=2,D52<0),NA(),IF('plutonic template'!Z$329=FALSE,NA(),BH$3*J52+L52)) ->  | AA52: =IF(OR($A$5=3,$A$5=2,D52<0),NA(),IF('plutonic template'!Z$329=FALSE,NA(),J52*BH$2)) ->  | AC52: 0 | AD52: 0.7169811321 | AE52: 0.2830188679 | AF52: =IF(OR($A$5=3,$A$5=2,D52<0),NA(),IF('plutonic template'!Z$413=FALSE,NA(),BH$3*AC52+AE52)) ->  | AG52: =IF(OR($A$5=3,$A$5=2,D52<0),NA(),IF('plutonic template'!Z$413=FALSE,NA(),AC52*BH$2)) ->  | AL52: =IF('plutonic template'!Z$196=FALSE,NA(),BH$3*AI52+AK52) ->  | AM52: =IF('plutonic template'!Z$196=FALSE,NA(),AI52*BH$2) ->  | AR52: =IF('plutonic template'!$Z$234=FALSE,NA(),BH$3*AO52+AQ52) ->  | AS52: =IF('plutonic template'!$Z$234=FALSE,NA(),AO52*BH$2) ->  | AX52: =IF('plutonic template'!$Z$275=FALSE,NA(),BH$3*AU52+AW52) ->  | AY52: =IF('plutonic template'!$Z$275=FALSE,NA(),AU52*BH$2) ->  | BD52: =IF('plutonic template'!$Z$388=FALSE,NA(),BH$3*BA52+BC52) ->  | BE52: =IF('plutonic template'!$Z$388=FALSE,NA(),BA52*BH$2) -> 
B53: (Ol–Opx–Cpx-Amp–Pl) | C53: Norite | D53: 5 | E53: 30 | F53: 5 | H53: 50 | J53: =IF(OR($A$5=2,$A$5=3,D53<0,E53<0,F53<0,G53<0),NA(),IF(SUM(D53:G53)>0,D53/SUM(D53:G53),NA())) -> 0.125 | K53: =IF(OR($A$5=2,$A$5=3,D53<0,E53<0,F53<0,G53<0),NA(),IF(SUM(D53:G53)>0,E53/SUM(D53:G53),NA())) -> 0.75 | L53: =IF(OR($A$5=2,$A$5=3,D53<0,E53<0,F53<0,G53<0),NA(),IF(SUM(D53:G53)>0,(F53+G53)/SUM(D53:G53),NA())) -> 0.125 | N53: 1 | P53: =IF(OR($A$5=1,$A$5=3,E53<0,F53<0,G53<0,H53<0),NA(),IF(ABS(D53)+E53+F53>0,D53/($N53*$D53+$E53+$F53),NA())) ->  | Q53: =IF(OR($A$5=1,$A$5=3,E53<0,F53<0,G53<0,H53<0),NA(),IF(AND(ABS(D53)+E53+F53>0,D53<0),(E53-D53)/($N53*$D53+$E53+$F53),IF(ABS(D53)+E53+F53=0,NA(),E53/($D53+$E53+$F53)))) ->  | R53: =IF(OR($A$5=1,$A$5=3,E53<0,F53<0,G53<0,H53<0),NA(),IF(AND(ABS(D53)+E53+F53>0,D53<0),(F53-D53)/($N53*$D53+$E53+$F53),IF(ABS(D53)+E53+F53=0,NA(),F53/($D53+$E53+$F53)))) ->  | T53: =IF(OR($A$5=3,$A$5=1),NA(),IF('plutonic template'!Z$86=FALSE,NA(),IF((ABS(D53)+E53+F53)>0,BH$3*P53+R53,NA()))) ->  | U53: =IF(OR($A$5=3,$A$5=1),NA(),IF('plutonic template'!Z$86=FALSE,NA(),IF((ABS(D53)+E53+F53)>0,P53*BH$2+BH$2,NA()))) ->  | V53: =IF(OR($A$5=3,$A$5=1),NA(),IF('volcanic template'!Z$12=FALSE,NA(),IF((ABS(D53)+E53+F53)>0,BH$3*P53+R53,NA()))) ->  | W53: =IF(OR(A$5=3,A$5=1),NA(),IF('volcanic template'!Z$12=FALSE,NA(),IF((ABS(D53)+E53+F53)>0,P53*BH$2+BH$2,NA()))) ->  | X53: =IF(OR($A$5=3,$A$5=1,$D53<0),NA(),IF('plutonic template'!Z$19=FALSE,NA(),BH$3*P53+R53)) ->  | Y53: =IF(OR($A$5=3,$A$5=1,$D53<0),NA(),IF('plutonic template'!Z$19=FALSE,NA(),P53*BH$2)) ->  | Z53: =IF(OR($A$5=3,$A$5=2,D53<0),NA(),IF('plutonic template'!Z$329=FALSE,NA(),BH$3*J53+L53)) ->  | AA53: =IF(OR($A$5=3,$A$5=2,D53<0),NA(),IF('plutonic template'!Z$329=FALSE,NA(),J53*BH$2)) ->  | AC53: =IF(OR(A$5=3,$A$5=2,D53<0,E53<0,F53<0,G53<0,H53<0),NA(),IF(SUM($D53:$G53)>0,D53/SUM($D53:$G53),NA())) -> 0.125 | AD53: =IF(OR(A$5=3,$A$5=2,D53<0,E53<0,F53<0,G53<0,H53<0),NA(),IF(SUM($D53:$G53)>0,(E53+F53)/SUM($D53:$G53),NA())) -> 0.875 | AE53: =IF(OR(A$5=3,$A$5=2,D53<0,E53<0,F53<0,G53<0,H53<0),NA(),IF(SUM($D53:$G53)>0,G53/SUM($D53:$G53),NA())) -> 0 | AF53: =IF(OR($A$5=3,$A$5=2,D53<0),NA(),IF('plutonic template'!Z$413=FALSE,NA(),BH$3*AC53+AE53)) ->  | AG53: =IF(OR($A$5=3,$A$5=2,D53<0),NA(),IF('plutonic template'!Z$413=FALSE,NA(),AC53*BH$2)) ->  | AI53: =IF(OR(A$5=2,A$5=1,D53<0,E53<0,F53<0,G53<0,H53<0),NA(),IF(D53+E53+F53+H53>0,H53/(D53+E53+F53+H53),NA())) ->  | AJ53: =IF(OR(A$5=2,A$5=1,D53<0,E53<0,F53<0,G53<0,H53<0),NA(),IF(D53+E53+F53+H53>0,(E53+F53)/(D53+E53+F53+H53),NA())) ->  | AK53: =IF(OR(A$5=2,A$5=1,D53<0,E53<0,F53<0,G53<0,H53<0),NA(),IF(D53+E53+F53+H53>0,D53/(D53+E53+F53+H53),NA())) ->  | AL53: =IF('plutonic template'!Z$196=FALSE,NA(),BH$3*AI53+AK53) ->  | AM53: =IF('plutonic template'!Z$196=FALSE,NA(),AI53*BH$2) ->  | AO53: =IF(OR(A$5=2,A$5=1,D53<0,E53<0,F53<0,G53<0,H53<0),NA(),IF(E53+F53+H53>0,H53/(E53+F53+H53),NA())) ->  | AP53: =IF(OR(A$5=2,A$5=1,D53<0,E53<0,F53<0,G53<0,H53<0),NA(),IF(E53+F53+H53>0,E53/(E53+F53+H53),NA())) ->  | AQ53: =IF(OR(A$5=2,A$5=1,D53<0,E53<0,F53<0,G53<0,H53<0),NA(),IF(E53+F53+H53>0,F53/(E53+F53+H53),NA())) ->  | AR53: =IF('plutonic template'!$Z$234=FALSE,NA(),BH$3*AO53+AQ53) ->  | AS53: =IF('plutonic template'!$Z$234=FALSE,NA(),AO53*BH$2) ->  | AU53: =IF(OR(A$5=2,A$5=1,D53<0,E53<0,F53<0,G53<0,H53<0),NA(),IF(SUM(E53:H53)>0,H53/SUM(E53:H53),NA())) ->  | AV53: =IF(OR(A$5=2,A$5=1,D53<0,E53<0,F53<0,G53<0,H53<0),NA(),IF(SUM(E53:H53)>0,(E53+F53)/SUM(E53:H53),NA())) ->  | AW53: =IF(OR(A$5=2,A$5=1,D53<0,E53<0,F53<0,G53<0,H53<0),NA(),IF(SUM(E53:H53)>0,G53/SUM(E53:H53),NA())) ->  | AX53: =IF('plutonic template'!$Z$275=FALSE,NA(),BH$3*AU53+AW53) ->  | AY53: =IF('plutonic template'!$Z$275=FALSE,NA(),AU53*BH$2) ->  | BA53: =IF($A$5=1,IF(($J53-0.4)>=0,(J53-0.4)/($J53-0.4+$K53+$L53),NA()),NA()) ->  | BB53: =IF($A$5=1,IF(($J53-0.4)>=0,K53/($J53-0.4+$K53+$L53),NA()),NA()) ->  | BC53: =IF($A$5=1,IF(($J53-0.4)>=0,L53/($J53-0.4+$K53+$L53),NA()),NA()) ->  | BD53: =IF('plutonic template'!$Z$388=FALSE,NA(),BH$3*BA53+BC53) ->  | BE53: =IF('plutonic template'!$Z$388=FALSE,NA(),BA53*BH$2) -> 
N54: 1 | T54: =IF(OR($A$5=3,$A$5=1),NA(),IF('plutonic template'!Z$86=FALSE,NA(),IF((ABS(D54)+E54+F54)>0,BH$3*P54+R54,NA()))) ->  | U54: =IF(OR($A$5=3,$A$5=1),NA(),IF('plutonic template'!Z$86=FALSE,NA(),IF((ABS(D54)+E54+F54)>0,P54*BH$2+BH$2,NA()))) ->  | V54: =IF(OR($A$5=3,$A$5=1),NA(),IF('volcanic template'!Z$12=FALSE,NA(),IF((ABS(D54)+E54+F54)>0,BH$3*P54+R54,NA()))) ->  | W54: =IF(OR(A$5=3,A$5=1),NA(),IF('volcanic template'!Z$12=FALSE,NA(),IF((ABS(D54)+E54+F54)>0,P54*BH$2+BH$2,NA()))) ->  | X54: =IF(OR($A$5=3,$A$5=1,$D54<0),NA(),IF('plutonic template'!Z$19=FALSE,NA(),BH$3*P54+R54)) ->  | Y54: =IF(OR($A$5=3,$A$5=1,$D54<0),NA(),IF('plutonic template'!Z$19=FALSE,NA(),P54*BH$2)) ->  | Z54: =IF(OR($A$5=3,$A$5=2,D54<0),NA(),IF('plutonic template'!Z$329=FALSE,NA(),BH$3*J54+L54)) ->  | AA54: =IF(OR($A$5=3,$A$5=2,D54<0),NA(),IF('plutonic template'!Z$329=FALSE,NA(),J54*BH$2)) ->  | AF54: =IF(OR($A$5=3,$A$5=2,D54<0),NA(),IF('plutonic template'!Z$413=FALSE,NA(),BH$3*AC54+AE54)) ->  | AG54: =IF(OR($A$5=3,$A$5=2,D54<0),NA(),IF('plutonic template'!Z$413=FALSE,NA(),AC54*BH$2)) ->  | AL54: =IF('plutonic template'!Z$196=FALSE,NA(),BH$3*AI54+AK54) ->  | AM54: =IF('plutonic template'!Z$196=FALSE,NA(),AI54*BH$2) ->  | AR54: =IF('plutonic template'!$Z$234=FALSE,NA(),BH$3*AO54+AQ54) ->  | AS54: =IF('plutonic template'!$Z$234=FALSE,NA(),AO54*BH$2) ->  | AX54: =IF('plutonic template'!$Z$275=FALSE,NA(),BH$3*AU54+AW54) ->  | AY54: =IF('plutonic template'!$Z$275=FALSE,NA(),AU54*BH$2) ->  | BD54: =IF('plutonic template'!$Z$388=FALSE,NA(),BH$3*BA54+BC54) ->  | BE54: =IF('plutonic template'!$Z$388=FALSE,NA(),BA54*BH$2) -> 
N55: 1 | T55: =IF(OR($A$5=3,$A$5=1),NA(),IF('plutonic template'!Z$86=FALSE,NA(),IF((ABS(D55)+E55+F55)>0,BH$3*P55+R55,NA()))) ->  | U55: =IF(OR($A$5=3,$A$5=1),NA(),IF('plutonic template'!Z$86=FALSE,NA(),IF((ABS(D55)+E55+F55)>0,P55*BH$2+BH$2,NA()))) ->  | V55: =IF(OR($A$5=3,$A$5=1),NA(),IF('volcanic template'!Z$12=FALSE,NA(),IF((ABS(D55)+E55+F55)>0,BH$3*P55+R55,NA()))) ->  | W55: =IF(OR(A$5=3,A$5=1),NA(),IF('volcanic template'!Z$12=FALSE,NA(),IF((ABS(D55)+E55+F55)>0,P55*BH$2+BH$2,NA()))) ->  | X55: =IF(OR($A$5=3,$A$5=1,$D55<0),NA(),IF('plutonic template'!Z$19=FALSE,NA(),BH$3*P55+R55)) ->  | Y55: =IF(OR($A$5=3,$A$5=1,$D55<0),NA(),IF('plutonic template'!Z$19=FALSE,NA(),P55*BH$2)) ->  | Z55: =IF(OR($A$5=3,$A$5=2,D55<0),NA(),IF('plutonic template'!Z$329=FALSE,NA(),BH$3*J55+L55)) ->  | AA55: =IF(OR($A$5=3,$A$5=2,D55<0),NA(),IF('plutonic template'!Z$329=FALSE,NA(),J55*BH$2)) ->  | AF55: =IF(OR($A$5=3,$A$5=2,D55<0),NA(),IF('plutonic template'!Z$413=FALSE,NA(),BH$3*AC55+AE55)) ->  | AG55: =IF(OR($A$5=3,$A$5=2,D55<0),NA(),IF('plutonic template'!Z$413=FALSE,NA(),AC55*BH$2)) ->  | AL55: =IF('plutonic template'!Z$196=FALSE,NA(),BH$3*AI55+AK55) ->  | AM55: =IF('plutonic template'!Z$196=FALSE,NA(),AI55*BH$2) ->  | AR55: =IF('plutonic template'!$Z$234=FALSE,NA(),BH$3*AO55+AQ55) ->  | AS55: =IF('plutonic template'!$Z$234=FALSE,NA(),AO55*BH$2) ->  | AX55: =IF('plutonic template'!$Z$275=FALSE,NA(),BH$3*AU55+AW55) ->  | AY55: =IF('plutonic template'!$Z$275=FALSE,NA(),AU55*BH$2) ->  | BD55: =IF('plutonic template'!$Z$388=FALSE,NA(),BH$3*BA55+BC55) ->  | BE55: =IF('plutonic template'!$Z$388=FALSE,NA(),BA55*BH$2) -> 
N56: 1 | T56: =IF(OR($A$5=3,$A$5=1),NA(),IF('plutonic template'!Z$86=FALSE,NA(),IF((ABS(D56)+E56+F56)>0,BH$3*P56+R56,NA()))) ->  | U56: =IF(OR($A$5=3,$A$5=1),NA(),IF('plutonic template'!Z$86=FALSE,NA(),IF((ABS(D56)+E56+F56)>0,P56*BH$2+BH$2,NA()))) ->  | V56: =IF(OR($A$5=3,$A$5=1),NA(),IF('volcanic template'!Z$12=FALSE,NA(),IF((ABS(D56)+E56+F56)>0,BH$3*P56+R56,NA()))) ->  | W56: =IF(OR(A$5=3,A$5=1),NA(),IF('volcanic template'!Z$12=FALSE,NA(),IF((ABS(D56)+E56+F56)>0,P56*BH$2+BH$2,NA()))) ->  | X56: =IF(OR($A$5=3,$A$5=1,$D56<0),NA(),IF('plutonic template'!Z$19=FALSE,NA(),BH$3*P56+R56)) ->  | Y56: =IF(OR($A$5=3,$A$5=1,$D56<0),NA(),IF('plutonic template'!Z$19=FALSE,NA(),P56*BH$2)) ->  | Z56: =IF(OR($A$5=3,$A$5=2,D56<0),NA(),IF('plutonic template'!Z$329=FALSE,NA(),BH$3*J56+L56)) ->  | AA56: =IF(OR($A$5=3,$A$5=2,D56<0),NA(),IF('plutonic template'!Z$329=FALSE,NA(),J56*BH$2)) ->  | AF56: =IF(OR($A$5=3,$A$5=2,D56<0),NA(),IF('plutonic template'!Z$413=FALSE,NA(),BH$3*AC56+AE56)) ->  | AG56: =IF(OR($A$5=3,$A$5=2,D56<0),NA(),IF('plutonic template'!Z$413=FALSE,NA(),AC56*BH$2)) ->  | AL56: =IF('plutonic template'!Z$196=FALSE,NA(),BH$3*AI56+AK56) ->  | AM56: =IF('plutonic template'!Z$196=FALSE,NA(),AI56*BH$2) ->  | AR56: =IF('plutonic template'!$Z$234=FALSE,NA(),BH$3*AO56+AQ56) ->  | AS56: =IF('plutonic template'!$Z$234=FALSE,NA(),AO56*BH$2) ->  | AX56: =IF('plutonic template'!$Z$275=FALSE,NA(),BH$3*AU56+AW56) ->  | AY56: =IF('plutonic template'!$Z$275=FALSE,NA(),AU56*BH$2) ->  | BD56: =IF('plutonic template'!$Z$388=FALSE,NA(),BH$3*BA56+BC56) ->  | BE56: =IF('plutonic template'!$Z$388=FALSE,NA(),BA56*BH$2) -> 
N57: 1 | T57: =IF(OR($A$5=3,$A$5=1),NA(),IF('plutonic template'!Z$86=FALSE,NA(),IF((ABS(D57)+E57+F57)>0,BH$3*P57+R57,NA()))) ->  | U57: =IF(OR($A$5=3,$A$5=1),NA(),IF('plutonic template'!Z$86=FALSE,NA(),IF((ABS(D57)+E57+F57)>0,P57*BH$2+BH$2,NA()))) ->  | V57: =IF(OR($A$5=3,$A$5=1),NA(),IF('volcanic template'!Z$12=FALSE,NA(),IF((ABS(D57)+E57+F57)>0,BH$3*P57+R57,NA()))) ->  | W57: =IF(OR(A$5=3,A$5=1),NA(),IF('volcanic template'!Z$12=FALSE,NA(),IF((ABS(D57)+E57+F57)>0,P57*BH$2+BH$2,NA()))) ->  | X57: =IF(OR($A$5=3,$A$5=1,$D57<0),NA(),IF('plutonic template'!Z$19=FALSE,NA(),BH$3*P57+R57)) ->  | Y57: =IF(OR($A$5=3,$A$5=1,$D57<0),NA(),IF('plutonic template'!Z$19=FALSE,NA(),P57*BH$2)) ->  | Z57: =IF(OR($A$5=3,$A$5=2,D57<0),NA(),IF('plutonic template'!Z$329=FALSE,NA(),BH$3*J57+L57)) ->  | AA57: =IF(OR($A$5=3,$A$5=2,D57<0),NA(),IF('plutonic template'!Z$329=FALSE,NA(),J57*BH$2)) ->  | AF57: =IF(OR($A$5=3,$A$5=2,D57<0),NA(),IF('plutonic template'!Z$413=FALSE,NA(),BH$3*AC57+AE57)) ->  | AG57: =IF(OR($A$5=3,$A$5=2,D57<0),NA(),IF('plutonic template'!Z$413=FALSE,NA(),AC57*BH$2)) ->  | AL57: =IF('plutonic template'!Z$196=FALSE,NA(),BH$3*AI57+AK57) ->  | AM57: =IF('plutonic template'!Z$196=FALSE,NA(),AI57*BH$2) ->  | AR57: =IF('plutonic template'!$Z$234=FALSE,NA(),BH$3*AO57+AQ57) ->  | AS57: =IF('plutonic template'!$Z$234=FALSE,NA(),AO57*BH$2) ->  | AX57: =IF('plutonic template'!$Z$275=FALSE,NA(),BH$3*AU57+AW57) ->  | AY57: =IF('plutonic template'!$Z$275=FALSE,NA(),AU57*BH$2) ->  | BD57: =IF('plutonic template'!$Z$388=FALSE,NA(),BH$3*BA57+BC57) ->  | BE57: =IF('plutonic template'!$Z$388=FALSE,NA(),BA57*BH$2) -> 
N58: 1 | T58: =IF(OR($A$5=3,$A$5=1),NA(),IF('plutonic template'!Z$86=FALSE,NA(),IF((ABS(D58)+E58+F58)>0,BH$3*P58+R58,NA()))) ->  | U58: =IF(OR($A$5=3,$A$5=1),NA(),IF('plutonic template'!Z$86=FALSE,NA(),IF((ABS(D58)+E58+F58)>0,P58*BH$2+BH$2,NA()))) ->  | V58: =IF(OR($A$5=3,$A$5=1),NA(),IF('volcanic template'!Z$12=FALSE,NA(),IF((ABS(D58)+E58+F58)>0,BH$3*P58+R58,NA()))) ->  | W58: =IF(OR(A$5=3,A$5=1),NA(),IF('volcanic template'!Z$12=FALSE,NA(),IF((ABS(D58)+E58+F58)>0,P58*BH$2+BH$2,NA()))) ->  | X58: =IF(OR($A$5=3,$A$5=1,$D58<0),NA(),IF('plutonic template'!Z$19=FALSE,NA(),BH$3*P58+R58)) ->  | Y58: =IF(OR($A$5=3,$A$5=1,$D58<0),NA(),IF('plutonic template'!Z$19=FALSE,NA(),P58*BH$2)) ->  | Z58: =IF(OR($A$5=3,$A$5=2,D58<0),NA(),IF('plutonic template'!Z$329=FALSE,NA(),BH$3*J58+L58)) ->  | AA58: =IF(OR($A$5=3,$A$5=2,D58<0),NA(),IF('plutonic template'!Z$329=FALSE,NA(),J58*BH$2)) ->  | AF58: =IF(OR($A$5=3,$A$5=2,D58<0),NA(),IF('plutonic template'!Z$413=FALSE,NA(),BH$3*AC58+AE58)) ->  | AG58: =IF(OR($A$5=3,$A$5=2,D58<0),NA(),IF('plutonic template'!Z$413=FALSE,NA(),AC58*BH$2)) ->  | AL58: =IF('plutonic template'!Z$196=FALSE,NA(),BH$3*AI58+AK58) ->  | AM58: =IF('plutonic template'!Z$196=FALSE,NA(),AI58*BH$2) ->  | AR58: =IF('plutonic template'!$Z$234=FALSE,NA(),BH$3*AO58+AQ58) ->  | AS58: =IF('plutonic template'!$Z$234=FALSE,NA(),AO58*BH$2) ->  | AX58: =IF('plutonic template'!$Z$275=FALSE,NA(),BH$3*AU58+AW58) ->  | AY58: =IF('plutonic template'!$Z$275=FALSE,NA(),AU58*BH$2) ->  | BD58: =IF('plutonic template'!$Z$388=FALSE,NA(),BH$3*BA58+BC58) ->  | BE58: =IF('plutonic template'!$Z$388=FALSE,NA(),BA58*BH$2) -> 
N59: 1 | T59: =IF(OR($A$5=3,$A$5=1),NA(),IF('plutonic template'!Z$86=FALSE,NA(),IF((ABS(D59)+E59+F59)>0,BH$3*P59+R59,NA()))) ->  | U59: =IF(OR($A$5=3,$A$5=1),NA(),IF('plutonic template'!Z$86=FALSE,NA(),IF((ABS(D59)+E59+F59)>0,P59*BH$2+BH$2,NA()))) ->  | V59: =IF(OR($A$5=3,$A$5=1),NA(),IF('volcanic template'!Z$12=FALSE,NA(),IF((ABS(D59)+E59+F59)>0,BH$3*P59+R59,NA()))) ->  | W59: =IF(OR(A$5=3,A$5=1),NA(),IF('volcanic template'!Z$12=FALSE,NA(),IF((ABS(D59)+E59+F59)>0,P59*BH$2+BH$2,NA()))) ->  | X59: =IF(OR($A$5=3,$A$5=1,$D59<0),NA(),IF('plutonic template'!Z$19=FALSE,NA(),BH$3*P59+R59)) ->  | Y59: =IF(OR($A$5=3,$A$5=1,$D59<0),NA(),IF('plutonic template'!Z$19=FALSE,NA(),P59*BH$2)) ->  | Z59: =IF(OR($A$5=3,$A$5=2,D59<0),NA(),IF('plutonic template'!Z$329=FALSE,NA(),BH$3*J59+L59)) ->  | AA59: =IF(OR($A$5=3,$A$5=2,D59<0),NA(),IF('plutonic template'!Z$329=FALSE,NA(),J59*BH$2)) ->  | AF59: =IF(OR($A$5=3,$A$5=2,D59<0),NA(),IF('plutonic template'!Z$413=FALSE,NA(),BH$3*AC59+AE59)) ->  | AG59: =IF(OR($A$5=3,$A$5=2,D59<0),NA(),IF('plutonic template'!Z$413=FALSE,NA(),AC59*BH$2)) ->  | AL59: =IF('plutonic template'!Z$196=FALSE,NA(),BH$3*AI59+AK59) ->  | AM59: =IF('plutonic template'!Z$196=FALSE,NA(),AI59*BH$2) ->  | AR59: =IF('plutonic template'!$Z$234=FALSE,NA(),BH$3*AO59+AQ59) ->  | AS59: =IF('plutonic template'!$Z$234=FALSE,NA(),AO59*BH$2) ->  | AX59: =IF('plutonic template'!$Z$275=FALSE,NA(),BH$3*AU59+AW59) ->  | AY59: =IF('plutonic template'!$Z$275=FALSE,NA(),AU59*BH$2) ->  | BD59: =IF('plutonic template'!$Z$388=FALSE,NA(),BH$3*BA59+BC59) ->  | BE59: =IF('plutonic template'!$Z$388=FALSE,NA(),BA59*BH$2) -> 
N60: 1 | T60: =IF(OR($A$5=3,$A$5=1),NA(),IF('plutonic template'!Z$86=FALSE,NA(),IF((ABS(D60)+E60+F60)>0,BH$3*P60+R60,NA()))) ->  | U60: =IF(OR($A$5=3,$A$5=1),NA(),IF('plutonic template'!Z$86=FALSE,NA(),IF((ABS(D60)+E60+F60)>0,P60*BH$2+BH$2,NA()))) ->  | V60: =IF(OR($A$5=3,$A$5=1),NA(),IF('volcanic template'!Z$12=FALSE,NA(),IF((ABS(D60)+E60+F60)>0,BH$3*P60+R60,NA()))) ->  | W60: =IF(OR(A$5=3,A$5=1),NA(),IF('volcanic template'!Z$12=FALSE,NA(),IF((ABS(D60)+E60+F60)>0,P60*BH$2+BH$2,NA()))) ->  | X60: =IF(OR($A$5=3,$A$5=1,$D60<0),NA(),IF('plutonic template'!Z$19=FALSE,NA(),BH$3*P60+R60)) ->  | Y60: =IF(OR($A$5=3,$A$5=1,$D60<0),NA(),IF('plutonic template'!Z$19=FALSE,NA(),P60*BH$2)) ->  | Z60: =IF(OR($A$5=3,$A$5=2,D60<0),NA(),IF('plutonic template'!Z$329=FALSE,NA(),BH$3*J60+L60)) ->  | AA60: =IF(OR($A$5=3,$A$5=2,D60<0),NA(),IF('plutonic template'!Z$329=FALSE,NA(),J60*BH$2)) ->  | AF60: =IF(OR($A$5=3,$A$5=2,D60<0),NA(),IF('plutonic template'!Z$413=FALSE,NA(),BH$3*AC60+AE60)) ->  | AG60: =IF(OR($A$5=3,$A$5=2,D60<0),NA(),IF('plutonic template'!Z$413=FALSE,NA(),AC60*BH$2)) ->  | AL60: =IF('plutonic template'!Z$196=FALSE,NA(),BH$3*AI60+AK60) ->  | AM60: =IF('plutonic template'!Z$196=FALSE,NA(),AI60*BH$2) ->  | AR60: =IF('plutonic template'!$Z$234=FALSE,NA(),BH$3*AO60+AQ60) ->  | AS60: =IF('plutonic template'!$Z$234=FALSE,NA(),AO60*BH$2) ->  | AX60: =IF('plutonic template'!$Z$275=FALSE,NA(),BH$3*AU60+AW60) ->  | AY60: =IF('plutonic template'!$Z$275=FALSE,NA(),AU60*BH$2) ->  | BD60: =IF('plutonic template'!$Z$388=FALSE,NA(),BH$3*BA60+BC60) ->  | BE60: =IF('plutonic template'!$Z$388=FALSE,NA(),BA60*BH$2) -> 
N61: 1 | T61: =IF(OR($A$5=3,$A$5=1),NA(),IF('plutonic template'!Z$86=FALSE,NA(),IF((ABS(D61)+E61+F61)>0,BH$3*P61+R61,NA()))) ->  | U61: =IF(OR($A$5=3,$A$5=1),NA(),IF('plutonic template'!Z$86=FALSE,NA(),IF((ABS(D61)+E61+F61)>0,P61*BH$2+BH$2,NA()))) ->  | V61: =IF(OR($A$5=3,$A$5=1),NA(),IF('volcanic template'!Z$12=FALSE,NA(),IF((ABS(D61)+E61+F61)>0,BH$3*P61+R61,NA()))) ->  | W61: =IF(OR(A$5=3,A$5=1),NA(),IF('volcanic template'!Z$12=FALSE,NA(),IF((ABS(D61)+E61+F61)>0,P61*BH$2+BH$2,NA()))) ->  | X61: =IF(OR($A$5=3,$A$5=1,$D61<0),NA(),IF('plutonic template'!Z$19=FALSE,NA(),BH$3*P61+R61)) ->  | Y61: =IF(OR($A$5=3,$A$5=1,$D61<0),NA(),IF('plutonic template'!Z$19=FALSE,NA(),P61*BH$2)) ->  | Z61: =IF(OR($A$5=3,$A$5=2,D61<0),NA(),IF('plutonic template'!Z$329=FALSE,NA(),BH$3*J61+L61)) ->  | AA61: =IF(OR($A$5=3,$A$5=2,D61<0),NA(),IF('plutonic template'!Z$329=FALSE,NA(),J61*BH$2)) ->  | AF61: =IF(OR($A$5=3,$A$5=2,D61<0),NA(),IF('plutonic template'!Z$413=FALSE,NA(),BH$3*AC61+AE61)) ->  | AG61: =IF(OR($A$5=3,$A$5=2,D61<0),NA(),IF('plutonic template'!Z$413=FALSE,NA(),AC61*BH$2)) ->  | AL61: =IF('plutonic template'!Z$196=FALSE,NA(),BH$3*AI61+AK61) ->  | AM61: =IF('plutonic template'!Z$196=FALSE,NA(),AI61*BH$2) ->  | AR61: =IF('plutonic template'!$Z$234=FALSE,NA(),BH$3*AO61+AQ61) ->  | AS61: =IF('plutonic template'!$Z$234=FALSE,NA(),AO61*BH$2) ->  | AX61: =IF('plutonic template'!$Z$275=FALSE,NA(),BH$3*AU61+AW61) ->  | AY61: =IF('plutonic template'!$Z$275=FALSE,NA(),AU61*BH$2) ->  | BD61: =IF('plutonic template'!$Z$388=FALSE,NA(),BH$3*BA61+BC61) ->  | BE61: =IF('plutonic template'!$Z$388=FALSE,NA(),BA61*BH$2) -> 
N62: 1 | T62: =IF(OR($A$5=3,$A$5=1),NA(),IF('plutonic template'!Z$86=FALSE,NA(),IF((ABS(D62)+E62+F62)>0,BH$3*P62+R62,NA()))) ->  | U62: =IF(OR($A$5=3,$A$5=1),NA(),IF('plutonic template'!Z$86=FALSE,NA(),IF((ABS(D62)+E62+F62)>0,P62*BH$2+BH$2,NA()))) ->  | V62: =IF(OR($A$5=3,$A$5=1),NA(),IF('volcanic template'!Z$12=FALSE,NA(),IF((ABS(D62)+E62+F62)>0,BH$3*P62+R62,NA()))) ->  | W62: =IF(OR(A$5=3,A$5=1),NA(),IF('volcanic template'!Z$12=FALSE,NA(),IF((ABS(D62)+E62+F62)>0,P62*BH$2+BH$2,NA()))) ->  | X62: =IF(OR($A$5=3,$A$5=1,$D62<0),NA(),IF('plutonic template'!Z$19=FALSE,NA(),BH$3*P62+R62)) ->  | Y62: =IF(OR($A$5=3,$A$5=1,$D62<0),NA(),IF('plutonic template'!Z$19=FALSE,NA(),P62*BH$2)) ->  | Z62: =IF(OR($A$5=3,$A$5=2,D62<0),NA(),IF('plutonic template'!Z$329=FALSE,NA(),BH$3*J62+L62)) ->  | AA62: =IF(OR($A$5=3,$A$5=2,D62<0),NA(),IF('plutonic template'!Z$329=FALSE,NA(),J62*BH$2)) ->  | AF62: =IF(OR($A$5=3,$A$5=2,D62<0),NA(),IF('plutonic template'!Z$413=FALSE,NA(),BH$3*AC62+AE62)) ->  | AG62: =IF(OR($A$5=3,$A$5=2,D62<0),NA(),IF('plutonic template'!Z$413=FALSE,NA(),AC62*BH$2)) ->  | AL62: =IF('plutonic template'!Z$196=FALSE,NA(),BH$3*AI62+AK62) ->  | AM62: =IF('plutonic template'!Z$196=FALSE,NA(),AI62*BH$2) ->  | AR62: =IF('plutonic template'!$Z$234=FALSE,NA(),BH$3*AO62+AQ62) ->  | AS62: =IF('plutonic template'!$Z$234=FALSE,NA(),AO62*BH$2) ->  | AX62: =IF('plutonic template'!$Z$275=FALSE,NA(),BH$3*AU62+AW62) ->  | AY62: =IF('plutonic template'!$Z$275=FALSE,NA(),AU62*BH$2) ->  | BD62: =IF('plutonic template'!$Z$388=FALSE,NA(),BH$3*BA62+BC62) ->  | BE62: =IF('plutonic template'!$Z$388=FALSE,NA(),BA62*BH$2) -> 
N63: 1 | T63: =IF(OR($A$5=3,$A$5=1),NA(),IF('plutonic template'!Z$86=FALSE,NA(),IF((ABS(D63)+E63+F63)>0,BH$3*P63+R63,NA()))) ->  | U63: =IF(OR($A$5=3,$A$5=1),NA(),IF('plutonic template'!Z$86=FALSE,NA(),IF((ABS(D63)+E63+F63)>0,P63*BH$2+BH$2,NA()))) ->  | V63: =IF(OR($A$5=3,$A$5=1),NA(),IF('volcanic template'!Z$12=FALSE,NA(),IF((ABS(D63)+E63+F63)>0,BH$3*P63+R63,NA()))) ->  | W63: =IF(OR(A$5=3,A$5=1),NA(),IF('volcanic template'!Z$12=FALSE,NA(),IF((ABS(D63)+E63+F63)>0,P63*BH$2+BH$2,NA()))) ->  | X63: =IF(OR($A$5=3,$A$5=1,$D63<0),NA(),IF('plutonic template'!Z$19=FALSE,NA(),BH$3*P63+R63)) ->  | Y63: =IF(OR($A$5=3,$A$5=1,$D63<0),NA(),IF('plutonic template'!Z$19=FALSE,NA(),P63*BH$2)) ->  | Z63: =IF(OR($A$5=3,$A$5=2,D63<0),NA(),IF('plutonic template'!Z$329=FALSE,NA(),BH$3*J63+L63)) ->  | AA63: =IF(OR($A$5=3,$A$5=2,D63<0),NA(),IF('plutonic template'!Z$329=FALSE,NA(),J63*BH$2)) ->  | AF63: =IF(OR($A$5=3,$A$5=2,D63<0),NA(),IF('plutonic template'!Z$413=FALSE,NA(),BH$3*AC63+AE63)) ->  | AG63: =IF(OR($A$5=3,$A$5=2,D63<0),NA(),IF('plutonic template'!Z$413=FALSE,NA(),AC63*BH$2)) ->  | AL63: =IF('plutonic template'!Z$196=FALSE,NA(),BH$3*AI63+AK63) ->  | AM63: =IF('plutonic template'!Z$196=FALSE,NA(),AI63*BH$2) ->  | AR63: =IF('plutonic template'!$Z$234=FALSE,NA(),BH$3*AO63+AQ63) ->  | AS63: =IF('plutonic template'!$Z$234=FALSE,NA(),AO63*BH$2) ->  | AX63: =IF('plutonic template'!$Z$275=FALSE,NA(),BH$3*AU63+AW63) ->  | AY63: =IF('plutonic template'!$Z$275=FALSE,NA(),AU63*BH$2) ->  | BD63: =IF('plutonic template'!$Z$388=FALSE,NA(),BH$3*BA63+BC63) ->  | BE63: =IF('plutonic template'!$Z$388=FALSE,NA(),BA63*BH$2) -> 
N64: 1 | T64: =IF(OR($A$5=3,$A$5=1),NA(),IF('plutonic template'!Z$86=FALSE,NA(),IF((ABS(D64)+E64+F64)>0,BH$3*P64+R64,NA()))) ->  | U64: =IF(OR($A$5=3,$A$5=1),NA(),IF('plutonic template'!Z$86=FALSE,NA(),IF((ABS(D64)+E64+F64)>0,P64*BH$2+BH$2,NA()))) ->  | V64: =IF(OR($A$5=3,$A$5=1),NA(),IF('volcanic template'!Z$12=FALSE,NA(),IF((ABS(D64)+E64+F64)>0,BH$3*P64+R64,NA()))) ->  | W64: =IF(OR(A$5=3,A$5=1),NA(),IF('volcanic template'!Z$12=FALSE,NA(),IF((ABS(D64)+E64+F64)>0,P64*BH$2+BH$2,NA()))) ->  | X64: =IF(OR($A$5=3,$A$5=1,$D64<0),NA(),IF('plutonic template'!Z$19=FALSE,NA(),BH$3*P64+R64)) ->  | Y64: =IF(OR($A$5=3,$A$5=1,$D64<0),NA(),IF('plutonic template'!Z$19=FALSE,NA(),P64*BH$2)) ->  | Z64: =IF(OR($A$5=3,$A$5=2,D64<0),NA(),IF('plutonic template'!Z$329=FALSE,NA(),BH$3*J64+L64)) ->  | AA64: =IF(OR($A$5=3,$A$5=2,D64<0),NA(),IF('plutonic template'!Z$329=FALSE,NA(),J64*BH$2)) ->  | AF64: =IF(OR($A$5=3,$A$5=2,D64<0),NA(),IF('plutonic template'!Z$413=FALSE,NA(),BH$3*AC64+AE64)) ->  | AG64: =IF(OR($A$5=3,$A$5=2,D64<0),NA(),IF('plutonic template'!Z$413=FALSE,NA(),AC64*BH$2)) ->  | AL64: =IF('plutonic template'!Z$196=FALSE,NA(),BH$3*AI64+AK64) ->  | AM64: =IF('plutonic template'!Z$196=FALSE,NA(),AI64*BH$2) ->  | AR64: =IF('plutonic template'!$Z$234=FALSE,NA(),BH$3*AO64+AQ64) ->  | AS64: =IF('plutonic template'!$Z$234=FALSE,NA(),AO64*BH$2) ->  | AX64: =IF('plutonic template'!$Z$275=FALSE,NA(),BH$3*AU64+AW64) ->  | AY64: =IF('plutonic template'!$Z$275=FALSE,NA(),AU64*BH$2) ->  | BD64: =IF('plutonic template'!$Z$388=FALSE,NA(),BH$3*BA64+BC64) ->  | BE64: =IF('plutonic template'!$Z$388=FALSE,NA(),BA64*BH$2) -> 
N65: 1 | T65: =IF(OR($A$5=3,$A$5=1),NA(),IF('plutonic template'!Z$86=FALSE,NA(),IF((ABS(D65)+E65+F65)>0,BH$3*P65+R65,NA()))) ->  | U65: =IF(OR($A$5=3,$A$5=1),NA(),IF('plutonic template'!Z$86=FALSE,NA(),IF((ABS(D65)+E65+F65)>0,P65*BH$2+BH$2,NA()))) ->  | V65: =IF(OR($A$5=3,$A$5=1),NA(),IF('volcanic template'!Z$12=FALSE,NA(),IF((ABS(D65)+E65+F65)>0,BH$3*P65+R65,NA()))) ->  | W65: =IF(OR(A$5=3,A$5=1),NA(),IF('volcanic template'!Z$12=FALSE,NA(),IF((ABS(D65)+E65+F65)>0,P65*BH$2+BH$2,NA()))) ->  | X65: =IF(OR($A$5=3,$A$5=1,$D65<0),NA(),IF('plutonic template'!Z$19=FALSE,NA(),BH$3*P65+R65)) ->  | Y65: =IF(OR($A$5=3,$A$5=1,$D65<0),NA(),IF('plutonic template'!Z$19=FALSE,NA(),P65*BH$2)) ->  | Z65: =IF(OR($A$5=3,$A$5=2,D65<0),NA(),IF('plutonic template'!Z$329=FALSE,NA(),BH$3*J65+L65)) ->  | AA65: =IF(OR($A$5=3,$A$5=2,D65<0),NA(),IF('plutonic template'!Z$329=FALSE,NA(),J65*BH$2)) ->  | AF65: =IF(OR($A$5=3,$A$5=2,D65<0),NA(),IF('plutonic template'!Z$413=FALSE,NA(),BH$3*AC65+AE65)) ->  | AG65: =IF(OR($A$5=3,$A$5=2,D65<0),NA(),IF('plutonic template'!Z$413=FALSE,NA(),AC65*BH$2)) ->  | AL65: =IF('plutonic template'!Z$196=FALSE,NA(),BH$3*AI65+AK65) ->  | AM65: =IF('plutonic template'!Z$196=FALSE,NA(),AI65*BH$2) ->  | AR65: =IF('plutonic template'!$Z$234=FALSE,NA(),BH$3*AO65+AQ65) ->  | AS65: =IF('plutonic template'!$Z$234=FALSE,NA(),AO65*BH$2) ->  | AX65: =IF('plutonic template'!$Z$275=FALSE,NA(),BH$3*AU65+AW65) ->  | AY65: =IF('plutonic template'!$Z$275=FALSE,NA(),AU65*BH$2) ->  | BD65: =IF('plutonic template'!$Z$388=FALSE,NA(),BH$3*BA65+BC65) ->  | BE65: =IF('plutonic template'!$Z$388=FALSE,NA(),BA65*BH$2) -> 
N66: 1 | T66: =IF(OR($A$5=3,$A$5=1),NA(),IF('plutonic template'!Z$86=FALSE,NA(),IF((ABS(D66)+E66+F66)>0,BH$3*P66+R66,NA()))) ->  | U66: =IF(OR($A$5=3,$A$5=1),NA(),IF('plutonic template'!Z$86=FALSE,NA(),IF((ABS(D66)+E66+F66)>0,P66*BH$2+BH$2,NA()))) ->  | V66: =IF(OR($A$5=3,$A$5=1),NA(),IF('volcanic template'!Z$12=FALSE,NA(),IF((ABS(D66)+E66+F66)>0,BH$3*P66+R66,NA()))) ->  | W66: =IF(OR(A$5=3,A$5=1),NA(),IF('volcanic template'!Z$12=FALSE,NA(),IF((ABS(D66)+E66+F66)>0,P66*BH$2+BH$2,NA()))) ->  | X66: =IF(OR($A$5=3,$A$5=1,$D66<0),NA(),IF('plutonic template'!Z$19=FALSE,NA(),BH$3*P66+R66)) ->  | Y66: =IF(OR($A$5=3,$A$5=1,$D66<0),NA(),IF('plutonic template'!Z$19=FALSE,NA(),P66*BH$2)) ->  | Z66: =IF(OR($A$5=3,$A$5=2,D66<0),NA(),IF('plutonic template'!Z$329=FALSE,NA(),BH$3*J66+L66)) ->  | AA66: =IF(OR($A$5=3,$A$5=2,D66<0),NA(),IF('plutonic template'!Z$329=FALSE,NA(),J66*BH$2)) ->  | AF66: =IF(OR($A$5=3,$A$5=2,D66<0),NA(),IF('plutonic template'!Z$413=FALSE,NA(),BH$3*AC66+AE66)) ->  | AG66: =IF(OR($A$5=3,$A$5=2,D66<0),NA(),IF('plutonic template'!Z$413=FALSE,NA(),AC66*BH$2)) ->  | AL66: =IF('plutonic template'!Z$196=FALSE,NA(),BH$3*AI66+AK66) ->  | AM66: =IF('plutonic template'!Z$196=FALSE,NA(),AI66*BH$2) ->  | AR66: =IF('plutonic template'!$Z$234=FALSE,NA(),BH$3*AO66+AQ66) ->  | AS66: =IF('plutonic template'!$Z$234=FALSE,NA(),AO66*BH$2) ->  | AX66: =IF('plutonic template'!$Z$275=FALSE,NA(),BH$3*AU66+AW66) ->  | AY66: =IF('plutonic template'!$Z$275=FALSE,NA(),AU66*BH$2) ->  | BD66: =IF('plutonic template'!$Z$388=FALSE,NA(),BH$3*BA66+BC66) ->  | BE66: =IF('plutonic template'!$Z$388=FALSE,NA(),BA66*BH$2) -> 
N67: =IF(AND($A$5=2,D67<0),-1,1) -> 1 | T67: =IF(OR($A$5=3,$A$5=1),NA(),IF('plutonic template'!Z$86=FALSE,NA(),IF((ABS(D67)+E67+F67)>0,BH$3*P67+R67,NA()))) ->  | U67: =IF(OR($A$5=3,$A$5=1),NA(),IF('plutonic template'!Z$86=FALSE,NA(),IF((ABS(D67)+E67+F67)>0,P67*BH$2+BH$2,NA()))) ->  | V67: =IF(OR($A$5=3,$A$5=1),NA(),IF('volcanic template'!Z$12=FALSE,NA(),IF((ABS(D67)+E67+F67)>0,BH$3*P67+R67,NA()))) ->  | W67: =IF(OR(A$5=3,A$5=1),NA(),IF('volcanic template'!Z$12=FALSE,NA(),IF((ABS(D67)+E67+F67)>0,P67*BH$2+BH$2,NA()))) ->  | X67: =IF(OR($A$5=3,$A$5=1,$D67<0),NA(),IF('plutonic template'!Z$19=FALSE,NA(),BH$3*P67+R67)) ->  | Y67: =IF(OR($A$5=3,$A$5=1,$D67<0),NA(),IF('plutonic template'!Z$19=FALSE,NA(),P67*BH$2)) ->  | Z67: =IF(OR($A$5=3,$A$5=2,D67<0),NA(),IF('plutonic template'!Z$329=FALSE,NA(),BH$3*J67+L67)) ->  | AA67: =IF(OR($A$5=3,$A$5=2,D67<0),NA(),IF('plutonic template'!Z$329=FALSE,NA(),J67*BH$2)) ->  | AF67: =IF(OR($A$5=3,$A$5=2,D67<0),NA(),IF('plutonic template'!Z$413=FALSE,NA(),BH$3*AC67+AE67)) ->  | AG67: =IF(OR($A$5=3,$A$5=2,D67<0),NA(),IF('plutonic template'!Z$413=FALSE,NA(),AC67*BH$2)) ->  | AL67: =IF('plutonic template'!Z$196=FALSE,NA(),BH$3*AI67+AK67) ->  | AM67: =IF('plutonic template'!Z$196=FALSE,NA(),AI67*BH$2) ->  | AR67: =IF('plutonic template'!$Z$234=FALSE,NA(),BH$3*AO67+AQ67) ->  | AS67: =IF('plutonic template'!$Z$234=FALSE,NA(),AO67*BH$2) ->  | AX67: =IF('plutonic template'!$Z$275=FALSE,NA(),BH$3*AU67+AW67) ->  | AY67: =IF('plutonic template'!$Z$275=FALSE,NA(),AU67*BH$2) ->  | BD67: =IF('plutonic template'!$Z$388=FALSE,NA(),BH$3*BA67+BC67) ->  | BE67: =IF('plutonic template'!$Z$388=FALSE,NA(),BA67*BH$2) -> 
N68: 1 | T68: =IF(OR($A$5=3,$A$5=1),NA(),IF('plutonic template'!Z$86=FALSE,NA(),IF((ABS(D68)+E68+F68)>0,BH$3*P68+R68,NA()))) ->  | U68: =IF(OR($A$5=3,$A$5=1),NA(),IF('plutonic template'!Z$86=FALSE,NA(),IF((ABS(D68)+E68+F68)>0,P68*BH$2+BH$2,NA()))) ->  | V68: =IF(OR($A$5=3,$A$5=1),NA(),IF('volcanic template'!Z$12=FALSE,NA(),IF((ABS(D68)+E68+F68)>0,BH$3*P68+R68,NA()))) ->  | W68: =IF(OR(A$5=3,A$5=1),NA(),IF('volcanic template'!Z$12=FALSE,NA(),IF((ABS(D68)+E68+F68)>0,P68*BH$2+BH$2,NA()))) ->  | X68: =IF(OR($A$5=3,$A$5=1,$D68<0),NA(),IF('plutonic template'!Z$19=FALSE,NA(),BH$3*P68+R68)) ->  | Y68: =IF(OR($A$5=3,$A$5=1,$D68<0),NA(),IF('plutonic template'!Z$19=FALSE,NA(),P68*BH$2)) ->  | Z68: =IF(OR($A$5=3,$A$5=2,D68<0),NA(),IF('plutonic template'!Z$329=FALSE,NA(),BH$3*J68+L68)) ->  | AA68: =IF(OR($A$5=3,$A$5=2,D68<0),NA(),IF('plutonic template'!Z$329=FALSE,NA(),J68*BH$2)) ->  | AF68: =IF(OR($A$5=3,$A$5=2,D68<0),NA(),IF('plutonic template'!Z$413=FALSE,NA(),BH$3*AC68+AE68)) ->  | AG68: =IF(OR($A$5=3,$A$5=2,D68<0),NA(),IF('plutonic template'!Z$413=FALSE,NA(),AC68*BH$2)) ->  | AL68: =IF('plutonic template'!Z$196=FALSE,NA(),BH$3*AI68+AK68) ->  | AM68: =IF('plutonic template'!Z$196=FALSE,NA(),AI68*BH$2) ->  | AR68: =IF('plutonic template'!$Z$234=FALSE,NA(),BH$3*AO68+AQ68) ->  | AS68: =IF('plutonic template'!$Z$234=FALSE,NA(),AO68*BH$2) ->  | AX68: =IF('plutonic template'!$Z$275=FALSE,NA(),BH$3*AU68+AW68) ->  | AY68: =IF('plutonic template'!$Z$275=FALSE,NA(),AU68*BH$2) ->  | BD68: =IF('plutonic template'!$Z$388=FALSE,NA(),BH$3*BA68+BC68) ->  | BE68: =IF('plutonic template'!$Z$388=FALSE,NA(),BA68*BH$2) -> 
N69: 1 | T69: =IF(OR($A$5=3,$A$5=1),NA(),IF('plutonic template'!Z$86=FALSE,NA(),IF((ABS(D69)+E69+F69)>0,BH$3*P69+R69,NA()))) ->  | U69: =IF(OR($A$5=3,$A$5=1),NA(),IF('plutonic template'!Z$86=FALSE,NA(),IF((ABS(D69)+E69+F69)>0,P69*BH$2+BH$2,NA()))) ->  | V69: =IF(OR($A$5=3,$A$5=1),NA(),IF('volcanic template'!Z$12=FALSE,NA(),IF((ABS(D69)+E69+F69)>0,BH$3*P69+R69,NA()))) ->  | W69: =IF(OR(A$5=3,A$5=1),NA(),IF('volcanic template'!Z$12=FALSE,NA(),IF((ABS(D69)+E69+F69)>0,P69*BH$2+BH$2,NA()))) ->  | X69: =IF(OR($A$5=3,$A$5=1,$D69<0),NA(),IF('plutonic template'!Z$19=FALSE,NA(),BH$3*P69+R69)) ->  | Y69: =IF(OR($A$5=3,$A$5=1,$D69<0),NA(),IF('plutonic template'!Z$19=FALSE,NA(),P69*BH$2)) ->  | Z69: =IF(OR($A$5=3,$A$5=2,D69<0),NA(),IF('plutonic template'!Z$329=FALSE,NA(),BH$3*J69+L69)) ->  | AA69: =IF(OR($A$5=3,$A$5=2,D69<0),NA(),IF('plutonic template'!Z$329=FALSE,NA(),J69*BH$2)) ->  | AF69: =IF(OR($A$5=3,$A$5=2,D69<0),NA(),IF('plutonic template'!Z$413=FALSE,NA(),BH$3*AC69+AE69)) ->  | AG69: =IF(OR($A$5=3,$A$5=2,D69<0),NA(),IF('plutonic template'!Z$413=FALSE,NA(),AC69*BH$2)) ->  | AL69: =IF('plutonic template'!Z$196=FALSE,NA(),BH$3*AI69+AK69) ->  | AM69: =IF('plutonic template'!Z$196=FALSE,NA(),AI69*BH$2) ->  | AR69: =IF('plutonic template'!$Z$234=FALSE,NA(),BH$3*AO69+AQ69) ->  | AS69: =IF('plutonic template'!$Z$234=FALSE,NA(),AO69*BH$2) ->  | AX69: =IF('plutonic template'!$Z$275=FALSE,NA(),BH$3*AU69+AW69) ->  | AY69: =IF('plutonic template'!$Z$275=FALSE,NA(),AU69*BH$2) ->  | BD69: =IF('plutonic template'!$Z$388=FALSE,NA(),BH$3*BA69+BC69) ->  | BE69: =IF('plutonic template'!$Z$388=FALSE,NA(),BA69*BH$2) -> 
N70: 1 | T70: =IF(OR($A$5=3,$A$5=1),NA(),IF('plutonic template'!Z$86=FALSE,NA(),IF((ABS(D70)+E70+F70)>0,BH$3*P70+R70,NA()))) ->  | U70: =IF(OR($A$5=3,$A$5=1),NA(),IF('plutonic template'!Z$86=FALSE,NA(),IF((ABS(D70)+E70+F70)>0,P70*BH$2+BH$2,NA()))) ->  | V70: =IF(OR($A$5=3,$A$5=1),NA(),IF('volcanic template'!Z$12=FALSE,NA(),IF((ABS(D70)+E70+F70)>0,BH$3*P70+R70,NA()))) ->  | W70: =IF(OR(A$5=3,A$5=1),NA(),IF('volcanic template'!Z$12=FALSE,NA(),IF((ABS(D70)+E70+F70)>0,P70*BH$2+BH$2,NA()))) ->  | X70: =IF(OR($A$5=3,$A$5=1,$D70<0),NA(),IF('plutonic template'!Z$19=FALSE,NA(),BH$3*P70+R70)) ->  | Y70: =IF(OR($A$5=3,$A$5=1,$D70<0),NA(),IF('plutonic template'!Z$19=FALSE,NA(),P70*BH$2)) ->  | Z70: =IF(OR($A$5=3,$A$5=2,D70<0),NA(),IF('plutonic template'!Z$329=FALSE,NA(),BH$3*J70+L70)) ->  | AA70: =IF(OR($A$5=3,$A$5=2,D70<0),NA(),IF('plutonic template'!Z$329=FALSE,NA(),J70*BH$2)) ->  | AF70: =IF(OR($A$5=3,$A$5=2,D70<0),NA(),IF('plutonic template'!Z$413=FALSE,NA(),BH$3*AC70+AE70)) ->  | AG70: =IF(OR($A$5=3,$A$5=2,D70<0),NA(),IF('plutonic template'!Z$413=FALSE,NA(),AC70*BH$2)) ->  | AL70: =IF('plutonic template'!Z$196=FALSE,NA(),BH$3*AI70+AK70) ->  | AM70: =IF('plutonic template'!Z$196=FALSE,NA(),AI70*BH$2) ->  | AR70: =IF('plutonic template'!$Z$234=FALSE,NA(),BH$3*AO70+AQ70) ->  | AS70: =IF('plutonic template'!$Z$234=FALSE,NA(),AO70*BH$2) ->  | AX70: =IF('plutonic template'!$Z$275=FALSE,NA(),BH$3*AU70+AW70) ->  | AY70: =IF('plutonic template'!$Z$275=FALSE,NA(),AU70*BH$2) ->  | BD70: =IF('plutonic template'!$Z$388=FALSE,NA(),BH$3*BA70+BC70) ->  | BE70: =IF('plutonic template'!$Z$388=FALSE,NA(),BA70*BH$2) -> 
N71: 1 | T71: =IF(OR($A$5=3,$A$5=1),NA(),IF('plutonic template'!Z$86=FALSE,NA(),IF((ABS(D71)+E71+F71)>0,BH$3*P71+R71,NA()))) ->  | U71: =IF(OR($A$5=3,$A$5=1),NA(),IF('plutonic template'!Z$86=FALSE,NA(),IF((ABS(D71)+E71+F71)>0,P71*BH$2+BH$2,NA()))) ->  | V71: =IF(OR($A$5=3,$A$5=1),NA(),IF('volcanic template'!Z$12=FALSE,NA(),IF((ABS(D71)+E71+F71)>0,BH$3*P71+R71,NA()))) ->  | W71: =IF(OR(A$5=3,A$5=1),NA(),IF('volcanic template'!Z$12=FALSE,NA(),IF((ABS(D71)+E71+F71)>0,P71*BH$2+BH$2,NA()))) ->  | X71: =IF(OR($A$5=3,$A$5=1,$D71<0),NA(),IF('plutonic template'!Z$19=FALSE,NA(),BH$3*P71+R71)) ->  | Y71: =IF(OR($A$5=3,$A$5=1,$D71<0),NA(),IF('plutonic template'!Z$19=FALSE,NA(),P71*BH$2)) ->  | Z71: =IF(OR($A$5=3,$A$5=2,D71<0),NA(),IF('plutonic template'!Z$329=FALSE,NA(),BH$3*J71+L71)) ->  | AA71: =IF(OR($A$5=3,$A$5=2,D71<0),NA(),IF('plutonic template'!Z$329=FALSE,NA(),J71*BH$2)) ->  | AF71: =IF(OR($A$5=3,$A$5=2,D71<0),NA(),IF('plutonic template'!Z$413=FALSE,NA(),BH$3*AC71+AE71)) ->  | AG71: =IF(OR($A$5=3,$A$5=2,D71<0),NA(),IF('plutonic template'!Z$413=FALSE,NA(),AC71*BH$2)) ->  | AL71: =IF('plutonic template'!Z$196=FALSE,NA(),BH$3*AI71+AK71) ->  | AM71: =IF('plutonic template'!Z$196=FALSE,NA(),AI71*BH$2) ->  | AR71: =IF('plutonic template'!$Z$234=FALSE,NA(),BH$3*AO71+AQ71) ->  | AS71: =IF('plutonic template'!$Z$234=FALSE,NA(),AO71*BH$2) ->  | AX71: =IF('plutonic template'!$Z$275=FALSE,NA(),BH$3*AU71+AW71) ->  | AY71: =IF('plutonic template'!$Z$275=FALSE,NA(),AU71*BH$2) ->  | BD71: =IF('plutonic template'!$Z$388=FALSE,NA(),BH$3*BA71+BC71) ->  | BE71: =IF('plutonic template'!$Z$388=FALSE,NA(),BA71*BH$2) -> 
N72: 1 | T72: =IF(OR($A$5=3,$A$5=1),NA(),IF('plutonic template'!Z$86=FALSE,NA(),IF((ABS(D72)+E72+F72)>0,BH$3*P72+R72,NA()))) ->  | U72: =IF(OR($A$5=3,$A$5=1),NA(),IF('plutonic template'!Z$86=FALSE,NA(),IF((ABS(D72)+E72+F72)>0,P72*BH$2+BH$2,NA()))) ->  | V72: =IF(OR($A$5=3,$A$5=1),NA(),IF('volcanic template'!Z$12=FALSE,NA(),IF((ABS(D72)+E72+F72)>0,BH$3*P72+R72,NA()))) ->  | W72: =IF(OR(A$5=3,A$5=1),NA(),IF('volcanic template'!Z$12=FALSE,NA(),IF((ABS(D72)+E72+F72)>0,P72*BH$2+BH$2,NA()))) ->  | X72: =IF(OR($A$5=3,$A$5=1,$D72<0),NA(),IF('plutonic template'!Z$19=FALSE,NA(),BH$3*P72+R72)) ->  | Y72: =IF(OR($A$5=3,$A$5=1,$D72<0),NA(),IF('plutonic template'!Z$19=FALSE,NA(),P72*BH$2)) ->  | Z72: =IF(OR($A$5=3,$A$5=2,D72<0),NA(),IF('plutonic template'!Z$329=FALSE,NA(),BH$3*J72+L72)) ->  | AA72: =IF(OR($A$5=3,$A$5=2,D72<0),NA(),IF('plutonic template'!Z$329=FALSE,NA(),J72*BH$2)) ->  | AF72: =IF(OR($A$5=3,$A$5=2,D72<0),NA(),IF('plutonic template'!Z$413=FALSE,NA(),BH$3*AC72+AE72)) ->  | AG72: =IF(OR($A$5=3,$A$5=2,D72<0),NA(),IF('plutonic template'!Z$413=FALSE,NA(),AC72*BH$2)) ->  | AL72: =IF('plutonic template'!Z$196=FALSE,NA(),BH$3*AI72+AK72) ->  | AM72: =IF('plutonic template'!Z$196=FALSE,NA(),AI72*BH$2) ->  | AR72: =IF('plutonic template'!$Z$234=FALSE,NA(),BH$3*AO72+AQ72) ->  | AS72: =IF('plutonic template'!$Z$234=FALSE,NA(),AO72*BH$2) ->  | AX72: =IF('plutonic template'!$Z$275=FALSE,NA(),BH$3*AU72+AW72) ->  | AY72: =IF('plutonic template'!$Z$275=FALSE,NA(),AU72*BH$2) ->  | BD72: =IF('plutonic template'!$Z$388=FALSE,NA(),BH$3*BA72+BC72) ->  | BE72: =IF('plutonic template'!$Z$388=FALSE,NA(),BA72*BH$2) -> 
N73: 1 | T73: =IF(OR($A$5=3,$A$5=1),NA(),IF('plutonic template'!Z$86=FALSE,NA(),IF((ABS(D73)+E73+F73)>0,BH$3*P73+R73,NA()))) ->  | U73: =IF(OR($A$5=3,$A$5=1),NA(),IF('plutonic template'!Z$86=FALSE,NA(),IF((ABS(D73)+E73+F73)>0,P73*BH$2+BH$2,NA()))) ->  | V73: =IF(OR($A$5=3,$A$5=1),NA(),IF('volcanic template'!Z$12=FALSE,NA(),IF((ABS(D73)+E73+F73)>0,BH$3*P73+R73,NA()))) ->  | W73: =IF(OR(A$5=3,A$5=1),NA(),IF('volcanic template'!Z$12=FALSE,NA(),IF((ABS(D73)+E73+F73)>0,P73*BH$2+BH$2,NA()))) ->  | X73: =IF(OR($A$5=3,$A$5=1,$D73<0),NA(),IF('plutonic template'!Z$19=FALSE,NA(),BH$3*P73+R73)) ->  | Y73: =IF(OR($A$5=3,$A$5=1,$D73<0),NA(),IF('plutonic template'!Z$19=FALSE,NA(),P73*BH$2)) ->  | Z73: =IF(OR($A$5=3,$A$5=2,D73<0),NA(),IF('plutonic template'!Z$329=FALSE,NA(),BH$3*J73+L73)) ->  | AA73: =IF(OR($A$5=3,$A$5=2,D73<0),NA(),IF('plutonic template'!Z$329=FALSE,NA(),J73*BH$2)) ->  | AF73: =IF(OR($A$5=3,$A$5=2,D73<0),NA(),IF('plutonic template'!Z$413=FALSE,NA(),BH$3*AC73+AE73)) ->  | AG73: =IF(OR($A$5=3,$A$5=2,D73<0),NA(),IF('plutonic template'!Z$413=FALSE,NA(),AC73*BH$2)) ->  | AL73: =IF('plutonic template'!Z$196=FALSE,NA(),BH$3*AI73+AK73) ->  | AM73: =IF('plutonic template'!Z$196=FALSE,NA(),AI73*BH$2) ->  | AR73: =IF('plutonic template'!$Z$234=FALSE,NA(),BH$3*AO73+AQ73) ->  | AS73: =IF('plutonic template'!$Z$234=FALSE,NA(),AO73*BH$2) ->  | AX73: =IF('plutonic template'!$Z$275=FALSE,NA(),BH$3*AU73+AW73) ->  | AY73: =IF('plutonic template'!$Z$275=FALSE,NA(),AU73*BH$2) ->  | BD73: =IF('plutonic template'!$Z$388=FALSE,NA(),BH$3*BA73+BC73) ->  | BE73: =IF('plutonic template'!$Z$388=FALSE,NA(),BA73*BH$2) -> 
N74: 1 | T74: =IF(OR($A$5=3,$A$5=1),NA(),IF('plutonic template'!Z$86=FALSE,NA(),IF((ABS(D74)+E74+F74)>0,BH$3*P74+R74,NA()))) ->  | U74: =IF(OR($A$5=3,$A$5=1),NA(),IF('plutonic template'!Z$86=FALSE,NA(),IF((ABS(D74)+E74+F74)>0,P74*BH$2+BH$2,NA()))) ->  | V74: =IF(OR($A$5=3,$A$5=1),NA(),IF('volcanic template'!Z$12=FALSE,NA(),IF((ABS(D74)+E74+F74)>0,BH$3*P74+R74,NA()))) ->  | W74: =IF(OR(A$5=3,A$5=1),NA(),IF('volcanic template'!Z$12=FALSE,NA(),IF((ABS(D74)+E74+F74)>0,P74*BH$2+BH$2,NA()))) ->  | X74: =IF(OR($A$5=3,$A$5=1,$D74<0),NA(),IF('plutonic template'!Z$19=FALSE,NA(),BH$3*P74+R74)) ->  | Y74: =IF(OR($A$5=3,$A$5=1,$D74<0),NA(),IF('plutonic template'!Z$19=FALSE,NA(),P74*BH$2)) ->  | Z74: =IF(OR($A$5=3,$A$5=2,D74<0),NA(),IF('plutonic template'!Z$329=FALSE,NA(),BH$3*J74+L74)) ->  | AA74: =IF(OR($A$5=3,$A$5=2,D74<0),NA(),IF('plutonic template'!Z$329=FALSE,NA(),J74*BH$2)) ->  | AF74: =IF(OR($A$5=3,$A$5=2,D74<0),NA(),IF('plutonic template'!Z$413=FALSE,NA(),BH$3*AC74+AE74)) ->  | AG74: =IF(OR($A$5=3,$A$5=2,D74<0),NA(),IF('plutonic template'!Z$413=FALSE,NA(),AC74*BH$2)) ->  | AL74: =IF('plutonic template'!Z$196=FALSE,NA(),BH$3*AI74+AK74) ->  | AM74: =IF('plutonic template'!Z$196=FALSE,NA(),AI74*BH$2) ->  | AR74: =IF('plutonic template'!$Z$234=FALSE,NA(),BH$3*AO74+AQ74) ->  | AS74: =IF('plutonic template'!$Z$234=FALSE,NA(),AO74*BH$2) ->  | AX74: =IF('plutonic template'!$Z$275=FALSE,NA(),BH$3*AU74+AW74) ->  | AY74: =IF('plutonic template'!$Z$275=FALSE,NA(),AU74*BH$2) ->  | BD74: =IF('plutonic template'!$Z$388=FALSE,NA(),BH$3*BA74+BC74) ->  | BE74: =IF('plutonic template'!$Z$388=FALSE,NA(),BA74*BH$2) -> 
N75: 1 | T75: =IF(OR($A$5=3,$A$5=1),NA(),IF('plutonic template'!Z$86=FALSE,NA(),IF((ABS(D75)+E75+F75)>0,BH$3*P75+R75,NA()))) ->  | U75: =IF(OR($A$5=3,$A$5=1),NA(),IF('plutonic template'!Z$86=FALSE,NA(),IF((ABS(D75)+E75+F75)>0,P75*BH$2+BH$2,NA()))) ->  | V75: =IF(OR($A$5=3,$A$5=1),NA(),IF('volcanic template'!Z$12=FALSE,NA(),IF((ABS(D75)+E75+F75)>0,BH$3*P75+R75,NA()))) ->  | W75: =IF(OR(A$5=3,A$5=1),NA(),IF('volcanic template'!Z$12=FALSE,NA(),IF((ABS(D75)+E75+F75)>0,P75*BH$2+BH$2,NA()))) ->  | X75: =IF(OR($A$5=3,$A$5=1,$D75<0),NA(),IF('plutonic template'!Z$19=FALSE,NA(),BH$3*P75+R75)) ->  | Y75: =IF(OR($A$5=3,$A$5=1,$D75<0),NA(),IF('plutonic template'!Z$19=FALSE,NA(),P75*BH$2)) ->  | Z75: =IF(OR($A$5=3,$A$5=2,D75<0),NA(),IF('plutonic template'!Z$329=FALSE,NA(),BH$3*J75+L75)) ->  | AA75: =IF(OR($A$5=3,$A$5=2,D75<0),NA(),IF('plutonic template'!Z$329=FALSE,NA(),J75*BH$2)) ->  | AF75: =IF(OR($A$5=3,$A$5=2,D75<0),NA(),IF('plutonic template'!Z$413=FALSE,NA(),BH$3*AC75+AE75)) ->  | AG75: =IF(OR($A$5=3,$A$5=2,D75<0),NA(),IF('plutonic template'!Z$413=FALSE,NA(),AC75*BH$2)) ->  | AL75: =IF('plutonic template'!Z$196=FALSE,NA(),BH$3*AI75+AK75) ->  | AM75: =IF('plutonic template'!Z$196=FALSE,NA(),AI75*BH$2) ->  | AR75: =IF('plutonic template'!$Z$234=FALSE,NA(),BH$3*AO75+AQ75) ->  | AS75: =IF('plutonic template'!$Z$234=FALSE,NA(),AO75*BH$2) ->  | AX75: =IF('plutonic template'!$Z$275=FALSE,NA(),BH$3*AU75+AW75) ->  | AY75: =IF('plutonic template'!$Z$275=FALSE,NA(),AU75*BH$2) ->  | BD75: =IF('plutonic template'!$Z$388=FALSE,NA(),BH$3*BA75+BC75) ->  | BE75: =IF('plutonic template'!$Z$388=FALSE,NA(),BA75*BH$2) -> 
N76: 1 | T76: =IF(OR($A$5=3,$A$5=1),NA(),IF('plutonic template'!Z$86=FALSE,NA(),IF((ABS(D76)+E76+F76)>0,BH$3*P76+R76,NA()))) ->  | U76: =IF(OR($A$5=3,$A$5=1),NA(),IF('plutonic template'!Z$86=FALSE,NA(),IF((ABS(D76)+E76+F76)>0,P76*BH$2+BH$2,NA()))) ->  | V76: =IF(OR($A$5=3,$A$5=1),NA(),IF('volcanic template'!Z$12=FALSE,NA(),IF((ABS(D76)+E76+F76)>0,BH$3*P76+R76,NA()))) ->  | W76: =IF(OR(A$5=3,A$5=1),NA(),IF('volcanic template'!Z$12=FALSE,NA(),IF((ABS(D76)+E76+F76)>0,P76*BH$2+BH$2,NA()))) ->  | X76: =IF(OR($A$5=3,$A$5=1,$D76<0),NA(),IF('plutonic template'!Z$19=FALSE,NA(),BH$3*P76+R76)) ->  | Y76: =IF(OR($A$5=3,$A$5=1,$D76<0),NA(),IF('plutonic template'!Z$19=FALSE,NA(),P76*BH$2)) ->  | Z76: =IF(OR($A$5=3,$A$5=2,D76<0),NA(),IF('plutonic template'!Z$329=FALSE,NA(),BH$3*J76+L76)) ->  | AA76: =IF(OR($A$5=3,$A$5=2,D76<0),NA(),IF('plutonic template'!Z$329=FALSE,NA(),J76*BH$2)) ->  | AF76: =IF(OR($A$5=3,$A$5=2,D76<0),NA(),IF('plutonic template'!Z$413=FALSE,NA(),BH$3*AC76+AE76)) ->  | AG76: =IF(OR($A$5=3,$A$5=2,D76<0),NA(),IF('plutonic template'!Z$413=FALSE,NA(),AC76*BH$2)) ->  | AL76: =IF('plutonic template'!Z$196=FALSE,NA(),BH$3*AI76+AK76) ->  | AM76: =IF('plutonic template'!Z$196=FALSE,NA(),AI76*BH$2) ->  | AR76: =IF('plutonic template'!$Z$234=FALSE,NA(),BH$3*AO76+AQ76) ->  | AS76: =IF('plutonic template'!$Z$234=FALSE,NA(),AO76*BH$2) ->  | AX76: =IF('plutonic template'!$Z$275=FALSE,NA(),BH$3*AU76+AW76) ->  | AY76: =IF('plutonic template'!$Z$275=FALSE,NA(),AU76*BH$2) ->  | BD76: =IF('plutonic template'!$Z$388=FALSE,NA(),BH$3*BA76+BC76) ->  | BE76: =IF('plutonic template'!$Z$388=FALSE,NA(),BA76*BH$2) -> 
N77: 1 | T77: =IF(OR($A$5=3,$A$5=1),NA(),IF('plutonic template'!Z$86=FALSE,NA(),IF((ABS(D77)+E77+F77)>0,BH$3*P77+R77,NA()))) ->  | U77: =IF(OR($A$5=3,$A$5=1),NA(),IF('plutonic template'!Z$86=FALSE,NA(),IF((ABS(D77)+E77+F77)>0,P77*BH$2+BH$2,NA()))) ->  | V77: =IF(OR($A$5=3,$A$5=1),NA(),IF('volcanic template'!Z$12=FALSE,NA(),IF((ABS(D77)+E77+F77)>0,BH$3*P77+R77,NA()))) ->  | W77: =IF(OR(A$5=3,A$5=1),NA(),IF('volcanic template'!Z$12=FALSE,NA(),IF((ABS(D77)+E77+F77)>0,P77*BH$2+BH$2,NA()))) ->  | X77: =IF(OR($A$5=3,$A$5=1,$D77<0),NA(),IF('plutonic template'!Z$19=FALSE,NA(),BH$3*P77+R77)) ->  | Y77: =IF(OR($A$5=3,$A$5=1,$D77<0),NA(),IF('plutonic template'!Z$19=FALSE,NA(),P77*BH$2)) ->  | Z77: =IF(OR($A$5=3,$A$5=2,D77<0),NA(),IF('plutonic template'!Z$329=FALSE,NA(),BH$3*J77+L77)) ->  | AA77: =IF(OR($A$5=3,$A$5=2,D77<0),NA(),IF('plutonic template'!Z$329=FALSE,NA(),J77*BH$2)) ->  | AF77: =IF(OR($A$5=3,$A$5=2,D77<0),NA(),IF('plutonic template'!Z$413=FALSE,NA(),BH$3*AC77+AE77)) ->  | AG77: =IF(OR($A$5=3,$A$5=2,D77<0),NA(),IF('plutonic template'!Z$413=FALSE,NA(),AC77*BH$2)) ->  | AL77: =IF('plutonic template'!Z$196=FALSE,NA(),BH$3*AI77+AK77) ->  | AM77: =IF('plutonic template'!Z$196=FALSE,NA(),AI77*BH$2) ->  | AR77: =IF('plutonic template'!$Z$234=FALSE,NA(),BH$3*AO77+AQ77) ->  | AS77: =IF('plutonic template'!$Z$234=FALSE,NA(),AO77*BH$2) ->  | AX77: =IF('plutonic template'!$Z$275=FALSE,NA(),BH$3*AU77+AW77) ->  | AY77: =IF('plutonic template'!$Z$275=FALSE,NA(),AU77*BH$2) ->  | BD77: =IF('plutonic template'!$Z$388=FALSE,NA(),BH$3*BA77+BC77) ->  | BE77: =IF('plutonic template'!$Z$388=FALSE,NA(),BA77*BH$2) -> 
N78: 1 | T78: =IF(OR($A$5=3,$A$5=1),NA(),IF('plutonic template'!Z$86=FALSE,NA(),IF((ABS(D78)+E78+F78)>0,BH$3*P78+R78,NA()))) ->  | U78: =IF(OR($A$5=3,$A$5=1),NA(),IF('plutonic template'!Z$86=FALSE,NA(),IF((ABS(D78)+E78+F78)>0,P78*BH$2+BH$2,NA()))) ->  | V78: =IF(OR($A$5=3,$A$5=1),NA(),IF('volcanic template'!Z$12=FALSE,NA(),IF((ABS(D78)+E78+F78)>0,BH$3*P78+R78,NA()))) ->  | W78: =IF(OR(A$5=3,A$5=1),NA(),IF('volcanic template'!Z$12=FALSE,NA(),IF((ABS(D78)+E78+F78)>0,P78*BH$2+BH$2,NA()))) ->  | X78: =IF(OR($A$5=3,$A$5=1,$D78<0),NA(),IF('plutonic template'!Z$19=FALSE,NA(),BH$3*P78+R78)) ->  | Y78: =IF(OR($A$5=3,$A$5=1,$D78<0),NA(),IF('plutonic template'!Z$19=FALSE,NA(),P78*BH$2)) ->  | Z78: =IF(OR($A$5=3,$A$5=2,D78<0),NA(),IF('plutonic template'!Z$329=FALSE,NA(),BH$3*J78+L78)) ->  | AA78: =IF(OR($A$5=3,$A$5=2,D78<0),NA(),IF('plutonic template'!Z$329=FALSE,NA(),J78*BH$2)) ->  | AF78: =IF(OR($A$5=3,$A$5=2,D78<0),NA(),IF('plutonic template'!Z$413=FALSE,NA(),BH$3*AC78+AE78)) ->  | AG78: =IF(OR($A$5=3,$A$5=2,D78<0),NA(),IF('plutonic template'!Z$413=FALSE,NA(),AC78*BH$2)) ->  | AL78: =IF('plutonic template'!Z$196=FALSE,NA(),BH$3*AI78+AK78) ->  | AM78: =IF('plutonic template'!Z$196=FALSE,NA(),AI78*BH$2) ->  | AR78: =IF('plutonic template'!$Z$234=FALSE,NA(),BH$3*AO78+AQ78) ->  | AS78: =IF('plutonic template'!$Z$234=FALSE,NA(),AO78*BH$2) ->  | AX78: =IF('plutonic template'!$Z$275=FALSE,NA(),BH$3*AU78+AW78) ->  | AY78: =IF('plutonic template'!$Z$275=FALSE,NA(),AU78*BH$2) ->  | BD78: =IF('plutonic template'!$Z$388=FALSE,NA(),BH$3*BA78+BC78) ->  | BE78: =IF('plutonic template'!$Z$388=FALSE,NA(),BA78*BH$2) -> 
N79: 1 | T79: =IF(OR($A$5=3,$A$5=1),NA(),IF('plutonic template'!Z$86=FALSE,NA(),IF((ABS(D79)+E79+F79)>0,BH$3*P79+R79,NA()))) ->  | U79: =IF(OR($A$5=3,$A$5=1),NA(),IF('plutonic template'!Z$86=FALSE,NA(),IF((ABS(D79)+E79+F79)>0,P79*BH$2+BH$2,NA()))) ->  | V79: =IF(OR($A$5=3,$A$5=1),NA(),IF('volcanic template'!Z$12=FALSE,NA(),IF((ABS(D79)+E79+F79)>0,BH$3*P79+R79,NA()))) ->  | W79: =IF(OR(A$5=3,A$5=1),NA(),IF('volcanic template'!Z$12=FALSE,NA(),IF((ABS(D79)+E79+F79)>0,P79*BH$2+BH$2,NA()))) ->  | X79: =IF(OR($A$5=3,$A$5=1,$D79<0),NA(),IF('plutonic template'!Z$19=FALSE,NA(),BH$3*P79+R79)) ->  | Y79: =IF(OR($A$5=3,$A$5=1,$D79<0),NA(),IF('plutonic template'!Z$19=FALSE,NA(),P79*BH$2)) ->  | Z79: =IF(OR($A$5=3,$A$5=2,D79<0),NA(),IF('plutonic template'!Z$329=FALSE,NA(),BH$3*J79+L79)) ->  | AA79: =IF(OR($A$5=3,$A$5=2,D79<0),NA(),IF('plutonic template'!Z$329=FALSE,NA(),J79*BH$2)) ->  | AF79: =IF(OR($A$5=3,$A$5=2,D79<0),NA(),IF('plutonic template'!Z$413=FALSE,NA(),BH$3*AC79+AE79)) ->  | AG79: =IF(OR($A$5=3,$A$5=2,D79<0),NA(),IF('plutonic template'!Z$413=FALSE,NA(),AC79*BH$2)) ->  | AL79: =IF('plutonic template'!Z$196=FALSE,NA(),BH$3*AI79+AK79) ->  | AM79: =IF('plutonic template'!Z$196=FALSE,NA(),AI79*BH$2) ->  | AR79: =IF('plutonic template'!$Z$234=FALSE,NA(),BH$3*AO79+AQ79) ->  | AS79: =IF('plutonic template'!$Z$234=FALSE,NA(),AO79*BH$2) ->  | AX79: =IF('plutonic template'!$Z$275=FALSE,NA(),BH$3*AU79+AW79) ->  | AY79: =IF('plutonic template'!$Z$275=FALSE,NA(),AU79*BH$2) ->  | BD79: =IF('plutonic template'!$Z$388=FALSE,NA(),BH$3*BA79+BC79) ->  | BE79: =IF('plutonic template'!$Z$388=FALSE,NA(),BA79*BH$2) -> 
N80: 1 | T80: =IF(OR($A$5=3,$A$5=1),NA(),IF('plutonic template'!Z$86=FALSE,NA(),IF((ABS(D80)+E80+F80)>0,BH$3*P80+R80,NA()))) ->  | U80: =IF(OR($A$5=3,$A$5=1),NA(),IF('plutonic template'!Z$86=FALSE,NA(),IF((ABS(D80)+E80+F80)>0,P80*BH$2+BH$2,NA()))) ->  | V80: =IF(OR($A$5=3,$A$5=1),NA(),IF('volcanic template'!Z$12=FALSE,NA(),IF((ABS(D80)+E80+F80)>0,BH$3*P80+R80,NA()))) ->  | W80: =IF(OR(A$5=3,A$5=1),NA(),IF('volcanic template'!Z$12=FALSE,NA(),IF((ABS(D80)+E80+F80)>0,P80*BH$2+BH$2,NA()))) ->  | X80: =IF(OR($A$5=3,$A$5=1,$D80<0),NA(),IF('plutonic template'!Z$19=FALSE,NA(),BH$3*P80+R80)) ->  | Y80: =IF(OR($A$5=3,$A$5=1,$D80<0),NA(),IF('plutonic template'!Z$19=FALSE,NA(),P80*BH$2)) ->  | Z80: =IF(OR($A$5=3,$A$5=2,D80<0),NA(),IF('plutonic template'!Z$329=FALSE,NA(),BH$3*J80+L80)) ->  | AA80: =IF(OR($A$5=3,$A$5=2,D80<0),NA(),IF('plutonic template'!Z$329=FALSE,NA(),J80*BH$2)) ->  | AF80: =IF(OR($A$5=3,$A$5=2,D80<0),NA(),IF('plutonic template'!Z$413=FALSE,NA(),BH$3*AC80+AE80)) ->  | AG80: =IF(OR($A$5=3,$A$5=2,D80<0),NA(),IF('plutonic template'!Z$413=FALSE,NA(),AC80*BH$2)) ->  | AL80: =IF('plutonic template'!Z$196=FALSE,NA(),BH$3*AI80+AK80) ->  | AM80: =IF('plutonic template'!Z$196=FALSE,NA(),AI80*BH$2) ->  | AR80: =IF('plutonic template'!$Z$234=FALSE,NA(),BH$3*AO80+AQ80) ->  | AS80: =IF('plutonic template'!$Z$234=FALSE,NA(),AO80*BH$2) ->  | AX80: =IF('plutonic template'!$Z$275=FALSE,NA(),BH$3*AU80+AW80) ->  | AY80: =IF('plutonic template'!$Z$275=FALSE,NA(),AU80*BH$2) ->  | BD80: =IF('plutonic template'!$Z$388=FALSE,NA(),BH$3*BA80+BC80) ->  | BE80: =IF('plutonic template'!$Z$388=FALSE,NA(),BA80*BH$2) -> 
N81: 1 | T81: =IF(OR($A$5=3,$A$5=1),NA(),IF('plutonic template'!Z$86=FALSE,NA(),IF((ABS(D81)+E81+F81)>0,BH$3*P81+R81,NA()))) ->  | U81: =IF(OR($A$5=3,$A$5=1),NA(),IF('plutonic template'!Z$86=FALSE,NA(),IF((ABS(D81)+E81+F81)>0,P81*BH$2+BH$2,NA()))) ->  | V81: =IF(OR($A$5=3,$A$5=1),NA(),IF('volcanic template'!Z$12=FALSE,NA(),IF((ABS(D81)+E81+F81)>0,BH$3*P81+R81,NA()))) ->  | W81: =IF(OR(A$5=3,A$5=1),NA(),IF('volcanic template'!Z$12=FALSE,NA(),IF((ABS(D81)+E81+F81)>0,P81*BH$2+BH$2,NA()))) ->  | X81: =IF(OR($A$5=3,$A$5=1,$D81<0),NA(),IF('plutonic template'!Z$19=FALSE,NA(),BH$3*P81+R81)) ->  | Y81: =IF(OR($A$5=3,$A$5=1,$D81<0),NA(),IF('plutonic template'!Z$19=FALSE,NA(),P81*BH$2)) ->  | Z81: =IF(OR($A$5=3,$A$5=2,D81<0),NA(),IF('plutonic template'!Z$329=FALSE,NA(),BH$3*J81+L81)) ->  | AA81: =IF(OR($A$5=3,$A$5=2,D81<0),NA(),IF('plutonic template'!Z$329=FALSE,NA(),J81*BH$2)) ->  | AF81: =IF(OR($A$5=3,$A$5=2,D81<0),NA(),IF('plutonic template'!Z$413=FALSE,NA(),BH$3*AC81+AE81)) ->  | AG81: =IF(OR($A$5=3,$A$5=2,D81<0),NA(),IF('plutonic template'!Z$413=FALSE,NA(),AC81*BH$2)) ->  | AL81: =IF('plutonic template'!Z$196=FALSE,NA(),BH$3*AI81+AK81) ->  | AM81: =IF('plutonic template'!Z$196=FALSE,NA(),AI81*BH$2) ->  | AR81: =IF('plutonic template'!$Z$234=FALSE,NA(),BH$3*AO81+AQ81) ->  | AS81: =IF('plutonic template'!$Z$234=FALSE,NA(),AO81*BH$2) ->  | AX81: =IF('plutonic template'!$Z$275=FALSE,NA(),BH$3*AU81+AW81) ->  | AY81: =IF('plutonic template'!$Z$275=FALSE,NA(),AU81*BH$2) ->  | BD81: =IF('plutonic template'!$Z$388=FALSE,NA(),BH$3*BA81+BC81) ->  | BE81: =IF('plutonic template'!$Z$388=FALSE,NA(),BA81*BH$2) -> 
N82: 1 | T82: =IF(OR($A$5=3,$A$5=1),NA(),IF('plutonic template'!Z$86=FALSE,NA(),IF((ABS(D82)+E82+F82)>0,BH$3*P82+R82,NA()))) ->  | U82: =IF(OR($A$5=3,$A$5=1),NA(),IF('plutonic template'!Z$86=FALSE,NA(),IF((ABS(D82)+E82+F82)>0,P82*BH$2+BH$2,NA()))) ->  | V82: =IF(OR($A$5=3,$A$5=1),NA(),IF('volcanic template'!Z$12=FALSE,NA(),IF((ABS(D82)+E82+F82)>0,BH$3*P82+R82,NA()))) ->  | W82: =IF(OR(A$5=3,A$5=1),NA(),IF('volcanic template'!Z$12=FALSE,NA(),IF((ABS(D82)+E82+F82)>0,P82*BH$2+BH$2,NA()))) ->  | X82: =IF(OR($A$5=3,$A$5=1,$D82<0),NA(),IF('plutonic template'!Z$19=FALSE,NA(),BH$3*P82+R82)) ->  | Y82: =IF(OR($A$5=3,$A$5=1,$D82<0),NA(),IF('plutonic template'!Z$19=FALSE,NA(),P82*BH$2)) ->  | Z82: =IF(OR($A$5=3,$A$5=2,D82<0),NA(),IF('plutonic template'!Z$329=FALSE,NA(),BH$3*J82+L82)) ->  | AA82: =IF(OR($A$5=3,$A$5=2,D82<0),NA(),IF('plutonic template'!Z$329=FALSE,NA(),J82*BH$2)) ->  | AF82: =IF(OR($A$5=3,$A$5=2,D82<0),NA(),IF('plutonic template'!Z$413=FALSE,NA(),BH$3*AC82+AE82)) ->  | AG82: =IF(OR($A$5=3,$A$5=2,D82<0),NA(),IF('plutonic template'!Z$413=FALSE,NA(),AC82*BH$2)) ->  | AL82: =IF('plutonic template'!Z$196=FALSE,NA(),BH$3*AI82+AK82) ->  | AM82: =IF('plutonic template'!Z$196=FALSE,NA(),AI82*BH$2) ->  | AR82: =IF('plutonic template'!$Z$234=FALSE,NA(),BH$3*AO82+AQ82) ->  | AS82: =IF('plutonic template'!$Z$234=FALSE,NA(),AO82*BH$2) ->  | AX82: =IF('plutonic template'!$Z$275=FALSE,NA(),BH$3*AU82+AW82) ->  | AY82: =IF('plutonic template'!$Z$275=FALSE,NA(),AU82*BH$2) ->  | BD82: =IF('plutonic template'!$Z$388=FALSE,NA(),BH$3*BA82+BC82) ->  | BE82: =IF('plutonic template'!$Z$388=FALSE,NA(),BA82*BH$2) -> 
N83: 1 | T83: =IF(OR($A$5=3,$A$5=1),NA(),IF('plutonic template'!Z$86=FALSE,NA(),IF((ABS(D83)+E83+F83)>0,BH$3*P83+R83,NA()))) ->  | U83: =IF(OR($A$5=3,$A$5=1),NA(),IF('plutonic template'!Z$86=FALSE,NA(),IF((ABS(D83)+E83+F83)>0,P83*BH$2+BH$2,NA()))) ->  | V83: =IF(OR($A$5=3,$A$5=1),NA(),IF('volcanic template'!Z$12=FALSE,NA(),IF((ABS(D83)+E83+F83)>0,BH$3*P83+R83,NA()))) ->  | W83: =IF(OR(A$5=3,A$5=1),NA(),IF('volcanic template'!Z$12=FALSE,NA(),IF((ABS(D83)+E83+F83)>0,P83*BH$2+BH$2,NA()))) ->  | X83: =IF(OR($A$5=3,$A$5=1,$D83<0),NA(),IF('plutonic template'!Z$19=FALSE,NA(),BH$3*P83+R83)) ->  | Y83: =IF(OR($A$5=3,$A$5=1,$D83<0),NA(),IF('plutonic template'!Z$19=FALSE,NA(),P83*BH$2)) ->  | Z83: =IF(OR($A$5=3,$A$5=2,D83<0),NA(),IF('plutonic template'!Z$329=FALSE,NA(),BH$3*J83+L83)) ->  | AA83: =IF(OR($A$5=3,$A$5=2,D83<0),NA(),IF('plutonic template'!Z$329=FALSE,NA(),J83*BH$2)) ->  | AF83: =IF(OR($A$5=3,$A$5=2,D83<0),NA(),IF('plutonic template'!Z$413=FALSE,NA(),BH$3*AC83+AE83)) ->  | AG83: =IF(OR($A$5=3,$A$5=2,D83<0),NA(),IF('plutonic template'!Z$413=FALSE,NA(),AC83*BH$2)) ->  | AL83: =IF('plutonic template'!Z$196=FALSE,NA(),BH$3*AI83+AK83) ->  | AM83: =IF('plutonic template'!Z$196=FALSE,NA(),AI83*BH$2) ->  | AR83: =IF('plutonic template'!$Z$234=FALSE,NA(),BH$3*AO83+AQ83) ->  | AS83: =IF('plutonic template'!$Z$234=FALSE,NA(),AO83*BH$2) ->  | AX83: =IF('plutonic template'!$Z$275=FALSE,NA(),BH$3*AU83+AW83) ->  | AY83: =IF('plutonic template'!$Z$275=FALSE,NA(),AU83*BH$2) ->  | BD83: =IF('plutonic template'!$Z$388=FALSE,NA(),BH$3*BA83+BC83) ->  | BE83: =IF('plutonic template'!$Z$388=FALSE,NA(),BA83*BH$2) -> 
N84: 1 | T84: =IF(OR($A$5=3,$A$5=1),NA(),IF('plutonic template'!Z$86=FALSE,NA(),IF((ABS(D84)+E84+F84)>0,BH$3*P84+R84,NA()))) ->  | U84: =IF(OR($A$5=3,$A$5=1),NA(),IF('plutonic template'!Z$86=FALSE,NA(),IF((ABS(D84)+E84+F84)>0,P84*BH$2+BH$2,NA()))) ->  | V84: =IF(OR($A$5=3,$A$5=1),NA(),IF('volcanic template'!Z$12=FALSE,NA(),IF((ABS(D84)+E84+F84)>0,BH$3*P84+R84,NA()))) ->  | W84: =IF(OR(A$5=3,A$5=1),NA(),IF('volcanic template'!Z$12=FALSE,NA(),IF((ABS(D84)+E84+F84)>0,P84*BH$2+BH$2,NA()))) ->  | X84: =IF(OR($A$5=3,$A$5=1,$D84<0),NA(),IF('plutonic template'!Z$19=FALSE,NA(),BH$3*P84+R84)) ->  | Y84: =IF(OR($A$5=3,$A$5=1,$D84<0),NA(),IF('plutonic template'!Z$19=FALSE,NA(),P84*BH$2)) ->  | Z84: =IF(OR($A$5=3,$A$5=2,D84<0),NA(),IF('plutonic template'!Z$329=FALSE,NA(),BH$3*J84+L84)) ->  | AA84: =IF(OR($A$5=3,$A$5=2,D84<0),NA(),IF('plutonic template'!Z$329=FALSE,NA(),J84*BH$2)) ->  | AF84: =IF(OR($A$5=3,$A$5=2,D84<0),NA(),IF('plutonic template'!Z$413=FALSE,NA(),BH$3*AC84+AE84)) ->  | AG84: =IF(OR($A$5=3,$A$5=2,D84<0),NA(),IF('plutonic template'!Z$413=FALSE,NA(),AC84*BH$2)) ->  | AL84: =IF('plutonic template'!Z$196=FALSE,NA(),BH$3*AI84+AK84) ->  | AM84: =IF('plutonic template'!Z$196=FALSE,NA(),AI84*BH$2) ->  | AR84: =IF('plutonic template'!$Z$234=FALSE,NA(),BH$3*AO84+AQ84) ->  | AS84: =IF('plutonic template'!$Z$234=FALSE,NA(),AO84*BH$2) ->  | AX84: =IF('plutonic template'!$Z$275=FALSE,NA(),BH$3*AU84+AW84) ->  | AY84: =IF('plutonic template'!$Z$275=FALSE,NA(),AU84*BH$2) ->  | BD84: =IF('plutonic template'!$Z$388=FALSE,NA(),BH$3*BA84+BC84) ->  | BE84: =IF('plutonic template'!$Z$388=FALSE,NA(),BA84*BH$2) -> 
N85: 1 | T85: =IF(OR($A$5=3,$A$5=1),NA(),IF('plutonic template'!Z$86=FALSE,NA(),IF((ABS(D85)+E85+F85)>0,BH$3*P85+R85,NA()))) ->  | U85: =IF(OR($A$5=3,$A$5=1),NA(),IF('plutonic template'!Z$86=FALSE,NA(),IF((ABS(D85)+E85+F85)>0,P85*BH$2+BH$2,NA()))) ->  | V85: =IF(OR($A$5=3,$A$5=1),NA(),IF('volcanic template'!Z$12=FALSE,NA(),IF((ABS(D85)+E85+F85)>0,BH$3*P85+R85,NA()))) ->  | W85: =IF(OR(A$5=3,A$5=1),NA(),IF('volcanic template'!Z$12=FALSE,NA(),IF((ABS(D85)+E85+F85)>0,P85*BH$2+BH$2,NA()))) ->  | X85: =IF(OR($A$5=3,$A$5=1,$D85<0),NA(),IF('plutonic template'!Z$19=FALSE,NA(),BH$3*P85+R85)) ->  | Y85: =IF(OR($A$5=3,$A$5=1,$D85<0),NA(),IF('plutonic template'!Z$19=FALSE,NA(),P85*BH$2)) ->  | Z85: =IF(OR($A$5=3,$A$5=2,D85<0),NA(),IF('plutonic template'!Z$329=FALSE,NA(),BH$3*J85+L85)) ->  | AA85: =IF(OR($A$5=3,$A$5=2,D85<0),NA(),IF('plutonic template'!Z$329=FALSE,NA(),J85*BH$2)) ->  | AF85: =IF(OR($A$5=3,$A$5=2,D85<0),NA(),IF('plutonic template'!Z$413=FALSE,NA(),BH$3*AC85+AE85)) ->  | AG85: =IF(OR($A$5=3,$A$5=2,D85<0),NA(),IF('plutonic template'!Z$413=FALSE,NA(),AC85*BH$2)) ->  | AL85: =IF('plutonic template'!Z$196=FALSE,NA(),BH$3*AI85+AK85) ->  | AM85: =IF('plutonic template'!Z$196=FALSE,NA(),AI85*BH$2) ->  | AR85: =IF('plutonic template'!$Z$234=FALSE,NA(),BH$3*AO85+AQ85) ->  | AS85: =IF('plutonic template'!$Z$234=FALSE,NA(),AO85*BH$2) ->  | AX85: =IF('plutonic template'!$Z$275=FALSE,NA(),BH$3*AU85+AW85) ->  | AY85: =IF('plutonic template'!$Z$275=FALSE,NA(),AU85*BH$2) ->  | BD85: =IF('plutonic template'!$Z$388=FALSE,NA(),BH$3*BA85+BC85) ->  | BE85: =IF('plutonic template'!$Z$388=FALSE,NA(),BA85*BH$2) -> 
N86: 1 | T86: =IF(OR($A$5=3,$A$5=1),NA(),IF('plutonic template'!Z$86=FALSE,NA(),IF((ABS(D86)+E86+F86)>0,BH$3*P86+R86,NA()))) ->  | U86: =IF(OR($A$5=3,$A$5=1),NA(),IF('plutonic template'!Z$86=FALSE,NA(),IF((ABS(D86)+E86+F86)>0,P86*BH$2+BH$2,NA()))) ->  | V86: =IF(OR($A$5=3,$A$5=1),NA(),IF('volcanic template'!Z$12=FALSE,NA(),IF((ABS(D86)+E86+F86)>0,BH$3*P86+R86,NA()))) ->  | W86: =IF(OR(A$5=3,A$5=1),NA(),IF('volcanic template'!Z$12=FALSE,NA(),IF((ABS(D86)+E86+F86)>0,P86*BH$2+BH$2,NA()))) ->  | X86: =IF(OR($A$5=3,$A$5=1,$D86<0),NA(),IF('plutonic template'!Z$19=FALSE,NA(),BH$3*P86+R86)) ->  | Y86: =IF(OR($A$5=3,$A$5=1,$D86<0),NA(),IF('plutonic template'!Z$19=FALSE,NA(),P86*BH$2)) ->  | Z86: =IF(OR($A$5=3,$A$5=2,D86<0),NA(),IF('plutonic template'!Z$329=FALSE,NA(),BH$3*J86+L86)) ->  | AA86: =IF(OR($A$5=3,$A$5=2,D86<0),NA(),IF('plutonic template'!Z$329=FALSE,NA(),J86*BH$2)) ->  | AF86: =IF(OR($A$5=3,$A$5=2,D86<0),NA(),IF('plutonic template'!Z$413=FALSE,NA(),BH$3*AC86+AE86)) ->  | AG86: =IF(OR($A$5=3,$A$5=2,D86<0),NA(),IF('plutonic template'!Z$413=FALSE,NA(),AC86*BH$2)) ->  | AL86: =IF('plutonic template'!Z$196=FALSE,NA(),BH$3*AI86+AK86) ->  | AM86: =IF('plutonic template'!Z$196=FALSE,NA(),AI86*BH$2) ->  | AR86: =IF('plutonic template'!$Z$234=FALSE,NA(),BH$3*AO86+AQ86) ->  | AS86: =IF('plutonic template'!$Z$234=FALSE,NA(),AO86*BH$2) ->  | AX86: =IF('plutonic template'!$Z$275=FALSE,NA(),BH$3*AU86+AW86) ->  | AY86: =IF('plutonic template'!$Z$275=FALSE,NA(),AU86*BH$2) ->  | BD86: =IF('plutonic template'!$Z$388=FALSE,NA(),BH$3*BA86+BC86) ->  | BE86: =IF('plutonic template'!$Z$388=FALSE,NA(),BA86*BH$2) -> 
N87: 1 | T87: =IF(OR($A$5=3,$A$5=1),NA(),IF('plutonic template'!Z$86=FALSE,NA(),IF((ABS(D87)+E87+F87)>0,BH$3*P87+R87,NA()))) ->  | U87: =IF(OR($A$5=3,$A$5=1),NA(),IF('plutonic template'!Z$86=FALSE,NA(),IF((ABS(D87)+E87+F87)>0,P87*BH$2+BH$2,NA()))) ->  | V87: =IF(OR($A$5=3,$A$5=1),NA(),IF('volcanic template'!Z$12=FALSE,NA(),IF((ABS(D87)+E87+F87)>0,BH$3*P87+R87,NA()))) ->  | W87: =IF(OR(A$5=3,A$5=1),NA(),IF('volcanic template'!Z$12=FALSE,NA(),IF((ABS(D87)+E87+F87)>0,P87*BH$2+BH$2,NA()))) ->  | X87: =IF(OR($A$5=3,$A$5=1,$D87<0),NA(),IF('plutonic template'!Z$19=FALSE,NA(),BH$3*P87+R87)) ->  | Y87: =IF(OR($A$5=3,$A$5=1,$D87<0),NA(),IF('plutonic template'!Z$19=FALSE,NA(),P87*BH$2)) ->  | Z87: =IF(OR($A$5=3,$A$5=2,D87<0),NA(),IF('plutonic template'!Z$329=FALSE,NA(),BH$3*J87+L87)) ->  | AA87: =IF(OR($A$5=3,$A$5=2,D87<0),NA(),IF('plutonic template'!Z$329=FALSE,NA(),J87*BH$2)) ->  | AF87: =IF(OR($A$5=3,$A$5=2,D87<0),NA(),IF('plutonic template'!Z$413=FALSE,NA(),BH$3*AC87+AE87)) ->  | AG87: =IF(OR($A$5=3,$A$5=2,D87<0),NA(),IF('plutonic template'!Z$413=FALSE,NA(),AC87*BH$2)) ->  | AL87: =IF('plutonic template'!Z$196=FALSE,NA(),BH$3*AI87+AK87) ->  | AM87: =IF('plutonic template'!Z$196=FALSE,NA(),AI87*BH$2) ->  | AR87: =IF('plutonic template'!$Z$234=FALSE,NA(),BH$3*AO87+AQ87) ->  | AS87: =IF('plutonic template'!$Z$234=FALSE,NA(),AO87*BH$2) ->  | AX87: =IF('plutonic template'!$Z$275=FALSE,NA(),BH$3*AU87+AW87) ->  | AY87: =IF('plutonic template'!$Z$275=FALSE,NA(),AU87*BH$2) ->  | BD87: =IF('plutonic template'!$Z$388=FALSE,NA(),BH$3*BA87+BC87) ->  | BE87: =IF('plutonic template'!$Z$388=FALSE,NA(),BA87*BH$2) -> 
N88: 1 | T88: =IF(OR($A$5=3,$A$5=1),NA(),IF('plutonic template'!Z$86=FALSE,NA(),IF((ABS(D88)+E88+F88)>0,BH$3*P88+R88,NA()))) ->  | U88: =IF(OR($A$5=3,$A$5=1),NA(),IF('plutonic template'!Z$86=FALSE,NA(),IF((ABS(D88)+E88+F88)>0,P88*BH$2+BH$2,NA()))) ->  | V88: =IF(OR($A$5=3,$A$5=1),NA(),IF('volcanic template'!Z$12=FALSE,NA(),IF((ABS(D88)+E88+F88)>0,BH$3*P88+R88,NA()))) ->  | W88: =IF(OR(A$5=3,A$5=1),NA(),IF('volcanic template'!Z$12=FALSE,NA(),IF((ABS(D88)+E88+F88)>0,P88*BH$2+BH$2,NA()))) ->  | X88: =IF(OR($A$5=3,$A$5=1,$D88<0),NA(),IF('plutonic template'!Z$19=FALSE,NA(),BH$3*P88+R88)) ->  | Y88: =IF(OR($A$5=3,$A$5=1,$D88<0),NA(),IF('plutonic template'!Z$19=FALSE,NA(),P88*BH$2)) ->  | Z88: =IF(OR($A$5=3,$A$5=2,D88<0),NA(),IF('plutonic template'!Z$329=FALSE,NA(),BH$3*J88+L88)) ->  | AA88: =IF(OR($A$5=3,$A$5=2,D88<0),NA(),IF('plutonic template'!Z$329=FALSE,NA(),J88*BH$2)) ->  | AF88: =IF(OR($A$5=3,$A$5=2,D88<0),NA(),IF('plutonic template'!Z$413=FALSE,NA(),BH$3*AC88+AE88)) ->  | AG88: =IF(OR($A$5=3,$A$5=2,D88<0),NA(),IF('plutonic template'!Z$413=FALSE,NA(),AC88*BH$2)) ->  | AL88: =IF('plutonic template'!Z$196=FALSE,NA(),BH$3*AI88+AK88) ->  | AM88: =IF('plutonic template'!Z$196=FALSE,NA(),AI88*BH$2) ->  | AR88: =IF('plutonic template'!$Z$234=FALSE,NA(),BH$3*AO88+AQ88) ->  | AS88: =IF('plutonic template'!$Z$234=FALSE,NA(),AO88*BH$2) ->  | AX88: =IF('plutonic template'!$Z$275=FALSE,NA(),BH$3*AU88+AW88) ->  | AY88: =IF('plutonic template'!$Z$275=FALSE,NA(),AU88*BH$2) ->  | BD88: =IF('plutonic template'!$Z$388=FALSE,NA(),BH$3*BA88+BC88) ->  | BE88: =IF('plutonic template'!$Z$388=FALSE,NA(),BA88*BH$2) -> 
N89: 1 | T89: =IF(OR($A$5=3,$A$5=1),NA(),IF('plutonic template'!Z$86=FALSE,NA(),IF((ABS(D89)+E89+F89)>0,BH$3*P89+R89,NA()))) ->  | U89: =IF(OR($A$5=3,$A$5=1),NA(),IF('plutonic template'!Z$86=FALSE,NA(),IF((ABS(D89)+E89+F89)>0,P89*BH$2+BH$2,NA()))) ->  | V89: =IF(OR($A$5=3,$A$5=1),NA(),IF('volcanic template'!Z$12=FALSE,NA(),IF((ABS(D89)+E89+F89)>0,BH$3*P89+R89,NA()))) ->  | W89: =IF(OR(A$5=3,A$5=1),NA(),IF('volcanic template'!Z$12=FALSE,NA(),IF((ABS(D89)+E89+F89)>0,P89*BH$2+BH$2,NA()))) ->  | X89: =IF(OR($A$5=3,$A$5=1,$D89<0),NA(),IF('plutonic template'!Z$19=FALSE,NA(),BH$3*P89+R89)) ->  | Y89: =IF(OR($A$5=3,$A$5=1,$D89<0),NA(),IF('plutonic template'!Z$19=FALSE,NA(),P89*BH$2)) ->  | Z89: =IF(OR($A$5=3,$A$5=2,D89<0),NA(),IF('plutonic template'!Z$329=FALSE,NA(),BH$3*J89+L89)) ->  | AA89: =IF(OR($A$5=3,$A$5=2,D89<0),NA(),IF('plutonic template'!Z$329=FALSE,NA(),J89*BH$2)) ->  | AF89: =IF(OR($A$5=3,$A$5=2,D89<0),NA(),IF('plutonic template'!Z$413=FALSE,NA(),BH$3*AC89+AE89)) ->  | AG89: =IF(OR($A$5=3,$A$5=2,D89<0),NA(),IF('plutonic template'!Z$413=FALSE,NA(),AC89*BH$2)) ->  | AL89: =IF('plutonic template'!Z$196=FALSE,NA(),BH$3*AI89+AK89) ->  | AM89: =IF('plutonic template'!Z$196=FALSE,NA(),AI89*BH$2) ->  | AR89: =IF('plutonic template'!$Z$234=FALSE,NA(),BH$3*AO89+AQ89) ->  | AS89: =IF('plutonic template'!$Z$234=FALSE,NA(),AO89*BH$2) ->  | AX89: =IF('plutonic template'!$Z$275=FALSE,NA(),BH$3*AU89+AW89) ->  | AY89: =IF('plutonic template'!$Z$275=FALSE,NA(),AU89*BH$2) ->  | BD89: =IF('plutonic template'!$Z$388=FALSE,NA(),BH$3*BA89+BC89) ->  | BE89: =IF('plutonic template'!$Z$388=FALSE,NA(),BA89*BH$2) -> 
N90: 1 | T90: =IF(OR($A$5=3,$A$5=1),NA(),IF('plutonic template'!Z$86=FALSE,NA(),IF((ABS(D90)+E90+F90)>0,BH$3*P90+R90,NA()))) ->  | U90: =IF(OR($A$5=3,$A$5=1),NA(),IF('plutonic template'!Z$86=FALSE,NA(),IF((ABS(D90)+E90+F90)>0,P90*BH$2+BH$2,NA()))) ->  | V90: =IF(OR($A$5=3,$A$5=1),NA(),IF('volcanic template'!Z$12=FALSE,NA(),IF((ABS(D90)+E90+F90)>0,BH$3*P90+R90,NA()))) ->  | W90: =IF(OR(A$5=3,A$5=1),NA(),IF('volcanic template'!Z$12=FALSE,NA(),IF((ABS(D90)+E90+F90)>0,P90*BH$2+BH$2,NA()))) ->  | X90: =IF(OR($A$5=3,$A$5=1,$D90<0),NA(),IF('plutonic template'!Z$19=FALSE,NA(),BH$3*P90+R90)) ->  | Y90: =IF(OR($A$5=3,$A$5=1,$D90<0),NA(),IF('plutonic template'!Z$19=FALSE,NA(),P90*BH$2)) ->  | Z90: =IF(OR($A$5=3,$A$5=2,D90<0),NA(),IF('plutonic template'!Z$329=FALSE,NA(),BH$3*J90+L90)) ->  | AA90: =IF(OR($A$5=3,$A$5=2,D90<0),NA(),IF('plutonic template'!Z$329=FALSE,NA(),J90*BH$2)) ->  | AF90: =IF(OR($A$5=3,$A$5=2,D90<0),NA(),IF('plutonic template'!Z$413=FALSE,NA(),BH$3*AC90+AE90)) ->  | AG90: =IF(OR($A$5=3,$A$5=2,D90<0),NA(),IF('plutonic template'!Z$413=FALSE,NA(),AC90*BH$2)) ->  | AL90: =IF('plutonic template'!Z$196=FALSE,NA(),BH$3*AI90+AK90) ->  | AM90: =IF('plutonic template'!Z$196=FALSE,NA(),AI90*BH$2) ->  | AR90: =IF('plutonic template'!$Z$234=FALSE,NA(),BH$3*AO90+AQ90) ->  | AS90: =IF('plutonic template'!$Z$234=FALSE,NA(),AO90*BH$2) ->  | AX90: =IF('plutonic template'!$Z$275=FALSE,NA(),BH$3*AU90+AW90) ->  | AY90: =IF('plutonic template'!$Z$275=FALSE,NA(),AU90*BH$2) ->  | BD90: =IF('plutonic template'!$Z$388=FALSE,NA(),BH$3*BA90+BC90) ->  | BE90: =IF('plutonic template'!$Z$388=FALSE,NA(),BA90*BH$2) -> 
N91: 1 | T91: =IF(OR($A$5=3,$A$5=1),NA(),IF('plutonic template'!Z$86=FALSE,NA(),IF((ABS(D91)+E91+F91)>0,BH$3*P91+R91,NA()))) ->  | U91: =IF(OR($A$5=3,$A$5=1),NA(),IF('plutonic template'!Z$86=FALSE,NA(),IF((ABS(D91)+E91+F91)>0,P91*BH$2+BH$2,NA()))) ->  | V91: =IF(OR($A$5=3,$A$5=1),NA(),IF('volcanic template'!Z$12=FALSE,NA(),IF((ABS(D91)+E91+F91)>0,BH$3*P91+R91,NA()))) ->  | W91: =IF(OR(A$5=3,A$5=1),NA(),IF('volcanic template'!Z$12=FALSE,NA(),IF((ABS(D91)+E91+F91)>0,P91*BH$2+BH$2,NA()))) ->  | X91: =IF(OR($A$5=3,$A$5=1,$D91<0),NA(),IF('plutonic template'!Z$19=FALSE,NA(),BH$3*P91+R91)) ->  | Y91: =IF(OR($A$5=3,$A$5=1,$D91<0),NA(),IF('plutonic template'!Z$19=FALSE,NA(),P91*BH$2)) ->  | Z91: =IF(OR($A$5=3,$A$5=2,D91<0),NA(),IF('plutonic template'!Z$329=FALSE,NA(),BH$3*J91+L91)) ->  | AA91: =IF(OR($A$5=3,$A$5=2,D91<0),NA(),IF('plutonic template'!Z$329=FALSE,NA(),J91*BH$2)) ->  | AF91: =IF(OR($A$5=3,$A$5=2,D91<0),NA(),IF('plutonic template'!Z$413=FALSE,NA(),BH$3*AC91+AE91)) ->  | AG91: =IF(OR($A$5=3,$A$5=2,D91<0),NA(),IF('plutonic template'!Z$413=FALSE,NA(),AC91*BH$2)) ->  | AL91: =IF('plutonic template'!Z$196=FALSE,NA(),BH$3*AI91+AK91) ->  | AM91: =IF('plutonic template'!Z$196=FALSE,NA(),AI91*BH$2) ->  | AR91: =IF('plutonic template'!$Z$234=FALSE,NA(),BH$3*AO91+AQ91) ->  | AS91: =IF('plutonic template'!$Z$234=FALSE,NA(),AO91*BH$2) ->  | AX91: =IF('plutonic template'!$Z$275=FALSE,NA(),BH$3*AU91+AW91) ->  | AY91: =IF('plutonic template'!$Z$275=FALSE,NA(),AU91*BH$2) ->  | BD91: =IF('plutonic template'!$Z$388=FALSE,NA(),BH$3*BA91+BC91) ->  | BE91: =IF('plutonic template'!$Z$388=FALSE,NA(),BA91*BH$2) -> 
N92: 1 | T92: =IF(OR($A$5=3,$A$5=1),NA(),IF('plutonic template'!Z$86=FALSE,NA(),IF((ABS(D92)+E92+F92)>0,BH$3*P92+R92,NA()))) ->  | U92: =IF(OR($A$5=3,$A$5=1),NA(),IF('plutonic template'!Z$86=FALSE,NA(),IF((ABS(D92)+E92+F92)>0,P92*BH$2+BH$2,NA()))) ->  | V92: =IF(OR($A$5=3,$A$5=1),NA(),IF('volcanic template'!Z$12=FALSE,NA(),IF((ABS(D92)+E92+F92)>0,BH$3*P92+R92,NA()))) ->  | W92: =IF(OR(A$5=3,A$5=1),NA(),IF('volcanic template'!Z$12=FALSE,NA(),IF((ABS(D92)+E92+F92)>0,P92*BH$2+BH$2,NA()))) ->  | X92: =IF(OR($A$5=3,$A$5=1,$D92<0),NA(),IF('plutonic template'!Z$19=FALSE,NA(),BH$3*P92+R92)) ->  | Y92: =IF(OR($A$5=3,$A$5=1,$D92<0),NA(),IF('plutonic template'!Z$19=FALSE,NA(),P92*BH$2)) ->  | Z92: =IF(OR($A$5=3,$A$5=2,D92<0),NA(),IF('plutonic template'!Z$329=FALSE,NA(),BH$3*J92+L92)) ->  | AA92: =IF(OR($A$5=3,$A$5=2,D92<0),NA(),IF('plutonic template'!Z$329=FALSE,NA(),J92*BH$2)) ->  | AF92: =IF(OR($A$5=3,$A$5=2,D92<0),NA(),IF('plutonic template'!Z$413=FALSE,NA(),BH$3*AC92+AE92)) ->  | AG92: =IF(OR($A$5=3,$A$5=2,D92<0),NA(),IF('plutonic template'!Z$413=FALSE,NA(),AC92*BH$2)) ->  | AL92: =IF('plutonic template'!Z$196=FALSE,NA(),BH$3*AI92+AK92) ->  | AM92: =IF('plutonic template'!Z$196=FALSE,NA(),AI92*BH$2) ->  | AR92: =IF('plutonic template'!$Z$234=FALSE,NA(),BH$3*AO92+AQ92) ->  | AS92: =IF('plutonic template'!$Z$234=FALSE,NA(),AO92*BH$2) ->  | AX92: =IF('plutonic template'!$Z$275=FALSE,NA(),BH$3*AU92+AW92) ->  | AY92: =IF('plutonic template'!$Z$275=FALSE,NA(),AU92*BH$2) ->  | BD92: =IF('plutonic template'!$Z$388=FALSE,NA(),BH$3*BA92+BC92) ->  | BE92: =IF('plutonic template'!$Z$388=FALSE,NA(),BA92*BH$2) -> 
N93: 1 | T93: =IF(OR($A$5=3,$A$5=1),NA(),IF('plutonic template'!Z$86=FALSE,NA(),IF((ABS(D93)+E93+F93)>0,BH$3*P93+R93,NA()))) ->  | U93: =IF(OR($A$5=3,$A$5=1),NA(),IF('plutonic template'!Z$86=FALSE,NA(),IF((ABS(D93)+E93+F93)>0,P93*BH$2+BH$2,NA()))) ->  | V93: =IF(OR($A$5=3,$A$5=1),NA(),IF('volcanic template'!Z$12=FALSE,NA(),IF((ABS(D93)+E93+F93)>0,BH$3*P93+R93,NA()))) ->  | W93: =IF(OR(A$5=3,A$5=1),NA(),IF('volcanic template'!Z$12=FALSE,NA(),IF((ABS(D93)+E93+F93)>0,P93*BH$2+BH$2,NA()))) ->  | X93: =IF(OR($A$5=3,$A$5=1,$D93<0),NA(),IF('plutonic template'!Z$19=FALSE,NA(),BH$3*P93+R93)) ->  | Y93: =IF(OR($A$5=3,$A$5=1,$D93<0),NA(),IF('plutonic template'!Z$19=FALSE,NA(),P93*BH$2)) ->  | Z93: =IF(OR($A$5=3,$A$5=2,D93<0),NA(),IF('plutonic template'!Z$329=FALSE,NA(),BH$3*J93+L93)) ->  | AA93: =IF(OR($A$5=3,$A$5=2,D93<0),NA(),IF('plutonic template'!Z$329=FALSE,NA(),J93*BH$2)) ->  | AF93: =IF(OR($A$5=3,$A$5=2,D93<0),NA(),IF('plutonic template'!Z$413=FALSE,NA(),BH$3*AC93+AE93)) ->  | AG93: =IF(OR($A$5=3,$A$5=2,D93<0),NA(),IF('plutonic template'!Z$413=FALSE,NA(),AC93*BH$2)) ->  | AL93: =IF('plutonic template'!Z$196=FALSE,NA(),BH$3*AI93+AK93) ->  | AM93: =IF('plutonic template'!Z$196=FALSE,NA(),AI93*BH$2) ->  | AR93: =IF('plutonic template'!$Z$234=FALSE,NA(),BH$3*AO93+AQ93) ->  | AS93: =IF('plutonic template'!$Z$234=FALSE,NA(),AO93*BH$2) ->  | AX93: =IF('plutonic template'!$Z$275=FALSE,NA(),BH$3*AU93+AW93) ->  | AY93: =IF('plutonic template'!$Z$275=FALSE,NA(),AU93*BH$2) ->  | BD93: =IF('plutonic template'!$Z$388=FALSE,NA(),BH$3*BA93+BC93) ->  | BE93: =IF('plutonic template'!$Z$388=FALSE,NA(),BA93*BH$2) -> 
N94: 1 | T94: =IF(OR($A$5=3,$A$5=1),NA(),IF('plutonic template'!Z$86=FALSE,NA(),IF((ABS(D94)+E94+F94)>0,BH$3*P94+R94,NA()))) ->  | U94: =IF(OR($A$5=3,$A$5=1),NA(),IF('plutonic template'!Z$86=FALSE,NA(),IF((ABS(D94)+E94+F94)>0,P94*BH$2+BH$2,NA()))) ->  | V94: =IF(OR($A$5=3,$A$5=1),NA(),IF('volcanic template'!Z$12=FALSE,NA(),IF((ABS(D94)+E94+F94)>0,BH$3*P94+R94,NA()))) ->  | W94: =IF(OR(A$5=3,A$5=1),NA(),IF('volcanic template'!Z$12=FALSE,NA(),IF((ABS(D94)+E94+F94)>0,P94*BH$2+BH$2,NA()))) ->  | X94: =IF(OR($A$5=3,$A$5=1,$D94<0),NA(),IF('plutonic template'!Z$19=FALSE,NA(),BH$3*P94+R94)) ->  | Y94: =IF(OR($A$5=3,$A$5=1,$D94<0),NA(),IF('plutonic template'!Z$19=FALSE,NA(),P94*BH$2)) ->  | Z94: =IF(OR($A$5=3,$A$5=2,D94<0),NA(),IF('plutonic template'!Z$329=FALSE,NA(),BH$3*J94+L94)) ->  | AA94: =IF(OR($A$5=3,$A$5=2,D94<0),NA(),IF('plutonic template'!Z$329=FALSE,NA(),J94*BH$2)) ->  | AF94: =IF(OR($A$5=3,$A$5=2,D94<0),NA(),IF('plutonic template'!Z$413=FALSE,NA(),BH$3*AC94+AE94)) ->  | AG94: =IF(OR($A$5=3,$A$5=2,D94<0),NA(),IF('plutonic template'!Z$413=FALSE,NA(),AC94*BH$2)) ->  | AL94: =IF('plutonic template'!Z$196=FALSE,NA(),BH$3*AI94+AK94) ->  | AM94: =IF('plutonic template'!Z$196=FALSE,NA(),AI94*BH$2) ->  | AR94: =IF('plutonic template'!$Z$234=FALSE,NA(),BH$3*AO94+AQ94) ->  | AS94: =IF('plutonic template'!$Z$234=FALSE,NA(),AO94*BH$2) ->  | AX94: =IF('plutonic template'!$Z$275=FALSE,NA(),BH$3*AU94+AW94) ->  | AY94: =IF('plutonic template'!$Z$275=FALSE,NA(),AU94*BH$2) ->  | BD94: =IF('plutonic template'!$Z$388=FALSE,NA(),BH$3*BA94+BC94) ->  | BE94: =IF('plutonic template'!$Z$388=FALSE,NA(),BA94*BH$2) -> 
N95: 1 | T95: =IF(OR($A$5=3,$A$5=1),NA(),IF('plutonic template'!Z$86=FALSE,NA(),IF((ABS(D95)+E95+F95)>0,BH$3*P95+R95,NA()))) ->  | U95: =IF(OR($A$5=3,$A$5=1),NA(),IF('plutonic template'!Z$86=FALSE,NA(),IF((ABS(D95)+E95+F95)>0,P95*BH$2+BH$2,NA()))) ->  | V95: =IF(OR($A$5=3,$A$5=1),NA(),IF('volcanic template'!Z$12=FALSE,NA(),IF((ABS(D95)+E95+F95)>0,BH$3*P95+R95,NA()))) ->  | W95: =IF(OR(A$5=3,A$5=1),NA(),IF('volcanic template'!Z$12=FALSE,NA(),IF((ABS(D95)+E95+F95)>0,P95*BH$2+BH$2,NA()))) ->  | X95: =IF(OR($A$5=3,$A$5=1,$D95<0),NA(),IF('plutonic template'!Z$19=FALSE,NA(),BH$3*P95+R95)) ->  | Y95: =IF(OR($A$5=3,$A$5=1,$D95<0),NA(),IF('plutonic template'!Z$19=FALSE,NA(),P95*BH$2)) ->  | Z95: =IF(OR($A$5=3,$A$5=2,D95<0),NA(),IF('plutonic template'!Z$329=FALSE,NA(),BH$3*J95+L95)) ->  | AA95: =IF(OR($A$5=3,$A$5=2,D95<0),NA(),IF('plutonic template'!Z$329=FALSE,NA(),J95*BH$2)) ->  | AF95: =IF(OR($A$5=3,$A$5=2,D95<0),NA(),IF('plutonic template'!Z$413=FALSE,NA(),BH$3*AC95+AE95)) ->  | AG95: =IF(OR($A$5=3,$A$5=2,D95<0),NA(),IF('plutonic template'!Z$413=FALSE,NA(),AC95*BH$2)) ->  | AL95: =IF('plutonic template'!Z$196=FALSE,NA(),BH$3*AI95+AK95) ->  | AM95: =IF('plutonic template'!Z$196=FALSE,NA(),AI95*BH$2) ->  | AR95: =IF('plutonic template'!$Z$234=FALSE,NA(),BH$3*AO95+AQ95) ->  | AS95: =IF('plutonic template'!$Z$234=FALSE,NA(),AO95*BH$2) ->  | AX95: =IF('plutonic template'!$Z$275=FALSE,NA(),BH$3*AU95+AW95) ->  | AY95: =IF('plutonic template'!$Z$275=FALSE,NA(),AU95*BH$2) ->  | BD95: =IF('plutonic template'!$Z$388=FALSE,NA(),BH$3*BA95+BC95) ->  | BE95: =IF('plutonic template'!$Z$388=FALSE,NA(),BA95*BH$2) -> 
N96: 1 | T96: =IF(OR($A$5=3,$A$5=1),NA(),IF('plutonic template'!Z$86=FALSE,NA(),IF((ABS(D96)+E96+F96)>0,BH$3*P96+R96,NA()))) ->  | U96: =IF(OR($A$5=3,$A$5=1),NA(),IF('plutonic template'!Z$86=FALSE,NA(),IF((ABS(D96)+E96+F96)>0,P96*BH$2+BH$2,NA()))) ->  | V96: =IF(OR($A$5=3,$A$5=1),NA(),IF('volcanic template'!Z$12=FALSE,NA(),IF((ABS(D96)+E96+F96)>0,BH$3*P96+R96,NA()))) ->  | W96: =IF(OR(A$5=3,A$5=1),NA(),IF('volcanic template'!Z$12=FALSE,NA(),IF((ABS(D96)+E96+F96)>0,P96*BH$2+BH$2,NA()))) ->  | X96: =IF(OR($A$5=3,$A$5=1,$D96<0),NA(),IF('plutonic template'!Z$19=FALSE,NA(),BH$3*P96+R96)) ->  | Y96: =IF(OR($A$5=3,$A$5=1,$D96<0),NA(),IF('plutonic template'!Z$19=FALSE,NA(),P96*BH$2)) ->  | Z96: =IF(OR($A$5=3,$A$5=2,D96<0),NA(),IF('plutonic template'!Z$329=FALSE,NA(),BH$3*J96+L96)) ->  | AA96: =IF(OR($A$5=3,$A$5=2,D96<0),NA(),IF('plutonic template'!Z$329=FALSE,NA(),J96*BH$2)) ->  | AF96: =IF(OR($A$5=3,$A$5=2,D96<0),NA(),IF('plutonic template'!Z$413=FALSE,NA(),BH$3*AC96+AE96)) ->  | AG96: =IF(OR($A$5=3,$A$5=2,D96<0),NA(),IF('plutonic template'!Z$413=FALSE,NA(),AC96*BH$2)) ->  | AL96: =IF('plutonic template'!Z$196=FALSE,NA(),BH$3*AI96+AK96) ->  | AM96: =IF('plutonic template'!Z$196=FALSE,NA(),AI96*BH$2) ->  | AR96: =IF('plutonic template'!$Z$234=FALSE,NA(),BH$3*AO96+AQ96) ->  | AS96: =IF('plutonic template'!$Z$234=FALSE,NA(),AO96*BH$2) ->  | AX96: =IF('plutonic template'!$Z$275=FALSE,NA(),BH$3*AU96+AW96) ->  | AY96: =IF('plutonic template'!$Z$275=FALSE,NA(),AU96*BH$2) ->  | BD96: =IF('plutonic template'!$Z$388=FALSE,NA(),BH$3*BA96+BC96) ->  | BE96: =IF('plutonic template'!$Z$388=FALSE,NA(),BA96*BH$2) -> 
N97: 1 | T97: =IF(OR($A$5=3,$A$5=1),NA(),IF('plutonic template'!Z$86=FALSE,NA(),IF((ABS(D97)+E97+F97)>0,BH$3*P97+R97,NA()))) ->  | U97: =IF(OR($A$5=3,$A$5=1),NA(),IF('plutonic template'!Z$86=FALSE,NA(),IF((ABS(D97)+E97+F97)>0,P97*BH$2+BH$2,NA()))) ->  | V97: =IF(OR($A$5=3,$A$5=1),NA(),IF('volcanic template'!Z$12=FALSE,NA(),IF((ABS(D97)+E97+F97)>0,BH$3*P97+R97,NA()))) ->  | W97: =IF(OR(A$5=3,A$5=1),NA(),IF('volcanic template'!Z$12=FALSE,NA(),IF((ABS(D97)+E97+F97)>0,P97*BH$2+BH$2,NA()))) ->  | X97: =IF(OR($A$5=3,$A$5=1,$D97<0),NA(),IF('plutonic template'!Z$19=FALSE,NA(),BH$3*P97+R97)) ->  | Y97: =IF(OR($A$5=3,$A$5=1,$D97<0),NA(),IF('plutonic template'!Z$19=FALSE,NA(),P97*BH$2)) ->  | Z97: =IF(OR($A$5=3,$A$5=2,D97<0),NA(),IF('plutonic template'!Z$329=FALSE,NA(),BH$3*J97+L97)) ->  | AA97: =IF(OR($A$5=3,$A$5=2,D97<0),NA(),IF('plutonic template'!Z$329=FALSE,NA(),J97*BH$2)) ->  | AF97: =IF(OR($A$5=3,$A$5=2,D97<0),NA(),IF('plutonic template'!Z$413=FALSE,NA(),BH$3*AC97+AE97)) ->  | AG97: =IF(OR($A$5=3,$A$5=2,D97<0),NA(),IF('plutonic template'!Z$413=FALSE,NA(),AC97*BH$2)) ->  | AL97: =IF('plutonic template'!Z$196=FALSE,NA(),BH$3*AI97+AK97) ->  | AM97: =IF('plutonic template'!Z$196=FALSE,NA(),AI97*BH$2) ->  | AR97: =IF('plutonic template'!$Z$234=FALSE,NA(),BH$3*AO97+AQ97) ->  | AS97: =IF('plutonic template'!$Z$234=FALSE,NA(),AO97*BH$2) ->  | AX97: =IF('plutonic template'!$Z$275=FALSE,NA(),BH$3*AU97+AW97) ->  | AY97: =IF('plutonic template'!$Z$275=FALSE,NA(),AU97*BH$2) ->  | BD97: =IF('plutonic template'!$Z$388=FALSE,NA(),BH$3*BA97+BC97) ->  | BE97: =IF('plutonic template'!$Z$388=FALSE,NA(),BA97*BH$2) -> 
N98: 1 | T98: =IF(OR($A$5=3,$A$5=1),NA(),IF('plutonic template'!Z$86=FALSE,NA(),IF((ABS(D98)+E98+F98)>0,BH$3*P98+R98,NA()))) ->  | U98: =IF(OR($A$5=3,$A$5=1),NA(),IF('plutonic template'!Z$86=FALSE,NA(),IF((ABS(D98)+E98+F98)>0,P98*BH$2+BH$2,NA()))) ->  | V98: =IF(OR($A$5=3,$A$5=1),NA(),IF('volcanic template'!Z$12=FALSE,NA(),IF((ABS(D98)+E98+F98)>0,BH$3*P98+R98,NA()))) ->  | W98: =IF(OR(A$5=3,A$5=1),NA(),IF('volcanic template'!Z$12=FALSE,NA(),IF((ABS(D98)+E98+F98)>0,P98*BH$2+BH$2,NA()))) ->  | X98: =IF(OR($A$5=3,$A$5=1,$D98<0),NA(),IF('plutonic template'!Z$19=FALSE,NA(),BH$3*P98+R98)) ->  | Y98: =IF(OR($A$5=3,$A$5=1,$D98<0),NA(),IF('plutonic template'!Z$19=FALSE,NA(),P98*BH$2)) ->  | Z98: =IF(OR($A$5=3,$A$5=2,D98<0),NA(),IF('plutonic template'!Z$329=FALSE,NA(),BH$3*J98+L98)) ->  | AA98: =IF(OR($A$5=3,$A$5=2,D98<0),NA(),IF('plutonic template'!Z$329=FALSE,NA(),J98*BH$2)) ->  | AF98: =IF(OR($A$5=3,$A$5=2,D98<0),NA(),IF('plutonic template'!Z$413=FALSE,NA(),BH$3*AC98+AE98)) ->  | AG98: =IF(OR($A$5=3,$A$5=2,D98<0),NA(),IF('plutonic template'!Z$413=FALSE,NA(),AC98*BH$2)) ->  | AL98: =IF('plutonic template'!Z$196=FALSE,NA(),BH$3*AI98+AK98) ->  | AM98: =IF('plutonic template'!Z$196=FALSE,NA(),AI98*BH$2) ->  | AR98: =IF('plutonic template'!$Z$234=FALSE,NA(),BH$3*AO98+AQ98) ->  | AS98: =IF('plutonic template'!$Z$234=FALSE,NA(),AO98*BH$2) ->  | AX98: =IF('plutonic template'!$Z$275=FALSE,NA(),BH$3*AU98+AW98) ->  | AY98: =IF('plutonic template'!$Z$275=FALSE,NA(),AU98*BH$2) ->  | BD98: =IF('plutonic template'!$Z$388=FALSE,NA(),BH$3*BA98+BC98) ->  | BE98: =IF('plutonic template'!$Z$388=FALSE,NA(),BA98*BH$2) -> 
N99: 1 | T99: =IF(OR($A$5=3,$A$5=1),NA(),IF('plutonic template'!Z$86=FALSE,NA(),IF((ABS(D99)+E99+F99)>0,BH$3*P99+R99,NA()))) ->  | U99: =IF(OR($A$5=3,$A$5=1),NA(),IF('plutonic template'!Z$86=FALSE,NA(),IF((ABS(D99)+E99+F99)>0,P99*BH$2+BH$2,NA()))) ->  | V99: =IF(OR($A$5=3,$A$5=1),NA(),IF('volcanic template'!Z$12=FALSE,NA(),IF((ABS(D99)+E99+F99)>0,BH$3*P99+R99,NA()))) ->  | W99: =IF(OR(A$5=3,A$5=1),NA(),IF('volcanic template'!Z$12=FALSE,NA(),IF((ABS(D99)+E99+F99)>0,P99*BH$2+BH$2,NA()))) ->  | X99: =IF(OR($A$5=3,$A$5=1,$D99<0),NA(),IF('plutonic template'!Z$19=FALSE,NA(),BH$3*P99+R99)) ->  | Y99: =IF(OR($A$5=3,$A$5=1,$D99<0),NA(),IF('plutonic template'!Z$19=FALSE,NA(),P99*BH$2)) ->  | Z99: =IF(OR($A$5=3,$A$5=2,D99<0),NA(),IF('plutonic template'!Z$329=FALSE,NA(),BH$3*J99+L99)) ->  | AA99: =IF(OR($A$5=3,$A$5=2,D99<0),NA(),IF('plutonic template'!Z$329=FALSE,NA(),J99*BH$2)) ->  | AF99: =IF(OR($A$5=3,$A$5=2,D99<0),NA(),IF('plutonic template'!Z$413=FALSE,NA(),BH$3*AC99+AE99)) ->  | AG99: =IF(OR($A$5=3,$A$5=2,D99<0),NA(),IF('plutonic template'!Z$413=FALSE,NA(),AC99*BH$2)) ->  | AL99: =IF('plutonic template'!Z$196=FALSE,NA(),BH$3*AI99+AK99) ->  | AM99: =IF('plutonic template'!Z$196=FALSE,NA(),AI99*BH$2) ->  | AR99: =IF('plutonic template'!$Z$234=FALSE,NA(),BH$3*AO99+AQ99) ->  | AS99: =IF('plutonic template'!$Z$234=FALSE,NA(),AO99*BH$2) ->  | AX99: =IF('plutonic template'!$Z$275=FALSE,NA(),BH$3*AU99+AW99) ->  | AY99: =IF('plutonic template'!$Z$275=FALSE,NA(),AU99*BH$2) ->  | BD99: =IF('plutonic template'!$Z$388=FALSE,NA(),BH$3*BA99+BC99) ->  | BE99: =IF('plutonic template'!$Z$388=FALSE,NA(),BA99*BH$2) -> 
N100: 1 | T100: =IF(OR($A$5=3,$A$5=1),NA(),IF('plutonic template'!Z$86=FALSE,NA(),IF((ABS(D100)+E100+F100)>0,BH$3*P100+R100,NA()))) ->  | U100: =IF(OR($A$5=3,$A$5=1),NA(),IF('plutonic template'!Z$86=FALSE,NA(),IF((ABS(D100)+E100+F100)>0,P100*BH$2+BH$2,NA()))) ->  | V100: =IF(OR($A$5=3,$A$5=1),NA(),IF('volcanic template'!Z$12=FALSE,NA(),IF((ABS(D100)+E100+F100)>0,BH$3*P100+R100,NA()))) ->  | W100: =IF(OR(A$5=3,A$5=1),NA(),IF('volcanic template'!Z$12=FALSE,NA(),IF((ABS(D100)+E100+F100)>0,P100*BH$2+BH$2,NA()))) ->  | X100: =IF(OR($A$5=3,$A$5=1,$D100<0),NA(),IF('plutonic template'!Z$19=FALSE,NA(),BH$3*P100+R100)) ->  | Y100: =IF(OR($A$5=3,$A$5=1,$D100<0),NA(),IF('plutonic template'!Z$19=FALSE,NA(),P100*BH$2)) ->  | Z100: =IF(OR($A$5=3,$A$5=2,D100<0),NA(),IF('plutonic template'!Z$329=FALSE,NA(),BH$3*J100+L100)) ->  | AA100: =IF(OR($A$5=3,$A$5=2,D100<0),NA(),IF('plutonic template'!Z$329=FALSE,NA(),J100*BH$2)) ->  | AF100: =IF(OR($A$5=3,$A$5=2,D100<0),NA(),IF('plutonic template'!Z$413=FALSE,NA(),BH$3*AC100+AE100)) ->  | AG100: =IF(OR($A$5=3,$A$5=2,D100<0),NA(),IF('plutonic template'!Z$413=FALSE,NA(),AC100*BH$2)) ->  | AL100: =IF('plutonic template'!Z$196=FALSE,NA(),BH$3*AI100+AK100) ->  | AM100: =IF('plutonic template'!Z$196=FALSE,NA(),AI100*BH$2) ->  | AR100: =IF('plutonic template'!$Z$234=FALSE,NA(),BH$3*AO100+AQ100) ->  | AS100: =IF('plutonic template'!$Z$234=FALSE,NA(),AO100*BH$2) ->  | AX100: =IF('plutonic template'!$Z$275=FALSE,NA(),BH$3*AU100+AW100) ->  | AY100: =IF('plutonic template'!$Z$275=FALSE,NA(),AU100*BH$2) ->  | BD100: =IF('plutonic template'!$Z$388=FALSE,NA(),BH$3*BA100+BC100) ->  | BE100: =IF('plutonic template'!$Z$388=FALSE,NA(),BA100*BH$2) -> 
N101: 1 | T101: =IF(OR($A$5=3,$A$5=1),NA(),IF('plutonic template'!Z$86=FALSE,NA(),IF((ABS(D101)+E101+F101)>0,BH$3*P101+R101,NA()))) ->  | U101: =IF(OR($A$5=3,$A$5=1),NA(),IF('plutonic template'!Z$86=FALSE,NA(),IF((ABS(D101)+E101+F101)>0,P101*BH$2+BH$2,NA()))) ->  | V101: =IF(OR($A$5=3,$A$5=1),NA(),IF('volcanic template'!Z$12=FALSE,NA(),IF((ABS(D101)+E101+F101)>0,BH$3*P101+R101,NA()))) ->  | W101: =IF(OR(A$5=3,A$5=1),NA(),IF('volcanic template'!Z$12=FALSE,NA(),IF((ABS(D101)+E101+F101)>0,P101*BH$2+BH$2,NA()))) ->  | X101: =IF(OR($A$5=3,$A$5=1,$D101<0),NA(),IF('plutonic template'!Z$19=FALSE,NA(),BH$3*P101+R101)) ->  | Y101: =IF(OR($A$5=3,$A$5=1,$D101<0),NA(),IF('plutonic template'!Z$19=FALSE,NA(),P101*BH$2)) ->  | Z101: =IF(OR($A$5=3,$A$5=2,D101<0),NA(),IF('plutonic template'!Z$329=FALSE,NA(),BH$3*J101+L101)) ->  | AA101: =IF(OR($A$5=3,$A$5=2,D101<0),NA(),IF('plutonic template'!Z$329=FALSE,NA(),J101*BH$2)) ->  | AF101: =IF(OR($A$5=3,$A$5=2,D101<0),NA(),IF('plutonic template'!Z$413=FALSE,NA(),BH$3*AC101+AE101)) ->  | AG101: =IF(OR($A$5=3,$A$5=2,D101<0),NA(),IF('plutonic template'!Z$413=FALSE,NA(),AC101*BH$2)) ->  | AL101: =IF('plutonic template'!Z$196=FALSE,NA(),BH$3*AI101+AK101) ->  | AM101: =IF('plutonic template'!Z$196=FALSE,NA(),AI101*BH$2) ->  | AR101: =IF('plutonic template'!$Z$234=FALSE,NA(),BH$3*AO101+AQ101) ->  | AS101: =IF('plutonic template'!$Z$234=FALSE,NA(),AO101*BH$2) ->  | AX101: =IF('plutonic template'!$Z$275=FALSE,NA(),BH$3*AU101+AW101) ->  | AY101: =IF('plutonic template'!$Z$275=FALSE,NA(),AU101*BH$2) ->  | BD101: =IF('plutonic template'!$Z$388=FALSE,NA(),BH$3*BA101+BC101) ->  | BE101: =IF('plutonic template'!$Z$388=FALSE,NA(),BA101*BH$2) -> 
B102: Peridotite test | C102: rock A | D102: 49 | E102: 29 | F102: 21 | J102: 0.4949494949 | K102: 0.2929292929 | L102: 0.2121212121 | N102: 1 | T102: =IF(OR($A$5=3,$A$5=1),NA(),IF('plutonic template'!Z$87=FALSE,NA(),IF((ABS(D102)+E102+F102)>0,BH$3*P102+R102,NA()))) ->  | U102: =IF(OR($A$5=3,$A$5=1),NA(),IF('plutonic template'!Z$87=FALSE,NA(),IF((ABS(D102)+E102+F102)>0,P102*BH$2+BH$2,NA()))) ->  | V102: =IF(OR($A$5=3,$A$5=1),NA(),IF('volcanic template'!Z$13=FALSE,NA(),IF((ABS(D102)+E102+F102)>0,BH$3*P102+R102,NA()))) ->  | W102: =IF(OR(A$5=3,A$5=1),NA(),IF('volcanic template'!Z$13=FALSE,NA(),IF((ABS(D102)+E102+F102)>0,P102*BH$2+BH$2,NA()))) ->  | X102: =IF(OR($A$5=3,$A$5=1,$D102<0),NA(),IF('plutonic template'!Z$20=FALSE,NA(),BH$3*P102+R102)) ->  | Y102: =IF(OR($A$5=3,$A$5=1,$D102<0),NA(),IF('plutonic template'!Z$20=FALSE,NA(),P102*BH$2)) ->  | Z102: =IF(OR($A$5=3,$A$5=2,D102<0),NA(),IF('plutonic template'!Z$330=FALSE,NA(),BH$3*J102+L102)) -> 0.4595959596 | AA102: =IF(OR($A$5=3,$A$5=2,D102<0),NA(),IF('plutonic template'!Z$330=FALSE,NA(),J102*BH$2)) -> 0.4286388362 | AC102: 0.4949494949 | AD102: 0.5050505051 | AE102: 0 | AF102: =IF(OR($A$5=3,$A$5=2,D102<0),NA(),IF('plutonic template'!Z$414=FALSE,NA(),BH$3*AC102+AE102)) -> 0.2474747475 | AG102: =IF(OR($A$5=3,$A$5=2,D102<0),NA(),IF('plutonic template'!Z$414=FALSE,NA(),AC102*BH$2)) -> 0.4286388362 | AL102: =IF('plutonic template'!Z$197=FALSE,NA(),BH$3*AI102+AK102) ->  | AM102: =IF('plutonic template'!Z$197=FALSE,NA(),AI102*BH$2) ->  | AR102: =IF('plutonic template'!$Z$235=FALSE,NA(),BH$3*AO102+AQ102) ->  | AS102: =IF('plutonic template'!$Z$235=FALSE,NA(),AO102*BH$2) ->  | AU102: =IF(OR(A$5=2,A$5=1,D102<0,E102<0,F102<0,G102<0,H102<0),NA(),IF(SUM(E102:H102)>0,H102/SUM(E102:H102),NA())) ->  | AV102: =IF(OR(A$5=2,A$5=1,D102<0,E102<0,F102<0,G102<0,H102<0),NA(),IF(SUM(E102:H102)>0,(E102+F102)/SUM(E102:H102),NA())) ->  | AW102: =IF(OR(A$5=2,A$5=1,D102<0,E102<0,F102<0,G102<0,H102<0),NA(),IF(SUM(E102:H102)>0,G102/SUM(E102:H102),NA())) ->  | AX102: =IF('plutonic template'!$Z$276=FALSE,NA(),BH$3*AU102+AW102) ->  | AY102: =IF('plutonic template'!$Z$276=FALSE,NA(),AU102*BH$2) ->  | BA102: =IF($A$5=1,IF(($J102-0.4)>=0,(J102-0.4)/($J102-0.4+$K102+$L102),NA()),NA()) -> 0.1582491582 | BB102: =IF($A$5=1,IF(($J102-0.4)>=0,K102/($J102-0.4+$K102+$L102),NA()),NA()) -> 0.4882154882 | BC102: =IF($A$5=1,IF(($J102-0.4)>=0,L102/($J102-0.4+$K102+$L102),NA()),NA()) -> 0.3535353535 | BD102: =IF('plutonic template'!$Z$389=FALSE,NA(),BH$3*BA102+BC102) -> 0.4326599327 | BE102: =IF('plutonic template'!$Z$389=FALSE,NA(),BA102*BH$2) -> 0.1370477912
B103: (Ol–Opx–Cpx–Amp) | C103: rock B | D103: 69 | E103: 22 | F103: 8 | G103: 1 | J103: =IF(OR($A$5=2,$A$5=3,D103<0,E103<0,F103<0,G103<0),NA(),IF(SUM(D103:G103)>0,D103/SUM(D103:G103),NA())) -> 0.69 | K103: =IF(OR($A$5=2,$A$5=3,D103<0,E103<0,F103<0,G103<0),NA(),IF(SUM(D103:G103)>0,E103/SUM(D103:G103),NA())) -> 0.22 | L103: =IF(OR($A$5=2,$A$5=3,D103<0,E103<0,F103<0,G103<0),NA(),IF(SUM(D103:G103)>0,(F103+G103)/SUM(D103:G103),NA())) -> 0.09 | N103: 1 | P103: =IF(OR($A$5=1,$A$5=3,E103<0,F103<0,G103<0,H103<0),NA(),IF(ABS(D103)+E103+F103>0,D103/($N103*$D103+$E103+$F103),NA())) ->  | Q103: =IF(OR($A$5=1,$A$5=3,E103<0,F103<0,G103<0,H103<0),NA(),IF(AND(ABS(D103)+E103+F103>0,D103<0),(E103-D103)/($N103*$D103+$E103+$F103),IF(ABS(D103)+E103+F103=0,NA(),E103/($D103+$E103+$F103)))) ->  | R103: =IF(OR($A$5=1,$A$5=3,E103<0,F103<0,G103<0,H103<0),NA(),IF(AND(ABS(D103)+E103+F103>0,D103<0),(F103-D103)/($N103*$D103+$E103+$F103),IF(ABS(D103)+E103+F103=0,NA(),F103/($D103+$E103+$F103)))) ->  | T103: =IF(OR($A$5=3,$A$5=1),NA(),IF('plutonic template'!Z$87=FALSE,NA(),IF((ABS(D103)+E103+F103)>0,BH$3*P103+R103,NA()))) ->  | U103: =IF(OR($A$5=3,$A$5=1),NA(),IF('plutonic template'!Z$87=FALSE,NA(),IF((ABS(D103)+E103+F103)>0,P103*BH$2+BH$2,NA()))) ->  | V103: =IF(OR($A$5=3,$A$5=1),NA(),IF('volcanic template'!Z$13=FALSE,NA(),IF((ABS(D103)+E103+F103)>0,BH$3*P103+R103,NA()))) ->  | W103: =IF(OR(A$5=3,A$5=1),NA(),IF('volcanic template'!Z$13=FALSE,NA(),IF((ABS(D103)+E103+F103)>0,P103*BH$2+BH$2,NA()))) ->  | X103: =IF(OR($A$5=3,$A$5=1,$D103<0),NA(),IF('plutonic template'!Z$20=FALSE,NA(),BH$3*P103+R103)) ->  | Y103: =IF(OR($A$5=3,$A$5=1,$D103<0),NA(),IF('plutonic template'!Z$20=FALSE,NA(),P103*BH$2)) ->  | Z103: =IF(OR($A$5=3,$A$5=2,D103<0),NA(),IF('plutonic template'!Z$330=FALSE,NA(),BH$3*J103+L103)) -> 0.435 | AA103: =IF(OR($A$5=3,$A$5=2,D103<0),NA(),IF('plutonic template'!Z$330=FALSE,NA(),J103*BH$2)) -> 0.5975575286 | AC103: =IF(OR(A$5=3,$A$5=2,D103<0,E103<0,F103<0,G103<0,H103<0),NA(),IF(SUM($D103:$G103)>0,D103/SUM($D103:$G103),NA())) -> 0.69 | AD103: =IF(OR(A$5=3,$A$5=2,D103<0,E103<0,F103<0,G103<0,H103<0),NA(),IF(SUM($D103:$G103)>0,(E103+F103)/SUM($D103:$G103),NA())) -> 0.3 | AE103: =IF(OR(A$5=3,$A$5=2,D103<0,E103<0,F103<0,G103<0,H103<0),NA(),IF(SUM($D103:$G103)>0,G103/SUM($D103:$G103),NA())) -> 0.01 | AF103: =IF(OR($A$5=3,$A$5=2,D103<0),NA(),IF('plutonic template'!Z$414=FALSE,NA(),BH$3*AC103+AE103)) -> 0.355 | AG103: =IF(OR($A$5=3,$A$5=2,D103<0),NA(),IF('plutonic template'!Z$414=FALSE,NA(),AC103*BH$2)) -> 0.5975575286 | AI103: =IF(OR(A$5=2,A$5=1,D103<0,E103<0,F103<0,G103<0,H103<0),NA(),IF(D103+E103+F103+H103>0,H103/(D103+E103+F103+H103),NA())) ->  | AJ103: =IF(OR(A$5=2,A$5=1,D103<0,E103<0,F103<0,G103<0,H103<0),NA(),IF(D103+E103+F103+H103>0,(E103+F103)/(D103+E103+F103+H103),NA())) ->  | AK103: =IF(OR(A$5=2,A$5=1,D103<0,E103<0,F103<0,G103<0,H103<0),NA(),IF(D103+E103+F103+H103>0,D103/(D103+E103+F103+H103),NA())) ->  | AL103: =IF('plutonic template'!Z$197=FALSE,NA(),BH$3*AI103+AK103) ->  | AM103: =IF('plutonic template'!Z$197=FALSE,NA(),AI103*BH$2) ->  | AO103: =IF(OR(A$5=2,A$5=1,D103<0,E103<0,F103<0,G103<0,H103<0),NA(),IF(E103+F103+H103>0,H103/(E103+F103+H103),NA())) ->  | AP103: =IF(OR(A$5=2,A$5=1,D103<0,E103<0,F103<0,G103<0,H103<0),NA(),IF(E103+F103+H103>0,E103/(E103+F103+H103),NA())) ->  | AQ103: =IF(OR(A$5=2,A$5=1,D103<0,E103<0,F103<0,G103<0,H103<0),NA(),IF(E103+F103+H103>0,F103/(E103+F103+H103),NA())) ->  | AR103: =IF('plutonic template'!$Z$235=FALSE,NA(),BH$3*AO103+AQ103) ->  | AS103: =IF('plutonic template'!$Z$235=FALSE,NA(),AO103*BH$2) ->  | AU103: =IF(OR(A$5=2,A$5=1,D103<0,E103<0,F103<0,G103<0,H103<0),NA(),IF(SUM(E103:H103)>0,H103/SUM(E103:H103),NA())) ->  | AV103: =IF(OR(A$5=2,A$5=1,D103<0,E103<0,F103<0,G103<0,H103<0),NA(),IF(SUM(E103:H103)>0,(E103+F103)/SUM(E103:H103),NA())) ->  | AW103: =IF(OR(A$5=2,A$5=1,D103<0,E103<0,F103<0,G103<0,H103<0),NA(),IF(SUM(E103:H103)>0,G103/SUM(E103:H103),NA())) ->  | AX103: =IF('plutonic template'!$Z$276=FALSE,NA(),BH$3*AU103+AW103) ->  | AY103: =IF('plutonic template'!$Z$276=FALSE,NA(),AU103*BH$2) ->  | BA103: =IF($A$5=1,IF(($J103-0.4)>=0,(J103-0.4)/($J103-0.4+$K103+$L103),NA()),NA()) -> 0.4833333333 | BB103: =IF($A$5=1,IF(($J103-0.4)>=0,K103/($J103-0.4+$K103+$L103),NA()),NA()) -> 0.3666666667 | BC103: =IF($A$5=1,IF(($J103-0.4)>=0,L103/($J103-0.4+$K103+$L103),NA()),NA()) -> 0.15 | BD103: =IF('plutonic template'!$Z$389=FALSE,NA(),BH$3*BA103+BC103) -> 0.3916666667 | BE103: =IF('plutonic template'!$Z$389=FALSE,NA(),BA103*BH$2) -> 0.4185789452
C104: rock C | D104: 85 | E104: 12 | F104: 3 | J104: 0.85 | K104: 0.12 | L104: 0.03 | N104: 1 | T104: =IF(OR($A$5=3,$A$5=1),NA(),IF('plutonic template'!Z$87=FALSE,NA(),IF((ABS(D104)+E104+F104)>0,BH$3*P104+R104,NA()))) ->  | U104: =IF(OR($A$5=3,$A$5=1),NA(),IF('plutonic template'!Z$87=FALSE,NA(),IF((ABS(D104)+E104+F104)>0,P104*BH$2+BH$2,NA()))) ->  | V104: =IF(OR($A$5=3,$A$5=1),NA(),IF('volcanic template'!Z$13=FALSE,NA(),IF((ABS(D104)+E104+F104)>0,BH$3*P104+R104,NA()))) ->  | W104: =IF(OR(A$5=3,A$5=1),NA(),IF('volcanic template'!Z$13=FALSE,NA(),IF((ABS(D104)+E104+F104)>0,P104*BH$2+BH$2,NA()))) ->  | X104: =IF(OR($A$5=3,$A$5=1,$D104<0),NA(),IF('plutonic template'!Z$20=FALSE,NA(),BH$3*P104+R104)) ->  | Y104: =IF(OR($A$5=3,$A$5=1,$D104<0),NA(),IF('plutonic template'!Z$20=FALSE,NA(),P104*BH$2)) ->  | Z104: =IF(OR($A$5=3,$A$5=2,D104<0),NA(),IF('plutonic template'!Z$330=FALSE,NA(),BH$3*J104+L104)) -> 0.455 | AA104: =IF(OR($A$5=3,$A$5=2,D104<0),NA(),IF('plutonic template'!Z$330=FALSE,NA(),J104*BH$2)) -> 0.7361215932 | AC104: 0.85 | AD104: 0.15 | AE104: 0 | AF104: =IF(OR($A$5=3,$A$5=2,D104<0),NA(),IF('plutonic template'!Z$414=FALSE,NA(),BH$3*AC104+AE104)) -> 0.425 | AG104: =IF(OR($A$5=3,$A$5=2,D104<0),NA(),IF('plutonic template'!Z$414=FALSE,NA(),AC104*BH$2)) -> 0.7361215932 | AL104: =IF('plutonic template'!Z$197=FALSE,NA(),BH$3*AI104+AK104) ->  | AM104: =IF('plutonic template'!Z$197=FALSE,NA(),AI104*BH$2) ->  | AR104: =IF('plutonic template'!$Z$235=FALSE,NA(),BH$3*AO104+AQ104) ->  | AS104: =IF('plutonic template'!$Z$235=FALSE,NA(),AO104*BH$2) ->  | AX104: =IF('plutonic template'!$Z$276=FALSE,NA(),BH$3*AU104+AW104) ->  | AY104: =IF('plutonic template'!$Z$276=FALSE,NA(),AU104*BH$2) ->  | BA104: 0.75 | BB104: 0.2 | BC104: 0.05 | BD104: =IF('plutonic template'!$Z$389=FALSE,NA(),BH$3*BA104+BC104) -> 0.425 | BE104: =IF('plutonic template'!$Z$389=FALSE,NA(),BA104*BH$2) -> 0.6495190528
N105: 1 | T105: =IF(OR($A$5=3,$A$5=1),NA(),IF('plutonic template'!Z$87=FALSE,NA(),IF((ABS(D105)+E105+F105)>0,BH$3*P105+R105,NA()))) ->  | U105: =IF(OR($A$5=3,$A$5=1),NA(),IF('plutonic template'!Z$87=FALSE,NA(),IF((ABS(D105)+E105+F105)>0,P105*BH$2+BH$2,NA()))) ->  | V105: =IF(OR($A$5=3,$A$5=1),NA(),IF('volcanic template'!Z$13=FALSE,NA(),IF((ABS(D105)+E105+F105)>0,BH$3*P105+R105,NA()))) ->  | W105: =IF(OR(A$5=3,A$5=1),NA(),IF('volcanic template'!Z$13=FALSE,NA(),IF((ABS(D105)+E105+F105)>0,P105*BH$2+BH$2,NA()))) ->  | X105: =IF(OR($A$5=3,$A$5=1,$D105<0),NA(),IF('plutonic template'!Z$20=FALSE,NA(),BH$3*P105+R105)) ->  | Y105: =IF(OR($A$5=3,$A$5=1,$D105<0),NA(),IF('plutonic template'!Z$20=FALSE,NA(),P105*BH$2)) ->  | Z105: =IF(OR($A$5=3,$A$5=2,D105<0),NA(),IF('plutonic template'!Z$330=FALSE,NA(),BH$3*J105+L105)) ->  | AA105: =IF(OR($A$5=3,$A$5=2,D105<0),NA(),IF('plutonic template'!Z$330=FALSE,NA(),J105*BH$2)) ->  | AF105: =IF(OR($A$5=3,$A$5=2,D105<0),NA(),IF('plutonic template'!Z$414=FALSE,NA(),BH$3*AC105+AE105)) ->  | AG105: =IF(OR($A$5=3,$A$5=2,D105<0),NA(),IF('plutonic template'!Z$414=FALSE,NA(),AC105*BH$2)) ->  | AL105: =IF('plutonic template'!Z$197=FALSE,NA(),BH$3*AI105+AK105) ->  | AM105: =IF('plutonic template'!Z$197=FALSE,NA(),AI105*BH$2) ->  | AR105: =IF('plutonic template'!$Z$235=FALSE,NA(),BH$3*AO105+AQ105) ->  | AS105: =IF('plutonic template'!$Z$235=FALSE,NA(),AO105*BH$2) ->  | AX105: =IF('plutonic template'!$Z$276=FALSE,NA(),BH$3*AU105+AW105) ->  | AY105: =IF('plutonic template'!$Z$276=FALSE,NA(),AU105*BH$2) ->  | BD105: =IF('plutonic template'!$Z$389=FALSE,NA(),BH$3*BA105+BC105) ->  | BE105: =IF('plutonic template'!$Z$389=FALSE,NA(),BA105*BH$2) -> 
N106: 1 | T106: =IF(OR($A$5=3,$A$5=1),NA(),IF('plutonic template'!Z$87=FALSE,NA(),IF((ABS(D106)+E106+F106)>0,BH$3*P106+R106,NA()))) ->  | U106: =IF(OR($A$5=3,$A$5=1),NA(),IF('plutonic template'!Z$87=FALSE,NA(),IF((ABS(D106)+E106+F106)>0,P106*BH$2+BH$2,NA()))) ->  | V106: =IF(OR($A$5=3,$A$5=1),NA(),IF('volcanic template'!Z$13=FALSE,NA(),IF((ABS(D106)+E106+F106)>0,BH$3*P106+R106,NA()))) ->  | W106: =IF(OR(A$5=3,A$5=1),NA(),IF('volcanic template'!Z$13=FALSE,NA(),IF((ABS(D106)+E106+F106)>0,P106*BH$2+BH$2,NA()))) ->  | X106: =IF(OR($A$5=3,$A$5=1,$D106<0),NA(),IF('plutonic template'!Z$20=FALSE,NA(),BH$3*P106+R106)) ->  | Y106: =IF(OR($A$5=3,$A$5=1,$D106<0),NA(),IF('plutonic template'!Z$20=FALSE,NA(),P106*BH$2)) ->  | Z106: =IF(OR($A$5=3,$A$5=2,D106<0),NA(),IF('plutonic template'!Z$330=FALSE,NA(),BH$3*J106+L106)) ->  | AA106: =IF(OR($A$5=3,$A$5=2,D106<0),NA(),IF('plutonic template'!Z$330=FALSE,NA(),J106*BH$2)) ->  | AF106: =IF(OR($A$5=3,$A$5=2,D106<0),NA(),IF('plutonic template'!Z$414=FALSE,NA(),BH$3*AC106+AE106)) ->  | AG106: =IF(OR($A$5=3,$A$5=2,D106<0),NA(),IF('plutonic template'!Z$414=FALSE,NA(),AC106*BH$2)) ->  | AL106: =IF('plutonic template'!Z$197=FALSE,NA(),BH$3*AI106+AK106) ->  | AM106: =IF('plutonic template'!Z$197=FALSE,NA(),AI106*BH$2) ->  | AR106: =IF('plutonic template'!$Z$235=FALSE,NA(),BH$3*AO106+AQ106) ->  | AS106: =IF('plutonic template'!$Z$235=FALSE,NA(),AO106*BH$2) ->  | AX106: =IF('plutonic template'!$Z$276=FALSE,NA(),BH$3*AU106+AW106) ->  | AY106: =IF('plutonic template'!$Z$276=FALSE,NA(),AU106*BH$2) ->  | BD106: =IF('plutonic template'!$Z$389=FALSE,NA(),BH$3*BA106+BC106) ->  | BE106: =IF('plutonic template'!$Z$389=FALSE,NA(),BA106*BH$2) -> 
N107: 1 | T107: =IF(OR($A$5=3,$A$5=1),NA(),IF('plutonic template'!Z$87=FALSE,NA(),IF((ABS(D107)+E107+F107)>0,BH$3*P107+R107,NA()))) ->  | U107: =IF(OR($A$5=3,$A$5=1),NA(),IF('plutonic template'!Z$87=FALSE,NA(),IF((ABS(D107)+E107+F107)>0,P107*BH$2+BH$2,NA()))) ->  | V107: =IF(OR($A$5=3,$A$5=1),NA(),IF('volcanic template'!Z$13=FALSE,NA(),IF((ABS(D107)+E107+F107)>0,BH$3*P107+R107,NA()))) ->  | W107: =IF(OR(A$5=3,A$5=1),NA(),IF('volcanic template'!Z$13=FALSE,NA(),IF((ABS(D107)+E107+F107)>0,P107*BH$2+BH$2,NA()))) ->  | X107: =IF(OR($A$5=3,$A$5=1,$D107<0),NA(),IF('plutonic template'!Z$20=FALSE,NA(),BH$3*P107+R107)) ->  | Y107: =IF(OR($A$5=3,$A$5=1,$D107<0),NA(),IF('plutonic template'!Z$20=FALSE,NA(),P107*BH$2)) ->  | Z107: =IF(OR($A$5=3,$A$5=2,D107<0),NA(),IF('plutonic template'!Z$330=FALSE,NA(),BH$3*J107+L107)) ->  | AA107: =IF(OR($A$5=3,$A$5=2,D107<0),NA(),IF('plutonic template'!Z$330=FALSE,NA(),J107*BH$2)) ->  | AF107: =IF(OR($A$5=3,$A$5=2,D107<0),NA(),IF('plutonic template'!Z$414=FALSE,NA(),BH$3*AC107+AE107)) ->  | AG107: =IF(OR($A$5=3,$A$5=2,D107<0),NA(),IF('plutonic template'!Z$414=FALSE,NA(),AC107*BH$2)) ->  | AL107: =IF('plutonic template'!Z$197=FALSE,NA(),BH$3*AI107+AK107) ->  | AM107: =IF('plutonic template'!Z$197=FALSE,NA(),AI107*BH$2) ->  | AR107: =IF('plutonic template'!$Z$235=FALSE,NA(),BH$3*AO107+AQ107) ->  | AS107: =IF('plutonic template'!$Z$235=FALSE,NA(),AO107*BH$2) ->  | AX107: =IF('plutonic template'!$Z$276=FALSE,NA(),BH$3*AU107+AW107) ->  | AY107: =IF('plutonic template'!$Z$276=FALSE,NA(),AU107*BH$2) ->  | BD107: =IF('plutonic template'!$Z$389=FALSE,NA(),BH$3*BA107+BC107) ->  | BE107: =IF('plutonic template'!$Z$389=FALSE,NA(),BA107*BH$2) -> 
N108: 1 | T108: =IF(OR($A$5=3,$A$5=1),NA(),IF('plutonic template'!Z$87=FALSE,NA(),IF((ABS(D108)+E108+F108)>0,BH$3*P108+R108,NA()))) ->  | U108: =IF(OR($A$5=3,$A$5=1),NA(),IF('plutonic template'!Z$87=FALSE,NA(),IF((ABS(D108)+E108+F108)>0,P108*BH$2+BH$2,NA()))) ->  | V108: =IF(OR($A$5=3,$A$5=1),NA(),IF('volcanic template'!Z$13=FALSE,NA(),IF((ABS(D108)+E108+F108)>0,BH$3*P108+R108,NA()))) ->  | W108: =IF(OR(A$5=3,A$5=1),NA(),IF('volcanic template'!Z$13=FALSE,NA(),IF((ABS(D108)+E108+F108)>0,P108*BH$2+BH$2,NA()))) ->  | X108: =IF(OR($A$5=3,$A$5=1,$D108<0),NA(),IF('plutonic template'!Z$20=FALSE,NA(),BH$3*P108+R108)) ->  | Y108: =IF(OR($A$5=3,$A$5=1,$D108<0),NA(),IF('plutonic template'!Z$20=FALSE,NA(),P108*BH$2)) ->  | Z108: =IF(OR($A$5=3,$A$5=2,D108<0),NA(),IF('plutonic template'!Z$330=FALSE,NA(),BH$3*J108+L108)) ->  | AA108: =IF(OR($A$5=3,$A$5=2,D108<0),NA(),IF('plutonic template'!Z$330=FALSE,NA(),J108*BH$2)) ->  | AF108: =IF(OR($A$5=3,$A$5=2,D108<0),NA(),IF('plutonic template'!Z$414=FALSE,NA(),BH$3*AC108+AE108)) ->  | AG108: =IF(OR($A$5=3,$A$5=2,D108<0),NA(),IF('plutonic template'!Z$414=FALSE,NA(),AC108*BH$2)) ->  | AL108: =IF('plutonic template'!Z$197=FALSE,NA(),BH$3*AI108+AK108) ->  | AM108: =IF('plutonic template'!Z$197=FALSE,NA(),AI108*BH$2) ->  | AR108: =IF('plutonic template'!$Z$235=FALSE,NA(),BH$3*AO108+AQ108) ->  | AS108: =IF('plutonic template'!$Z$235=FALSE,NA(),AO108*BH$2) ->  | AX108: =IF('plutonic template'!$Z$276=FALSE,NA(),BH$3*AU108+AW108) ->  | AY108: =IF('plutonic template'!$Z$276=FALSE,NA(),AU108*BH$2) ->  | BD108: =IF('plutonic template'!$Z$389=FALSE,NA(),BH$3*BA108+BC108) ->  | BE108: =IF('plutonic template'!$Z$389=FALSE,NA(),BA108*BH$2) -> 
N109: 1 | T109: =IF(OR($A$5=3,$A$5=1),NA(),IF('plutonic template'!Z$87=FALSE,NA(),IF((ABS(D109)+E109+F109)>0,BH$3*P109+R109,NA()))) ->  | U109: =IF(OR($A$5=3,$A$5=1),NA(),IF('plutonic template'!Z$87=FALSE,NA(),IF((ABS(D109)+E109+F109)>0,P109*BH$2+BH$2,NA()))) ->  | V109: =IF(OR($A$5=3,$A$5=1),NA(),IF('volcanic template'!Z$13=FALSE,NA(),IF((ABS(D109)+E109+F109)>0,BH$3*P109+R109,NA()))) ->  | W109: =IF(OR(A$5=3,A$5=1),NA(),IF('volcanic template'!Z$13=FALSE,NA(),IF((ABS(D109)+E109+F109)>0,P109*BH$2+BH$2,NA()))) ->  | X109: =IF(OR($A$5=3,$A$5=1,$D109<0),NA(),IF('plutonic template'!Z$20=FALSE,NA(),BH$3*P109+R109)) ->  | Y109: =IF(OR($A$5=3,$A$5=1,$D109<0),NA(),IF('plutonic template'!Z$20=FALSE,NA(),P109*BH$2)) ->  | Z109: =IF(OR($A$5=3,$A$5=2,D109<0),NA(),IF('plutonic template'!Z$330=FALSE,NA(),BH$3*J109+L109)) ->  | AA109: =IF(OR($A$5=3,$A$5=2,D109<0),NA(),IF('plutonic template'!Z$330=FALSE,NA(),J109*BH$2)) ->  | AF109: =IF(OR($A$5=3,$A$5=2,D109<0),NA(),IF('plutonic template'!Z$414=FALSE,NA(),BH$3*AC109+AE109)) ->  | AG109: =IF(OR($A$5=3,$A$5=2,D109<0),NA(),IF('plutonic template'!Z$414=FALSE,NA(),AC109*BH$2)) ->  | AL109: =IF('plutonic template'!Z$197=FALSE,NA(),BH$3*AI109+AK109) ->  | AM109: =IF('plutonic template'!Z$197=FALSE,NA(),AI109*BH$2) ->  | AR109: =IF('plutonic template'!$Z$235=FALSE,NA(),BH$3*AO109+AQ109) ->  | AS109: =IF('plutonic template'!$Z$235=FALSE,NA(),AO109*BH$2) ->  | AX109: =IF('plutonic template'!$Z$276=FALSE,NA(),BH$3*AU109+AW109) ->  | AY109: =IF('plutonic template'!$Z$276=FALSE,NA(),AU109*BH$2) ->  | BD109: =IF('plutonic template'!$Z$389=FALSE,NA(),BH$3*BA109+BC109) ->  | BE109: =IF('plutonic template'!$Z$389=FALSE,NA(),BA109*BH$2) -> 
N110: 1 | T110: =IF(OR($A$5=3,$A$5=1),NA(),IF('plutonic template'!Z$87=FALSE,NA(),IF((ABS(D110)+E110+F110)>0,BH$3*P110+R110,NA()))) ->  | U110: =IF(OR($A$5=3,$A$5=1),NA(),IF('plutonic template'!Z$87=FALSE,NA(),IF((ABS(D110)+E110+F110)>0,P110*BH$2+BH$2,NA()))) ->  | V110: =IF(OR($A$5=3,$A$5=1),NA(),IF('volcanic template'!Z$13=FALSE,NA(),IF((ABS(D110)+E110+F110)>0,BH$3*P110+R110,NA()))) ->  | W110: =IF(OR(A$5=3,A$5=1),NA(),IF('volcanic template'!Z$13=FALSE,NA(),IF((ABS(D110)+E110+F110)>0,P110*BH$2+BH$2,NA()))) ->  | X110: =IF(OR($A$5=3,$A$5=1,$D110<0),NA(),IF('plutonic template'!Z$20=FALSE,NA(),BH$3*P110+R110)) ->  | Y110: =IF(OR($A$5=3,$A$5=1,$D110<0),NA(),IF('plutonic template'!Z$20=FALSE,NA(),P110*BH$2)) ->  | Z110: =IF(OR($A$5=3,$A$5=2,D110<0),NA(),IF('plutonic template'!Z$330=FALSE,NA(),BH$3*J110+L110)) ->  | AA110: =IF(OR($A$5=3,$A$5=2,D110<0),NA(),IF('plutonic template'!Z$330=FALSE,NA(),J110*BH$2)) ->  | AF110: =IF(OR($A$5=3,$A$5=2,D110<0),NA(),IF('plutonic template'!Z$414=FALSE,NA(),BH$3*AC110+AE110)) ->  | AG110: =IF(OR($A$5=3,$A$5=2,D110<0),NA(),IF('plutonic template'!Z$414=FALSE,NA(),AC110*BH$2)) ->  | AL110: =IF('plutonic template'!Z$197=FALSE,NA(),BH$3*AI110+AK110) ->  | AM110: =IF('plutonic template'!Z$197=FALSE,NA(),AI110*BH$2) ->  | AR110: =IF('plutonic template'!$Z$235=FALSE,NA(),BH$3*AO110+AQ110) ->  | AS110: =IF('plutonic template'!$Z$235=FALSE,NA(),AO110*BH$2) ->  | AX110: =IF('plutonic template'!$Z$276=FALSE,NA(),BH$3*AU110+AW110) ->  | AY110: =IF('plutonic template'!$Z$276=FALSE,NA(),AU110*BH$2) ->  | BD110: =IF('plutonic template'!$Z$389=FALSE,NA(),BH$3*BA110+BC110) ->  | BE110: =IF('plutonic template'!$Z$389=FALSE,NA(),BA110*BH$2) -> 
N111: 1 | T111: =IF(OR($A$5=3,$A$5=1),NA(),IF('plutonic template'!Z$87=FALSE,NA(),IF((ABS(D111)+E111+F111)>0,BH$3*P111+R111,NA()))) ->  | U111: =IF(OR($A$5=3,$A$5=1),NA(),IF('plutonic template'!Z$87=FALSE,NA(),IF((ABS(D111)+E111+F111)>0,P111*BH$2+BH$2,NA()))) ->  | V111: =IF(OR($A$5=3,$A$5=1),NA(),IF('volcanic template'!Z$13=FALSE,NA(),IF((ABS(D111)+E111+F111)>0,BH$3*P111+R111,NA()))) ->  | W111: =IF(OR(A$5=3,A$5=1),NA(),IF('volcanic template'!Z$13=FALSE,NA(),IF((ABS(D111)+E111+F111)>0,P111*BH$2+BH$2,NA()))) ->  | X111: =IF(OR($A$5=3,$A$5=1,$D111<0),NA(),IF('plutonic template'!Z$20=FALSE,NA(),BH$3*P111+R111)) ->  | Y111: =IF(OR($A$5=3,$A$5=1,$D111<0),NA(),IF('plutonic template'!Z$20=FALSE,NA(),P111*BH$2)) ->  | Z111: =IF(OR($A$5=3,$A$5=2,D111<0),NA(),IF('plutonic template'!Z$330=FALSE,NA(),BH$3*J111+L111)) ->  | AA111: =IF(OR($A$5=3,$A$5=2,D111<0),NA(),IF('plutonic template'!Z$330=FALSE,NA(),J111*BH$2)) ->  | AF111: =IF(OR($A$5=3,$A$5=2,D111<0),NA(),IF('plutonic template'!Z$414=FALSE,NA(),BH$3*AC111+AE111)) ->  | AG111: =IF(OR($A$5=3,$A$5=2,D111<0),NA(),IF('plutonic template'!Z$414=FALSE,NA(),AC111*BH$2)) ->  | AL111: =IF('plutonic template'!Z$197=FALSE,NA(),BH$3*AI111+AK111) ->  | AM111: =IF('plutonic template'!Z$197=FALSE,NA(),AI111*BH$2) ->  | AR111: =IF('plutonic template'!$Z$235=FALSE,NA(),BH$3*AO111+AQ111) ->  | AS111: =IF('plutonic template'!$Z$235=FALSE,NA(),AO111*BH$2) ->  | AX111: =IF('plutonic template'!$Z$276=FALSE,NA(),BH$3*AU111+AW111) ->  | AY111: =IF('plutonic template'!$Z$276=FALSE,NA(),AU111*BH$2) ->  | BD111: =IF('plutonic template'!$Z$389=FALSE,NA(),BH$3*BA111+BC111) ->  | BE111: =IF('plutonic template'!$Z$389=FALSE,NA(),BA111*BH$2) -> 
N112: 1 | T112: =IF(OR($A$5=3,$A$5=1),NA(),IF('plutonic template'!Z$87=FALSE,NA(),IF((ABS(D112)+E112+F112)>0,BH$3*P112+R112,NA()))) ->  | U112: =IF(OR($A$5=3,$A$5=1),NA(),IF('plutonic template'!Z$87=FALSE,NA(),IF((ABS(D112)+E112+F112)>0,P112*BH$2+BH$2,NA()))) ->  | V112: =IF(OR($A$5=3,$A$5=1),NA(),IF('volcanic template'!Z$13=FALSE,NA(),IF((ABS(D112)+E112+F112)>0,BH$3*P112+R112,NA()))) ->  | W112: =IF(OR(A$5=3,A$5=1),NA(),IF('volcanic template'!Z$13=FALSE,NA(),IF((ABS(D112)+E112+F112)>0,P112*BH$2+BH$2,NA()))) ->  | X112: =IF(OR($A$5=3,$A$5=1,$D112<0),NA(),IF('plutonic template'!Z$20=FALSE,NA(),BH$3*P112+R112)) ->  | Y112: =IF(OR($A$5=3,$A$5=1,$D112<0),NA(),IF('plutonic template'!Z$20=FALSE,NA(),P112*BH$2)) ->  | Z112: =IF(OR($A$5=3,$A$5=2,D112<0),NA(),IF('plutonic template'!Z$330=FALSE,NA(),BH$3*J112+L112)) ->  | AA112: =IF(OR($A$5=3,$A$5=2,D112<0),NA(),IF('plutonic template'!Z$330=FALSE,NA(),J112*BH$2)) ->  | AF112: =IF(OR($A$5=3,$A$5=2,D112<0),NA(),IF('plutonic template'!Z$414=FALSE,NA(),BH$3*AC112+AE112)) ->  | AG112: =IF(OR($A$5=3,$A$5=2,D112<0),NA(),IF('plutonic template'!Z$414=FALSE,NA(),AC112*BH$2)) ->  | AL112: =IF('plutonic template'!Z$197=FALSE,NA(),BH$3*AI112+AK112) ->  | AM112: =IF('plutonic template'!Z$197=FALSE,NA(),AI112*BH$2) ->  | AR112: =IF('plutonic template'!$Z$235=FALSE,NA(),BH$3*AO112+AQ112) ->  | AS112: =IF('plutonic template'!$Z$235=FALSE,NA(),AO112*BH$2) ->  | AX112: =IF('plutonic template'!$Z$276=FALSE,NA(),BH$3*AU112+AW112) ->  | AY112: =IF('plutonic template'!$Z$276=FALSE,NA(),AU112*BH$2) ->  | BD112: =IF('plutonic template'!$Z$389=FALSE,NA(),BH$3*BA112+BC112) ->  | BE112: =IF('plutonic template'!$Z$389=FALSE,NA(),BA112*BH$2) -> 
N113: 1 | T113: =IF(OR($A$5=3,$A$5=1),NA(),IF('plutonic template'!Z$87=FALSE,NA(),IF((ABS(D113)+E113+F113)>0,BH$3*P113+R113,NA()))) ->  | U113: =IF(OR($A$5=3,$A$5=1),NA(),IF('plutonic template'!Z$87=FALSE,NA(),IF((ABS(D113)+E113+F113)>0,P113*BH$2+BH$2,NA()))) ->  | V113: =IF(OR($A$5=3,$A$5=1),NA(),IF('volcanic template'!Z$13=FALSE,NA(),IF((ABS(D113)+E113+F113)>0,BH$3*P113+R113,NA()))) ->  | W113: =IF(OR(A$5=3,A$5=1),NA(),IF('volcanic template'!Z$13=FALSE,NA(),IF((ABS(D113)+E113+F113)>0,P113*BH$2+BH$2,NA()))) ->  | X113: =IF(OR($A$5=3,$A$5=1,$D113<0),NA(),IF('plutonic template'!Z$20=FALSE,NA(),BH$3*P113+R113)) ->  | Y113: =IF(OR($A$5=3,$A$5=1,$D113<0),NA(),IF('plutonic template'!Z$20=FALSE,NA(),P113*BH$2)) ->  | Z113: =IF(OR($A$5=3,$A$5=2,D113<0),NA(),IF('plutonic template'!Z$330=FALSE,NA(),BH$3*J113+L113)) ->  | AA113: =IF(OR($A$5=3,$A$5=2,D113<0),NA(),IF('plutonic template'!Z$330=FALSE,NA(),J113*BH$2)) ->  | AF113: =IF(OR($A$5=3,$A$5=2,D113<0),NA(),IF('plutonic template'!Z$414=FALSE,NA(),BH$3*AC113+AE113)) ->  | AG113: =IF(OR($A$5=3,$A$5=2,D113<0),NA(),IF('plutonic template'!Z$414=FALSE,NA(),AC113*BH$2)) ->  | AL113: =IF('plutonic template'!Z$197=FALSE,NA(),BH$3*AI113+AK113) ->  | AM113: =IF('plutonic template'!Z$197=FALSE,NA(),AI113*BH$2) ->  | AR113: =IF('plutonic template'!$Z$235=FALSE,NA(),BH$3*AO113+AQ113) ->  | AS113: =IF('plutonic template'!$Z$235=FALSE,NA(),AO113*BH$2) ->  | AX113: =IF('plutonic template'!$Z$276=FALSE,NA(),BH$3*AU113+AW113) ->  | AY113: =IF('plutonic template'!$Z$276=FALSE,NA(),AU113*BH$2) ->  | BD113: =IF('plutonic template'!$Z$389=FALSE,NA(),BH$3*BA113+BC113) ->  | BE113: =IF('plutonic template'!$Z$389=FALSE,NA(),BA113*BH$2) -> 
N114: 1 | T114: =IF(OR($A$5=3,$A$5=1),NA(),IF('plutonic template'!Z$87=FALSE,NA(),IF((ABS(D114)+E114+F114)>0,BH$3*P114+R114,NA()))) ->  | U114: =IF(OR($A$5=3,$A$5=1),NA(),IF('plutonic template'!Z$87=FALSE,NA(),IF((ABS(D114)+E114+F114)>0,P114*BH$2+BH$2,NA()))) ->  | V114: =IF(OR($A$5=3,$A$5=1),NA(),IF('volcanic template'!Z$13=FALSE,NA(),IF((ABS(D114)+E114+F114)>0,BH$3*P114+R114,NA()))) ->  | W114: =IF(OR(A$5=3,A$5=1),NA(),IF('volcanic template'!Z$13=FALSE,NA(),IF((ABS(D114)+E114+F114)>0,P114*BH$2+BH$2,NA()))) ->  | X114: =IF(OR($A$5=3,$A$5=1,$D114<0),NA(),IF('plutonic template'!Z$20=FALSE,NA(),BH$3*P114+R114)) ->  | Y114: =IF(OR($A$5=3,$A$5=1,$D114<0),NA(),IF('plutonic template'!Z$20=FALSE,NA(),P114*BH$2)) ->  | Z114: =IF(OR($A$5=3,$A$5=2,D114<0),NA(),IF('plutonic template'!Z$330=FALSE,NA(),BH$3*J114+L114)) ->  | AA114: =IF(OR($A$5=3,$A$5=2,D114<0),NA(),IF('plutonic template'!Z$330=FALSE,NA(),J114*BH$2)) ->  | AF114: =IF(OR($A$5=3,$A$5=2,D114<0),NA(),IF('plutonic template'!Z$414=FALSE,NA(),BH$3*AC114+AE114)) ->  | AG114: =IF(OR($A$5=3,$A$5=2,D114<0),NA(),IF('plutonic template'!Z$414=FALSE,NA(),AC114*BH$2)) ->  | AL114: =IF('plutonic template'!Z$197=FALSE,NA(),BH$3*AI114+AK114) ->  | AM114: =IF('plutonic template'!Z$197=FALSE,NA(),AI114*BH$2) ->  | AR114: =IF('plutonic template'!$Z$235=FALSE,NA(),BH$3*AO114+AQ114) ->  | AS114: =IF('plutonic template'!$Z$235=FALSE,NA(),AO114*BH$2) ->  | AX114: =IF('plutonic template'!$Z$276=FALSE,NA(),BH$3*AU114+AW114) ->  | AY114: =IF('plutonic template'!$Z$276=FALSE,NA(),AU114*BH$2) ->  | BD114: =IF('plutonic template'!$Z$389=FALSE,NA(),BH$3*BA114+BC114) ->  | BE114: =IF('plutonic template'!$Z$389=FALSE,NA(),BA114*BH$2) -> 
N115: 1 | T115: =IF(OR($A$5=3,$A$5=1),NA(),IF('plutonic template'!Z$87=FALSE,NA(),IF((ABS(D115)+E115+F115)>0,BH$3*P115+R115,NA()))) ->  | U115: =IF(OR($A$5=3,$A$5=1),NA(),IF('plutonic template'!Z$87=FALSE,NA(),IF((ABS(D115)+E115+F115)>0,P115*BH$2+BH$2,NA()))) ->  | V115: =IF(OR($A$5=3,$A$5=1),NA(),IF('volcanic template'!Z$13=FALSE,NA(),IF((ABS(D115)+E115+F115)>0,BH$3*P115+R115,NA()))) ->  | W115: =IF(OR(A$5=3,A$5=1),NA(),IF('volcanic template'!Z$13=FALSE,NA(),IF((ABS(D115)+E115+F115)>0,P115*BH$2+BH$2,NA()))) ->  | X115: =IF(OR($A$5=3,$A$5=1,$D115<0),NA(),IF('plutonic template'!Z$20=FALSE,NA(),BH$3*P115+R115)) ->  | Y115: =IF(OR($A$5=3,$A$5=1,$D115<0),NA(),IF('plutonic template'!Z$20=FALSE,NA(),P115*BH$2)) ->  | Z115: =IF(OR($A$5=3,$A$5=2,D115<0),NA(),IF('plutonic template'!Z$330=FALSE,NA(),BH$3*J115+L115)) ->  | AA115: =IF(OR($A$5=3,$A$5=2,D115<0),NA(),IF('plutonic template'!Z$330=FALSE,NA(),J115*BH$2)) ->  | AF115: =IF(OR($A$5=3,$A$5=2,D115<0),NA(),IF('plutonic template'!Z$414=FALSE,NA(),BH$3*AC115+AE115)) ->  | AG115: =IF(OR($A$5=3,$A$5=2,D115<0),NA(),IF('plutonic template'!Z$414=FALSE,NA(),AC115*BH$2)) ->  | AL115: =IF('plutonic template'!Z$197=FALSE,NA(),BH$3*AI115+AK115) ->  | AM115: =IF('plutonic template'!Z$197=FALSE,NA(),AI115*BH$2) ->  | AR115: =IF('plutonic template'!$Z$235=FALSE,NA(),BH$3*AO115+AQ115) ->  | AS115: =IF('plutonic template'!$Z$235=FALSE,NA(),AO115*BH$2) ->  | AX115: =IF('plutonic template'!$Z$276=FALSE,NA(),BH$3*AU115+AW115) ->  | AY115: =IF('plutonic template'!$Z$276=FALSE,NA(),AU115*BH$2) ->  | BD115: =IF('plutonic template'!$Z$389=FALSE,NA(),BH$3*BA115+BC115) ->  | BE115: =IF('plutonic template'!$Z$389=FALSE,NA(),BA115*BH$2) -> 
N116: 1 | T116: =IF(OR($A$5=3,$A$5=1),NA(),IF('plutonic template'!Z$87=FALSE,NA(),IF((ABS(D116)+E116+F116)>0,BH$3*P116+R116,NA()))) ->  | U116: =IF(OR($A$5=3,$A$5=1),NA(),IF('plutonic template'!Z$87=FALSE,NA(),IF((ABS(D116)+E116+F116)>0,P116*BH$2+BH$2,NA()))) ->  | V116: =IF(OR($A$5=3,$A$5=1),NA(),IF('volcanic template'!Z$13=FALSE,NA(),IF((ABS(D116)+E116+F116)>0,BH$3*P116+R116,NA()))) ->  | W116: =IF(OR(A$5=3,A$5=1),NA(),IF('volcanic template'!Z$13=FALSE,NA(),IF((ABS(D116)+E116+F116)>0,P116*BH$2+BH$2,NA()))) ->  | X116: =IF(OR($A$5=3,$A$5=1,$D116<0),NA(),IF('plutonic template'!Z$20=FALSE,NA(),BH$3*P116+R116)) ->  | Y116: =IF(OR($A$5=3,$A$5=1,$D116<0),NA(),IF('plutonic template'!Z$20=FALSE,NA(),P116*BH$2)) ->  | Z116: =IF(OR($A$5=3,$A$5=2,D116<0),NA(),IF('plutonic template'!Z$330=FALSE,NA(),BH$3*J116+L116)) ->  | AA116: =IF(OR($A$5=3,$A$5=2,D116<0),NA(),IF('plutonic template'!Z$330=FALSE,NA(),J116*BH$2)) ->  | AF116: =IF(OR($A$5=3,$A$5=2,D116<0),NA(),IF('plutonic template'!Z$414=FALSE,NA(),BH$3*AC116+AE116)) ->  | AG116: =IF(OR($A$5=3,$A$5=2,D116<0),NA(),IF('plutonic template'!Z$414=FALSE,NA(),AC116*BH$2)) ->  | AL116: =IF('plutonic template'!Z$197=FALSE,NA(),BH$3*AI116+AK116) ->  | AM116: =IF('plutonic template'!Z$197=FALSE,NA(),AI116*BH$2) ->  | AR116: =IF('plutonic template'!$Z$235=FALSE,NA(),BH$3*AO116+AQ116) ->  | AS116: =IF('plutonic template'!$Z$235=FALSE,NA(),AO116*BH$2) ->  | AX116: =IF('plutonic template'!$Z$276=FALSE,NA(),BH$3*AU116+AW116) ->  | AY116: =IF('plutonic template'!$Z$276=FALSE,NA(),AU116*BH$2) ->  | BD116: =IF('plutonic template'!$Z$389=FALSE,NA(),BH$3*BA116+BC116) ->  | BE116: =IF('plutonic template'!$Z$389=FALSE,NA(),BA116*BH$2) -> 
N117: 1 | T117: =IF(OR($A$5=3,$A$5=1),NA(),IF('plutonic template'!Z$87=FALSE,NA(),IF((ABS(D117)+E117+F117)>0,BH$3*P117+R117,NA()))) ->  | U117: =IF(OR($A$5=3,$A$5=1),NA(),IF('plutonic template'!Z$87=FALSE,NA(),IF((ABS(D117)+E117+F117)>0,P117*BH$2+BH$2,NA()))) ->  | V117: =IF(OR($A$5=3,$A$5=1),NA(),IF('volcanic template'!Z$13=FALSE,NA(),IF((ABS(D117)+E117+F117)>0,BH$3*P117+R117,NA()))) ->  | W117: =IF(OR(A$5=3,A$5=1),NA(),IF('volcanic template'!Z$13=FALSE,NA(),IF((ABS(D117)+E117+F117)>0,P117*BH$2+BH$2,NA()))) ->  | X117: =IF(OR($A$5=3,$A$5=1,$D117<0),NA(),IF('plutonic template'!Z$20=FALSE,NA(),BH$3*P117+R117)) ->  | Y117: =IF(OR($A$5=3,$A$5=1,$D117<0),NA(),IF('plutonic template'!Z$20=FALSE,NA(),P117*BH$2)) ->  | Z117: =IF(OR($A$5=3,$A$5=2,D117<0),NA(),IF('plutonic template'!Z$330=FALSE,NA(),BH$3*J117+L117)) ->  | AA117: =IF(OR($A$5=3,$A$5=2,D117<0),NA(),IF('plutonic template'!Z$330=FALSE,NA(),J117*BH$2)) ->  | AF117: =IF(OR($A$5=3,$A$5=2,D117<0),NA(),IF('plutonic template'!Z$414=FALSE,NA(),BH$3*AC117+AE117)) ->  | AG117: =IF(OR($A$5=3,$A$5=2,D117<0),NA(),IF('plutonic template'!Z$414=FALSE,NA(),AC117*BH$2)) ->  | AL117: =IF('plutonic template'!Z$197=FALSE,NA(),BH$3*AI117+AK117) ->  | AM117: =IF('plutonic template'!Z$197=FALSE,NA(),AI117*BH$2) ->  | AR117: =IF('plutonic template'!$Z$235=FALSE,NA(),BH$3*AO117+AQ117) ->  | AS117: =IF('plutonic template'!$Z$235=FALSE,NA(),AO117*BH$2) ->  | AX117: =IF('plutonic template'!$Z$276=FALSE,NA(),BH$3*AU117+AW117) ->  | AY117: =IF('plutonic template'!$Z$276=FALSE,NA(),AU117*BH$2) ->  | BD117: =IF('plutonic template'!$Z$389=FALSE,NA(),BH$3*BA117+BC117) ->  | BE117: =IF('plutonic template'!$Z$389=FALSE,NA(),BA117*BH$2) -> 
N118: 1 | T118: =IF(OR($A$5=3,$A$5=1),NA(),IF('plutonic template'!Z$87=FALSE,NA(),IF((ABS(D118)+E118+F118)>0,BH$3*P118+R118,NA()))) ->  | U118: =IF(OR($A$5=3,$A$5=1),NA(),IF('plutonic template'!Z$87=FALSE,NA(),IF((ABS(D118)+E118+F118)>0,P118*BH$2+BH$2,NA()))) ->  | V118: =IF(OR($A$5=3,$A$5=1),NA(),IF('volcanic template'!Z$13=FALSE,NA(),IF((ABS(D118)+E118+F118)>0,BH$3*P118+R118,NA()))) ->  | W118: =IF(OR(A$5=3,A$5=1),NA(),IF('volcanic template'!Z$13=FALSE,NA(),IF((ABS(D118)+E118+F118)>0,P118*BH$2+BH$2,NA()))) ->  | X118: =IF(OR($A$5=3,$A$5=1,$D118<0),NA(),IF('plutonic template'!Z$20=FALSE,NA(),BH$3*P118+R118)) ->  | Y118: =IF(OR($A$5=3,$A$5=1,$D118<0),NA(),IF('plutonic template'!Z$20=FALSE,NA(),P118*BH$2)) ->  | Z118: =IF(OR($A$5=3,$A$5=2,D118<0),NA(),IF('plutonic template'!Z$330=FALSE,NA(),BH$3*J118+L118)) ->  | AA118: =IF(OR($A$5=3,$A$5=2,D118<0),NA(),IF('plutonic template'!Z$330=FALSE,NA(),J118*BH$2)) ->  | AF118: =IF(OR($A$5=3,$A$5=2,D118<0),NA(),IF('plutonic template'!Z$414=FALSE,NA(),BH$3*AC118+AE118)) ->  | AG118: =IF(OR($A$5=3,$A$5=2,D118<0),NA(),IF('plutonic template'!Z$414=FALSE,NA(),AC118*BH$2)) ->  | AL118: =IF('plutonic template'!Z$197=FALSE,NA(),BH$3*AI118+AK118) ->  | AM118: =IF('plutonic template'!Z$197=FALSE,NA(),AI118*BH$2) ->  | AR118: =IF('plutonic template'!$Z$235=FALSE,NA(),BH$3*AO118+AQ118) ->  | AS118: =IF('plutonic template'!$Z$235=FALSE,NA(),AO118*BH$2) ->  | AX118: =IF('plutonic template'!$Z$276=FALSE,NA(),BH$3*AU118+AW118) ->  | AY118: =IF('plutonic template'!$Z$276=FALSE,NA(),AU118*BH$2) ->  | BD118: =IF('plutonic template'!$Z$389=FALSE,NA(),BH$3*BA118+BC118) ->  | BE118: =IF('plutonic template'!$Z$389=FALSE,NA(),BA118*BH$2) -> 
N119: 1 | T119: =IF(OR($A$5=3,$A$5=1),NA(),IF('plutonic template'!Z$87=FALSE,NA(),IF((ABS(D119)+E119+F119)>0,BH$3*P119+R119,NA()))) ->  | U119: =IF(OR($A$5=3,$A$5=1),NA(),IF('plutonic template'!Z$87=FALSE,NA(),IF((ABS(D119)+E119+F119)>0,P119*BH$2+BH$2,NA()))) ->  | V119: =IF(OR($A$5=3,$A$5=1),NA(),IF('volcanic template'!Z$13=FALSE,NA(),IF((ABS(D119)+E119+F119)>0,BH$3*P119+R119,NA()))) ->  | W119: =IF(OR(A$5=3,A$5=1),NA(),IF('volcanic template'!Z$13=FALSE,NA(),IF((ABS(D119)+E119+F119)>0,P119*BH$2+BH$2,NA()))) ->  | X119: =IF(OR($A$5=3,$A$5=1,$D119<0),NA(),IF('plutonic template'!Z$20=FALSE,NA(),BH$3*P119+R119)) ->  | Y119: =IF(OR($A$5=3,$A$5=1,$D119<0),NA(),IF('plutonic template'!Z$20=FALSE,NA(),P119*BH$2)) ->  | Z119: =IF(OR($A$5=3,$A$5=2,D119<0),NA(),IF('plutonic template'!Z$330=FALSE,NA(),BH$3*J119+L119)) ->  | AA119: =IF(OR($A$5=3,$A$5=2,D119<0),NA(),IF('plutonic template'!Z$330=FALSE,NA(),J119*BH$2)) ->  | AF119: =IF(OR($A$5=3,$A$5=2,D119<0),NA(),IF('plutonic template'!Z$414=FALSE,NA(),BH$3*AC119+AE119)) ->  | AG119: =IF(OR($A$5=3,$A$5=2,D119<0),NA(),IF('plutonic template'!Z$414=FALSE,NA(),AC119*BH$2)) ->  | AL119: =IF('plutonic template'!Z$197=FALSE,NA(),BH$3*AI119+AK119) ->  | AM119: =IF('plutonic template'!Z$197=FALSE,NA(),AI119*BH$2) ->  | AR119: =IF('plutonic template'!$Z$235=FALSE,NA(),BH$3*AO119+AQ119) ->  | AS119: =IF('plutonic template'!$Z$235=FALSE,NA(),AO119*BH$2) ->  | AX119: =IF('plutonic template'!$Z$276=FALSE,NA(),BH$3*AU119+AW119) ->  | AY119: =IF('plutonic template'!$Z$276=FALSE,NA(),AU119*BH$2) ->  | BD119: =IF('plutonic template'!$Z$389=FALSE,NA(),BH$3*BA119+BC119) ->  | BE119: =IF('plutonic template'!$Z$389=FALSE,NA(),BA119*BH$2) -> 
N120: 1 | T120: =IF(OR($A$5=3,$A$5=1),NA(),IF('plutonic template'!Z$87=FALSE,NA(),IF((ABS(D120)+E120+F120)>0,BH$3*P120+R120,NA()))) ->  | U120: =IF(OR($A$5=3,$A$5=1),NA(),IF('plutonic template'!Z$87=FALSE,NA(),IF((ABS(D120)+E120+F120)>0,P120*BH$2+BH$2,NA()))) ->  | V120: =IF(OR($A$5=3,$A$5=1),NA(),IF('volcanic template'!Z$13=FALSE,NA(),IF((ABS(D120)+E120+F120)>0,BH$3*P120+R120,NA()))) ->  | W120: =IF(OR(A$5=3,A$5=1),NA(),IF('volcanic template'!Z$13=FALSE,NA(),IF((ABS(D120)+E120+F120)>0,P120*BH$2+BH$2,NA()))) ->  | X120: =IF(OR($A$5=3,$A$5=1,$D120<0),NA(),IF('plutonic template'!Z$20=FALSE,NA(),BH$3*P120+R120)) ->  | Y120: =IF(OR($A$5=3,$A$5=1,$D120<0),NA(),IF('plutonic template'!Z$20=FALSE,NA(),P120*BH$2)) ->  | Z120: =IF(OR($A$5=3,$A$5=2,D120<0),NA(),IF('plutonic template'!Z$330=FALSE,NA(),BH$3*J120+L120)) ->  | AA120: =IF(OR($A$5=3,$A$5=2,D120<0),NA(),IF('plutonic template'!Z$330=FALSE,NA(),J120*BH$2)) ->  | AF120: =IF(OR($A$5=3,$A$5=2,D120<0),NA(),IF('plutonic template'!Z$414=FALSE,NA(),BH$3*AC120+AE120)) ->  | AG120: =IF(OR($A$5=3,$A$5=2,D120<0),NA(),IF('plutonic template'!Z$414=FALSE,NA(),AC120*BH$2)) ->  | AL120: =IF('plutonic template'!Z$197=FALSE,NA(),BH$3*AI120+AK120) ->  | AM120: =IF('plutonic template'!Z$197=FALSE,NA(),AI120*BH$2) ->  | AR120: =IF('plutonic template'!$Z$235=FALSE,NA(),BH$3*AO120+AQ120) ->  | AS120: =IF('plutonic template'!$Z$235=FALSE,NA(),AO120*BH$2) ->  | AX120: =IF('plutonic template'!$Z$276=FALSE,NA(),BH$3*AU120+AW120) ->  | AY120: =IF('plutonic template'!$Z$276=FALSE,NA(),AU120*BH$2) ->  | BD120: =IF('plutonic template'!$Z$389=FALSE,NA(),BH$3*BA120+BC120) ->  | BE120: =IF('plutonic template'!$Z$389=FALSE,NA(),BA120*BH$2) -> 
N121: 1 | T121: =IF(OR($A$5=3,$A$5=1),NA(),IF('plutonic template'!Z$87=FALSE,NA(),IF((ABS(D121)+E121+F121)>0,BH$3*P121+R121,NA()))) ->  | U121: =IF(OR($A$5=3,$A$5=1),NA(),IF('plutonic template'!Z$87=FALSE,NA(),IF((ABS(D121)+E121+F121)>0,P121*BH$2+BH$2,NA()))) ->  | V121: =IF(OR($A$5=3,$A$5=1),NA(),IF('volcanic template'!Z$13=FALSE,NA(),IF((ABS(D121)+E121+F121)>0,BH$3*P121+R121,NA()))) ->  | W121: =IF(OR(A$5=3,A$5=1),NA(),IF('volcanic template'!Z$13=FALSE,NA(),IF((ABS(D121)+E121+F121)>0,P121*BH$2+BH$2,NA()))) ->  | X121: =IF(OR($A$5=3,$A$5=1,$D121<0),NA(),IF('plutonic template'!Z$20=FALSE,NA(),BH$3*P121+R121)) ->  | Y121: =IF(OR($A$5=3,$A$5=1,$D121<0),NA(),IF('plutonic template'!Z$20=FALSE,NA(),P121*BH$2)) ->  | Z121: =IF(OR($A$5=3,$A$5=2,D121<0),NA(),IF('plutonic template'!Z$330=FALSE,NA(),BH$3*J121+L121)) ->  | AA121: =IF(OR($A$5=3,$A$5=2,D121<0),NA(),IF('plutonic template'!Z$330=FALSE,NA(),J121*BH$2)) ->  | AF121: =IF(OR($A$5=3,$A$5=2,D121<0),NA(),IF('plutonic template'!Z$414=FALSE,NA(),BH$3*AC121+AE121)) ->  | AG121: =IF(OR($A$5=3,$A$5=2,D121<0),NA(),IF('plutonic template'!Z$414=FALSE,NA(),AC121*BH$2)) ->  | AL121: =IF('plutonic template'!Z$197=FALSE,NA(),BH$3*AI121+AK121) ->  | AM121: =IF('plutonic template'!Z$197=FALSE,NA(),AI121*BH$2) ->  | AR121: =IF('plutonic template'!$Z$235=FALSE,NA(),BH$3*AO121+AQ121) ->  | AS121: =IF('plutonic template'!$Z$235=FALSE,NA(),AO121*BH$2) ->  | AX121: =IF('plutonic template'!$Z$276=FALSE,NA(),BH$3*AU121+AW121) ->  | AY121: =IF('plutonic template'!$Z$276=FALSE,NA(),AU121*BH$2) ->  | BD121: =IF('plutonic template'!$Z$389=FALSE,NA(),BH$3*BA121+BC121) ->  | BE121: =IF('plutonic template'!$Z$389=FALSE,NA(),BA121*BH$2) -> 
N122: 1 | T122: =IF(OR($A$5=3,$A$5=1),NA(),IF('plutonic template'!Z$87=FALSE,NA(),IF((ABS(D122)+E122+F122)>0,BH$3*P122+R122,NA()))) ->  | U122: =IF(OR($A$5=3,$A$5=1),NA(),IF('plutonic template'!Z$87=FALSE,NA(),IF((ABS(D122)+E122+F122)>0,P122*BH$2+BH$2,NA()))) ->  | V122: =IF(OR($A$5=3,$A$5=1),NA(),IF('volcanic template'!Z$13=FALSE,NA(),IF((ABS(D122)+E122+F122)>0,BH$3*P122+R122,NA()))) ->  | W122: =IF(OR(A$5=3,A$5=1),NA(),IF('volcanic template'!Z$13=FALSE,NA(),IF((ABS(D122)+E122+F122)>0,P122*BH$2+BH$2,NA()))) ->  | X122: =IF(OR($A$5=3,$A$5=1,$D122<0),NA(),IF('plutonic template'!Z$20=FALSE,NA(),BH$3*P122+R122)) ->  | Y122: =IF(OR($A$5=3,$A$5=1,$D122<0),NA(),IF('plutonic template'!Z$20=FALSE,NA(),P122*BH$2)) ->  | Z122: =IF(OR($A$5=3,$A$5=2,D122<0),NA(),IF('plutonic template'!Z$330=FALSE,NA(),BH$3*J122+L122)) ->  | AA122: =IF(OR($A$5=3,$A$5=2,D122<0),NA(),IF('plutonic template'!Z$330=FALSE,NA(),J122*BH$2)) ->  | AF122: =IF(OR($A$5=3,$A$5=2,D122<0),NA(),IF('plutonic template'!Z$414=FALSE,NA(),BH$3*AC122+AE122)) ->  | AG122: =IF(OR($A$5=3,$A$5=2,D122<0),NA(),IF('plutonic template'!Z$414=FALSE,NA(),AC122*BH$2)) ->  | AL122: =IF('plutonic template'!Z$197=FALSE,NA(),BH$3*AI122+AK122) ->  | AM122: =IF('plutonic template'!Z$197=FALSE,NA(),AI122*BH$2) ->  | AR122: =IF('plutonic template'!$Z$235=FALSE,NA(),BH$3*AO122+AQ122) ->  | AS122: =IF('plutonic template'!$Z$235=FALSE,NA(),AO122*BH$2) ->  | AX122: =IF('plutonic template'!$Z$276=FALSE,NA(),BH$3*AU122+AW122) ->  | AY122: =IF('plutonic template'!$Z$276=FALSE,NA(),AU122*BH$2) ->  | BD122: =IF('plutonic template'!$Z$389=FALSE,NA(),BH$3*BA122+BC122) ->  | BE122: =IF('plutonic template'!$Z$389=FALSE,NA(),BA122*BH$2) -> 
N123: 1 | T123: =IF(OR($A$5=3,$A$5=1),NA(),IF('plutonic template'!Z$87=FALSE,NA(),IF((ABS(D123)+E123+F123)>0,BH$3*P123+R123,NA()))) ->  | U123: =IF(OR($A$5=3,$A$5=1),NA(),IF('plutonic template'!Z$87=FALSE,NA(),IF((ABS(D123)+E123+F123)>0,P123*BH$2+BH$2,NA()))) ->  | V123: =IF(OR($A$5=3,$A$5=1),NA(),IF('volcanic template'!Z$13=FALSE,NA(),IF((ABS(D123)+E123+F123)>0,BH$3*P123+R123,NA()))) ->  | W123: =IF(OR(A$5=3,A$5=1),NA(),IF('volcanic template'!Z$13=FALSE,NA(),IF((ABS(D123)+E123+F123)>0,P123*BH$2+BH$2,NA()))) ->  | X123: =IF(OR($A$5=3,$A$5=1,$D123<0),NA(),IF('plutonic template'!Z$20=FALSE,NA(),BH$3*P123+R123)) ->  | Y123: =IF(OR($A$5=3,$A$5=1,$D123<0),NA(),IF('plutonic template'!Z$20=FALSE,NA(),P123*BH$2)) ->  | Z123: =IF(OR($A$5=3,$A$5=2,D123<0),NA(),IF('plutonic template'!Z$330=FALSE,NA(),BH$3*J123+L123)) ->  | AA123: =IF(OR($A$5=3,$A$5=2,D123<0),NA(),IF('plutonic template'!Z$330=FALSE,NA(),J123*BH$2)) ->  | AF123: =IF(OR($A$5=3,$A$5=2,D123<0),NA(),IF('plutonic template'!Z$414=FALSE,NA(),BH$3*AC123+AE123)) ->  | AG123: =IF(OR($A$5=3,$A$5=2,D123<0),NA(),IF('plutonic template'!Z$414=FALSE,NA(),AC123*BH$2)) ->  | AL123: =IF('plutonic template'!Z$197=FALSE,NA(),BH$3*AI123+AK123) ->  | AM123: =IF('plutonic template'!Z$197=FALSE,NA(),AI123*BH$2) ->  | AR123: =IF('plutonic template'!$Z$235=FALSE,NA(),BH$3*AO123+AQ123) ->  | AS123: =IF('plutonic template'!$Z$235=FALSE,NA(),AO123*BH$2) ->  | AX123: =IF('plutonic template'!$Z$276=FALSE,NA(),BH$3*AU123+AW123) ->  | AY123: =IF('plutonic template'!$Z$276=FALSE,NA(),AU123*BH$2) ->  | BD123: =IF('plutonic template'!$Z$389=FALSE,NA(),BH$3*BA123+BC123) ->  | BE123: =IF('plutonic template'!$Z$389=FALSE,NA(),BA123*BH$2) -> 
N124: 1 | T124: =IF(OR($A$5=3,$A$5=1),NA(),IF('plutonic template'!Z$87=FALSE,NA(),IF((ABS(D124)+E124+F124)>0,BH$3*P124+R124,NA()))) ->  | U124: =IF(OR($A$5=3,$A$5=1),NA(),IF('plutonic template'!Z$87=FALSE,NA(),IF((ABS(D124)+E124+F124)>0,P124*BH$2+BH$2,NA()))) ->  | V124: =IF(OR($A$5=3,$A$5=1),NA(),IF('volcanic template'!Z$13=FALSE,NA(),IF((ABS(D124)+E124+F124)>0,BH$3*P124+R124,NA()))) ->  | W124: =IF(OR(A$5=3,A$5=1),NA(),IF('volcanic template'!Z$13=FALSE,NA(),IF((ABS(D124)+E124+F124)>0,P124*BH$2+BH$2,NA()))) ->  | X124: =IF(OR($A$5=3,$A$5=1,$D124<0),NA(),IF('plutonic template'!Z$20=FALSE,NA(),BH$3*P124+R124)) ->  | Y124: =IF(OR($A$5=3,$A$5=1,$D124<0),NA(),IF('plutonic template'!Z$20=FALSE,NA(),P124*BH$2)) ->  | Z124: =IF(OR($A$5=3,$A$5=2,D124<0),NA(),IF('plutonic template'!Z$330=FALSE,NA(),BH$3*J124+L124)) ->  | AA124: =IF(OR($A$5=3,$A$5=2,D124<0),NA(),IF('plutonic template'!Z$330=FALSE,NA(),J124*BH$2)) ->  | AF124: =IF(OR($A$5=3,$A$5=2,D124<0),NA(),IF('plutonic template'!Z$414=FALSE,NA(),BH$3*AC124+AE124)) ->  | AG124: =IF(OR($A$5=3,$A$5=2,D124<0),NA(),IF('plutonic template'!Z$414=FALSE,NA(),AC124*BH$2)) ->  | AL124: =IF('plutonic template'!Z$197=FALSE,NA(),BH$3*AI124+AK124) ->  | AM124: =IF('plutonic template'!Z$197=FALSE,NA(),AI124*BH$2) ->  | AR124: =IF('plutonic template'!$Z$235=FALSE,NA(),BH$3*AO124+AQ124) ->  | AS124: =IF('plutonic template'!$Z$235=FALSE,NA(),AO124*BH$2) ->  | AX124: =IF('plutonic template'!$Z$276=FALSE,NA(),BH$3*AU124+AW124) ->  | AY124: =IF('plutonic template'!$Z$276=FALSE,NA(),AU124*BH$2) ->  | BD124: =IF('plutonic template'!$Z$389=FALSE,NA(),BH$3*BA124+BC124) ->  | BE124: =IF('plutonic template'!$Z$389=FALSE,NA(),BA124*BH$2) -> 
N125: 1 | T125: =IF(OR($A$5=3,$A$5=1),NA(),IF('plutonic template'!Z$87=FALSE,NA(),IF((ABS(D125)+E125+F125)>0,BH$3*P125+R125,NA()))) ->  | U125: =IF(OR($A$5=3,$A$5=1),NA(),IF('plutonic template'!Z$87=FALSE,NA(),IF((ABS(D125)+E125+F125)>0,P125*BH$2+BH$2,NA()))) ->  | V125: =IF(OR($A$5=3,$A$5=1),NA(),IF('volcanic template'!Z$13=FALSE,NA(),IF((ABS(D125)+E125+F125)>0,BH$3*P125+R125,NA()))) ->  | W125: =IF(OR(A$5=3,A$5=1),NA(),IF('volcanic template'!Z$13=FALSE,NA(),IF((ABS(D125)+E125+F125)>0,P125*BH$2+BH$2,NA()))) ->  | X125: =IF(OR($A$5=3,$A$5=1,$D125<0),NA(),IF('plutonic template'!Z$20=FALSE,NA(),BH$3*P125+R125)) ->  | Y125: =IF(OR($A$5=3,$A$5=1,$D125<0),NA(),IF('plutonic template'!Z$20=FALSE,NA(),P125*BH$2)) ->  | Z125: =IF(OR($A$5=3,$A$5=2,D125<0),NA(),IF('plutonic template'!Z$330=FALSE,NA(),BH$3*J125+L125)) ->  | AA125: =IF(OR($A$5=3,$A$5=2,D125<0),NA(),IF('plutonic template'!Z$330=FALSE,NA(),J125*BH$2)) ->  | AF125: =IF(OR($A$5=3,$A$5=2,D125<0),NA(),IF('plutonic template'!Z$414=FALSE,NA(),BH$3*AC125+AE125)) ->  | AG125: =IF(OR($A$5=3,$A$5=2,D125<0),NA(),IF('plutonic template'!Z$414=FALSE,NA(),AC125*BH$2)) ->  | AL125: =IF('plutonic template'!Z$197=FALSE,NA(),BH$3*AI125+AK125) ->  | AM125: =IF('plutonic template'!Z$197=FALSE,NA(),AI125*BH$2) ->  | AR125: =IF('plutonic template'!$Z$235=FALSE,NA(),BH$3*AO125+AQ125) ->  | AS125: =IF('plutonic template'!$Z$235=FALSE,NA(),AO125*BH$2) ->  | AX125: =IF('plutonic template'!$Z$276=FALSE,NA(),BH$3*AU125+AW125) ->  | AY125: =IF('plutonic template'!$Z$276=FALSE,NA(),AU125*BH$2) ->  | BD125: =IF('plutonic template'!$Z$389=FALSE,NA(),BH$3*BA125+BC125) ->  | BE125: =IF('plutonic template'!$Z$389=FALSE,NA(),BA125*BH$2) -> 
N126: 1 | T126: =IF(OR($A$5=3,$A$5=1),NA(),IF('plutonic template'!Z$87=FALSE,NA(),IF((ABS(D126)+E126+F126)>0,BH$3*P126+R126,NA()))) ->  | U126: =IF(OR($A$5=3,$A$5=1),NA(),IF('plutonic template'!Z$87=FALSE,NA(),IF((ABS(D126)+E126+F126)>0,P126*BH$2+BH$2,NA()))) ->  | V126: =IF(OR($A$5=3,$A$5=1),NA(),IF('volcanic template'!Z$13=FALSE,NA(),IF((ABS(D126)+E126+F126)>0,BH$3*P126+R126,NA()))) ->  | W126: =IF(OR(A$5=3,A$5=1),NA(),IF('volcanic template'!Z$13=FALSE,NA(),IF((ABS(D126)+E126+F126)>0,P126*BH$2+BH$2,NA()))) ->  | X126: =IF(OR($A$5=3,$A$5=1,$D126<0),NA(),IF('plutonic template'!Z$20=FALSE,NA(),BH$3*P126+R126)) ->  | Y126: =IF(OR($A$5=3,$A$5=1,$D126<0),NA(),IF('plutonic template'!Z$20=FALSE,NA(),P126*BH$2)) ->  | Z126: =IF(OR($A$5=3,$A$5=2,D126<0),NA(),IF('plutonic template'!Z$330=FALSE,NA(),BH$3*J126+L126)) ->  | AA126: =IF(OR($A$5=3,$A$5=2,D126<0),NA(),IF('plutonic template'!Z$330=FALSE,NA(),J126*BH$2)) ->  | AF126: =IF(OR($A$5=3,$A$5=2,D126<0),NA(),IF('plutonic template'!Z$414=FALSE,NA(),BH$3*AC126+AE126)) ->  | AG126: =IF(OR($A$5=3,$A$5=2,D126<0),NA(),IF('plutonic template'!Z$414=FALSE,NA(),AC126*BH$2)) ->  | AL126: =IF('plutonic template'!Z$197=FALSE,NA(),BH$3*AI126+AK126) ->  | AM126: =IF('plutonic template'!Z$197=FALSE,NA(),AI126*BH$2) ->  | AR126: =IF('plutonic template'!$Z$235=FALSE,NA(),BH$3*AO126+AQ126) ->  | AS126: =IF('plutonic template'!$Z$235=FALSE,NA(),AO126*BH$2) ->  | AX126: =IF('plutonic template'!$Z$276=FALSE,NA(),BH$3*AU126+AW126) ->  | AY126: =IF('plutonic template'!$Z$276=FALSE,NA(),AU126*BH$2) ->  | BD126: =IF('plutonic template'!$Z$389=FALSE,NA(),BH$3*BA126+BC126) ->  | BE126: =IF('plutonic template'!$Z$389=FALSE,NA(),BA126*BH$2) -> 
N127: 1 | T127: =IF(OR($A$5=3,$A$5=1),NA(),IF('plutonic template'!Z$87=FALSE,NA(),IF((ABS(D127)+E127+F127)>0,BH$3*P127+R127,NA()))) ->  | U127: =IF(OR($A$5=3,$A$5=1),NA(),IF('plutonic template'!Z$87=FALSE,NA(),IF((ABS(D127)+E127+F127)>0,P127*BH$2+BH$2,NA()))) ->  | V127: =IF(OR($A$5=3,$A$5=1),NA(),IF('volcanic template'!Z$13=FALSE,NA(),IF((ABS(D127)+E127+F127)>0,BH$3*P127+R127,NA()))) ->  | W127: =IF(OR(A$5=3,A$5=1),NA(),IF('volcanic template'!Z$13=FALSE,NA(),IF((ABS(D127)+E127+F127)>0,P127*BH$2+BH$2,NA()))) ->  | X127: =IF(OR($A$5=3,$A$5=1,$D127<0),NA(),IF('plutonic template'!Z$20=FALSE,NA(),BH$3*P127+R127)) ->  | Y127: =IF(OR($A$5=3,$A$5=1,$D127<0),NA(),IF('plutonic template'!Z$20=FALSE,NA(),P127*BH$2)) ->  | Z127: =IF(OR($A$5=3,$A$5=2,D127<0),NA(),IF('plutonic template'!Z$330=FALSE,NA(),BH$3*J127+L127)) ->  | AA127: =IF(OR($A$5=3,$A$5=2,D127<0),NA(),IF('plutonic template'!Z$330=FALSE,NA(),J127*BH$2)) ->  | AF127: =IF(OR($A$5=3,$A$5=2,D127<0),NA(),IF('plutonic template'!Z$414=FALSE,NA(),BH$3*AC127+AE127)) ->  | AG127: =IF(OR($A$5=3,$A$5=2,D127<0),NA(),IF('plutonic template'!Z$414=FALSE,NA(),AC127*BH$2)) ->  | AL127: =IF('plutonic template'!Z$197=FALSE,NA(),BH$3*AI127+AK127) ->  | AM127: =IF('plutonic template'!Z$197=FALSE,NA(),AI127*BH$2) ->  | AR127: =IF('plutonic template'!$Z$235=FALSE,NA(),BH$3*AO127+AQ127) ->  | AS127: =IF('plutonic template'!$Z$235=FALSE,NA(),AO127*BH$2) ->  | AX127: =IF('plutonic template'!$Z$276=FALSE,NA(),BH$3*AU127+AW127) ->  | AY127: =IF('plutonic template'!$Z$276=FALSE,NA(),AU127*BH$2) ->  | BD127: =IF('plutonic template'!$Z$389=FALSE,NA(),BH$3*BA127+BC127) ->  | BE127: =IF('plutonic template'!$Z$389=FALSE,NA(),BA127*BH$2) -> 
N128: 1 | T128: =IF(OR($A$5=3,$A$5=1),NA(),IF('plutonic template'!Z$87=FALSE,NA(),IF((ABS(D128)+E128+F128)>0,BH$3*P128+R128,NA()))) ->  | U128: =IF(OR($A$5=3,$A$5=1),NA(),IF('plutonic template'!Z$87=FALSE,NA(),IF((ABS(D128)+E128+F128)>0,P128*BH$2+BH$2,NA()))) ->  | V128: =IF(OR($A$5=3,$A$5=1),NA(),IF('volcanic template'!Z$13=FALSE,NA(),IF((ABS(D128)+E128+F128)>0,BH$3*P128+R128,NA()))) ->  | W128: =IF(OR(A$5=3,A$5=1),NA(),IF('volcanic template'!Z$13=FALSE,NA(),IF((ABS(D128)+E128+F128)>0,P128*BH$2+BH$2,NA()))) ->  | X128: =IF(OR($A$5=3,$A$5=1,$D128<0),NA(),IF('plutonic template'!Z$20=FALSE,NA(),BH$3*P128+R128)) ->  | Y128: =IF(OR($A$5=3,$A$5=1,$D128<0),NA(),IF('plutonic template'!Z$20=FALSE,NA(),P128*BH$2)) ->  | Z128: =IF(OR($A$5=3,$A$5=2,D128<0),NA(),IF('plutonic template'!Z$330=FALSE,NA(),BH$3*J128+L128)) ->  | AA128: =IF(OR($A$5=3,$A$5=2,D128<0),NA(),IF('plutonic template'!Z$330=FALSE,NA(),J128*BH$2)) ->  | AF128: =IF(OR($A$5=3,$A$5=2,D128<0),NA(),IF('plutonic template'!Z$414=FALSE,NA(),BH$3*AC128+AE128)) ->  | AG128: =IF(OR($A$5=3,$A$5=2,D128<0),NA(),IF('plutonic template'!Z$414=FALSE,NA(),AC128*BH$2)) ->  | AL128: =IF('plutonic template'!Z$197=FALSE,NA(),BH$3*AI128+AK128) ->  | AM128: =IF('plutonic template'!Z$197=FALSE,NA(),AI128*BH$2) ->  | AR128: =IF('plutonic template'!$Z$235=FALSE,NA(),BH$3*AO128+AQ128) ->  | AS128: =IF('plutonic template'!$Z$235=FALSE,NA(),AO128*BH$2) ->  | AX128: =IF('plutonic template'!$Z$276=FALSE,NA(),BH$3*AU128+AW128) ->  | AY128: =IF('plutonic template'!$Z$276=FALSE,NA(),AU128*BH$2) ->  | BD128: =IF('plutonic template'!$Z$389=FALSE,NA(),BH$3*BA128+BC128) ->  | BE128: =IF('plutonic template'!$Z$389=FALSE,NA(),BA128*BH$2) -> 
N129: 1 | T129: =IF(OR($A$5=3,$A$5=1),NA(),IF('plutonic template'!Z$87=FALSE,NA(),IF((ABS(D129)+E129+F129)>0,BH$3*P129+R129,NA()))) ->  | U129: =IF(OR($A$5=3,$A$5=1),NA(),IF('plutonic template'!Z$87=FALSE,NA(),IF((ABS(D129)+E129+F129)>0,P129*BH$2+BH$2,NA()))) ->  | V129: =IF(OR($A$5=3,$A$5=1),NA(),IF('volcanic template'!Z$13=FALSE,NA(),IF((ABS(D129)+E129+F129)>0,BH$3*P129+R129,NA()))) ->  | W129: =IF(OR(A$5=3,A$5=1),NA(),IF('volcanic template'!Z$13=FALSE,NA(),IF((ABS(D129)+E129+F129)>0,P129*BH$2+BH$2,NA()))) ->  | X129: =IF(OR($A$5=3,$A$5=1,$D129<0),NA(),IF('plutonic template'!Z$20=FALSE,NA(),BH$3*P129+R129)) ->  | Y129: =IF(OR($A$5=3,$A$5=1,$D129<0),NA(),IF('plutonic template'!Z$20=FALSE,NA(),P129*BH$2)) ->  | Z129: =IF(OR($A$5=3,$A$5=2,D129<0),NA(),IF('plutonic template'!Z$330=FALSE,NA(),BH$3*J129+L129)) ->  | AA129: =IF(OR($A$5=3,$A$5=2,D129<0),NA(),IF('plutonic template'!Z$330=FALSE,NA(),J129*BH$2)) ->  | AF129: =IF(OR($A$5=3,$A$5=2,D129<0),NA(),IF('plutonic template'!Z$414=FALSE,NA(),BH$3*AC129+AE129)) ->  | AG129: =IF(OR($A$5=3,$A$5=2,D129<0),NA(),IF('plutonic template'!Z$414=FALSE,NA(),AC129*BH$2)) ->  | AL129: =IF('plutonic template'!Z$197=FALSE,NA(),BH$3*AI129+AK129) ->  | AM129: =IF('plutonic template'!Z$197=FALSE,NA(),AI129*BH$2) ->  | AR129: =IF('plutonic template'!$Z$235=FALSE,NA(),BH$3*AO129+AQ129) ->  | AS129: =IF('plutonic template'!$Z$235=FALSE,NA(),AO129*BH$2) ->  | AX129: =IF('plutonic template'!$Z$276=FALSE,NA(),BH$3*AU129+AW129) ->  | AY129: =IF('plutonic template'!$Z$276=FALSE,NA(),AU129*BH$2) ->  | BD129: =IF('plutonic template'!$Z$389=FALSE,NA(),BH$3*BA129+BC129) ->  | BE129: =IF('plutonic template'!$Z$389=FALSE,NA(),BA129*BH$2) -> 
N130: 1 | T130: =IF(OR($A$5=3,$A$5=1),NA(),IF('plutonic template'!Z$87=FALSE,NA(),IF((ABS(D130)+E130+F130)>0,BH$3*P130+R130,NA()))) ->  | U130: =IF(OR($A$5=3,$A$5=1),NA(),IF('plutonic template'!Z$87=FALSE,NA(),IF((ABS(D130)+E130+F130)>0,P130*BH$2+BH$2,NA()))) ->  | V130: =IF(OR($A$5=3,$A$5=1),NA(),IF('volcanic template'!Z$13=FALSE,NA(),IF((ABS(D130)+E130+F130)>0,BH$3*P130+R130,NA()))) ->  | W130: =IF(OR(A$5=3,A$5=1),NA(),IF('volcanic template'!Z$13=FALSE,NA(),IF((ABS(D130)+E130+F130)>0,P130*BH$2+BH$2,NA()))) ->  | X130: =IF(OR($A$5=3,$A$5=1,$D130<0),NA(),IF('plutonic template'!Z$20=FALSE,NA(),BH$3*P130+R130)) ->  | Y130: =IF(OR($A$5=3,$A$5=1,$D130<0),NA(),IF('plutonic template'!Z$20=FALSE,NA(),P130*BH$2)) ->  | Z130: =IF(OR($A$5=3,$A$5=2,D130<0),NA(),IF('plutonic template'!Z$330=FALSE,NA(),BH$3*J130+L130)) ->  | AA130: =IF(OR($A$5=3,$A$5=2,D130<0),NA(),IF('plutonic template'!Z$330=FALSE,NA(),J130*BH$2)) ->  | AF130: =IF(OR($A$5=3,$A$5=2,D130<0),NA(),IF('plutonic template'!Z$414=FALSE,NA(),BH$3*AC130+AE130)) ->  | AG130: =IF(OR($A$5=3,$A$5=2,D130<0),NA(),IF('plutonic template'!Z$414=FALSE,NA(),AC130*BH$2)) ->  | AL130: =IF('plutonic template'!Z$197=FALSE,NA(),BH$3*AI130+AK130) ->  | AM130: =IF('plutonic template'!Z$197=FALSE,NA(),AI130*BH$2) ->  | AR130: =IF('plutonic template'!$Z$235=FALSE,NA(),BH$3*AO130+AQ130) ->  | AS130: =IF('plutonic template'!$Z$235=FALSE,NA(),AO130*BH$2) ->  | AX130: =IF('plutonic template'!$Z$276=FALSE,NA(),BH$3*AU130+AW130) ->  | AY130: =IF('plutonic template'!$Z$276=FALSE,NA(),AU130*BH$2) ->  | BD130: =IF('plutonic template'!$Z$389=FALSE,NA(),BH$3*BA130+BC130) ->  | BE130: =IF('plutonic template'!$Z$389=FALSE,NA(),BA130*BH$2) -> 
N131: =IF(AND($A$5=2,D131<0),-1,1) -> 1 | T131: =IF(OR($A$5=3,$A$5=1),NA(),IF('plutonic template'!Z$87=FALSE,NA(),IF((ABS(D131)+E131+F131)>0,BH$3*P131+R131,NA()))) ->  | U131: =IF(OR($A$5=3,$A$5=1),NA(),IF('plutonic template'!Z$87=FALSE,NA(),IF((ABS(D131)+E131+F131)>0,P131*BH$2+BH$2,NA()))) ->  | V131: =IF(OR($A$5=3,$A$5=1),NA(),IF('volcanic template'!Z$13=FALSE,NA(),IF((ABS(D131)+E131+F131)>0,BH$3*P131+R131,NA()))) ->  | W131: =IF(OR(A$5=3,A$5=1),NA(),IF('volcanic template'!Z$13=FALSE,NA(),IF((ABS(D131)+E131+F131)>0,P131*BH$2+BH$2,NA()))) ->  | X131: =IF(OR($A$5=3,$A$5=1,$D131<0),NA(),IF('plutonic template'!Z$20=FALSE,NA(),BH$3*P131+R131)) ->  | Y131: =IF(OR($A$5=3,$A$5=1,$D131<0),NA(),IF('plutonic template'!Z$20=FALSE,NA(),P131*BH$2)) ->  | Z131: =IF(OR($A$5=3,$A$5=2,D131<0),NA(),IF('plutonic template'!Z$330=FALSE,NA(),BH$3*J131+L131)) ->  | AA131: =IF(OR($A$5=3,$A$5=2,D131<0),NA(),IF('plutonic template'!Z$330=FALSE,NA(),J131*BH$2)) ->  | AF131: =IF(OR($A$5=3,$A$5=2,D131<0),NA(),IF('plutonic template'!Z$414=FALSE,NA(),BH$3*AC131+AE131)) ->  | AG131: =IF(OR($A$5=3,$A$5=2,D131<0),NA(),IF('plutonic template'!Z$414=FALSE,NA(),AC131*BH$2)) ->  | AL131: =IF('plutonic template'!Z$197=FALSE,NA(),BH$3*AI131+AK131) ->  | AM131: =IF('plutonic template'!Z$197=FALSE,NA(),AI131*BH$2) ->  | AR131: =IF('plutonic template'!$Z$235=FALSE,NA(),BH$3*AO131+AQ131) ->  | AS131: =IF('plutonic template'!$Z$235=FALSE,NA(),AO131*BH$2) ->  | AX131: =IF('plutonic template'!$Z$276=FALSE,NA(),BH$3*AU131+AW131) ->  | AY131: =IF('plutonic template'!$Z$276=FALSE,NA(),AU131*BH$2) ->  | BD131: =IF('plutonic template'!$Z$389=FALSE,NA(),BH$3*BA131+BC131) ->  | BE131: =IF('plutonic template'!$Z$389=FALSE,NA(),BA131*BH$2) -> 
N132: 1 | T132: =IF(OR($A$5=3,$A$5=1),NA(),IF('plutonic template'!Z$87=FALSE,NA(),IF((ABS(D132)+E132+F132)>0,BH$3*P132+R132,NA()))) ->  | U132: =IF(OR($A$5=3,$A$5=1),NA(),IF('plutonic template'!Z$87=FALSE,NA(),IF((ABS(D132)+E132+F132)>0,P132*BH$2+BH$2,NA()))) ->  | V132: =IF(OR($A$5=3,$A$5=1),NA(),IF('volcanic template'!Z$13=FALSE,NA(),IF((ABS(D132)+E132+F132)>0,BH$3*P132+R132,NA()))) ->  | W132: =IF(OR(A$5=3,A$5=1),NA(),IF('volcanic template'!Z$13=FALSE,NA(),IF((ABS(D132)+E132+F132)>0,P132*BH$2+BH$2,NA()))) ->  | X132: =IF(OR($A$5=3,$A$5=1,$D132<0),NA(),IF('plutonic template'!Z$20=FALSE,NA(),BH$3*P132+R132)) ->  | Y132: =IF(OR($A$5=3,$A$5=1,$D132<0),NA(),IF('plutonic template'!Z$20=FALSE,NA(),P132*BH$2)) ->  | Z132: =IF(OR($A$5=3,$A$5=2,D132<0),NA(),IF('plutonic template'!Z$330=FALSE,NA(),BH$3*J132+L132)) ->  | AA132: =IF(OR($A$5=3,$A$5=2,D132<0),NA(),IF('plutonic template'!Z$330=FALSE,NA(),J132*BH$2)) ->  | AF132: =IF(OR($A$5=3,$A$5=2,D132<0),NA(),IF('plutonic template'!Z$414=FALSE,NA(),BH$3*AC132+AE132)) ->  | AG132: =IF(OR($A$5=3,$A$5=2,D132<0),NA(),IF('plutonic template'!Z$414=FALSE,NA(),AC132*BH$2)) ->  | AL132: =IF('plutonic template'!Z$197=FALSE,NA(),BH$3*AI132+AK132) ->  | AM132: =IF('plutonic template'!Z$197=FALSE,NA(),AI132*BH$2) ->  | AR132: =IF('plutonic template'!$Z$235=FALSE,NA(),BH$3*AO132+AQ132) ->  | AS132: =IF('plutonic template'!$Z$235=FALSE,NA(),AO132*BH$2) ->  | AX132: =IF('plutonic template'!$Z$276=FALSE,NA(),BH$3*AU132+AW132) ->  | AY132: =IF('plutonic template'!$Z$276=FALSE,NA(),AU132*BH$2) ->  | BD132: =IF('plutonic template'!$Z$389=FALSE,NA(),BH$3*BA132+BC132) ->  | BE132: =IF('plutonic template'!$Z$389=FALSE,NA(),BA132*BH$2) -> 
N133: 1 | T133: =IF(OR($A$5=3,$A$5=1),NA(),IF('plutonic template'!Z$87=FALSE,NA(),IF((ABS(D133)+E133+F133)>0,BH$3*P133+R133,NA()))) ->  | U133: =IF(OR($A$5=3,$A$5=1),NA(),IF('plutonic template'!Z$87=FALSE,NA(),IF((ABS(D133)+E133+F133)>0,P133*BH$2+BH$2,NA()))) ->  | V133: =IF(OR($A$5=3,$A$5=1),NA(),IF('volcanic template'!Z$13=FALSE,NA(),IF((ABS(D133)+E133+F133)>0,BH$3*P133+R133,NA()))) ->  | W133: =IF(OR(A$5=3,A$5=1),NA(),IF('volcanic template'!Z$13=FALSE,NA(),IF((ABS(D133)+E133+F133)>0,P133*BH$2+BH$2,NA()))) ->  | X133: =IF(OR($A$5=3,$A$5=1,$D133<0),NA(),IF('plutonic template'!Z$20=FALSE,NA(),BH$3*P133+R133)) ->  | Y133: =IF(OR($A$5=3,$A$5=1,$D133<0),NA(),IF('plutonic template'!Z$20=FALSE,NA(),P133*BH$2)) ->  | Z133: =IF(OR($A$5=3,$A$5=2,D133<0),NA(),IF('plutonic template'!Z$330=FALSE,NA(),BH$3*J133+L133)) ->  | AA133: =IF(OR($A$5=3,$A$5=2,D133<0),NA(),IF('plutonic template'!Z$330=FALSE,NA(),J133*BH$2)) ->  | AF133: =IF(OR($A$5=3,$A$5=2,D133<0),NA(),IF('plutonic template'!Z$414=FALSE,NA(),BH$3*AC133+AE133)) ->  | AG133: =IF(OR($A$5=3,$A$5=2,D133<0),NA(),IF('plutonic template'!Z$414=FALSE,NA(),AC133*BH$2)) ->  | AL133: =IF('plutonic template'!Z$197=FALSE,NA(),BH$3*AI133+AK133) ->  | AM133: =IF('plutonic template'!Z$197=FALSE,NA(),AI133*BH$2) ->  | AR133: =IF('plutonic template'!$Z$235=FALSE,NA(),BH$3*AO133+AQ133) ->  | AS133: =IF('plutonic template'!$Z$235=FALSE,NA(),AO133*BH$2) ->  | AX133: =IF('plutonic template'!$Z$276=FALSE,NA(),BH$3*AU133+AW133) ->  | AY133: =IF('plutonic template'!$Z$276=FALSE,NA(),AU133*BH$2) ->  | BD133: =IF('plutonic template'!$Z$389=FALSE,NA(),BH$3*BA133+BC133) ->  | BE133: =IF('plutonic template'!$Z$389=FALSE,NA(),BA133*BH$2) -> 
N134: 1 | T134: =IF(OR($A$5=3,$A$5=1),NA(),IF('plutonic template'!Z$87=FALSE,NA(),IF((ABS(D134)+E134+F134)>0,BH$3*P134+R134,NA()))) ->  | U134: =IF(OR($A$5=3,$A$5=1),NA(),IF('plutonic template'!Z$87=FALSE,NA(),IF((ABS(D134)+E134+F134)>0,P134*BH$2+BH$2,NA()))) ->  | V134: =IF(OR($A$5=3,$A$5=1),NA(),IF('volcanic template'!Z$13=FALSE,NA(),IF((ABS(D134)+E134+F134)>0,BH$3*P134+R134,NA()))) ->  | W134: =IF(OR(A$5=3,A$5=1),NA(),IF('volcanic template'!Z$13=FALSE,NA(),IF((ABS(D134)+E134+F134)>0,P134*BH$2+BH$2,NA()))) ->  | X134: =IF(OR($A$5=3,$A$5=1,$D134<0),NA(),IF('plutonic template'!Z$20=FALSE,NA(),BH$3*P134+R134)) ->  | Y134: =IF(OR($A$5=3,$A$5=1,$D134<0),NA(),IF('plutonic template'!Z$20=FALSE,NA(),P134*BH$2)) ->  | Z134: =IF(OR($A$5=3,$A$5=2,D134<0),NA(),IF('plutonic template'!Z$330=FALSE,NA(),BH$3*J134+L134)) ->  | AA134: =IF(OR($A$5=3,$A$5=2,D134<0),NA(),IF('plutonic template'!Z$330=FALSE,NA(),J134*BH$2)) ->  | AF134: =IF(OR($A$5=3,$A$5=2,D134<0),NA(),IF('plutonic template'!Z$414=FALSE,NA(),BH$3*AC134+AE134)) ->  | AG134: =IF(OR($A$5=3,$A$5=2,D134<0),NA(),IF('plutonic template'!Z$414=FALSE,NA(),AC134*BH$2)) ->  | AL134: =IF('plutonic template'!Z$197=FALSE,NA(),BH$3*AI134+AK134) ->  | AM134: =IF('plutonic template'!Z$197=FALSE,NA(),AI134*BH$2) ->  | AR134: =IF('plutonic template'!$Z$235=FALSE,NA(),BH$3*AO134+AQ134) ->  | AS134: =IF('plutonic template'!$Z$235=FALSE,NA(),AO134*BH$2) ->  | AX134: =IF('plutonic template'!$Z$276=FALSE,NA(),BH$3*AU134+AW134) ->  | AY134: =IF('plutonic template'!$Z$276=FALSE,NA(),AU134*BH$2) ->  | BD134: =IF('plutonic template'!$Z$389=FALSE,NA(),BH$3*BA134+BC134) ->  | BE134: =IF('plutonic template'!$Z$389=FALSE,NA(),BA134*BH$2) -> 
N135: 1 | T135: =IF(OR($A$5=3,$A$5=1),NA(),IF('plutonic template'!Z$87=FALSE,NA(),IF((ABS(D135)+E135+F135)>0,BH$3*P135+R135,NA()))) ->  | U135: =IF(OR($A$5=3,$A$5=1),NA(),IF('plutonic template'!Z$87=FALSE,NA(),IF((ABS(D135)+E135+F135)>0,P135*BH$2+BH$2,NA()))) ->  | V135: =IF(OR($A$5=3,$A$5=1),NA(),IF('volcanic template'!Z$13=FALSE,NA(),IF((ABS(D135)+E135+F135)>0,BH$3*P135+R135,NA()))) ->  | W135: =IF(OR(A$5=3,A$5=1),NA(),IF('volcanic template'!Z$13=FALSE,NA(),IF((ABS(D135)+E135+F135)>0,P135*BH$2+BH$2,NA()))) ->  | X135: =IF(OR($A$5=3,$A$5=1,$D135<0),NA(),IF('plutonic template'!Z$20=FALSE,NA(),BH$3*P135+R135)) ->  | Y135: =IF(OR($A$5=3,$A$5=1,$D135<0),NA(),IF('plutonic template'!Z$20=FALSE,NA(),P135*BH$2)) ->  | Z135: =IF(OR($A$5=3,$A$5=2,D135<0),NA(),IF('plutonic template'!Z$330=FALSE,NA(),BH$3*J135+L135)) ->  | AA135: =IF(OR($A$5=3,$A$5=2,D135<0),NA(),IF('plutonic template'!Z$330=FALSE,NA(),J135*BH$2)) ->  | AF135: =IF(OR($A$5=3,$A$5=2,D135<0),NA(),IF('plutonic template'!Z$414=FALSE,NA(),BH$3*AC135+AE135)) ->  | AG135: =IF(OR($A$5=3,$A$5=2,D135<0),NA(),IF('plutonic template'!Z$414=FALSE,NA(),AC135*BH$2)) ->  | AL135: =IF('plutonic template'!Z$197=FALSE,NA(),BH$3*AI135+AK135) ->  | AM135: =IF('plutonic template'!Z$197=FALSE,NA(),AI135*BH$2) ->  | AR135: =IF('plutonic template'!$Z$235=FALSE,NA(),BH$3*AO135+AQ135) ->  | AS135: =IF('plutonic template'!$Z$235=FALSE,NA(),AO135*BH$2) ->  | AX135: =IF('plutonic template'!$Z$276=FALSE,NA(),BH$3*AU135+AW135) ->  | AY135: =IF('plutonic template'!$Z$276=FALSE,NA(),AU135*BH$2) ->  | BD135: =IF('plutonic template'!$Z$389=FALSE,NA(),BH$3*BA135+BC135) ->  | BE135: =IF('plutonic template'!$Z$389=FALSE,NA(),BA135*BH$2) -> 
N136: 1 | T136: =IF(OR($A$5=3,$A$5=1),NA(),IF('plutonic template'!Z$87=FALSE,NA(),IF((ABS(D136)+E136+F136)>0,BH$3*P136+R136,NA()))) ->  | U136: =IF(OR($A$5=3,$A$5=1),NA(),IF('plutonic template'!Z$87=FALSE,NA(),IF((ABS(D136)+E136+F136)>0,P136*BH$2+BH$2,NA()))) ->  | V136: =IF(OR($A$5=3,$A$5=1),NA(),IF('volcanic template'!Z$13=FALSE,NA(),IF((ABS(D136)+E136+F136)>0,BH$3*P136+R136,NA()))) ->  | W136: =IF(OR(A$5=3,A$5=1),NA(),IF('volcanic template'!Z$13=FALSE,NA(),IF((ABS(D136)+E136+F136)>0,P136*BH$2+BH$2,NA()))) ->  | X136: =IF(OR($A$5=3,$A$5=1,$D136<0),NA(),IF('plutonic template'!Z$20=FALSE,NA(),BH$3*P136+R136)) ->  | Y136: =IF(OR($A$5=3,$A$5=1,$D136<0),NA(),IF('plutonic template'!Z$20=FALSE,NA(),P136*BH$2)) ->  | Z136: =IF(OR($A$5=3,$A$5=2,D136<0),NA(),IF('plutonic template'!Z$330=FALSE,NA(),BH$3*J136+L136)) ->  | AA136: =IF(OR($A$5=3,$A$5=2,D136<0),NA(),IF('plutonic template'!Z$330=FALSE,NA(),J136*BH$2)) ->  | AF136: =IF(OR($A$5=3,$A$5=2,D136<0),NA(),IF('plutonic template'!Z$414=FALSE,NA(),BH$3*AC136+AE136)) ->  | AG136: =IF(OR($A$5=3,$A$5=2,D136<0),NA(),IF('plutonic template'!Z$414=FALSE,NA(),AC136*BH$2)) ->  | AL136: =IF('plutonic template'!Z$197=FALSE,NA(),BH$3*AI136+AK136) ->  | AM136: =IF('plutonic template'!Z$197=FALSE,NA(),AI136*BH$2) ->  | AR136: =IF('plutonic template'!$Z$235=FALSE,NA(),BH$3*AO136+AQ136) ->  | AS136: =IF('plutonic template'!$Z$235=FALSE,NA(),AO136*BH$2) ->  | AX136: =IF('plutonic template'!$Z$276=FALSE,NA(),BH$3*AU136+AW136) ->  | AY136: =IF('plutonic template'!$Z$276=FALSE,NA(),AU136*BH$2) ->  | BD136: =IF('plutonic template'!$Z$389=FALSE,NA(),BH$3*BA136+BC136) ->  | BE136: =IF('plutonic template'!$Z$389=FALSE,NA(),BA136*BH$2) -> 
N137: 1 | T137: =IF(OR($A$5=3,$A$5=1),NA(),IF('plutonic template'!Z$87=FALSE,NA(),IF((ABS(D137)+E137+F137)>0,BH$3*P137+R137,NA()))) ->  | U137: =IF(OR($A$5=3,$A$5=1),NA(),IF('plutonic template'!Z$87=FALSE,NA(),IF((ABS(D137)+E137+F137)>0,P137*BH$2+BH$2,NA()))) ->  | V137: =IF(OR($A$5=3,$A$5=1),NA(),IF('volcanic template'!Z$13=FALSE,NA(),IF((ABS(D137)+E137+F137)>0,BH$3*P137+R137,NA()))) ->  | W137: =IF(OR(A$5=3,A$5=1),NA(),IF('volcanic template'!Z$13=FALSE,NA(),IF((ABS(D137)+E137+F137)>0,P137*BH$2+BH$2,NA()))) ->  | X137: =IF(OR($A$5=3,$A$5=1,$D137<0),NA(),IF('plutonic template'!Z$20=FALSE,NA(),BH$3*P137+R137)) ->  | Y137: =IF(OR($A$5=3,$A$5=1,$D137<0),NA(),IF('plutonic template'!Z$20=FALSE,NA(),P137*BH$2)) ->  | Z137: =IF(OR($A$5=3,$A$5=2,D137<0),NA(),IF('plutonic template'!Z$330=FALSE,NA(),BH$3*J137+L137)) ->  | AA137: =IF(OR($A$5=3,$A$5=2,D137<0),NA(),IF('plutonic template'!Z$330=FALSE,NA(),J137*BH$2)) ->  | AF137: =IF(OR($A$5=3,$A$5=2,D137<0),NA(),IF('plutonic template'!Z$414=FALSE,NA(),BH$3*AC137+AE137)) ->  | AG137: =IF(OR($A$5=3,$A$5=2,D137<0),NA(),IF('plutonic template'!Z$414=FALSE,NA(),AC137*BH$2)) ->  | AL137: =IF('plutonic template'!Z$197=FALSE,NA(),BH$3*AI137+AK137) ->  | AM137: =IF('plutonic template'!Z$197=FALSE,NA(),AI137*BH$2) ->  | AR137: =IF('plutonic template'!$Z$235=FALSE,NA(),BH$3*AO137+AQ137) ->  | AS137: =IF('plutonic template'!$Z$235=FALSE,NA(),AO137*BH$2) ->  | AX137: =IF('plutonic template'!$Z$276=FALSE,NA(),BH$3*AU137+AW137) ->  | AY137: =IF('plutonic template'!$Z$276=FALSE,NA(),AU137*BH$2) ->  | BD137: =IF('plutonic template'!$Z$389=FALSE,NA(),BH$3*BA137+BC137) ->  | BE137: =IF('plutonic template'!$Z$389=FALSE,NA(),BA137*BH$2) -> 
N138: 1 | T138: =IF(OR($A$5=3,$A$5=1),NA(),IF('plutonic template'!Z$87=FALSE,NA(),IF((ABS(D138)+E138+F138)>0,BH$3*P138+R138,NA()))) ->  | U138: =IF(OR($A$5=3,$A$5=1),NA(),IF('plutonic template'!Z$87=FALSE,NA(),IF((ABS(D138)+E138+F138)>0,P138*BH$2+BH$2,NA()))) ->  | V138: =IF(OR($A$5=3,$A$5=1),NA(),IF('volcanic template'!Z$13=FALSE,NA(),IF((ABS(D138)+E138+F138)>0,BH$3*P138+R138,NA()))) ->  | W138: =IF(OR(A$5=3,A$5=1),NA(),IF('volcanic template'!Z$13=FALSE,NA(),IF((ABS(D138)+E138+F138)>0,P138*BH$2+BH$2,NA()))) ->  | X138: =IF(OR($A$5=3,$A$5=1,$D138<0),NA(),IF('plutonic template'!Z$20=FALSE,NA(),BH$3*P138+R138)) ->  | Y138: =IF(OR($A$5=3,$A$5=1,$D138<0),NA(),IF('plutonic template'!Z$20=FALSE,NA(),P138*BH$2)) ->  | Z138: =IF(OR($A$5=3,$A$5=2,D138<0),NA(),IF('plutonic template'!Z$330=FALSE,NA(),BH$3*J138+L138)) ->  | AA138: =IF(OR($A$5=3,$A$5=2,D138<0),NA(),IF('plutonic template'!Z$330=FALSE,NA(),J138*BH$2)) ->  | AF138: =IF(OR($A$5=3,$A$5=2,D138<0),NA(),IF('plutonic template'!Z$414=FALSE,NA(),BH$3*AC138+AE138)) ->  | AG138: =IF(OR($A$5=3,$A$5=2,D138<0),NA(),IF('plutonic template'!Z$414=FALSE,NA(),AC138*BH$2)) ->  | AL138: =IF('plutonic template'!Z$197=FALSE,NA(),BH$3*AI138+AK138) ->  | AM138: =IF('plutonic template'!Z$197=FALSE,NA(),AI138*BH$2) ->  | AR138: =IF('plutonic template'!$Z$235=FALSE,NA(),BH$3*AO138+AQ138) ->  | AS138: =IF('plutonic template'!$Z$235=FALSE,NA(),AO138*BH$2) ->  | AX138: =IF('plutonic template'!$Z$276=FALSE,NA(),BH$3*AU138+AW138) ->  | AY138: =IF('plutonic template'!$Z$276=FALSE,NA(),AU138*BH$2) ->  | BD138: =IF('plutonic template'!$Z$389=FALSE,NA(),BH$3*BA138+BC138) ->  | BE138: =IF('plutonic template'!$Z$389=FALSE,NA(),BA138*BH$2) -> 
N139: 1 | T139: =IF(OR($A$5=3,$A$5=1),NA(),IF('plutonic template'!Z$87=FALSE,NA(),IF((ABS(D139)+E139+F139)>0,BH$3*P139+R139,NA()))) ->  | U139: =IF(OR($A$5=3,$A$5=1),NA(),IF('plutonic template'!Z$87=FALSE,NA(),IF((ABS(D139)+E139+F139)>0,P139*BH$2+BH$2,NA()))) ->  | V139: =IF(OR($A$5=3,$A$5=1),NA(),IF('volcanic template'!Z$13=FALSE,NA(),IF((ABS(D139)+E139+F139)>0,BH$3*P139+R139,NA()))) ->  | W139: =IF(OR(A$5=3,A$5=1),NA(),IF('volcanic template'!Z$13=FALSE,NA(),IF((ABS(D139)+E139+F139)>0,P139*BH$2+BH$2,NA()))) ->  | X139: =IF(OR($A$5=3,$A$5=1,$D139<0),NA(),IF('plutonic template'!Z$20=FALSE,NA(),BH$3*P139+R139)) ->  | Y139: =IF(OR($A$5=3,$A$5=1,$D139<0),NA(),IF('plutonic template'!Z$20=FALSE,NA(),P139*BH$2)) ->  | Z139: =IF(OR($A$5=3,$A$5=2,D139<0),NA(),IF('plutonic template'!Z$330=FALSE,NA(),BH$3*J139+L139)) ->  | AA139: =IF(OR($A$5=3,$A$5=2,D139<0),NA(),IF('plutonic template'!Z$330=FALSE,NA(),J139*BH$2)) ->  | AF139: =IF(OR($A$5=3,$A$5=2,D139<0),NA(),IF('plutonic template'!Z$414=FALSE,NA(),BH$3*AC139+AE139)) ->  | AG139: =IF(OR($A$5=3,$A$5=2,D139<0),NA(),IF('plutonic template'!Z$414=FALSE,NA(),AC139*BH$2)) ->  | AL139: =IF('plutonic template'!Z$197=FALSE,NA(),BH$3*AI139+AK139) ->  | AM139: =IF('plutonic template'!Z$197=FALSE,NA(),AI139*BH$2) ->  | AR139: =IF('plutonic template'!$Z$235=FALSE,NA(),BH$3*AO139+AQ139) ->  | AS139: =IF('plutonic template'!$Z$235=FALSE,NA(),AO139*BH$2) ->  | AX139: =IF('plutonic template'!$Z$276=FALSE,NA(),BH$3*AU139+AW139) ->  | AY139: =IF('plutonic template'!$Z$276=FALSE,NA(),AU139*BH$2) ->  | BD139: =IF('plutonic template'!$Z$389=FALSE,NA(),BH$3*BA139+BC139) ->  | BE139: =IF('plutonic template'!$Z$389=FALSE,NA(),BA139*BH$2) -> 
N140: 1 | T140: =IF(OR($A$5=3,$A$5=1),NA(),IF('plutonic template'!Z$87=FALSE,NA(),IF((ABS(D140)+E140+F140)>0,BH$3*P140+R140,NA()))) ->  | U140: =IF(OR($A$5=3,$A$5=1),NA(),IF('plutonic template'!Z$87=FALSE,NA(),IF((ABS(D140)+E140+F140)>0,P140*BH$2+BH$2,NA()))) ->  | V140: =IF(OR($A$5=3,$A$5=1),NA(),IF('volcanic template'!Z$13=FALSE,NA(),IF((ABS(D140)+E140+F140)>0,BH$3*P140+R140,NA()))) ->  | W140: =IF(OR(A$5=3,A$5=1),NA(),IF('volcanic template'!Z$13=FALSE,NA(),IF((ABS(D140)+E140+F140)>0,P140*BH$2+BH$2,NA()))) ->  | X140: =IF(OR($A$5=3,$A$5=1,$D140<0),NA(),IF('plutonic template'!Z$20=FALSE,NA(),BH$3*P140+R140)) ->  | Y140: =IF(OR($A$5=3,$A$5=1,$D140<0),NA(),IF('plutonic template'!Z$20=FALSE,NA(),P140*BH$2)) ->  | Z140: =IF(OR($A$5=3,$A$5=2,D140<0),NA(),IF('plutonic template'!Z$330=FALSE,NA(),BH$3*J140+L140)) ->  | AA140: =IF(OR($A$5=3,$A$5=2,D140<0),NA(),IF('plutonic template'!Z$330=FALSE,NA(),J140*BH$2)) ->  | AF140: =IF(OR($A$5=3,$A$5=2,D140<0),NA(),IF('plutonic template'!Z$414=FALSE,NA(),BH$3*AC140+AE140)) ->  | AG140: =IF(OR($A$5=3,$A$5=2,D140<0),NA(),IF('plutonic template'!Z$414=FALSE,NA(),AC140*BH$2)) ->  | AL140: =IF('plutonic template'!Z$197=FALSE,NA(),BH$3*AI140+AK140) ->  | AM140: =IF('plutonic template'!Z$197=FALSE,NA(),AI140*BH$2) ->  | AR140: =IF('plutonic template'!$Z$235=FALSE,NA(),BH$3*AO140+AQ140) ->  | AS140: =IF('plutonic template'!$Z$235=FALSE,NA(),AO140*BH$2) ->  | AX140: =IF('plutonic template'!$Z$276=FALSE,NA(),BH$3*AU140+AW140) ->  | AY140: =IF('plutonic template'!$Z$276=FALSE,NA(),AU140*BH$2) ->  | BD140: =IF('plutonic template'!$Z$389=FALSE,NA(),BH$3*BA140+BC140) ->  | BE140: =IF('plutonic template'!$Z$389=FALSE,NA(),BA140*BH$2) -> 
N141: 1 | T141: =IF(OR($A$5=3,$A$5=1),NA(),IF('plutonic template'!Z$87=FALSE,NA(),IF((ABS(D141)+E141+F141)>0,BH$3*P141+R141,NA()))) ->  | U141: =IF(OR($A$5=3,$A$5=1),NA(),IF('plutonic template'!Z$87=FALSE,NA(),IF((ABS(D141)+E141+F141)>0,P141*BH$2+BH$2,NA()))) ->  | V141: =IF(OR($A$5=3,$A$5=1),NA(),IF('volcanic template'!Z$13=FALSE,NA(),IF((ABS(D141)+E141+F141)>0,BH$3*P141+R141,NA()))) ->  | W141: =IF(OR(A$5=3,A$5=1),NA(),IF('volcanic template'!Z$13=FALSE,NA(),IF((ABS(D141)+E141+F141)>0,P141*BH$2+BH$2,NA()))) ->  | X141: =IF(OR($A$5=3,$A$5=1,$D141<0),NA(),IF('plutonic template'!Z$20=FALSE,NA(),BH$3*P141+R141)) ->  | Y141: =IF(OR($A$5=3,$A$5=1,$D141<0),NA(),IF('plutonic template'!Z$20=FALSE,NA(),P141*BH$2)) ->  | Z141: =IF(OR($A$5=3,$A$5=2,D141<0),NA(),IF('plutonic template'!Z$330=FALSE,NA(),BH$3*J141+L141)) ->  | AA141: =IF(OR($A$5=3,$A$5=2,D141<0),NA(),IF('plutonic template'!Z$330=FALSE,NA(),J141*BH$2)) ->  | AF141: =IF(OR($A$5=3,$A$5=2,D141<0),NA(),IF('plutonic template'!Z$414=FALSE,NA(),BH$3*AC141+AE141)) ->  | AG141: =IF(OR($A$5=3,$A$5=2,D141<0),NA(),IF('plutonic template'!Z$414=FALSE,NA(),AC141*BH$2)) ->  | AL141: =IF('plutonic template'!Z$197=FALSE,NA(),BH$3*AI141+AK141) ->  | AM141: =IF('plutonic template'!Z$197=FALSE,NA(),AI141*BH$2) ->  | AR141: =IF('plutonic template'!$Z$235=FALSE,NA(),BH$3*AO141+AQ141) ->  | AS141: =IF('plutonic template'!$Z$235=FALSE,NA(),AO141*BH$2) ->  | AX141: =IF('plutonic template'!$Z$276=FALSE,NA(),BH$3*AU141+AW141) ->  | AY141: =IF('plutonic template'!$Z$276=FALSE,NA(),AU141*BH$2) ->  | BD141: =IF('plutonic template'!$Z$389=FALSE,NA(),BH$3*BA141+BC141) ->  | BE141: =IF('plutonic template'!$Z$389=FALSE,NA(),BA141*BH$2) -> 
N142: 1 | T142: =IF(OR($A$5=3,$A$5=1),NA(),IF('plutonic template'!Z$87=FALSE,NA(),IF((ABS(D142)+E142+F142)>0,BH$3*P142+R142,NA()))) ->  | U142: =IF(OR($A$5=3,$A$5=1),NA(),IF('plutonic template'!Z$87=FALSE,NA(),IF((ABS(D142)+E142+F142)>0,P142*BH$2+BH$2,NA()))) ->  | V142: =IF(OR($A$5=3,$A$5=1),NA(),IF('volcanic template'!Z$13=FALSE,NA(),IF((ABS(D142)+E142+F142)>0,BH$3*P142+R142,NA()))) ->  | W142: =IF(OR(A$5=3,A$5=1),NA(),IF('volcanic template'!Z$13=FALSE,NA(),IF((ABS(D142)+E142+F142)>0,P142*BH$2+BH$2,NA()))) ->  | X142: =IF(OR($A$5=3,$A$5=1,$D142<0),NA(),IF('plutonic template'!Z$20=FALSE,NA(),BH$3*P142+R142)) ->  | Y142: =IF(OR($A$5=3,$A$5=1,$D142<0),NA(),IF('plutonic template'!Z$20=FALSE,NA(),P142*BH$2)) ->  | Z142: =IF(OR($A$5=3,$A$5=2,D142<0),NA(),IF('plutonic template'!Z$330=FALSE,NA(),BH$3*J142+L142)) ->  | AA142: =IF(OR($A$5=3,$A$5=2,D142<0),NA(),IF('plutonic template'!Z$330=FALSE,NA(),J142*BH$2)) ->  | AF142: =IF(OR($A$5=3,$A$5=2,D142<0),NA(),IF('plutonic template'!Z$414=FALSE,NA(),BH$3*AC142+AE142)) ->  | AG142: =IF(OR($A$5=3,$A$5=2,D142<0),NA(),IF('plutonic template'!Z$414=FALSE,NA(),AC142*BH$2)) ->  | AL142: =IF('plutonic template'!Z$197=FALSE,NA(),BH$3*AI142+AK142) ->  | AM142: =IF('plutonic template'!Z$197=FALSE,NA(),AI142*BH$2) ->  | AR142: =IF('plutonic template'!$Z$235=FALSE,NA(),BH$3*AO142+AQ142) ->  | AS142: =IF('plutonic template'!$Z$235=FALSE,NA(),AO142*BH$2) ->  | AX142: =IF('plutonic template'!$Z$276=FALSE,NA(),BH$3*AU142+AW142) ->  | AY142: =IF('plutonic template'!$Z$276=FALSE,NA(),AU142*BH$2) ->  | BD142: =IF('plutonic template'!$Z$389=FALSE,NA(),BH$3*BA142+BC142) ->  | BE142: =IF('plutonic template'!$Z$389=FALSE,NA(),BA142*BH$2) -> 
N143: 1 | T143: =IF(OR($A$5=3,$A$5=1),NA(),IF('plutonic template'!Z$87=FALSE,NA(),IF((ABS(D143)+E143+F143)>0,BH$3*P143+R143,NA()))) ->  | U143: =IF(OR($A$5=3,$A$5=1),NA(),IF('plutonic template'!Z$87=FALSE,NA(),IF((ABS(D143)+E143+F143)>0,P143*BH$2+BH$2,NA()))) ->  | V143: =IF(OR($A$5=3,$A$5=1),NA(),IF('volcanic template'!Z$13=FALSE,NA(),IF((ABS(D143)+E143+F143)>0,BH$3*P143+R143,NA()))) ->  | W143: =IF(OR(A$5=3,A$5=1),NA(),IF('volcanic template'!Z$13=FALSE,NA(),IF((ABS(D143)+E143+F143)>0,P143*BH$2+BH$2,NA()))) ->  | X143: =IF(OR($A$5=3,$A$5=1,$D143<0),NA(),IF('plutonic template'!Z$20=FALSE,NA(),BH$3*P143+R143)) ->  | Y143: =IF(OR($A$5=3,$A$5=1,$D143<0),NA(),IF('plutonic template'!Z$20=FALSE,NA(),P143*BH$2)) ->  | Z143: =IF(OR($A$5=3,$A$5=2,D143<0),NA(),IF('plutonic template'!Z$330=FALSE,NA(),BH$3*J143+L143)) ->  | AA143: =IF(OR($A$5=3,$A$5=2,D143<0),NA(),IF('plutonic template'!Z$330=FALSE,NA(),J143*BH$2)) ->  | AF143: =IF(OR($A$5=3,$A$5=2,D143<0),NA(),IF('plutonic template'!Z$414=FALSE,NA(),BH$3*AC143+AE143)) ->  | AG143: =IF(OR($A$5=3,$A$5=2,D143<0),NA(),IF('plutonic template'!Z$414=FALSE,NA(),AC143*BH$2)) ->  | AL143: =IF('plutonic template'!Z$197=FALSE,NA(),BH$3*AI143+AK143) ->  | AM143: =IF('plutonic template'!Z$197=FALSE,NA(),AI143*BH$2) ->  | AR143: =IF('plutonic template'!$Z$235=FALSE,NA(),BH$3*AO143+AQ143) ->  | AS143: =IF('plutonic template'!$Z$235=FALSE,NA(),AO143*BH$2) ->  | AX143: =IF('plutonic template'!$Z$276=FALSE,NA(),BH$3*AU143+AW143) ->  | AY143: =IF('plutonic template'!$Z$276=FALSE,NA(),AU143*BH$2) ->  | BD143: =IF('plutonic template'!$Z$389=FALSE,NA(),BH$3*BA143+BC143) ->  | BE143: =IF('plutonic template'!$Z$389=FALSE,NA(),BA143*BH$2) -> 
N144: 1 | T144: =IF(OR($A$5=3,$A$5=1),NA(),IF('plutonic template'!Z$87=FALSE,NA(),IF((ABS(D144)+E144+F144)>0,BH$3*P144+R144,NA()))) ->  | U144: =IF(OR($A$5=3,$A$5=1),NA(),IF('plutonic template'!Z$87=FALSE,NA(),IF((ABS(D144)+E144+F144)>0,P144*BH$2+BH$2,NA()))) ->  | V144: =IF(OR($A$5=3,$A$5=1),NA(),IF('volcanic template'!Z$13=FALSE,NA(),IF((ABS(D144)+E144+F144)>0,BH$3*P144+R144,NA()))) ->  | W144: =IF(OR(A$5=3,A$5=1),NA(),IF('volcanic template'!Z$13=FALSE,NA(),IF((ABS(D144)+E144+F144)>0,P144*BH$2+BH$2,NA()))) ->  | X144: =IF(OR($A$5=3,$A$5=1,$D144<0),NA(),IF('plutonic template'!Z$20=FALSE,NA(),BH$3*P144+R144)) ->  | Y144: =IF(OR($A$5=3,$A$5=1,$D144<0),NA(),IF('plutonic template'!Z$20=FALSE,NA(),P144*BH$2)) ->  | Z144: =IF(OR($A$5=3,$A$5=2,D144<0),NA(),IF('plutonic template'!Z$330=FALSE,NA(),BH$3*J144+L144)) ->  | AA144: =IF(OR($A$5=3,$A$5=2,D144<0),NA(),IF('plutonic template'!Z$330=FALSE,NA(),J144*BH$2)) ->  | AF144: =IF(OR($A$5=3,$A$5=2,D144<0),NA(),IF('plutonic template'!Z$414=FALSE,NA(),BH$3*AC144+AE144)) ->  | AG144: =IF(OR($A$5=3,$A$5=2,D144<0),NA(),IF('plutonic template'!Z$414=FALSE,NA(),AC144*BH$2)) ->  | AL144: =IF('plutonic template'!Z$197=FALSE,NA(),BH$3*AI144+AK144) ->  | AM144: =IF('plutonic template'!Z$197=FALSE,NA(),AI144*BH$2) ->  | AR144: =IF('plutonic template'!$Z$235=FALSE,NA(),BH$3*AO144+AQ144) ->  | AS144: =IF('plutonic template'!$Z$235=FALSE,NA(),AO144*BH$2) ->  | AX144: =IF('plutonic template'!$Z$276=FALSE,NA(),BH$3*AU144+AW144) ->  | AY144: =IF('plutonic template'!$Z$276=FALSE,NA(),AU144*BH$2) ->  | BD144: =IF('plutonic template'!$Z$389=FALSE,NA(),BH$3*BA144+BC144) ->  | BE144: =IF('plutonic template'!$Z$389=FALSE,NA(),BA144*BH$2) -> 
N145: 1 | T145: =IF(OR($A$5=3,$A$5=1),NA(),IF('plutonic template'!Z$87=FALSE,NA(),IF((ABS(D145)+E145+F145)>0,BH$3*P145+R145,NA()))) ->  | U145: =IF(OR($A$5=3,$A$5=1),NA(),IF('plutonic template'!Z$87=FALSE,NA(),IF((ABS(D145)+E145+F145)>0,P145*BH$2+BH$2,NA()))) ->  | V145: =IF(OR($A$5=3,$A$5=1),NA(),IF('volcanic template'!Z$13=FALSE,NA(),IF((ABS(D145)+E145+F145)>0,BH$3*P145+R145,NA()))) ->  | W145: =IF(OR(A$5=3,A$5=1),NA(),IF('volcanic template'!Z$13=FALSE,NA(),IF((ABS(D145)+E145+F145)>0,P145*BH$2+BH$2,NA()))) ->  | X145: =IF(OR($A$5=3,$A$5=1,$D145<0),NA(),IF('plutonic template'!Z$20=FALSE,NA(),BH$3*P145+R145)) ->  | Y145: =IF(OR($A$5=3,$A$5=1,$D145<0),NA(),IF('plutonic template'!Z$20=FALSE,NA(),P145*BH$2)) ->  | Z145: =IF(OR($A$5=3,$A$5=2,D145<0),NA(),IF('plutonic template'!Z$330=FALSE,NA(),BH$3*J145+L145)) ->  | AA145: =IF(OR($A$5=3,$A$5=2,D145<0),NA(),IF('plutonic template'!Z$330=FALSE,NA(),J145*BH$2)) ->  | AF145: =IF(OR($A$5=3,$A$5=2,D145<0),NA(),IF('plutonic template'!Z$414=FALSE,NA(),BH$3*AC145+AE145)) ->  | AG145: =IF(OR($A$5=3,$A$5=2,D145<0),NA(),IF('plutonic template'!Z$414=FALSE,NA(),AC145*BH$2)) ->  | AL145: =IF('plutonic template'!Z$197=FALSE,NA(),BH$3*AI145+AK145) ->  | AM145: =IF('plutonic template'!Z$197=FALSE,NA(),AI145*BH$2) ->  | AR145: =IF('plutonic template'!$Z$235=FALSE,NA(),BH$3*AO145+AQ145) ->  | AS145: =IF('plutonic template'!$Z$235=FALSE,NA(),AO145*BH$2) ->  | AX145: =IF('plutonic template'!$Z$276=FALSE,NA(),BH$3*AU145+AW145) ->  | AY145: =IF('plutonic template'!$Z$276=FALSE,NA(),AU145*BH$2) ->  | BD145: =IF('plutonic template'!$Z$389=FALSE,NA(),BH$3*BA145+BC145) ->  | BE145: =IF('plutonic template'!$Z$389=FALSE,NA(),BA145*BH$2) -> 
N146: 1 | T146: =IF(OR($A$5=3,$A$5=1),NA(),IF('plutonic template'!Z$87=FALSE,NA(),IF((ABS(D146)+E146+F146)>0,BH$3*P146+R146,NA()))) ->  | U146: =IF(OR($A$5=3,$A$5=1),NA(),IF('plutonic template'!Z$87=FALSE,NA(),IF((ABS(D146)+E146+F146)>0,P146*BH$2+BH$2,NA()))) ->  | V146: =IF(OR($A$5=3,$A$5=1),NA(),IF('volcanic template'!Z$13=FALSE,NA(),IF((ABS(D146)+E146+F146)>0,BH$3*P146+R146,NA()))) ->  | W146: =IF(OR(A$5=3,A$5=1),NA(),IF('volcanic template'!Z$13=FALSE,NA(),IF((ABS(D146)+E146+F146)>0,P146*BH$2+BH$2,NA()))) ->  | X146: =IF(OR($A$5=3,$A$5=1,$D146<0),NA(),IF('plutonic template'!Z$20=FALSE,NA(),BH$3*P146+R146)) ->  | Y146: =IF(OR($A$5=3,$A$5=1,$D146<0),NA(),IF('plutonic template'!Z$20=FALSE,NA(),P146*BH$2)) ->  | Z146: =IF(OR($A$5=3,$A$5=2,D146<0),NA(),IF('plutonic template'!Z$330=FALSE,NA(),BH$3*J146+L146)) ->  | AA146: =IF(OR($A$5=3,$A$5=2,D146<0),NA(),IF('plutonic template'!Z$330=FALSE,NA(),J146*BH$2)) ->  | AF146: =IF(OR($A$5=3,$A$5=2,D146<0),NA(),IF('plutonic template'!Z$414=FALSE,NA(),BH$3*AC146+AE146)) ->  | AG146: =IF(OR($A$5=3,$A$5=2,D146<0),NA(),IF('plutonic template'!Z$414=FALSE,NA(),AC146*BH$2)) ->  | AL146: =IF('plutonic template'!Z$197=FALSE,NA(),BH$3*AI146+AK146) ->  | AM146: =IF('plutonic template'!Z$197=FALSE,NA(),AI146*BH$2) ->  | AR146: =IF('plutonic template'!$Z$235=FALSE,NA(),BH$3*AO146+AQ146) ->  | AS146: =IF('plutonic template'!$Z$235=FALSE,NA(),AO146*BH$2) ->  | AX146: =IF('plutonic template'!$Z$276=FALSE,NA(),BH$3*AU146+AW146) ->  | AY146: =IF('plutonic template'!$Z$276=FALSE,NA(),AU146*BH$2) ->  | BD146: =IF('plutonic template'!$Z$389=FALSE,NA(),BH$3*BA146+BC146) ->  | BE146: =IF('plutonic template'!$Z$389=FALSE,NA(),BA146*BH$2) -> 
N147: 1 | T147: =IF(OR($A$5=3,$A$5=1),NA(),IF('plutonic template'!Z$87=FALSE,NA(),IF((ABS(D147)+E147+F147)>0,BH$3*P147+R147,NA()))) ->  | U147: =IF(OR($A$5=3,$A$5=1),NA(),IF('plutonic template'!Z$87=FALSE,NA(),IF((ABS(D147)+E147+F147)>0,P147*BH$2+BH$2,NA()))) ->  | V147: =IF(OR($A$5=3,$A$5=1),NA(),IF('volcanic template'!Z$13=FALSE,NA(),IF((ABS(D147)+E147+F147)>0,BH$3*P147+R147,NA()))) ->  | W147: =IF(OR(A$5=3,A$5=1),NA(),IF('volcanic template'!Z$13=FALSE,NA(),IF((ABS(D147)+E147+F147)>0,P147*BH$2+BH$2,NA()))) ->  | X147: =IF(OR($A$5=3,$A$5=1,$D147<0),NA(),IF('plutonic template'!Z$20=FALSE,NA(),BH$3*P147+R147)) ->  | Y147: =IF(OR($A$5=3,$A$5=1,$D147<0),NA(),IF('plutonic template'!Z$20=FALSE,NA(),P147*BH$2)) ->  | Z147: =IF(OR($A$5=3,$A$5=2,D147<0),NA(),IF('plutonic template'!Z$330=FALSE,NA(),BH$3*J147+L147)) ->  | AA147: =IF(OR($A$5=3,$A$5=2,D147<0),NA(),IF('plutonic template'!Z$330=FALSE,NA(),J147*BH$2)) ->  | AF147: =IF(OR($A$5=3,$A$5=2,D147<0),NA(),IF('plutonic template'!Z$414=FALSE,NA(),BH$3*AC147+AE147)) ->  | AG147: =IF(OR($A$5=3,$A$5=2,D147<0),NA(),IF('plutonic template'!Z$414=FALSE,NA(),AC147*BH$2)) ->  | AL147: =IF('plutonic template'!Z$197=FALSE,NA(),BH$3*AI147+AK147) ->  | AM147: =IF('plutonic template'!Z$197=FALSE,NA(),AI147*BH$2) ->  | AR147: =IF('plutonic template'!$Z$235=FALSE,NA(),BH$3*AO147+AQ147) ->  | AS147: =IF('plutonic template'!$Z$235=FALSE,NA(),AO147*BH$2) ->  | AX147: =IF('plutonic template'!$Z$276=FALSE,NA(),BH$3*AU147+AW147) ->  | AY147: =IF('plutonic template'!$Z$276=FALSE,NA(),AU147*BH$2) ->  | BD147: =IF('plutonic template'!$Z$389=FALSE,NA(),BH$3*BA147+BC147) ->  | BE147: =IF('plutonic template'!$Z$389=FALSE,NA(),BA147*BH$2) -> 
N148: 1 | T148: =IF(OR($A$5=3,$A$5=1),NA(),IF('plutonic template'!Z$87=FALSE,NA(),IF((ABS(D148)+E148+F148)>0,BH$3*P148+R148,NA()))) ->  | U148: =IF(OR($A$5=3,$A$5=1),NA(),IF('plutonic template'!Z$87=FALSE,NA(),IF((ABS(D148)+E148+F148)>0,P148*BH$2+BH$2,NA()))) ->  | V148: =IF(OR($A$5=3,$A$5=1),NA(),IF('volcanic template'!Z$13=FALSE,NA(),IF((ABS(D148)+E148+F148)>0,BH$3*P148+R148,NA()))) ->  | W148: =IF(OR(A$5=3,A$5=1),NA(),IF('volcanic template'!Z$13=FALSE,NA(),IF((ABS(D148)+E148+F148)>0,P148*BH$2+BH$2,NA()))) ->  | X148: =IF(OR($A$5=3,$A$5=1,$D148<0),NA(),IF('plutonic template'!Z$20=FALSE,NA(),BH$3*P148+R148)) ->  | Y148: =IF(OR($A$5=3,$A$5=1,$D148<0),NA(),IF('plutonic template'!Z$20=FALSE,NA(),P148*BH$2)) ->  | Z148: =IF(OR($A$5=3,$A$5=2,D148<0),NA(),IF('plutonic template'!Z$330=FALSE,NA(),BH$3*J148+L148)) ->  | AA148: =IF(OR($A$5=3,$A$5=2,D148<0),NA(),IF('plutonic template'!Z$330=FALSE,NA(),J148*BH$2)) ->  | AF148: =IF(OR($A$5=3,$A$5=2,D148<0),NA(),IF('plutonic template'!Z$414=FALSE,NA(),BH$3*AC148+AE148)) ->  | AG148: =IF(OR($A$5=3,$A$5=2,D148<0),NA(),IF('plutonic template'!Z$414=FALSE,NA(),AC148*BH$2)) ->  | AL148: =IF('plutonic template'!Z$197=FALSE,NA(),BH$3*AI148+AK148) ->  | AM148: =IF('plutonic template'!Z$197=FALSE,NA(),AI148*BH$2) ->  | AR148: =IF('plutonic template'!$Z$235=FALSE,NA(),BH$3*AO148+AQ148) ->  | AS148: =IF('plutonic template'!$Z$235=FALSE,NA(),AO148*BH$2) ->  | AX148: =IF('plutonic template'!$Z$276=FALSE,NA(),BH$3*AU148+AW148) ->  | AY148: =IF('plutonic template'!$Z$276=FALSE,NA(),AU148*BH$2) ->  | BD148: =IF('plutonic template'!$Z$389=FALSE,NA(),BH$3*BA148+BC148) ->  | BE148: =IF('plutonic template'!$Z$389=FALSE,NA(),BA148*BH$2) -> 
N149: 1 | T149: =IF(OR($A$5=3,$A$5=1),NA(),IF('plutonic template'!Z$87=FALSE,NA(),IF((ABS(D149)+E149+F149)>0,BH$3*P149+R149,NA()))) ->  | U149: =IF(OR($A$5=3,$A$5=1),NA(),IF('plutonic template'!Z$87=FALSE,NA(),IF((ABS(D149)+E149+F149)>0,P149*BH$2+BH$2,NA()))) ->  | V149: =IF(OR($A$5=3,$A$5=1),NA(),IF('volcanic template'!Z$13=FALSE,NA(),IF((ABS(D149)+E149+F149)>0,BH$3*P149+R149,NA()))) ->  | W149: =IF(OR(A$5=3,A$5=1),NA(),IF('volcanic template'!Z$13=FALSE,NA(),IF((ABS(D149)+E149+F149)>0,P149*BH$2+BH$2,NA()))) ->  | X149: =IF(OR($A$5=3,$A$5=1,$D149<0),NA(),IF('plutonic template'!Z$20=FALSE,NA(),BH$3*P149+R149)) ->  | Y149: =IF(OR($A$5=3,$A$5=1,$D149<0),NA(),IF('plutonic template'!Z$20=FALSE,NA(),P149*BH$2)) ->  | Z149: =IF(OR($A$5=3,$A$5=2,D149<0),NA(),IF('plutonic template'!Z$330=FALSE,NA(),BH$3*J149+L149)) ->  | AA149: =IF(OR($A$5=3,$A$5=2,D149<0),NA(),IF('plutonic template'!Z$330=FALSE,NA(),J149*BH$2)) ->  | AF149: =IF(OR($A$5=3,$A$5=2,D149<0),NA(),IF('plutonic template'!Z$414=FALSE,NA(),BH$3*AC149+AE149)) ->  | AG149: =IF(OR($A$5=3,$A$5=2,D149<0),NA(),IF('plutonic template'!Z$414=FALSE,NA(),AC149*BH$2)) ->  | AL149: =IF('plutonic template'!Z$197=FALSE,NA(),BH$3*AI149+AK149) ->  | AM149: =IF('plutonic template'!Z$197=FALSE,NA(),AI149*BH$2) ->  | AR149: =IF('plutonic template'!$Z$235=FALSE,NA(),BH$3*AO149+AQ149) ->  | AS149: =IF('plutonic template'!$Z$235=FALSE,NA(),AO149*BH$2) ->  | AX149: =IF('plutonic template'!$Z$276=FALSE,NA(),BH$3*AU149+AW149) ->  | AY149: =IF('plutonic template'!$Z$276=FALSE,NA(),AU149*BH$2) ->  | BD149: =IF('plutonic template'!$Z$389=FALSE,NA(),BH$3*BA149+BC149) ->  | BE149: =IF('plutonic template'!$Z$389=FALSE,NA(),BA149*BH$2) -> 
N150: 1 | T150: =IF(OR($A$5=3,$A$5=1),NA(),IF('plutonic template'!Z$87=FALSE,NA(),IF((ABS(D150)+E150+F150)>0,BH$3*P150+R150,NA()))) ->  | U150: =IF(OR($A$5=3,$A$5=1),NA(),IF('plutonic template'!Z$87=FALSE,NA(),IF((ABS(D150)+E150+F150)>0,P150*BH$2+BH$2,NA()))) ->  | V150: =IF(OR($A$5=3,$A$5=1),NA(),IF('volcanic template'!Z$13=FALSE,NA(),IF((ABS(D150)+E150+F150)>0,BH$3*P150+R150,NA()))) ->  | W150: =IF(OR(A$5=3,A$5=1),NA(),IF('volcanic template'!Z$13=FALSE,NA(),IF((ABS(D150)+E150+F150)>0,P150*BH$2+BH$2,NA()))) ->  | X150: =IF(OR($A$5=3,$A$5=1,$D150<0),NA(),IF('plutonic template'!Z$20=FALSE,NA(),BH$3*P150+R150)) ->  | Y150: =IF(OR($A$5=3,$A$5=1,$D150<0),NA(),IF('plutonic template'!Z$20=FALSE,NA(),P150*BH$2)) ->  | Z150: =IF(OR($A$5=3,$A$5=2,D150<0),NA(),IF('plutonic template'!Z$330=FALSE,NA(),BH$3*J150+L150)) ->  | AA150: =IF(OR($A$5=3,$A$5=2,D150<0),NA(),IF('plutonic template'!Z$330=FALSE,NA(),J150*BH$2)) ->  | AF150: =IF(OR($A$5=3,$A$5=2,D150<0),NA(),IF('plutonic template'!Z$414=FALSE,NA(),BH$3*AC150+AE150)) ->  | AG150: =IF(OR($A$5=3,$A$5=2,D150<0),NA(),IF('plutonic template'!Z$414=FALSE,NA(),AC150*BH$2)) ->  | AL150: =IF('plutonic template'!Z$197=FALSE,NA(),BH$3*AI150+AK150) ->  | AM150: =IF('plutonic template'!Z$197=FALSE,NA(),AI150*BH$2) ->  | AR150: =IF('plutonic template'!$Z$235=FALSE,NA(),BH$3*AO150+AQ150) ->  | AS150: =IF('plutonic template'!$Z$235=FALSE,NA(),AO150*BH$2) ->  | AX150: =IF('plutonic template'!$Z$276=FALSE,NA(),BH$3*AU150+AW150) ->  | AY150: =IF('plutonic template'!$Z$276=FALSE,NA(),AU150*BH$2) ->  | BD150: =IF('plutonic template'!$Z$389=FALSE,NA(),BH$3*BA150+BC150) ->  | BE150: =IF('plutonic template'!$Z$389=FALSE,NA(),BA150*BH$2) -> 
N151: 1 | T151: =IF(OR($A$5=3,$A$5=1),NA(),IF('plutonic template'!Z$87=FALSE,NA(),IF((ABS(D151)+E151+F151)>0,BH$3*P151+R151,NA()))) ->  | U151: =IF(OR($A$5=3,$A$5=1),NA(),IF('plutonic template'!Z$87=FALSE,NA(),IF((ABS(D151)+E151+F151)>0,P151*BH$2+BH$2,NA()))) ->  | V151: =IF(OR($A$5=3,$A$5=1),NA(),IF('volcanic template'!Z$13=FALSE,NA(),IF((ABS(D151)+E151+F151)>0,BH$3*P151+R151,NA()))) ->  | W151: =IF(OR(A$5=3,A$5=1),NA(),IF('volcanic template'!Z$13=FALSE,NA(),IF((ABS(D151)+E151+F151)>0,P151*BH$2+BH$2,NA()))) ->  | X151: =IF(OR($A$5=3,$A$5=1,$D151<0),NA(),IF('plutonic template'!Z$20=FALSE,NA(),BH$3*P151+R151)) ->  | Y151: =IF(OR($A$5=3,$A$5=1,$D151<0),NA(),IF('plutonic template'!Z$20=FALSE,NA(),P151*BH$2)) ->  | Z151: =IF(OR($A$5=3,$A$5=2,D151<0),NA(),IF('plutonic template'!Z$330=FALSE,NA(),BH$3*J151+L151)) ->  | AA151: =IF(OR($A$5=3,$A$5=2,D151<0),NA(),IF('plutonic template'!Z$330=FALSE,NA(),J151*BH$2)) ->  | AF151: =IF(OR($A$5=3,$A$5=2,D151<0),NA(),IF('plutonic template'!Z$414=FALSE,NA(),BH$3*AC151+AE151)) ->  | AG151: =IF(OR($A$5=3,$A$5=2,D151<0),NA(),IF('plutonic template'!Z$414=FALSE,NA(),AC151*BH$2)) ->  | AL151: =IF('plutonic template'!Z$197=FALSE,NA(),BH$3*AI151+AK151) ->  | AM151: =IF('plutonic template'!Z$197=FALSE,NA(),AI151*BH$2) ->  | AR151: =IF('plutonic template'!$Z$235=FALSE,NA(),BH$3*AO151+AQ151) ->  | AS151: =IF('plutonic template'!$Z$235=FALSE,NA(),AO151*BH$2) ->  | AX151: =IF('plutonic template'!$Z$276=FALSE,NA(),BH$3*AU151+AW151) ->  | AY151: =IF('plutonic template'!$Z$276=FALSE,NA(),AU151*BH$2) ->  | BD151: =IF('plutonic template'!$Z$389=FALSE,NA(),BH$3*BA151+BC151) ->  | BE151: =IF('plutonic template'!$Z$389=FALSE,NA(),BA151*BH$2) -> 
B152: Pyroxenite etc. test | C152: rock C | D152: 23.7 | F152: 75.7 | J152: 0.2384305835 | K152: 0 | L152: 0.7615694165 | N152: 1 | T152: =IF(OR($A$5=3,$A$5=1),NA(),IF('plutonic template'!Z$88=FALSE,NA(),IF((ABS(D152)+E152+F152)>0,BH$3*P152+R152,NA()))) ->  | U152: =IF(OR($A$5=3,$A$5=1),NA(),IF('plutonic template'!Z$88=FALSE,NA(),IF((ABS(D152)+E152+F152)>0,P152*BH$2+BH$2,NA()))) ->  | V152: =IF(OR($A$5=3,$A$5=1),NA(),IF('volcanic template'!Z$14=FALSE,NA(),IF((ABS(D152)+E152+F152)>0,BH$3*P152+R152,NA()))) ->  | W152: =IF(OR(A$5=3,A$5=1),NA(),IF('volcanic template'!Z$14=FALSE,NA(),IF((ABS(D152)+E152+F152)>0,P152*BH$2+BH$2,NA()))) ->  | X152: =IF(OR($A$5=3,$A$5=1,$D152<0),NA(),IF('plutonic template'!Z$21=FALSE,NA(),BH$3*P152+R152)) ->  | Y152: =IF(OR($A$5=3,$A$5=1,$D152<0),NA(),IF('plutonic template'!Z$21=FALSE,NA(),P152*BH$2)) ->  | Z152: =IF(OR($A$5=3,$A$5=2,D152<0),NA(),IF('plutonic template'!Z$331=FALSE,NA(),BH$3*J152+L152)) -> 0.8807847082 | AA152: =IF(OR($A$5=3,$A$5=2,D152<0),NA(),IF('plutonic template'!Z$331=FALSE,NA(),J152*BH$2)) -> 0.2064869424 | AC152: 0.2384305835 | AD152: 0.7615694165 | AE152: 0 | AF152: =IF(OR($A$5=3,$A$5=2,D152<0),NA(),IF('plutonic template'!Z$415=FALSE,NA(),BH$3*AC152+AE152)) -> 0.1192152918 | AG152: =IF(OR($A$5=3,$A$5=2,D152<0),NA(),IF('plutonic template'!Z$415=FALSE,NA(),AC152*BH$2)) -> 0.2064869424 | AL152: =IF('plutonic template'!Z$198=FALSE,NA(),BH$3*AI152+AK152) ->  | AM152: =IF('plutonic template'!Z$198=FALSE,NA(),AI152*BH$2) ->  | AR152: =IF('plutonic template'!$Z$236=FALSE,NA(),BH$3*AO152+AQ152) ->  | AS152: =IF('plutonic template'!$Z$236=FALSE,NA(),AO152*BH$2) ->  | AX152: =IF('plutonic template'!$Z$277=FALSE,NA(),BH$3*AU152+AW152) ->  | AY152: =IF('plutonic template'!$Z$277=FALSE,NA(),AU152*BH$2) ->  | BD152: =IF('plutonic template'!$Z$390=FALSE,NA(),BH$3*BA152+BC152) ->  | BE152: =IF('plutonic template'!$Z$390=FALSE,NA(),BA152*BH$2) -> 
B153: (Ol–Opx–Cpx–Amp) | C153: rock D | D153: 6 | E153: 8 | F153: 86 | J153: =IF(OR($A$5=2,$A$5=3,D153<0,E153<0,F153<0,G153<0),NA(),IF(SUM(D153:G153)>0,D153/SUM(D153:G153),NA())) -> 0.06 | K153: =IF(OR($A$5=2,$A$5=3,D153<0,E153<0,F153<0,G153<0),NA(),IF(SUM(D153:G153)>0,E153/SUM(D153:G153),NA())) -> 0.08 | L153: =IF(OR($A$5=2,$A$5=3,D153<0,E153<0,F153<0,G153<0),NA(),IF(SUM(D153:G153)>0,(F153+G153)/SUM(D153:G153),NA())) -> 0.86 | N153: 1 | P153: =IF(OR($A$5=1,$A$5=3,E153<0,F153<0,G153<0,H153<0),NA(),IF(ABS(D153)+E153+F153>0,D153/($N153*$D153+$E153+$F153),NA())) ->  | Q153: =IF(OR($A$5=1,$A$5=3,E153<0,F153<0,G153<0,H153<0),NA(),IF(AND(ABS(D153)+E153+F153>0,D153<0),(E153-D153)/($N153*$D153+$E153+$F153),IF(ABS(D153)+E153+F153=0,NA(),E153/($D153+$E153+$F153)))) ->  | R153: =IF(OR($A$5=1,$A$5=3,E153<0,F153<0,G153<0,H153<0),NA(),IF(AND(ABS(D153)+E153+F153>0,D153<0),(F153-D153)/($N153*$D153+$E153+$F153),IF(ABS(D153)+E153+F153=0,NA(),F153/($D153+$E153+$F153)))) ->  | T153: =IF(OR($A$5=3,$A$5=1),NA(),IF('plutonic template'!Z$88=FALSE,NA(),IF((ABS(D153)+E153+F153)>0,BH$3*P153+R153,NA()))) ->  | U153: =IF(OR($A$5=3,$A$5=1),NA(),IF('plutonic template'!Z$88=FALSE,NA(),IF((ABS(D153)+E153+F153)>0,P153*BH$2+BH$2,NA()))) ->  | V153: =IF(OR($A$5=3,$A$5=1),NA(),IF('volcanic template'!Z$14=FALSE,NA(),IF((ABS(D153)+E153+F153)>0,BH$3*P153+R153,NA()))) ->  | W153: =IF(OR(A$5=3,A$5=1),NA(),IF('volcanic template'!Z$14=FALSE,NA(),IF((ABS(D153)+E153+F153)>0,P153*BH$2+BH$2,NA()))) ->  | X153: =IF(OR($A$5=3,$A$5=1,$D153<0),NA(),IF('plutonic template'!Z$21=FALSE,NA(),BH$3*P153+R153)) ->  | Y153: =IF(OR($A$5=3,$A$5=1,$D153<0),NA(),IF('plutonic template'!Z$21=FALSE,NA(),P153*BH$2)) ->  | Z153: =IF(OR($A$5=3,$A$5=2,D153<0),NA(),IF('plutonic template'!Z$331=FALSE,NA(),BH$3*J153+L153)) -> 0.89 | AA153: =IF(OR($A$5=3,$A$5=2,D153<0),NA(),IF('plutonic template'!Z$331=FALSE,NA(),J153*BH$2)) -> 0.05196152423 | AC153: =IF(OR(A$5=3,$A$5=2,D153<0,E153<0,F153<0,G153<0,H153<0),NA(),IF(SUM($D153:$G153)>0,D153/SUM($D153:$G153),NA())) -> 0.06 | AD153: =IF(OR(A$5=3,$A$5=2,D153<0,E153<0,F153<0,G153<0,H153<0),NA(),IF(SUM($D153:$G153)>0,(E153+F153)/SUM($D153:$G153),NA())) -> 0.94 | AE153: =IF(OR(A$5=3,$A$5=2,D153<0,E153<0,F153<0,G153<0,H153<0),NA(),IF(SUM($D153:$G153)>0,G153/SUM($D153:$G153),NA())) -> 0 | AF153: =IF(OR($A$5=3,$A$5=2,D153<0),NA(),IF('plutonic template'!Z$415=FALSE,NA(),BH$3*AC153+AE153)) -> 0.03 | AG153: =IF(OR($A$5=3,$A$5=2,D153<0),NA(),IF('plutonic template'!Z$415=FALSE,NA(),AC153*BH$2)) -> 0.05196152423 | AI153: =IF(OR(A$5=2,A$5=1,D153<0,E153<0,F153<0,G153<0,H153<0),NA(),IF(D153+E153+F153+H153>0,H153/(D153+E153+F153+H153),NA())) ->  | AJ153: =IF(OR(A$5=2,A$5=1,D153<0,E153<0,F153<0,G153<0,H153<0),NA(),IF(D153+E153+F153+H153>0,(E153+F153)/(D153+E153+F153+H153),NA())) ->  | AK153: =IF(OR(A$5=2,A$5=1,D153<0,E153<0,F153<0,G153<0,H153<0),NA(),IF(D153+E153+F153+H153>0,D153/(D153+E153+F153+H153),NA())) ->  | AL153: =IF('plutonic template'!Z$198=FALSE,NA(),BH$3*AI153+AK153) ->  | AM153: =IF('plutonic template'!Z$198=FALSE,NA(),AI153*BH$2) ->  | AO153: =IF(OR(A$5=2,A$5=1,D153<0,E153<0,F153<0,G153<0,H153<0),NA(),IF(E153+F153+H153>0,H153/(E153+F153+H153),NA())) ->  | AP153: =IF(OR(A$5=2,A$5=1,D153<0,E153<0,F153<0,G153<0,H153<0),NA(),IF(E153+F153+H153>0,E153/(E153+F153+H153),NA())) ->  | AQ153: =IF(OR(A$5=2,A$5=1,D153<0,E153<0,F153<0,G153<0,H153<0),NA(),IF(E153+F153+H153>0,F153/(E153+F153+H153),NA())) ->  | AR153: =IF('plutonic template'!$Z$236=FALSE,NA(),BH$3*AO153+AQ153) ->  | AS153: =IF('plutonic template'!$Z$236=FALSE,NA(),AO153*BH$2) ->  | AU153: =IF(OR(A$5=2,A$5=1,D153<0,E153<0,F153<0,G153<0,H153<0),NA(),IF(SUM(E153:H153)>0,H153/SUM(E153:H153),NA())) ->  | AV153: =IF(OR(A$5=2,A$5=1,D153<0,E153<0,F153<0,G153<0,H153<0),NA(),IF(SUM(E153:H153)>0,(E153+F153)/SUM(E153:H153),NA())) ->  | AW153: =IF(OR(A$5=2,A$5=1,D153<0,E153<0,F153<0,G153<0,H153<0),NA(),IF(SUM(E153:H153)>0,G153/SUM(E153:H153),NA())) ->  | AX153: =IF('plutonic template'!$Z$277=FALSE,NA(),BH$3*AU153+AW153) ->  | AY153: =IF('plutonic template'!$Z$277=FALSE,NA(),AU153*BH$2) ->  | BA153: =IF($A$5=1,IF(($J153-0.4)>=0,(J153-0.4)/($J153-0.4+$K153+$L153),NA()),NA()) ->  | BB153: =IF($A$5=1,IF(($J153-0.4)>=0,K153/($J153-0.4+$K153+$L153),NA()),NA()) ->  | BC153: =IF($A$5=1,IF(($J153-0.4)>=0,L153/($J153-0.4+$K153+$L153),NA()),NA()) ->  | BD153: =IF('plutonic template'!$Z$390=FALSE,NA(),BH$3*BA153+BC153) ->  | BE153: =IF('plutonic template'!$Z$390=FALSE,NA(),BA153*BH$2) -> 
N154: 1 | T154: =IF(OR($A$5=3,$A$5=1),NA(),IF('plutonic template'!Z$88=FALSE,NA(),IF((ABS(D154)+E154+F154)>0,BH$3*P154+R154,NA()))) ->  | U154: =IF(OR($A$5=3,$A$5=1),NA(),IF('plutonic template'!Z$88=FALSE,NA(),IF((ABS(D154)+E154+F154)>0,P154*BH$2+BH$2,NA()))) ->  | V154: =IF(OR($A$5=3,$A$5=1),NA(),IF('volcanic template'!Z$14=FALSE,NA(),IF((ABS(D154)+E154+F154)>0,BH$3*P154+R154,NA()))) ->  | W154: =IF(OR(A$5=3,A$5=1),NA(),IF('volcanic template'!Z$14=FALSE,NA(),IF((ABS(D154)+E154+F154)>0,P154*BH$2+BH$2,NA()))) ->  | X154: =IF(OR($A$5=3,$A$5=1,$D154<0),NA(),IF('plutonic template'!Z$21=FALSE,NA(),BH$3*P154+R154)) ->  | Y154: =IF(OR($A$5=3,$A$5=1,$D154<0),NA(),IF('plutonic template'!Z$21=FALSE,NA(),P154*BH$2)) ->  | Z154: =IF(OR($A$5=3,$A$5=2,D154<0),NA(),IF('plutonic template'!Z$331=FALSE,NA(),BH$3*J154+L154)) ->  | AA154: =IF(OR($A$5=3,$A$5=2,D154<0),NA(),IF('plutonic template'!Z$331=FALSE,NA(),J154*BH$2)) ->  | AF154: =IF(OR($A$5=3,$A$5=2,D154<0),NA(),IF('plutonic template'!Z$415=FALSE,NA(),BH$3*AC154+AE154)) ->  | AG154: =IF(OR($A$5=3,$A$5=2,D154<0),NA(),IF('plutonic template'!Z$415=FALSE,NA(),AC154*BH$2)) ->  | AL154: =IF('plutonic template'!Z$198=FALSE,NA(),BH$3*AI154+AK154) ->  | AM154: =IF('plutonic template'!Z$198=FALSE,NA(),AI154*BH$2) ->  | AR154: =IF('plutonic template'!$Z$236=FALSE,NA(),BH$3*AO154+AQ154) ->  | AS154: =IF('plutonic template'!$Z$236=FALSE,NA(),AO154*BH$2) ->  | AX154: =IF('plutonic template'!$Z$277=FALSE,NA(),BH$3*AU154+AW154) ->  | AY154: =IF('plutonic template'!$Z$277=FALSE,NA(),AU154*BH$2) ->  | BD154: =IF('plutonic template'!$Z$390=FALSE,NA(),BH$3*BA154+BC154) ->  | BE154: =IF('plutonic template'!$Z$390=FALSE,NA(),BA154*BH$2) -> 
N155: 1 | T155: =IF(OR($A$5=3,$A$5=1),NA(),IF('plutonic template'!Z$88=FALSE,NA(),IF((ABS(D155)+E155+F155)>0,BH$3*P155+R155,NA()))) ->  | U155: =IF(OR($A$5=3,$A$5=1),NA(),IF('plutonic template'!Z$88=FALSE,NA(),IF((ABS(D155)+E155+F155)>0,P155*BH$2+BH$2,NA()))) ->  | V155: =IF(OR($A$5=3,$A$5=1),NA(),IF('volcanic template'!Z$14=FALSE,NA(),IF((ABS(D155)+E155+F155)>0,BH$3*P155+R155,NA()))) ->  | W155: =IF(OR(A$5=3,A$5=1),NA(),IF('volcanic template'!Z$14=FALSE,NA(),IF((ABS(D155)+E155+F155)>0,P155*BH$2+BH$2,NA()))) ->  | X155: =IF(OR($A$5=3,$A$5=1,$D155<0),NA(),IF('plutonic template'!Z$21=FALSE,NA(),BH$3*P155+R155)) ->  | Y155: =IF(OR($A$5=3,$A$5=1,$D155<0),NA(),IF('plutonic template'!Z$21=FALSE,NA(),P155*BH$2)) ->  | Z155: =IF(OR($A$5=3,$A$5=2,D155<0),NA(),IF('plutonic template'!Z$331=FALSE,NA(),BH$3*J155+L155)) ->  | AA155: =IF(OR($A$5=3,$A$5=2,D155<0),NA(),IF('plutonic template'!Z$331=FALSE,NA(),J155*BH$2)) ->  | AF155: =IF(OR($A$5=3,$A$5=2,D155<0),NA(),IF('plutonic template'!Z$415=FALSE,NA(),BH$3*AC155+AE155)) ->  | AG155: =IF(OR($A$5=3,$A$5=2,D155<0),NA(),IF('plutonic template'!Z$415=FALSE,NA(),AC155*BH$2)) ->  | AL155: =IF('plutonic template'!Z$198=FALSE,NA(),BH$3*AI155+AK155) ->  | AM155: =IF('plutonic template'!Z$198=FALSE,NA(),AI155*BH$2) ->  | AR155: =IF('plutonic template'!$Z$236=FALSE,NA(),BH$3*AO155+AQ155) ->  | AS155: =IF('plutonic template'!$Z$236=FALSE,NA(),AO155*BH$2) ->  | AX155: =IF('plutonic template'!$Z$277=FALSE,NA(),BH$3*AU155+AW155) ->  | AY155: =IF('plutonic template'!$Z$277=FALSE,NA(),AU155*BH$2) ->  | BD155: =IF('plutonic template'!$Z$390=FALSE,NA(),BH$3*BA155+BC155) ->  | BE155: =IF('plutonic template'!$Z$390=FALSE,NA(),BA155*BH$2) -> 
N156: 1 | T156: =IF(OR($A$5=3,$A$5=1),NA(),IF('plutonic template'!Z$88=FALSE,NA(),IF((ABS(D156)+E156+F156)>0,BH$3*P156+R156,NA()))) ->  | U156: =IF(OR($A$5=3,$A$5=1),NA(),IF('plutonic template'!Z$88=FALSE,NA(),IF((ABS(D156)+E156+F156)>0,P156*BH$2+BH$2,NA()))) ->  | V156: =IF(OR($A$5=3,$A$5=1),NA(),IF('volcanic template'!Z$14=FALSE,NA(),IF((ABS(D156)+E156+F156)>0,BH$3*P156+R156,NA()))) ->  | W156: =IF(OR(A$5=3,A$5=1),NA(),IF('volcanic template'!Z$14=FALSE,NA(),IF((ABS(D156)+E156+F156)>0,P156*BH$2+BH$2,NA()))) ->  | X156: =IF(OR($A$5=3,$A$5=1,$D156<0),NA(),IF('plutonic template'!Z$21=FALSE,NA(),BH$3*P156+R156)) ->  | Y156: =IF(OR($A$5=3,$A$5=1,$D156<0),NA(),IF('plutonic template'!Z$21=FALSE,NA(),P156*BH$2)) ->  | Z156: =IF(OR($A$5=3,$A$5=2,D156<0),NA(),IF('plutonic template'!Z$331=FALSE,NA(),BH$3*J156+L156)) ->  | AA156: =IF(OR($A$5=3,$A$5=2,D156<0),NA(),IF('plutonic template'!Z$331=FALSE,NA(),J156*BH$2)) ->  | AF156: =IF(OR($A$5=3,$A$5=2,D156<0),NA(),IF('plutonic template'!Z$415=FALSE,NA(),BH$3*AC156+AE156)) ->  | AG156: =IF(OR($A$5=3,$A$5=2,D156<0),NA(),IF('plutonic template'!Z$415=FALSE,NA(),AC156*BH$2)) ->  | AL156: =IF('plutonic template'!Z$198=FALSE,NA(),BH$3*AI156+AK156) ->  | AM156: =IF('plutonic template'!Z$198=FALSE,NA(),AI156*BH$2) ->  | AR156: =IF('plutonic template'!$Z$236=FALSE,NA(),BH$3*AO156+AQ156) ->  | AS156: =IF('plutonic template'!$Z$236=FALSE,NA(),AO156*BH$2) ->  | AX156: =IF('plutonic template'!$Z$277=FALSE,NA(),BH$3*AU156+AW156) ->  | AY156: =IF('plutonic template'!$Z$277=FALSE,NA(),AU156*BH$2) ->  | BD156: =IF('plutonic template'!$Z$390=FALSE,NA(),BH$3*BA156+BC156) ->  | BE156: =IF('plutonic template'!$Z$390=FALSE,NA(),BA156*BH$2) -> 
N157: 1 | T157: =IF(OR($A$5=3,$A$5=1),NA(),IF('plutonic template'!Z$88=FALSE,NA(),IF((ABS(D157)+E157+F157)>0,BH$3*P157+R157,NA()))) ->  | U157: =IF(OR($A$5=3,$A$5=1),NA(),IF('plutonic template'!Z$88=FALSE,NA(),IF((ABS(D157)+E157+F157)>0,P157*BH$2+BH$2,NA()))) ->  | V157: =IF(OR($A$5=3,$A$5=1),NA(),IF('volcanic template'!Z$14=FALSE,NA(),IF((ABS(D157)+E157+F157)>0,BH$3*P157+R157,NA()))) ->  | W157: =IF(OR(A$5=3,A$5=1),NA(),IF('volcanic template'!Z$14=FALSE,NA(),IF((ABS(D157)+E157+F157)>0,P157*BH$2+BH$2,NA()))) ->  | X157: =IF(OR($A$5=3,$A$5=1,$D157<0),NA(),IF('plutonic template'!Z$21=FALSE,NA(),BH$3*P157+R157)) ->  | Y157: =IF(OR($A$5=3,$A$5=1,$D157<0),NA(),IF('plutonic template'!Z$21=FALSE,NA(),P157*BH$2)) ->  | Z157: =IF(OR($A$5=3,$A$5=2,D157<0),NA(),IF('plutonic template'!Z$331=FALSE,NA(),BH$3*J157+L157)) ->  | AA157: =IF(OR($A$5=3,$A$5=2,D157<0),NA(),IF('plutonic template'!Z$331=FALSE,NA(),J157*BH$2)) ->  | AF157: =IF(OR($A$5=3,$A$5=2,D157<0),NA(),IF('plutonic template'!Z$415=FALSE,NA(),BH$3*AC157+AE157)) ->  | AG157: =IF(OR($A$5=3,$A$5=2,D157<0),NA(),IF('plutonic template'!Z$415=FALSE,NA(),AC157*BH$2)) ->  | AL157: =IF('plutonic template'!Z$198=FALSE,NA(),BH$3*AI157+AK157) ->  | AM157: =IF('plutonic template'!Z$198=FALSE,NA(),AI157*BH$2) ->  | AR157: =IF('plutonic template'!$Z$236=FALSE,NA(),BH$3*AO157+AQ157) ->  | AS157: =IF('plutonic template'!$Z$236=FALSE,NA(),AO157*BH$2) ->  | AX157: =IF('plutonic template'!$Z$277=FALSE,NA(),BH$3*AU157+AW157) ->  | AY157: =IF('plutonic template'!$Z$277=FALSE,NA(),AU157*BH$2) ->  | BD157: =IF('plutonic template'!$Z$390=FALSE,NA(),BH$3*BA157+BC157) ->  | BE157: =IF('plutonic template'!$Z$390=FALSE,NA(),BA157*BH$2) -> 
N158: 1 | T158: =IF(OR($A$5=3,$A$5=1),NA(),IF('plutonic template'!Z$88=FALSE,NA(),IF((ABS(D158)+E158+F158)>0,BH$3*P158+R158,NA()))) ->  | U158: =IF(OR($A$5=3,$A$5=1),NA(),IF('plutonic template'!Z$88=FALSE,NA(),IF((ABS(D158)+E158+F158)>0,P158*BH$2+BH$2,NA()))) ->  | V158: =IF(OR($A$5=3,$A$5=1),NA(),IF('volcanic template'!Z$14=FALSE,NA(),IF((ABS(D158)+E158+F158)>0,BH$3*P158+R158,NA()))) ->  | W158: =IF(OR(A$5=3,A$5=1),NA(),IF('volcanic template'!Z$14=FALSE,NA(),IF((ABS(D158)+E158+F158)>0,P158*BH$2+BH$2,NA()))) ->  | X158: =IF(OR($A$5=3,$A$5=1,$D158<0),NA(),IF('plutonic template'!Z$21=FALSE,NA(),BH$3*P158+R158)) ->  | Y158: =IF(OR($A$5=3,$A$5=1,$D158<0),NA(),IF('plutonic template'!Z$21=FALSE,NA(),P158*BH$2)) ->  | Z158: =IF(OR($A$5=3,$A$5=2,D158<0),NA(),IF('plutonic template'!Z$331=FALSE,NA(),BH$3*J158+L158)) ->  | AA158: =IF(OR($A$5=3,$A$5=2,D158<0),NA(),IF('plutonic template'!Z$331=FALSE,NA(),J158*BH$2)) ->  | AF158: =IF(OR($A$5=3,$A$5=2,D158<0),NA(),IF('plutonic template'!Z$415=FALSE,NA(),BH$3*AC158+AE158)) ->  | AG158: =IF(OR($A$5=3,$A$5=2,D158<0),NA(),IF('plutonic template'!Z$415=FALSE,NA(),AC158*BH$2)) ->  | AL158: =IF('plutonic template'!Z$198=FALSE,NA(),BH$3*AI158+AK158) ->  | AM158: =IF('plutonic template'!Z$198=FALSE,NA(),AI158*BH$2) ->  | AR158: =IF('plutonic template'!$Z$236=FALSE,NA(),BH$3*AO158+AQ158) ->  | AS158: =IF('plutonic template'!$Z$236=FALSE,NA(),AO158*BH$2) ->  | AX158: =IF('plutonic template'!$Z$277=FALSE,NA(),BH$3*AU158+AW158) ->  | AY158: =IF('plutonic template'!$Z$277=FALSE,NA(),AU158*BH$2) ->  | BD158: =IF('plutonic template'!$Z$390=FALSE,NA(),BH$3*BA158+BC158) ->  | BE158: =IF('plutonic template'!$Z$390=FALSE,NA(),BA158*BH$2) -> 
N159: 1 | T159: =IF(OR($A$5=3,$A$5=1),NA(),IF('plutonic template'!Z$88=FALSE,NA(),IF((ABS(D159)+E159+F159)>0,BH$3*P159+R159,NA()))) ->  | U159: =IF(OR($A$5=3,$A$5=1),NA(),IF('plutonic template'!Z$88=FALSE,NA(),IF((ABS(D159)+E159+F159)>0,P159*BH$2+BH$2,NA()))) ->  | V159: =IF(OR($A$5=3,$A$5=1),NA(),IF('volcanic template'!Z$14=FALSE,NA(),IF((ABS(D159)+E159+F159)>0,BH$3*P159+R159,NA()))) ->  | W159: =IF(OR(A$5=3,A$5=1),NA(),IF('volcanic template'!Z$14=FALSE,NA(),IF((ABS(D159)+E159+F159)>0,P159*BH$2+BH$2,NA()))) ->  | X159: =IF(OR($A$5=3,$A$5=1,$D159<0),NA(),IF('plutonic template'!Z$21=FALSE,NA(),BH$3*P159+R159)) ->  | Y159: =IF(OR($A$5=3,$A$5=1,$D159<0),NA(),IF('plutonic template'!Z$21=FALSE,NA(),P159*BH$2)) ->  | Z159: =IF(OR($A$5=3,$A$5=2,D159<0),NA(),IF('plutonic template'!Z$331=FALSE,NA(),BH$3*J159+L159)) ->  | AA159: =IF(OR($A$5=3,$A$5=2,D159<0),NA(),IF('plutonic template'!Z$331=FALSE,NA(),J159*BH$2)) ->  | AF159: =IF(OR($A$5=3,$A$5=2,D159<0),NA(),IF('plutonic template'!Z$415=FALSE,NA(),BH$3*AC159+AE159)) ->  | AG159: =IF(OR($A$5=3,$A$5=2,D159<0),NA(),IF('plutonic template'!Z$415=FALSE,NA(),AC159*BH$2)) ->  | AL159: =IF('plutonic template'!Z$198=FALSE,NA(),BH$3*AI159+AK159) ->  | AM159: =IF('plutonic template'!Z$198=FALSE,NA(),AI159*BH$2) ->  | AR159: =IF('plutonic template'!$Z$236=FALSE,NA(),BH$3*AO159+AQ159) ->  | AS159: =IF('plutonic template'!$Z$236=FALSE,NA(),AO159*BH$2) ->  | AX159: =IF('plutonic template'!$Z$277=FALSE,NA(),BH$3*AU159+AW159) ->  | AY159: =IF('plutonic template'!$Z$277=FALSE,NA(),AU159*BH$2) ->  | BD159: =IF('plutonic template'!$Z$390=FALSE,NA(),BH$3*BA159+BC159) ->  | BE159: =IF('plutonic template'!$Z$390=FALSE,NA(),BA159*BH$2) -> 
N160: 1 | T160: =IF(OR($A$5=3,$A$5=1),NA(),IF('plutonic template'!Z$88=FALSE,NA(),IF((ABS(D160)+E160+F160)>0,BH$3*P160+R160,NA()))) ->  | U160: =IF(OR($A$5=3,$A$5=1),NA(),IF('plutonic template'!Z$88=FALSE,NA(),IF((ABS(D160)+E160+F160)>0,P160*BH$2+BH$2,NA()))) ->  | V160: =IF(OR($A$5=3,$A$5=1),NA(),IF('volcanic template'!Z$14=FALSE,NA(),IF((ABS(D160)+E160+F160)>0,BH$3*P160+R160,NA()))) ->  | W160: =IF(OR(A$5=3,A$5=1),NA(),IF('volcanic template'!Z$14=FALSE,NA(),IF((ABS(D160)+E160+F160)>0,P160*BH$2+BH$2,NA()))) ->  | X160: =IF(OR($A$5=3,$A$5=1,$D160<0),NA(),IF('plutonic template'!Z$21=FALSE,NA(),BH$3*P160+R160)) ->  | Y160: =IF(OR($A$5=3,$A$5=1,$D160<0),NA(),IF('plutonic template'!Z$21=FALSE,NA(),P160*BH$2)) ->  | Z160: =IF(OR($A$5=3,$A$5=2,D160<0),NA(),IF('plutonic template'!Z$331=FALSE,NA(),BH$3*J160+L160)) ->  | AA160: =IF(OR($A$5=3,$A$5=2,D160<0),NA(),IF('plutonic template'!Z$331=FALSE,NA(),J160*BH$2)) ->  | AF160: =IF(OR($A$5=3,$A$5=2,D160<0),NA(),IF('plutonic template'!Z$415=FALSE,NA(),BH$3*AC160+AE160)) ->  | AG160: =IF(OR($A$5=3,$A$5=2,D160<0),NA(),IF('plutonic template'!Z$415=FALSE,NA(),AC160*BH$2)) ->  | AL160: =IF('plutonic template'!Z$198=FALSE,NA(),BH$3*AI160+AK160) ->  | AM160: =IF('plutonic template'!Z$198=FALSE,NA(),AI160*BH$2) ->  | AR160: =IF('plutonic template'!$Z$236=FALSE,NA(),BH$3*AO160+AQ160) ->  | AS160: =IF('plutonic template'!$Z$236=FALSE,NA(),AO160*BH$2) ->  | AX160: =IF('plutonic template'!$Z$277=FALSE,NA(),BH$3*AU160+AW160) ->  | AY160: =IF('plutonic template'!$Z$277=FALSE,NA(),AU160*BH$2) ->  | BD160: =IF('plutonic template'!$Z$390=FALSE,NA(),BH$3*BA160+BC160) ->  | BE160: =IF('plutonic template'!$Z$390=FALSE,NA(),BA160*BH$2) -> 
N161: 1 | T161: =IF(OR($A$5=3,$A$5=1),NA(),IF('plutonic template'!Z$88=FALSE,NA(),IF((ABS(D161)+E161+F161)>0,BH$3*P161+R161,NA()))) ->  | U161: =IF(OR($A$5=3,$A$5=1),NA(),IF('plutonic template'!Z$88=FALSE,NA(),IF((ABS(D161)+E161+F161)>0,P161*BH$2+BH$2,NA()))) ->  | V161: =IF(OR($A$5=3,$A$5=1),NA(),IF('volcanic template'!Z$14=FALSE,NA(),IF((ABS(D161)+E161+F161)>0,BH$3*P161+R161,NA()))) ->  | W161: =IF(OR(A$5=3,A$5=1),NA(),IF('volcanic template'!Z$14=FALSE,NA(),IF((ABS(D161)+E161+F161)>0,P161*BH$2+BH$2,NA()))) ->  | X161: =IF(OR($A$5=3,$A$5=1,$D161<0),NA(),IF('plutonic template'!Z$21=FALSE,NA(),BH$3*P161+R161)) ->  | Y161: =IF(OR($A$5=3,$A$5=1,$D161<0),NA(),IF('plutonic template'!Z$21=FALSE,NA(),P161*BH$2)) ->  | Z161: =IF(OR($A$5=3,$A$5=2,D161<0),NA(),IF('plutonic template'!Z$331=FALSE,NA(),BH$3*J161+L161)) ->  | AA161: =IF(OR($A$5=3,$A$5=2,D161<0),NA(),IF('plutonic template'!Z$331=FALSE,NA(),J161*BH$2)) ->  | AF161: =IF(OR($A$5=3,$A$5=2,D161<0),NA(),IF('plutonic template'!Z$415=FALSE,NA(),BH$3*AC161+AE161)) ->  | AG161: =IF(OR($A$5=3,$A$5=2,D161<0),NA(),IF('plutonic template'!Z$415=FALSE,NA(),AC161*BH$2)) ->  | AL161: =IF('plutonic template'!Z$198=FALSE,NA(),BH$3*AI161+AK161) ->  | AM161: =IF('plutonic template'!Z$198=FALSE,NA(),AI161*BH$2) ->  | AR161: =IF('plutonic template'!$Z$236=FALSE,NA(),BH$3*AO161+AQ161) ->  | AS161: =IF('plutonic template'!$Z$236=FALSE,NA(),AO161*BH$2) ->  | AX161: =IF('plutonic template'!$Z$277=FALSE,NA(),BH$3*AU161+AW161) ->  | AY161: =IF('plutonic template'!$Z$277=FALSE,NA(),AU161*BH$2) ->  | BD161: =IF('plutonic template'!$Z$390=FALSE,NA(),BH$3*BA161+BC161) ->  | BE161: =IF('plutonic template'!$Z$390=FALSE,NA(),BA161*BH$2) -> 
N162: 1 | T162: =IF(OR($A$5=3,$A$5=1),NA(),IF('plutonic template'!Z$88=FALSE,NA(),IF((ABS(D162)+E162+F162)>0,BH$3*P162+R162,NA()))) ->  | U162: =IF(OR($A$5=3,$A$5=1),NA(),IF('plutonic template'!Z$88=FALSE,NA(),IF((ABS(D162)+E162+F162)>0,P162*BH$2+BH$2,NA()))) ->  | V162: =IF(OR($A$5=3,$A$5=1),NA(),IF('volcanic template'!Z$14=FALSE,NA(),IF((ABS(D162)+E162+F162)>0,BH$3*P162+R162,NA()))) ->  | W162: =IF(OR(A$5=3,A$5=1),NA(),IF('volcanic template'!Z$14=FALSE,NA(),IF((ABS(D162)+E162+F162)>0,P162*BH$2+BH$2,NA()))) ->  | X162: =IF(OR($A$5=3,$A$5=1,$D162<0),NA(),IF('plutonic template'!Z$21=FALSE,NA(),BH$3*P162+R162)) ->  | Y162: =IF(OR($A$5=3,$A$5=1,$D162<0),NA(),IF('plutonic template'!Z$21=FALSE,NA(),P162*BH$2)) ->  | Z162: =IF(OR($A$5=3,$A$5=2,D162<0),NA(),IF('plutonic template'!Z$331=FALSE,NA(),BH$3*J162+L162)) ->  | AA162: =IF(OR($A$5=3,$A$5=2,D162<0),NA(),IF('plutonic template'!Z$331=FALSE,NA(),J162*BH$2)) ->  | AF162: =IF(OR($A$5=3,$A$5=2,D162<0),NA(),IF('plutonic template'!Z$415=FALSE,NA(),BH$3*AC162+AE162)) ->  | AG162: =IF(OR($A$5=3,$A$5=2,D162<0),NA(),IF('plutonic template'!Z$415=FALSE,NA(),AC162*BH$2)) ->  | AL162: =IF('plutonic template'!Z$198=FALSE,NA(),BH$3*AI162+AK162) ->  | AM162: =IF('plutonic template'!Z$198=FALSE,NA(),AI162*BH$2) ->  | AR162: =IF('plutonic template'!$Z$236=FALSE,NA(),BH$3*AO162+AQ162) ->  | AS162: =IF('plutonic template'!$Z$236=FALSE,NA(),AO162*BH$2) ->  | AX162: =IF('plutonic template'!$Z$277=FALSE,NA(),BH$3*AU162+AW162) ->  | AY162: =IF('plutonic template'!$Z$277=FALSE,NA(),AU162*BH$2) ->  | BD162: =IF('plutonic template'!$Z$390=FALSE,NA(),BH$3*BA162+BC162) ->  | BE162: =IF('plutonic template'!$Z$390=FALSE,NA(),BA162*BH$2) -> 
N163: 1 | T163: =IF(OR($A$5=3,$A$5=1),NA(),IF('plutonic template'!Z$88=FALSE,NA(),IF((ABS(D163)+E163+F163)>0,BH$3*P163+R163,NA()))) ->  | U163: =IF(OR($A$5=3,$A$5=1),NA(),IF('plutonic template'!Z$88=FALSE,NA(),IF((ABS(D163)+E163+F163)>0,P163*BH$2+BH$2,NA()))) ->  | V163: =IF(OR($A$5=3,$A$5=1),NA(),IF('volcanic template'!Z$14=FALSE,NA(),IF((ABS(D163)+E163+F163)>0,BH$3*P163+R163,NA()))) ->  | W163: =IF(OR(A$5=3,A$5=1),NA(),IF('volcanic template'!Z$14=FALSE,NA(),IF((ABS(D163)+E163+F163)>0,P163*BH$2+BH$2,NA()))) ->  | X163: =IF(OR($A$5=3,$A$5=1,$D163<0),NA(),IF('plutonic template'!Z$21=FALSE,NA(),BH$3*P163+R163)) ->  | Y163: =IF(OR($A$5=3,$A$5=1,$D163<0),NA(),IF('plutonic template'!Z$21=FALSE,NA(),P163*BH$2)) ->  | Z163: =IF(OR($A$5=3,$A$5=2,D163<0),NA(),IF('plutonic template'!Z$331=FALSE,NA(),BH$3*J163+L163)) ->  | AA163: =IF(OR($A$5=3,$A$5=2,D163<0),NA(),IF('plutonic template'!Z$331=FALSE,NA(),J163*BH$2)) ->  | AF163: =IF(OR($A$5=3,$A$5=2,D163<0),NA(),IF('plutonic template'!Z$415=FALSE,NA(),BH$3*AC163+AE163)) ->  | AG163: =IF(OR($A$5=3,$A$5=2,D163<0),NA(),IF('plutonic template'!Z$415=FALSE,NA(),AC163*BH$2)) ->  | AL163: =IF('plutonic template'!Z$198=FALSE,NA(),BH$3*AI163+AK163) ->  | AM163: =IF('plutonic template'!Z$198=FALSE,NA(),AI163*BH$2) ->  | AR163: =IF('plutonic template'!$Z$236=FALSE,NA(),BH$3*AO163+AQ163) ->  | AS163: =IF('plutonic template'!$Z$236=FALSE,NA(),AO163*BH$2) ->  | AX163: =IF('plutonic template'!$Z$277=FALSE,NA(),BH$3*AU163+AW163) ->  | AY163: =IF('plutonic template'!$Z$277=FALSE,NA(),AU163*BH$2) ->  | BD163: =IF('plutonic template'!$Z$390=FALSE,NA(),BH$3*BA163+BC163) ->  | BE163: =IF('plutonic template'!$Z$390=FALSE,NA(),BA163*BH$2) -> 
N164: 1 | T164: =IF(OR($A$5=3,$A$5=1),NA(),IF('plutonic template'!Z$88=FALSE,NA(),IF((ABS(D164)+E164+F164)>0,BH$3*P164+R164,NA()))) ->  | U164: =IF(OR($A$5=3,$A$5=1),NA(),IF('plutonic template'!Z$88=FALSE,NA(),IF((ABS(D164)+E164+F164)>0,P164*BH$2+BH$2,NA()))) ->  | V164: =IF(OR($A$5=3,$A$5=1),NA(),IF('volcanic template'!Z$14=FALSE,NA(),IF((ABS(D164)+E164+F164)>0,BH$3*P164+R164,NA()))) ->  | W164: =IF(OR(A$5=3,A$5=1),NA(),IF('volcanic template'!Z$14=FALSE,NA(),IF((ABS(D164)+E164+F164)>0,P164*BH$2+BH$2,NA()))) ->  | X164: =IF(OR($A$5=3,$A$5=1,$D164<0),NA(),IF('plutonic template'!Z$21=FALSE,NA(),BH$3*P164+R164)) ->  | Y164: =IF(OR($A$5=3,$A$5=1,$D164<0),NA(),IF('plutonic template'!Z$21=FALSE,NA(),P164*BH$2)) ->  | Z164: =IF(OR($A$5=3,$A$5=2,D164<0),NA(),IF('plutonic template'!Z$331=FALSE,NA(),BH$3*J164+L164)) ->  | AA164: =IF(OR($A$5=3,$A$5=2,D164<0),NA(),IF('plutonic template'!Z$331=FALSE,NA(),J164*BH$2)) ->  | AF164: =IF(OR($A$5=3,$A$5=2,D164<0),NA(),IF('plutonic template'!Z$415=FALSE,NA(),BH$3*AC164+AE164)) ->  | AG164: =IF(OR($A$5=3,$A$5=2,D164<0),NA(),IF('plutonic template'!Z$415=FALSE,NA(),AC164*BH$2)) ->  | AL164: =IF('plutonic template'!Z$198=FALSE,NA(),BH$3*AI164+AK164) ->  | AM164: =IF('plutonic template'!Z$198=FALSE,NA(),AI164*BH$2) ->  | AR164: =IF('plutonic template'!$Z$236=FALSE,NA(),BH$3*AO164+AQ164) ->  | AS164: =IF('plutonic template'!$Z$236=FALSE,NA(),AO164*BH$2) ->  | AX164: =IF('plutonic template'!$Z$277=FALSE,NA(),BH$3*AU164+AW164) ->  | AY164: =IF('plutonic template'!$Z$277=FALSE,NA(),AU164*BH$2) ->  | BD164: =IF('plutonic template'!$Z$390=FALSE,NA(),BH$3*BA164+BC164) ->  | BE164: =IF('plutonic template'!$Z$390=FALSE,NA(),BA164*BH$2) -> 
N165: 1 | T165: =IF(OR($A$5=3,$A$5=1),NA(),IF('plutonic template'!Z$88=FALSE,NA(),IF((ABS(D165)+E165+F165)>0,BH$3*P165+R165,NA()))) ->  | U165: =IF(OR($A$5=3,$A$5=1),NA(),IF('plutonic template'!Z$88=FALSE,NA(),IF((ABS(D165)+E165+F165)>0,P165*BH$2+BH$2,NA()))) ->  | V165: =IF(OR($A$5=3,$A$5=1),NA(),IF('volcanic template'!Z$14=FALSE,NA(),IF((ABS(D165)+E165+F165)>0,BH$3*P165+R165,NA()))) ->  | W165: =IF(OR(A$5=3,A$5=1),NA(),IF('volcanic template'!Z$14=FALSE,NA(),IF((ABS(D165)+E165+F165)>0,P165*BH$2+BH$2,NA()))) ->  | X165: =IF(OR($A$5=3,$A$5=1,$D165<0),NA(),IF('plutonic template'!Z$21=FALSE,NA(),BH$3*P165+R165)) ->  | Y165: =IF(OR($A$5=3,$A$5=1,$D165<0),NA(),IF('plutonic template'!Z$21=FALSE,NA(),P165*BH$2)) ->  | Z165: =IF(OR($A$5=3,$A$5=2,D165<0),NA(),IF('plutonic template'!Z$331=FALSE,NA(),BH$3*J165+L165)) ->  | AA165: =IF(OR($A$5=3,$A$5=2,D165<0),NA(),IF('plutonic template'!Z$331=FALSE,NA(),J165*BH$2)) ->  | AF165: =IF(OR($A$5=3,$A$5=2,D165<0),NA(),IF('plutonic template'!Z$415=FALSE,NA(),BH$3*AC165+AE165)) ->  | AG165: =IF(OR($A$5=3,$A$5=2,D165<0),NA(),IF('plutonic template'!Z$415=FALSE,NA(),AC165*BH$2)) ->  | AL165: =IF('plutonic template'!Z$198=FALSE,NA(),BH$3*AI165+AK165) ->  | AM165: =IF('plutonic template'!Z$198=FALSE,NA(),AI165*BH$2) ->  | AR165: =IF('plutonic template'!$Z$236=FALSE,NA(),BH$3*AO165+AQ165) ->  | AS165: =IF('plutonic template'!$Z$236=FALSE,NA(),AO165*BH$2) ->  | AX165: =IF('plutonic template'!$Z$277=FALSE,NA(),BH$3*AU165+AW165) ->  | AY165: =IF('plutonic template'!$Z$277=FALSE,NA(),AU165*BH$2) ->  | BD165: =IF('plutonic template'!$Z$390=FALSE,NA(),BH$3*BA165+BC165) ->  | BE165: =IF('plutonic template'!$Z$390=FALSE,NA(),BA165*BH$2) -> 
N166: 1 | T166: =IF(OR($A$5=3,$A$5=1),NA(),IF('plutonic template'!Z$88=FALSE,NA(),IF((ABS(D166)+E166+F166)>0,BH$3*P166+R166,NA()))) ->  | U166: =IF(OR($A$5=3,$A$5=1),NA(),IF('plutonic template'!Z$88=FALSE,NA(),IF((ABS(D166)+E166+F166)>0,P166*BH$2+BH$2,NA()))) ->  | V166: =IF(OR($A$5=3,$A$5=1),NA(),IF('volcanic template'!Z$14=FALSE,NA(),IF((ABS(D166)+E166+F166)>0,BH$3*P166+R166,NA()))) ->  | W166: =IF(OR(A$5=3,A$5=1),NA(),IF('volcanic template'!Z$14=FALSE,NA(),IF((ABS(D166)+E166+F166)>0,P166*BH$2+BH$2,NA()))) ->  | X166: =IF(OR($A$5=3,$A$5=1,$D166<0),NA(),IF('plutonic template'!Z$21=FALSE,NA(),BH$3*P166+R166)) ->  | Y166: =IF(OR($A$5=3,$A$5=1,$D166<0),NA(),IF('plutonic template'!Z$21=FALSE,NA(),P166*BH$2)) ->  | Z166: =IF(OR($A$5=3,$A$5=2,D166<0),NA(),IF('plutonic template'!Z$331=FALSE,NA(),BH$3*J166+L166)) ->  | AA166: =IF(OR($A$5=3,$A$5=2,D166<0),NA(),IF('plutonic template'!Z$331=FALSE,NA(),J166*BH$2)) ->  | AF166: =IF(OR($A$5=3,$A$5=2,D166<0),NA(),IF('plutonic template'!Z$415=FALSE,NA(),BH$3*AC166+AE166)) ->  | AG166: =IF(OR($A$5=3,$A$5=2,D166<0),NA(),IF('plutonic template'!Z$415=FALSE,NA(),AC166*BH$2)) ->  | AL166: =IF('plutonic template'!Z$198=FALSE,NA(),BH$3*AI166+AK166) ->  | AM166: =IF('plutonic template'!Z$198=FALSE,NA(),AI166*BH$2) ->  | AR166: =IF('plutonic template'!$Z$236=FALSE,NA(),BH$3*AO166+AQ166) ->  | AS166: =IF('plutonic template'!$Z$236=FALSE,NA(),AO166*BH$2) ->  | AX166: =IF('plutonic template'!$Z$277=FALSE,NA(),BH$3*AU166+AW166) ->  | AY166: =IF('plutonic template'!$Z$277=FALSE,NA(),AU166*BH$2) ->  | BD166: =IF('plutonic template'!$Z$390=FALSE,NA(),BH$3*BA166+BC166) ->  | BE166: =IF('plutonic template'!$Z$390=FALSE,NA(),BA166*BH$2) -> 
N167: 1 | T167: =IF(OR($A$5=3,$A$5=1),NA(),IF('plutonic template'!Z$88=FALSE,NA(),IF((ABS(D167)+E167+F167)>0,BH$3*P167+R167,NA()))) ->  | U167: =IF(OR($A$5=3,$A$5=1),NA(),IF('plutonic template'!Z$88=FALSE,NA(),IF((ABS(D167)+E167+F167)>0,P167*BH$2+BH$2,NA()))) ->  | V167: =IF(OR($A$5=3,$A$5=1),NA(),IF('volcanic template'!Z$14=FALSE,NA(),IF((ABS(D167)+E167+F167)>0,BH$3*P167+R167,NA()))) ->  | W167: =IF(OR(A$5=3,A$5=1),NA(),IF('volcanic template'!Z$14=FALSE,NA(),IF((ABS(D167)+E167+F167)>0,P167*BH$2+BH$2,NA()))) ->  | X167: =IF(OR($A$5=3,$A$5=1,$D167<0),NA(),IF('plutonic template'!Z$21=FALSE,NA(),BH$3*P167+R167)) ->  | Y167: =IF(OR($A$5=3,$A$5=1,$D167<0),NA(),IF('plutonic template'!Z$21=FALSE,NA(),P167*BH$2)) ->  | Z167: =IF(OR($A$5=3,$A$5=2,D167<0),NA(),IF('plutonic template'!Z$331=FALSE,NA(),BH$3*J167+L167)) ->  | AA167: =IF(OR($A$5=3,$A$5=2,D167<0),NA(),IF('plutonic template'!Z$331=FALSE,NA(),J167*BH$2)) ->  | AF167: =IF(OR($A$5=3,$A$5=2,D167<0),NA(),IF('plutonic template'!Z$415=FALSE,NA(),BH$3*AC167+AE167)) ->  | AG167: =IF(OR($A$5=3,$A$5=2,D167<0),NA(),IF('plutonic template'!Z$415=FALSE,NA(),AC167*BH$2)) ->  | AL167: =IF('plutonic template'!Z$198=FALSE,NA(),BH$3*AI167+AK167) ->  | AM167: =IF('plutonic template'!Z$198=FALSE,NA(),AI167*BH$2) ->  | AR167: =IF('plutonic template'!$Z$236=FALSE,NA(),BH$3*AO167+AQ167) ->  | AS167: =IF('plutonic template'!$Z$236=FALSE,NA(),AO167*BH$2) ->  | AX167: =IF('plutonic template'!$Z$277=FALSE,NA(),BH$3*AU167+AW167) ->  | AY167: =IF('plutonic template'!$Z$277=FALSE,NA(),AU167*BH$2) ->  | BD167: =IF('plutonic template'!$Z$390=FALSE,NA(),BH$3*BA167+BC167) ->  | BE167: =IF('plutonic template'!$Z$390=FALSE,NA(),BA167*BH$2) -> 
N168: 1 | T168: =IF(OR($A$5=3,$A$5=1),NA(),IF('plutonic template'!Z$88=FALSE,NA(),IF((ABS(D168)+E168+F168)>0,BH$3*P168+R168,NA()))) ->  | U168: =IF(OR($A$5=3,$A$5=1),NA(),IF('plutonic template'!Z$88=FALSE,NA(),IF((ABS(D168)+E168+F168)>0,P168*BH$2+BH$2,NA()))) ->  | V168: =IF(OR($A$5=3,$A$5=1),NA(),IF('volcanic template'!Z$14=FALSE,NA(),IF((ABS(D168)+E168+F168)>0,BH$3*P168+R168,NA()))) ->  | W168: =IF(OR(A$5=3,A$5=1),NA(),IF('volcanic template'!Z$14=FALSE,NA(),IF((ABS(D168)+E168+F168)>0,P168*BH$2+BH$2,NA()))) ->  | X168: =IF(OR($A$5=3,$A$5=1,$D168<0),NA(),IF('plutonic template'!Z$21=FALSE,NA(),BH$3*P168+R168)) ->  | Y168: =IF(OR($A$5=3,$A$5=1,$D168<0),NA(),IF('plutonic template'!Z$21=FALSE,NA(),P168*BH$2)) ->  | Z168: =IF(OR($A$5=3,$A$5=2,D168<0),NA(),IF('plutonic template'!Z$331=FALSE,NA(),BH$3*J168+L168)) ->  | AA168: =IF(OR($A$5=3,$A$5=2,D168<0),NA(),IF('plutonic template'!Z$331=FALSE,NA(),J168*BH$2)) ->  | AF168: =IF(OR($A$5=3,$A$5=2,D168<0),NA(),IF('plutonic template'!Z$415=FALSE,NA(),BH$3*AC168+AE168)) ->  | AG168: =IF(OR($A$5=3,$A$5=2,D168<0),NA(),IF('plutonic template'!Z$415=FALSE,NA(),AC168*BH$2)) ->  | AL168: =IF('plutonic template'!Z$198=FALSE,NA(),BH$3*AI168+AK168) ->  | AM168: =IF('plutonic template'!Z$198=FALSE,NA(),AI168*BH$2) ->  | AR168: =IF('plutonic template'!$Z$236=FALSE,NA(),BH$3*AO168+AQ168) ->  | AS168: =IF('plutonic template'!$Z$236=FALSE,NA(),AO168*BH$2) ->  | AX168: =IF('plutonic template'!$Z$277=FALSE,NA(),BH$3*AU168+AW168) ->  | AY168: =IF('plutonic template'!$Z$277=FALSE,NA(),AU168*BH$2) ->  | BD168: =IF('plutonic template'!$Z$390=FALSE,NA(),BH$3*BA168+BC168) ->  | BE168: =IF('plutonic template'!$Z$390=FALSE,NA(),BA168*BH$2) -> 
N169: 1 | T169: =IF(OR($A$5=3,$A$5=1),NA(),IF('plutonic template'!Z$88=FALSE,NA(),IF((ABS(D169)+E169+F169)>0,BH$3*P169+R169,NA()))) ->  | U169: =IF(OR($A$5=3,$A$5=1),NA(),IF('plutonic template'!Z$88=FALSE,NA(),IF((ABS(D169)+E169+F169)>0,P169*BH$2+BH$2,NA()))) ->  | V169: =IF(OR($A$5=3,$A$5=1),NA(),IF('volcanic template'!Z$14=FALSE,NA(),IF((ABS(D169)+E169+F169)>0,BH$3*P169+R169,NA()))) ->  | W169: =IF(OR(A$5=3,A$5=1),NA(),IF('volcanic template'!Z$14=FALSE,NA(),IF((ABS(D169)+E169+F169)>0,P169*BH$2+BH$2,NA()))) ->  | X169: =IF(OR($A$5=3,$A$5=1,$D169<0),NA(),IF('plutonic template'!Z$21=FALSE,NA(),BH$3*P169+R169)) ->  | Y169: =IF(OR($A$5=3,$A$5=1,$D169<0),NA(),IF('plutonic template'!Z$21=FALSE,NA(),P169*BH$2)) ->  | Z169: =IF(OR($A$5=3,$A$5=2,D169<0),NA(),IF('plutonic template'!Z$331=FALSE,NA(),BH$3*J169+L169)) ->  | AA169: =IF(OR($A$5=3,$A$5=2,D169<0),NA(),IF('plutonic template'!Z$331=FALSE,NA(),J169*BH$2)) ->  | AF169: =IF(OR($A$5=3,$A$5=2,D169<0),NA(),IF('plutonic template'!Z$415=FALSE,NA(),BH$3*AC169+AE169)) ->  | AG169: =IF(OR($A$5=3,$A$5=2,D169<0),NA(),IF('plutonic template'!Z$415=FALSE,NA(),AC169*BH$2)) ->  | AL169: =IF('plutonic template'!Z$198=FALSE,NA(),BH$3*AI169+AK169) ->  | AM169: =IF('plutonic template'!Z$198=FALSE,NA(),AI169*BH$2) ->  | AR169: =IF('plutonic template'!$Z$236=FALSE,NA(),BH$3*AO169+AQ169) ->  | AS169: =IF('plutonic template'!$Z$236=FALSE,NA(),AO169*BH$2) ->  | AX169: =IF('plutonic template'!$Z$277=FALSE,NA(),BH$3*AU169+AW169) ->  | AY169: =IF('plutonic template'!$Z$277=FALSE,NA(),AU169*BH$2) ->  | BD169: =IF('plutonic template'!$Z$390=FALSE,NA(),BH$3*BA169+BC169) ->  | BE169: =IF('plutonic template'!$Z$390=FALSE,NA(),BA169*BH$2) -> 
N170: 1 | T170: =IF(OR($A$5=3,$A$5=1),NA(),IF('plutonic template'!Z$88=FALSE,NA(),IF((ABS(D170)+E170+F170)>0,BH$3*P170+R170,NA()))) ->  | U170: =IF(OR($A$5=3,$A$5=1),NA(),IF('plutonic template'!Z$88=FALSE,NA(),IF((ABS(D170)+E170+F170)>0,P170*BH$2+BH$2,NA()))) ->  | V170: =IF(OR($A$5=3,$A$5=1),NA(),IF('volcanic template'!Z$14=FALSE,NA(),IF((ABS(D170)+E170+F170)>0,BH$3*P170+R170,NA()))) ->  | W170: =IF(OR(A$5=3,A$5=1),NA(),IF('volcanic template'!Z$14=FALSE,NA(),IF((ABS(D170)+E170+F170)>0,P170*BH$2+BH$2,NA()))) ->  | X170: =IF(OR($A$5=3,$A$5=1,$D170<0),NA(),IF('plutonic template'!Z$21=FALSE,NA(),BH$3*P170+R170)) ->  | Y170: =IF(OR($A$5=3,$A$5=1,$D170<0),NA(),IF('plutonic template'!Z$21=FALSE,NA(),P170*BH$2)) ->  | Z170: =IF(OR($A$5=3,$A$5=2,D170<0),NA(),IF('plutonic template'!Z$331=FALSE,NA(),BH$3*J170+L170)) ->  | AA170: =IF(OR($A$5=3,$A$5=2,D170<0),NA(),IF('plutonic template'!Z$331=FALSE,NA(),J170*BH$2)) ->  | AF170: =IF(OR($A$5=3,$A$5=2,D170<0),NA(),IF('plutonic template'!Z$415=FALSE,NA(),BH$3*AC170+AE170)) ->  | AG170: =IF(OR($A$5=3,$A$5=2,D170<0),NA(),IF('plutonic template'!Z$415=FALSE,NA(),AC170*BH$2)) ->  | AL170: =IF('plutonic template'!Z$198=FALSE,NA(),BH$3*AI170+AK170) ->  | AM170: =IF('plutonic template'!Z$198=FALSE,NA(),AI170*BH$2) ->  | AR170: =IF('plutonic template'!$Z$236=FALSE,NA(),BH$3*AO170+AQ170) ->  | AS170: =IF('plutonic template'!$Z$236=FALSE,NA(),AO170*BH$2) ->  | AX170: =IF('plutonic template'!$Z$277=FALSE,NA(),BH$3*AU170+AW170) ->  | AY170: =IF('plutonic template'!$Z$277=FALSE,NA(),AU170*BH$2) ->  | BD170: =IF('plutonic template'!$Z$390=FALSE,NA(),BH$3*BA170+BC170) ->  | BE170: =IF('plutonic template'!$Z$390=FALSE,NA(),BA170*BH$2) -> 
N171: 1 | T171: =IF(OR($A$5=3,$A$5=1),NA(),IF('plutonic template'!Z$88=FALSE,NA(),IF((ABS(D171)+E171+F171)>0,BH$3*P171+R171,NA()))) ->  | U171: =IF(OR($A$5=3,$A$5=1),NA(),IF('plutonic template'!Z$88=FALSE,NA(),IF((ABS(D171)+E171+F171)>0,P171*BH$2+BH$2,NA()))) ->  | V171: =IF(OR($A$5=3,$A$5=1),NA(),IF('volcanic template'!Z$14=FALSE,NA(),IF((ABS(D171)+E171+F171)>0,BH$3*P171+R171,NA()))) ->  | W171: =IF(OR(A$5=3,A$5=1),NA(),IF('volcanic template'!Z$14=FALSE,NA(),IF((ABS(D171)+E171+F171)>0,P171*BH$2+BH$2,NA()))) ->  | X171: =IF(OR($A$5=3,$A$5=1,$D171<0),NA(),IF('plutonic template'!Z$21=FALSE,NA(),BH$3*P171+R171)) ->  | Y171: =IF(OR($A$5=3,$A$5=1,$D171<0),NA(),IF('plutonic template'!Z$21=FALSE,NA(),P171*BH$2)) ->  | Z171: =IF(OR($A$5=3,$A$5=2,D171<0),NA(),IF('plutonic template'!Z$331=FALSE,NA(),BH$3*J171+L171)) ->  | AA171: =IF(OR($A$5=3,$A$5=2,D171<0),NA(),IF('plutonic template'!Z$331=FALSE,NA(),J171*BH$2)) ->  | AF171: =IF(OR($A$5=3,$A$5=2,D171<0),NA(),IF('plutonic template'!Z$415=FALSE,NA(),BH$3*AC171+AE171)) ->  | AG171: =IF(OR($A$5=3,$A$5=2,D171<0),NA(),IF('plutonic template'!Z$415=FALSE,NA(),AC171*BH$2)) ->  | AL171: =IF('plutonic template'!Z$198=FALSE,NA(),BH$3*AI171+AK171) ->  | AM171: =IF('plutonic template'!Z$198=FALSE,NA(),AI171*BH$2) ->  | AR171: =IF('plutonic template'!$Z$236=FALSE,NA(),BH$3*AO171+AQ171) ->  | AS171: =IF('plutonic template'!$Z$236=FALSE,NA(),AO171*BH$2) ->  | AX171: =IF('plutonic template'!$Z$277=FALSE,NA(),BH$3*AU171+AW171) ->  | AY171: =IF('plutonic template'!$Z$277=FALSE,NA(),AU171*BH$2) ->  | BD171: =IF('plutonic template'!$Z$390=FALSE,NA(),BH$3*BA171+BC171) ->  | BE171: =IF('plutonic template'!$Z$390=FALSE,NA(),BA171*BH$2) -> 
N172: 1 | T172: =IF(OR($A$5=3,$A$5=1),NA(),IF('plutonic template'!Z$88=FALSE,NA(),IF((ABS(D172)+E172+F172)>0,BH$3*P172+R172,NA()))) ->  | U172: =IF(OR($A$5=3,$A$5=1),NA(),IF('plutonic template'!Z$88=FALSE,NA(),IF((ABS(D172)+E172+F172)>0,P172*BH$2+BH$2,NA()))) ->  | V172: =IF(OR($A$5=3,$A$5=1),NA(),IF('volcanic template'!Z$14=FALSE,NA(),IF((ABS(D172)+E172+F172)>0,BH$3*P172+R172,NA()))) ->  | W172: =IF(OR(A$5=3,A$5=1),NA(),IF('volcanic template'!Z$14=FALSE,NA(),IF((ABS(D172)+E172+F172)>0,P172*BH$2+BH$2,NA()))) ->  | X172: =IF(OR($A$5=3,$A$5=1,$D172<0),NA(),IF('plutonic template'!Z$21=FALSE,NA(),BH$3*P172+R172)) ->  | Y172: =IF(OR($A$5=3,$A$5=1,$D172<0),NA(),IF('plutonic template'!Z$21=FALSE,NA(),P172*BH$2)) ->  | Z172: =IF(OR($A$5=3,$A$5=2,D172<0),NA(),IF('plutonic template'!Z$331=FALSE,NA(),BH$3*J172+L172)) ->  | AA172: =IF(OR($A$5=3,$A$5=2,D172<0),NA(),IF('plutonic template'!Z$331=FALSE,NA(),J172*BH$2)) ->  | AF172: =IF(OR($A$5=3,$A$5=2,D172<0),NA(),IF('plutonic template'!Z$415=FALSE,NA(),BH$3*AC172+AE172)) ->  | AG172: =IF(OR($A$5=3,$A$5=2,D172<0),NA(),IF('plutonic template'!Z$415=FALSE,NA(),AC172*BH$2)) ->  | AL172: =IF('plutonic template'!Z$198=FALSE,NA(),BH$3*AI172+AK172) ->  | AM172: =IF('plutonic template'!Z$198=FALSE,NA(),AI172*BH$2) ->  | AR172: =IF('plutonic template'!$Z$236=FALSE,NA(),BH$3*AO172+AQ172) ->  | AS172: =IF('plutonic template'!$Z$236=FALSE,NA(),AO172*BH$2) ->  | AX172: =IF('plutonic template'!$Z$277=FALSE,NA(),BH$3*AU172+AW172) ->  | AY172: =IF('plutonic template'!$Z$277=FALSE,NA(),AU172*BH$2) ->  | BD172: =IF('plutonic template'!$Z$390=FALSE,NA(),BH$3*BA172+BC172) ->  | BE172: =IF('plutonic template'!$Z$390=FALSE,NA(),BA172*BH$2) -> 
N173: 1 | T173: =IF(OR($A$5=3,$A$5=1),NA(),IF('plutonic template'!Z$88=FALSE,NA(),IF((ABS(D173)+E173+F173)>0,BH$3*P173+R173,NA()))) ->  | U173: =IF(OR($A$5=3,$A$5=1),NA(),IF('plutonic template'!Z$88=FALSE,NA(),IF((ABS(D173)+E173+F173)>0,P173*BH$2+BH$2,NA()))) ->  | V173: =IF(OR($A$5=3,$A$5=1),NA(),IF('volcanic template'!Z$14=FALSE,NA(),IF((ABS(D173)+E173+F173)>0,BH$3*P173+R173,NA()))) ->  | W173: =IF(OR(A$5=3,A$5=1),NA(),IF('volcanic template'!Z$14=FALSE,NA(),IF((ABS(D173)+E173+F173)>0,P173*BH$2+BH$2,NA()))) ->  | X173: =IF(OR($A$5=3,$A$5=1,$D173<0),NA(),IF('plutonic template'!Z$21=FALSE,NA(),BH$3*P173+R173)) ->  | Y173: =IF(OR($A$5=3,$A$5=1,$D173<0),NA(),IF('plutonic template'!Z$21=FALSE,NA(),P173*BH$2)) ->  | Z173: =IF(OR($A$5=3,$A$5=2,D173<0),NA(),IF('plutonic template'!Z$331=FALSE,NA(),BH$3*J173+L173)) ->  | AA173: =IF(OR($A$5=3,$A$5=2,D173<0),NA(),IF('plutonic template'!Z$331=FALSE,NA(),J173*BH$2)) ->  | AF173: =IF(OR($A$5=3,$A$5=2,D173<0),NA(),IF('plutonic template'!Z$415=FALSE,NA(),BH$3*AC173+AE173)) ->  | AG173: =IF(OR($A$5=3,$A$5=2,D173<0),NA(),IF('plutonic template'!Z$415=FALSE,NA(),AC173*BH$2)) ->  | AL173: =IF('plutonic template'!Z$198=FALSE,NA(),BH$3*AI173+AK173) ->  | AM173: =IF('plutonic template'!Z$198=FALSE,NA(),AI173*BH$2) ->  | AR173: =IF('plutonic template'!$Z$236=FALSE,NA(),BH$3*AO173+AQ173) ->  | AS173: =IF('plutonic template'!$Z$236=FALSE,NA(),AO173*BH$2) ->  | AX173: =IF('plutonic template'!$Z$277=FALSE,NA(),BH$3*AU173+AW173) ->  | AY173: =IF('plutonic template'!$Z$277=FALSE,NA(),AU173*BH$2) ->  | BD173: =IF('plutonic template'!$Z$390=FALSE,NA(),BH$3*BA173+BC173) ->  | BE173: =IF('plutonic template'!$Z$390=FALSE,NA(),BA173*BH$2) -> 
